Workbook

Sheet A01
B1: MINISTERIO DE SALUD
B2: SERVICIO DE SALUD COQUIMBO
B3: DEPARTAMENTO DE GESTIÓN, PLANIFICACIÓN Y CONTROL
B4: SUBDEPTO. DE ESTADÍSTICAS Y GESTIÓN DE LA INFORMACIÓN
B5: AÑO 2022
B6: REM-A01. CONTROLES DE SALUD
B9: SECCIÓN A: CONTROLES DE SALUD SEXUAL Y REPRODUCTIVA
B10: TIPO DE CONTROL | C10: PROFESIONAL | D10: TOTAL | E10: POR EDAD | V10: SEXO | X10: Beneficiarios | Y10: Control con pareja familiar u otro | Z10: Control de diada con presencia del padre | AA10: TIPOS DE LACTANCIA
E11: Menores de un mes | F11: 5 - 9 | G11: 10 - 14 | H11: 15 a 19 | I11: 20 - 24 | J11: 25 - 29 | K11: 30 - 34 | L11: 35 - 39 | M11: 40 - 44 | N11: 45 - 49 | O11: 50 - 54 | P11: 55 - 59 | Q11: 60 - 64 | R11: 65 - 69 | S11: 70 - 74 | T11: 75 - 79 | U11: 80 y mas | V11: HOMBRES | W11: MUJERES | AA11: Lactancia Materna Exclusiva | AB11: Lactancia Materna / Formula Láctea | AC11: Formula Láctea
A12: 01010101 | B12: PRE- CONCEPCIONAL | C12: MÉDICO | D12: =IFERROR(VLOOKUP($A12,Filtro_!$A$4:$AX$2299,2,FALSE),0) -> 6 | E12: =IFERROR(VLOOKUP($A12,Filtro_!$A$4:$AX$2299,3,FALSE),0) -> 0 | F12: =IFERROR(VLOOKUP($A12,Filtro_!$A$4:$AX$2299,4,FALSE),0) -> 0 | G12: =IFERROR(VLOOKUP($A12,Filtro_!$A$4:$AX$2299,5,FALSE),0) -> 0 | H12: =IFERROR(VLOOKUP($A12,Filtro_!$A$4:$AX$2299,6,FALSE),0) -> 0 | I12: =IFERROR(VLOOKUP($A12,Filtro_!$A$4:$AX$2299,7,FALSE),0) -> 1 | J12: =IFERROR(VLOOKUP($A12,Filtro_!$A$4:$AX$2299,8,FALSE),0) -> 1 | K12: =IFERROR(VLOOKUP($A12,Filtro_!$A$4:$AX$2299,9,FALSE),0) -> 1 | L12: =IFERROR(VLOOKUP($A12,Filtro_!$A$4:$AX$2299,10,FALSE),0) -> 3 | M12: =IFERROR(VLOOKUP($A12,Filtro_!$A$4:$AX$2299,11,FALSE),0) -> 0 | N12: =IFERROR(VLOOKUP($A12,Filtro_!$A$4:$AX$2299,12,FALSE),0) -> 0 | O12: =IFERROR(VLOOKUP($A12,Filtro_!$A$4:$AX$2299,13,FALSE),0) -> 0 | P12: =IFERROR(VLOOKUP($A12,Filtro_!$A$4:$AX$2299,14,FALSE),0) -> 0 | Q12: =IFERROR(VLOOKUP($A12,Filtro_!$A$4:$AX$2299,15,FALSE),0) -> 0 | R12: =IFERROR(VLOOKUP($A12,Filtro_!$A$4:$AX$2299,16,FALSE),0) -> 0 | S12: =IFERROR(VLOOKUP($A12,Filtro_!$A$4:$AX$2299,17,FALSE),0) -> 0 | T12: =IFERROR(VLOOKUP($A12,Filtro_!$A$4:$AX$2299,18,FALSE),0) -> 0 | U12: =IFERROR(VLOOKUP($A12,Filtro_!$A$4:$AX$2299,19,FALSE),0) -> 0 | V12: =IFERROR(VLOOKUP($A12,Filtro_!$A$4:$AX$2299,20,FALSE),0) -> 0 | W12: =IFERROR(VLOOKUP($A12,Filtro_!$A$4:$AX$2299,21,FALSE),0) -> 6 | X12: =IFERROR(VLOOKUP($A12,Filtro_!$A$4:$AX$2299,22,FALSE),0) -> 6 | Y12: =IFERROR(VLOOKUP($A12,Filtro_!$A$4:$AX$2299,23,FALSE),0) -> 0 | Z12: =IFERROR(VLOOKUP($A12,Filtro_!$A$4:$AX$2299,24,FALSE),0) -> 0 | AA12: =IFERROR(VLOOKUP($A12,Filtro_!$A$4:$AX$2299,25,FALSE),0) -> 0 | AB12: =IFERROR(VLOOKUP($A12,Filtro_!$A$4:$AX$2299,26,FALSE),0) -> 0 | AC12: =IFERROR(VLOOKUP($A12,Filtro_!$A$4:$AX$2299,27,FALSE),0) -> 0 | CA12: * El número de Sexo Hombres y mujeres debe ser igual al total. | CL12: 1 | CM12: 0 | CN12: 0 | CO12: 0 | CQ12: 0 | CR12: 0
A13: 01010103 | C13: MATRONA /ÓN | D13: =IFERROR(VLOOKUP($A13,Filtro_!$A$4:$AX$2299,2,FALSE),0) -> 1518 | E13: =IFERROR(VLOOKUP($A13,Filtro_!$A$4:$AX$2299,3,FALSE),0) -> 0 | F13: =IFERROR(VLOOKUP($A13,Filtro_!$A$4:$AX$2299,4,FALSE),0) -> 0 | G13: =IFERROR(VLOOKUP($A13,Filtro_!$A$4:$AX$2299,5,FALSE),0) -> 0 | H13: =IFERROR(VLOOKUP($A13,Filtro_!$A$4:$AX$2299,6,FALSE),0) -> 64 | I13: =IFERROR(VLOOKUP($A13,Filtro_!$A$4:$AX$2299,7,FALSE),0) -> 267 | J13: =IFERROR(VLOOKUP($A13,Filtro_!$A$4:$AX$2299,8,FALSE),0) -> 435 | K13: =IFERROR(VLOOKUP($A13,Filtro_!$A$4:$AX$2299,9,FALSE),0) -> 375 | L13: =IFERROR(VLOOKUP($A13,Filtro_!$A$4:$AX$2299,10,FALSE),0) -> 250 | M13: =IFERROR(VLOOKUP($A13,Filtro_!$A$4:$AX$2299,11,FALSE),0) -> 110 | N13: =IFERROR(VLOOKUP($A13,Filtro_!$A$4:$AX$2299,12,FALSE),0) -> 14 | O13: =IFERROR(VLOOKUP($A13,Filtro_!$A$4:$AX$2299,13,FALSE),0) -> 2 | P13: =IFERROR(VLOOKUP($A13,Filtro_!$A$4:$AX$2299,14,FALSE),0) -> 1 | Q13: =IFERROR(VLOOKUP($A13,Filtro_!$A$4:$AX$2299,15,FALSE),0) -> 0 | R13: =IFERROR(VLOOKUP($A13,Filtro_!$A$4:$AX$2299,16,FALSE),0) -> 0 | S13: =IFERROR(VLOOKUP($A13,Filtro_!$A$4:$AX$2299,17,FALSE),0) -> 0 | T13: =IFERROR(VLOOKUP($A13,Filtro_!$A$4:$AX$2299,18,FALSE),0) -> 0 | U13: =IFERROR(VLOOKUP($A13,Filtro_!$A$4:$AX$2299,19,FALSE),0) -> 0 | V13: =IFERROR(VLOOKUP($A13,Filtro_!$A$4:$AX$2299,20,FALSE),0) -> 3 | W13: =IFERROR(VLOOKUP($A13,Filtro_!$A$4:$AX$2299,21,FALSE),0) -> 1459 | X13: =IFERROR(VLOOKUP($A13,Filtro_!$A$4:$AX$2299,22,FALSE),0) -> 1448 | Y13: =IFERROR(VLOOKUP($A13,Filtro_!$A$4:$AX$2299,23,FALSE),0) -> 0 | Z13: =IFERROR(VLOOKUP($A13,Filtro_!$A$4:$AX$2299,24,FALSE),0) -> 0 | AA13: =IFERROR(VLOOKUP($A13,Filtro_!$A$4:$AX$2299,25,FALSE),0) -> 0 | AB13: =IFERROR(VLOOKUP($A13,Filtro_!$A$4:$AX$2299,26,FALSE),0) -> 0 | AC13: =IFERROR(VLOOKUP($A13,Filtro_!$A$4:$AX$2299,27,FALSE),0) -> 0 | CA13: * El número de Sexo Hombres y mujeres debe ser igual al total. | CL13: 1 | CM13: 0 | CN13: 0 | CO13: 0 | CQ13: 0 | CR13: 0
A14: 01010201 | B14: PRENATAL | C14: MÉDICO | D14: =IFERROR(VLOOKUP($A14,Filtro_!$A$4:$AX$2299,2,FALSE),0) -> 421 | E14: =IFERROR(VLOOKUP($A14,Filtro_!$A$4:$AX$2299,3,FALSE),0) -> 0 | F14: =IFERROR(VLOOKUP($A14,Filtro_!$A$4:$AX$2299,4,FALSE),0) -> 0 | G14: =IFERROR(VLOOKUP($A14,Filtro_!$A$4:$AX$2299,5,FALSE),0) -> 4 | H14: =IFERROR(VLOOKUP($A14,Filtro_!$A$4:$AX$2299,6,FALSE),0) -> 31 | I14: =IFERROR(VLOOKUP($A14,Filtro_!$A$4:$AX$2299,7,FALSE),0) -> 119 | J14: =IFERROR(VLOOKUP($A14,Filtro_!$A$4:$AX$2299,8,FALSE),0) -> 119 | K14: =IFERROR(VLOOKUP($A14,Filtro_!$A$4:$AX$2299,9,FALSE),0) -> 111 | L14: =IFERROR(VLOOKUP($A14,Filtro_!$A$4:$AX$2299,10,FALSE),0) -> 29 | M14: =IFERROR(VLOOKUP($A14,Filtro_!$A$4:$AX$2299,11,FALSE),0) -> 8 | N14: =IFERROR(VLOOKUP($A14,Filtro_!$A$4:$AX$2299,12,FALSE),0) -> 0 | O14: =IFERROR(VLOOKUP($A14,Filtro_!$A$4:$AX$2299,13,FALSE),0) -> 0 | P14: =IFERROR(VLOOKUP($A14,Filtro_!$A$4:$AX$2299,14,FALSE),0) -> 0 | Q14: =IFERROR(VLOOKUP($A14,Filtro_!$A$4:$AX$2299,15,FALSE),0) -> 0 | R14: =IFERROR(VLOOKUP($A14,Filtro_!$A$4:$AX$2299,16,FALSE),0) -> 0 | S14: =IFERROR(VLOOKUP($A14,Filtro_!$A$4:$AX$2299,17,FALSE),0) -> 0 | T14: =IFERROR(VLOOKUP($A14,Filtro_!$A$4:$AX$2299,18,FALSE),0) -> 0 | U14: =IFERROR(VLOOKUP($A14,Filtro_!$A$4:$AX$2299,19,FALSE),0) -> 0 | V14: =IFERROR(VLOOKUP($A14,Filtro_!$A$4:$AX$2299,20,FALSE),0) -> 0 | W14: =IFERROR(VLOOKUP($A14,Filtro_!$A$4:$AX$2299,21,FALSE),0) -> 423 | X14: =IFERROR(VLOOKUP($A14,Filtro_!$A$4:$AX$2299,22,FALSE),0) -> 422 | Y14: =IFERROR(VLOOKUP($A14,Filtro_!$A$4:$AX$2299,23,FALSE),0) -> 16 | Z14: =IFERROR(VLOOKUP($A14,Filtro_!$A$4:$AX$2299,24,FALSE),0) -> 0 | AA14: =IFERROR(VLOOKUP($A14,Filtro_!$A$4:$AX$2299,25,FALSE),0) -> 0 | AB14: =IFERROR(VLOOKUP($A14,Filtro_!$A$4:$AX$2299,26,FALSE),0) -> 0 | AC14: =IFERROR(VLOOKUP($A14,Filtro_!$A$4:$AX$2299,27,FALSE),0) -> 0 | CA14: * El número de Sexo Hombres y mujeres debe ser igual al total. | CL14: 1 | CM14: 0 | CN14: 0 | CO14: 0 | CQ14: 0 | CR14: 0 | CS14: 0
A15: 01010203 | C15: MATRONA /ÓN | D15: =IFERROR(VLOOKUP($A15,Filtro_!$A$4:$AX$2299,2,FALSE),0) -> 41233 | E15: =IFERROR(VLOOKUP($A15,Filtro_!$A$4:$AX$2299,3,FALSE),0) -> 0 | F15: =IFERROR(VLOOKUP($A15,Filtro_!$A$4:$AX$2299,4,FALSE),0) -> 0 | G15: =IFERROR(VLOOKUP($A15,Filtro_!$A$4:$AX$2299,5,FALSE),0) -> 102 | H15: =IFERROR(VLOOKUP($A15,Filtro_!$A$4:$AX$2299,6,FALSE),0) -> 2669 | I15: =IFERROR(VLOOKUP($A15,Filtro_!$A$4:$AX$2299,7,FALSE),0) -> 9410 | J15: =IFERROR(VLOOKUP($A15,Filtro_!$A$4:$AX$2299,8,FALSE),0) -> 11966 | K15: =IFERROR(VLOOKUP($A15,Filtro_!$A$4:$AX$2299,9,FALSE),0) -> 10397 | L15: =IFERROR(VLOOKUP($A15,Filtro_!$A$4:$AX$2299,10,FALSE),0) -> 5085 | M15: =IFERROR(VLOOKUP($A15,Filtro_!$A$4:$AX$2299,11,FALSE),0) -> 1478 | N15: =IFERROR(VLOOKUP($A15,Filtro_!$A$4:$AX$2299,12,FALSE),0) -> 111 | O15: =IFERROR(VLOOKUP($A15,Filtro_!$A$4:$AX$2299,13,FALSE),0) -> 13 | P15: =IFERROR(VLOOKUP($A15,Filtro_!$A$4:$AX$2299,14,FALSE),0) -> 2 | Q15: =IFERROR(VLOOKUP($A15,Filtro_!$A$4:$AX$2299,15,FALSE),0) -> 0 | R15: =IFERROR(VLOOKUP($A15,Filtro_!$A$4:$AX$2299,16,FALSE),0) -> 0 | S15: =IFERROR(VLOOKUP($A15,Filtro_!$A$4:$AX$2299,17,FALSE),0) -> 0 | T15: =IFERROR(VLOOKUP($A15,Filtro_!$A$4:$AX$2299,18,FALSE),0) -> 0 | U15: =IFERROR(VLOOKUP($A15,Filtro_!$A$4:$AX$2299,19,FALSE),0) -> 0 | V15: =IFERROR(VLOOKUP($A15,Filtro_!$A$4:$AX$2299,20,FALSE),0) -> 0 | W15: =IFERROR(VLOOKUP($A15,Filtro_!$A$4:$AX$2299,21,FALSE),0) -> 40633 | X15: =IFERROR(VLOOKUP($A15,Filtro_!$A$4:$AX$2299,22,FALSE),0) -> 39576 | Y15: =IFERROR(VLOOKUP($A15,Filtro_!$A$4:$AX$2299,23,FALSE),0) -> 7066 | Z15: =IFERROR(VLOOKUP($A15,Filtro_!$A$4:$AX$2299,24,FALSE),0) -> 0 | AA15: =IFERROR(VLOOKUP($A15,Filtro_!$A$4:$AX$2299,25,FALSE),0) -> 0 | AB15: =IFERROR(VLOOKUP($A15,Filtro_!$A$4:$AX$2299,26,FALSE),0) -> 0 | AC15: =IFERROR(VLOOKUP($A15,Filtro_!$A$4:$AX$2299,27,FALSE),0) -> 0 | CA15: * El número de Sexo Hombres y mujeres debe ser igual al total. | CL15: 1 | CM15: 0 | CN15: 0 | CO15: 0 | CQ15: 0 | CR15: 0 | CS15: 0
A16: 01501050 | B16: POST PARTO | C16: MÉDICO | D16: =IFERROR(VLOOKUP($A16,Filtro_!$A$4:$AX$2299,2,FALSE),0) -> 1 | E16: =IFERROR(VLOOKUP($A16,Filtro_!$A$4:$AX$2299,3,FALSE),0) -> 0 | F16: =IFERROR(VLOOKUP($A16,Filtro_!$A$4:$AX$2299,4,FALSE),0) -> 0 | G16: =IFERROR(VLOOKUP($A16,Filtro_!$A$4:$AX$2299,5,FALSE),0) -> 0 | H16: =IFERROR(VLOOKUP($A16,Filtro_!$A$4:$AX$2299,6,FALSE),0) -> 0 | I16: =IFERROR(VLOOKUP($A16,Filtro_!$A$4:$AX$2299,7,FALSE),0) -> 0 | J16: =IFERROR(VLOOKUP($A16,Filtro_!$A$4:$AX$2299,8,FALSE),0) -> 0 | K16: =IFERROR(VLOOKUP($A16,Filtro_!$A$4:$AX$2299,9,FALSE),0) -> 0 | L16: =IFERROR(VLOOKUP($A16,Filtro_!$A$4:$AX$2299,10,FALSE),0) -> 1 | M16: =IFERROR(VLOOKUP($A16,Filtro_!$A$4:$AX$2299,11,FALSE),0) -> 0 | N16: =IFERROR(VLOOKUP($A16,Filtro_!$A$4:$AX$2299,12,FALSE),0) -> 0 | O16: =IFERROR(VLOOKUP($A16,Filtro_!$A$4:$AX$2299,13,FALSE),0) -> 0 | P16: =IFERROR(VLOOKUP($A16,Filtro_!$A$4:$AX$2299,14,FALSE),0) -> 0 | Q16: =IFERROR(VLOOKUP($A16,Filtro_!$A$4:$AX$2299,15,FALSE),0) -> 0 | R16: =IFERROR(VLOOKUP($A16,Filtro_!$A$4:$AX$2299,16,FALSE),0) -> 0 | S16: =IFERROR(VLOOKUP($A16,Filtro_!$A$4:$AX$2299,17,FALSE),0) -> 0 | T16: =IFERROR(VLOOKUP($A16,Filtro_!$A$4:$AX$2299,18,FALSE),0) -> 0 | U16: =IFERROR(VLOOKUP($A16,Filtro_!$A$4:$AX$2299,19,FALSE),0) -> 0 | V16: =IFERROR(VLOOKUP($A16,Filtro_!$A$4:$AX$2299,20,FALSE),0) -> 0 | W16: =IFERROR(VLOOKUP($A16,Filtro_!$A$4:$AX$2299,21,FALSE),0) -> 1 | X16: =IFERROR(VLOOKUP($A16,Filtro_!$A$4:$AX$2299,22,FALSE),0) -> 1 | Y16: =IFERROR(VLOOKUP($A16,Filtro_!$A$4:$AX$2299,23,FALSE),0) -> 0 | Z16: =IFERROR(VLOOKUP($A16,Filtro_!$A$4:$AX$2299,24,FALSE),0) -> 0 | AA16: =IFERROR(VLOOKUP($A16,Filtro_!$A$4:$AX$2299,25,FALSE),0) -> 0 | AB16: =IFERROR(VLOOKUP($A16,Filtro_!$A$4:$AX$2299,26,FALSE),0) -> 0 | AC16: =IFERROR(VLOOKUP($A16,Filtro_!$A$4:$AX$2299,27,FALSE),0) -> 0 | CA16: * El número de Sexo Hombres y mujeres debe ser igual al total. | CL16: 1 | CM16: 0 | CN16: 0 | CO16: 0 | CQ16: 0 | CR16: 0
A17: 01501060 | C17: MATRONA /ÓN | D17: =IFERROR(VLOOKUP($A17,Filtro_!$A$4:$AX$2299,2,FALSE),0) -> 593 | E17: =IFERROR(VLOOKUP($A17,Filtro_!$A$4:$AX$2299,3,FALSE),0) -> 0 | F17: =IFERROR(VLOOKUP($A17,Filtro_!$A$4:$AX$2299,4,FALSE),0) -> 0 | G17: =IFERROR(VLOOKUP($A17,Filtro_!$A$4:$AX$2299,5,FALSE),0) -> 0 | H17: =IFERROR(VLOOKUP($A17,Filtro_!$A$4:$AX$2299,6,FALSE),0) -> 38 | I17: =IFERROR(VLOOKUP($A17,Filtro_!$A$4:$AX$2299,7,FALSE),0) -> 115 | J17: =IFERROR(VLOOKUP($A17,Filtro_!$A$4:$AX$2299,8,FALSE),0) -> 171 | K17: =IFERROR(VLOOKUP($A17,Filtro_!$A$4:$AX$2299,9,FALSE),0) -> 164 | L17: =IFERROR(VLOOKUP($A17,Filtro_!$A$4:$AX$2299,10,FALSE),0) -> 73 | M17: =IFERROR(VLOOKUP($A17,Filtro_!$A$4:$AX$2299,11,FALSE),0) -> 28 | N17: =IFERROR(VLOOKUP($A17,Filtro_!$A$4:$AX$2299,12,FALSE),0) -> 3 | O17: =IFERROR(VLOOKUP($A17,Filtro_!$A$4:$AX$2299,13,FALSE),0) -> 1 | P17: =IFERROR(VLOOKUP($A17,Filtro_!$A$4:$AX$2299,14,FALSE),0) -> 0 | Q17: =IFERROR(VLOOKUP($A17,Filtro_!$A$4:$AX$2299,15,FALSE),0) -> 0 | R17: =IFERROR(VLOOKUP($A17,Filtro_!$A$4:$AX$2299,16,FALSE),0) -> 0 | S17: =IFERROR(VLOOKUP($A17,Filtro_!$A$4:$AX$2299,17,FALSE),0) -> 0 | T17: =IFERROR(VLOOKUP($A17,Filtro_!$A$4:$AX$2299,18,FALSE),0) -> 0 | U17: =IFERROR(VLOOKUP($A17,Filtro_!$A$4:$AX$2299,19,FALSE),0) -> 0 | V17: =IFERROR(VLOOKUP($A17,Filtro_!$A$4:$AX$2299,20,FALSE),0) -> 0 | W17: =IFERROR(VLOOKUP($A17,Filtro_!$A$4:$AX$2299,21,FALSE),0) -> 557 | X17: =IFERROR(VLOOKUP($A17,Filtro_!$A$4:$AX$2299,22,FALSE),0) -> 545 | Y17: =IFERROR(VLOOKUP($A17,Filtro_!$A$4:$AX$2299,23,FALSE),0) -> 0 | Z17: =IFERROR(VLOOKUP($A17,Filtro_!$A$4:$AX$2299,24,FALSE),0) -> 0 | AA17: =IFERROR(VLOOKUP($A17,Filtro_!$A$4:$AX$2299,25,FALSE),0) -> 0 | AB17: =IFERROR(VLOOKUP($A17,Filtro_!$A$4:$AX$2299,26,FALSE),0) -> 0 | AC17: =IFERROR(VLOOKUP($A17,Filtro_!$A$4:$AX$2299,27,FALSE),0) -> 0 | CA17: * El número de Sexo Hombres y mujeres debe ser igual al total. | CL17: 1 | CM17: 0 | CN17: 0 | CO17: 0 | CQ17: 0 | CR17: 0
A18: 01501070 | B18: POST ABORTO | C18: MÉDICO | D18: =IFERROR(VLOOKUP($A18,Filtro_!$A$4:$AX$2299,2,FALSE),0) -> 1 | E18: =IFERROR(VLOOKUP($A18,Filtro_!$A$4:$AX$2299,3,FALSE),0) -> 0 | F18: =IFERROR(VLOOKUP($A18,Filtro_!$A$4:$AX$2299,4,FALSE),0) -> 0 | G18: =IFERROR(VLOOKUP($A18,Filtro_!$A$4:$AX$2299,5,FALSE),0) -> 0 | H18: =IFERROR(VLOOKUP($A18,Filtro_!$A$4:$AX$2299,6,FALSE),0) -> 1 | I18: =IFERROR(VLOOKUP($A18,Filtro_!$A$4:$AX$2299,7,FALSE),0) -> 0 | J18: =IFERROR(VLOOKUP($A18,Filtro_!$A$4:$AX$2299,8,FALSE),0) -> 0 | K18: =IFERROR(VLOOKUP($A18,Filtro_!$A$4:$AX$2299,9,FALSE),0) -> 0 | L18: =IFERROR(VLOOKUP($A18,Filtro_!$A$4:$AX$2299,10,FALSE),0) -> 0 | M18: =IFERROR(VLOOKUP($A18,Filtro_!$A$4:$AX$2299,11,FALSE),0) -> 0 | N18: =IFERROR(VLOOKUP($A18,Filtro_!$A$4:$AX$2299,12,FALSE),0) -> 0 | O18: =IFERROR(VLOOKUP($A18,Filtro_!$A$4:$AX$2299,13,FALSE),0) -> 0 | P18: =IFERROR(VLOOKUP($A18,Filtro_!$A$4:$AX$2299,14,FALSE),0) -> 0 | Q18: =IFERROR(VLOOKUP($A18,Filtro_!$A$4:$AX$2299,15,FALSE),0) -> 0 | R18: =IFERROR(VLOOKUP($A18,Filtro_!$A$4:$AX$2299,16,FALSE),0) -> 0 | S18: =IFERROR(VLOOKUP($A18,Filtro_!$A$4:$AX$2299,17,FALSE),0) -> 0 | T18: =IFERROR(VLOOKUP($A18,Filtro_!$A$4:$AX$2299,18,FALSE),0) -> 0 | U18: =IFERROR(VLOOKUP($A18,Filtro_!$A$4:$AX$2299,19,FALSE),0) -> 0 | V18: =IFERROR(VLOOKUP($A18,Filtro_!$A$4:$AX$2299,20,FALSE),0) -> 0 | W18: =IFERROR(VLOOKUP($A18,Filtro_!$A$4:$AX$2299,21,FALSE),0) -> 1 | X18: =IFERROR(VLOOKUP($A18,Filtro_!$A$4:$AX$2299,22,FALSE),0) -> 1 | Y18: =IFERROR(VLOOKUP($A18,Filtro_!$A$4:$AX$2299,23,FALSE),0) -> 0 | Z18: =IFERROR(VLOOKUP($A18,Filtro_!$A$4:$AX$2299,24,FALSE),0) -> 0 | AA18: =IFERROR(VLOOKUP($A18,Filtro_!$A$4:$AX$2299,25,FALSE),0) -> 0 | AB18: =IFERROR(VLOOKUP($A18,Filtro_!$A$4:$AX$2299,26,FALSE),0) -> 0 | AC18: =IFERROR(VLOOKUP($A18,Filtro_!$A$4:$AX$2299,27,FALSE),0) -> 0 | CA18: * El número de Sexo Hombres y mujeres debe ser igual al total. | CL18: 1 | CM18: 0 | CN18: 0 | CO18: 0 | CQ18: 0 | CR18: 0
A19: 01501080 | C19: MATRONA /ÓN | D19: =IFERROR(VLOOKUP($A19,Filtro_!$A$4:$AX$2299,2,FALSE),0) -> 205 | E19: =IFERROR(VLOOKUP($A19,Filtro_!$A$4:$AX$2299,3,FALSE),0) -> 0 | F19: =IFERROR(VLOOKUP($A19,Filtro_!$A$4:$AX$2299,4,FALSE),0) -> 0 | G19: =IFERROR(VLOOKUP($A19,Filtro_!$A$4:$AX$2299,5,FALSE),0) -> 0 | H19: =IFERROR(VLOOKUP($A19,Filtro_!$A$4:$AX$2299,6,FALSE),0) -> 13 | I19: =IFERROR(VLOOKUP($A19,Filtro_!$A$4:$AX$2299,7,FALSE),0) -> 25 | J19: =IFERROR(VLOOKUP($A19,Filtro_!$A$4:$AX$2299,8,FALSE),0) -> 53 | K19: =IFERROR(VLOOKUP($A19,Filtro_!$A$4:$AX$2299,9,FALSE),0) -> 50 | L19: =IFERROR(VLOOKUP($A19,Filtro_!$A$4:$AX$2299,10,FALSE),0) -> 36 | M19: =IFERROR(VLOOKUP($A19,Filtro_!$A$4:$AX$2299,11,FALSE),0) -> 24 | N19: =IFERROR(VLOOKUP($A19,Filtro_!$A$4:$AX$2299,12,FALSE),0) -> 4 | O19: =IFERROR(VLOOKUP($A19,Filtro_!$A$4:$AX$2299,13,FALSE),0) -> 0 | P19: =IFERROR(VLOOKUP($A19,Filtro_!$A$4:$AX$2299,14,FALSE),0) -> 0 | Q19: =IFERROR(VLOOKUP($A19,Filtro_!$A$4:$AX$2299,15,FALSE),0) -> 0 | R19: =IFERROR(VLOOKUP($A19,Filtro_!$A$4:$AX$2299,16,FALSE),0) -> 0 | S19: =IFERROR(VLOOKUP($A19,Filtro_!$A$4:$AX$2299,17,FALSE),0) -> 0 | T19: =IFERROR(VLOOKUP($A19,Filtro_!$A$4:$AX$2299,18,FALSE),0) -> 0 | U19: =IFERROR(VLOOKUP($A19,Filtro_!$A$4:$AX$2299,19,FALSE),0) -> 0 | V19: =IFERROR(VLOOKUP($A19,Filtro_!$A$4:$AX$2299,20,FALSE),0) -> 0 | W19: =IFERROR(VLOOKUP($A19,Filtro_!$A$4:$AX$2299,21,FALSE),0) -> 194 | X19: =IFERROR(VLOOKUP($A19,Filtro_!$A$4:$AX$2299,22,FALSE),0) -> 196 | Y19: =IFERROR(VLOOKUP($A19,Filtro_!$A$4:$AX$2299,23,FALSE),0) -> 0 | Z19: =IFERROR(VLOOKUP($A19,Filtro_!$A$4:$AX$2299,24,FALSE),0) -> 0 | AA19: =IFERROR(VLOOKUP($A19,Filtro_!$A$4:$AX$2299,25,FALSE),0) -> 0 | AB19: =IFERROR(VLOOKUP($A19,Filtro_!$A$4:$AX$2299,26,FALSE),0) -> 0 | AC19: =IFERROR(VLOOKUP($A19,Filtro_!$A$4:$AX$2299,27,FALSE),0) -> 0 | CA19: * El número de Sexo Hombres y mujeres debe ser igual al total. | CL19: 1 | CM19: 0 | CN19: 0 | CO19: 0 | CQ19: 0 | CR19: 0
A20: 01110106 | B20: PUÉRPERA CON RECIÉN NACIDO HASTA 10 DÍAS DE VIDA | C20: MÉDICO | D20: =IFERROR(VLOOKUP($A20,Filtro_!$A$4:$AX$2299,2,FALSE),0) -> 48 | E20: =IFERROR(VLOOKUP($A20,Filtro_!$A$4:$AX$2299,3,FALSE),0) -> 0 | F20: =IFERROR(VLOOKUP($A20,Filtro_!$A$4:$AX$2299,4,FALSE),0) -> 0 | G20: =IFERROR(VLOOKUP($A20,Filtro_!$A$4:$AX$2299,5,FALSE),0) -> 2 | H20: =IFERROR(VLOOKUP($A20,Filtro_!$A$4:$AX$2299,6,FALSE),0) -> 2 | I20: =IFERROR(VLOOKUP($A20,Filtro_!$A$4:$AX$2299,7,FALSE),0) -> 8 | J20: =IFERROR(VLOOKUP($A20,Filtro_!$A$4:$AX$2299,8,FALSE),0) -> 17 | K20: =IFERROR(VLOOKUP($A20,Filtro_!$A$4:$AX$2299,9,FALSE),0) -> 12 | L20: =IFERROR(VLOOKUP($A20,Filtro_!$A$4:$AX$2299,10,FALSE),0) -> 4 | M20: =IFERROR(VLOOKUP($A20,Filtro_!$A$4:$AX$2299,11,FALSE),0) -> 3 | N20: =IFERROR(VLOOKUP($A20,Filtro_!$A$4:$AX$2299,12,FALSE),0) -> 0 | O20: =IFERROR(VLOOKUP($A20,Filtro_!$A$4:$AX$2299,13,FALSE),0) -> 0 | P20: =IFERROR(VLOOKUP($A20,Filtro_!$A$4:$AX$2299,14,FALSE),0) -> 0 | Q20: =IFERROR(VLOOKUP($A20,Filtro_!$A$4:$AX$2299,15,FALSE),0) -> 0 | R20: =IFERROR(VLOOKUP($A20,Filtro_!$A$4:$AX$2299,16,FALSE),0) -> 0 | S20: =IFERROR(VLOOKUP($A20,Filtro_!$A$4:$AX$2299,17,FALSE),0) -> 0 | T20: =IFERROR(VLOOKUP($A20,Filtro_!$A$4:$AX$2299,18,FALSE),0) -> 0 | U20: =IFERROR(VLOOKUP($A20,Filtro_!$A$4:$AX$2299,19,FALSE),0) -> 0 | V20: =IFERROR(VLOOKUP($A20,Filtro_!$A$4:$AX$2299,20,FALSE),0) -> 0 | W20: =IFERROR(VLOOKUP($A20,Filtro_!$A$4:$AX$2299,21,FALSE),0) -> 46 | X20: =IFERROR(VLOOKUP($A20,Filtro_!$A$4:$AX$2299,22,FALSE),0) -> 44 | Y20: =IFERROR(VLOOKUP($A20,Filtro_!$A$4:$AX$2299,23,FALSE),0) -> 0 | Z20: =IFERROR(VLOOKUP($A20,Filtro_!$A$4:$AX$2299,24,FALSE),0) -> 15 | AA20: =IFERROR(VLOOKUP($A20,Filtro_!$A$4:$AX$2299,25,FALSE),0) -> 33 | AB20: =IFERROR(VLOOKUP($A20,Filtro_!$A$4:$AX$2299,26,FALSE),0) -> 1 | AC20: =IFERROR(VLOOKUP($A20,Filtro_!$A$4:$AX$2299,27,FALSE),0) -> 0 | CA20: * El número de Sexo Hombres y mujeres debe ser igual al total. | CF20: =IF(AND(C20<>0,'A05'!C84=""),"* No olvide registrar ingresos a control de salud de los respectivos RN, en REM A05-sección E. ","") -> * No olvide registrar ingresos a control de salud de los respectivos RN, en REM A05-sección E. | CL20: 1 | CM20: 0 | CN20: 0 | CO20: 0 | CP20: 0 | CQ20: 0 | CR20: 0 | CS20: 0 | CT20: 0 | CU20: 0
A21: 01110107 | C21: MATRONA /ÓN | D21: =IFERROR(VLOOKUP($A21,Filtro_!$A$4:$AX$2299,2,FALSE),0) -> 3389 | E21: =IFERROR(VLOOKUP($A21,Filtro_!$A$4:$AX$2299,3,FALSE),0) -> 0 | F21: =IFERROR(VLOOKUP($A21,Filtro_!$A$4:$AX$2299,4,FALSE),0) -> 0 | G21: =IFERROR(VLOOKUP($A21,Filtro_!$A$4:$AX$2299,5,FALSE),0) -> 6 | H21: =IFERROR(VLOOKUP($A21,Filtro_!$A$4:$AX$2299,6,FALSE),0) -> 188 | I21: =IFERROR(VLOOKUP($A21,Filtro_!$A$4:$AX$2299,7,FALSE),0) -> 793 | J21: =IFERROR(VLOOKUP($A21,Filtro_!$A$4:$AX$2299,8,FALSE),0) -> 994 | K21: =IFERROR(VLOOKUP($A21,Filtro_!$A$4:$AX$2299,9,FALSE),0) -> 865 | L21: =IFERROR(VLOOKUP($A21,Filtro_!$A$4:$AX$2299,10,FALSE),0) -> 413 | M21: =IFERROR(VLOOKUP($A21,Filtro_!$A$4:$AX$2299,11,FALSE),0) -> 120 | N21: =IFERROR(VLOOKUP($A21,Filtro_!$A$4:$AX$2299,12,FALSE),0) -> 10 | O21: =IFERROR(VLOOKUP($A21,Filtro_!$A$4:$AX$2299,13,FALSE),0) -> 0 | P21: =IFERROR(VLOOKUP($A21,Filtro_!$A$4:$AX$2299,14,FALSE),0) -> 0 | Q21: =IFERROR(VLOOKUP($A21,Filtro_!$A$4:$AX$2299,15,FALSE),0) -> 0 | R21: =IFERROR(VLOOKUP($A21,Filtro_!$A$4:$AX$2299,16,FALSE),0) -> 0 | S21: =IFERROR(VLOOKUP($A21,Filtro_!$A$4:$AX$2299,17,FALSE),0) -> 0 | T21: =IFERROR(VLOOKUP($A21,Filtro_!$A$4:$AX$2299,18,FALSE),0) -> 0 | U21: =IFERROR(VLOOKUP($A21,Filtro_!$A$4:$AX$2299,19,FALSE),0) -> 0 | V21: =IFERROR(VLOOKUP($A21,Filtro_!$A$4:$AX$2299,20,FALSE),0) -> 0 | W21: =IFERROR(VLOOKUP($A21,Filtro_!$A$4:$AX$2299,21,FALSE),0) -> 3341 | X21: =IFERROR(VLOOKUP($A21,Filtro_!$A$4:$AX$2299,22,FALSE),0) -> 3192 | Y21: =IFERROR(VLOOKUP($A21,Filtro_!$A$4:$AX$2299,23,FALSE),0) -> 0 | Z21: =IFERROR(VLOOKUP($A21,Filtro_!$A$4:$AX$2299,24,FALSE),0) -> 1366 | AA21: =IFERROR(VLOOKUP($A21,Filtro_!$A$4:$AX$2299,25,FALSE),0) -> 2604 | AB21: =IFERROR(VLOOKUP($A21,Filtro_!$A$4:$AX$2299,26,FALSE),0) -> 490 | AC21: =IFERROR(VLOOKUP($A21,Filtro_!$A$4:$AX$2299,27,FALSE),0) -> 44 | CA21: * El número de Sexo Hombres y mujeres debe ser igual al total. | CF21: =IF(AND(C21<>0,'A05'!C84=""),"* No olvide registrar ingresos a control de salud de los respectivos RN, en REM A05-sección E. ","") -> * No olvide registrar ingresos a control de salud de los respectivos RN, en REM A05-sección E. | CL21: 1 | CM21: 0 | CN21: 0 | CO21: 0 | CP21: 0 | CQ21: 0 | CR21: 0 | CS21: 0 | CT21: 0 | CU21: 0
A22: 01080030 | B22: PUÉRPERA CON RECIÉN NACIDO ENTRE 11 y 28 DÍAS | C22: MÉDICO | D22: =IFERROR(VLOOKUP($A22,Filtro_!$A$4:$AX$2299,2,FALSE),0) -> 19 | E22: =IFERROR(VLOOKUP($A22,Filtro_!$A$4:$AX$2299,3,FALSE),0) -> 0 | F22: =IFERROR(VLOOKUP($A22,Filtro_!$A$4:$AX$2299,4,FALSE),0) -> 0 | G22: =IFERROR(VLOOKUP($A22,Filtro_!$A$4:$AX$2299,5,FALSE),0) -> 0 | H22: =IFERROR(VLOOKUP($A22,Filtro_!$A$4:$AX$2299,6,FALSE),0) -> 0 | I22: =IFERROR(VLOOKUP($A22,Filtro_!$A$4:$AX$2299,7,FALSE),0) -> 3 | J22: =IFERROR(VLOOKUP($A22,Filtro_!$A$4:$AX$2299,8,FALSE),0) -> 9 | K22: =IFERROR(VLOOKUP($A22,Filtro_!$A$4:$AX$2299,9,FALSE),0) -> 5 | L22: =IFERROR(VLOOKUP($A22,Filtro_!$A$4:$AX$2299,10,FALSE),0) -> 2 | M22: =IFERROR(VLOOKUP($A22,Filtro_!$A$4:$AX$2299,11,FALSE),0) -> 0 | N22: =IFERROR(VLOOKUP($A22,Filtro_!$A$4:$AX$2299,12,FALSE),0) -> 0 | O22: =IFERROR(VLOOKUP($A22,Filtro_!$A$4:$AX$2299,13,FALSE),0) -> 0 | P22: =IFERROR(VLOOKUP($A22,Filtro_!$A$4:$AX$2299,14,FALSE),0) -> 0 | Q22: =IFERROR(VLOOKUP($A22,Filtro_!$A$4:$AX$2299,15,FALSE),0) -> 0 | R22: =IFERROR(VLOOKUP($A22,Filtro_!$A$4:$AX$2299,16,FALSE),0) -> 0 | S22: =IFERROR(VLOOKUP($A22,Filtro_!$A$4:$AX$2299,17,FALSE),0) -> 0 | T22: =IFERROR(VLOOKUP($A22,Filtro_!$A$4:$AX$2299,18,FALSE),0) -> 0 | U22: =IFERROR(VLOOKUP($A22,Filtro_!$A$4:$AX$2299,19,FALSE),0) -> 0 | V22: =IFERROR(VLOOKUP($A22,Filtro_!$A$4:$AX$2299,20,FALSE),0) -> 0 | W22: =IFERROR(VLOOKUP($A22,Filtro_!$A$4:$AX$2299,21,FALSE),0) -> 26 | X22: =IFERROR(VLOOKUP($A22,Filtro_!$A$4:$AX$2299,22,FALSE),0) -> 22 | Y22: =IFERROR(VLOOKUP($A22,Filtro_!$A$4:$AX$2299,23,FALSE),0) -> 0 | Z22: =IFERROR(VLOOKUP($A22,Filtro_!$A$4:$AX$2299,24,FALSE),0) -> 5 | AA22: =IFERROR(VLOOKUP($A22,Filtro_!$A$4:$AX$2299,25,FALSE),0) -> 18 | AB22: =IFERROR(VLOOKUP($A22,Filtro_!$A$4:$AX$2299,26,FALSE),0) -> 3 | AC22: =IFERROR(VLOOKUP($A22,Filtro_!$A$4:$AX$2299,27,FALSE),0) -> 0 | CA22: * El número de Sexo Hombres y mujeres debe ser igual al total. | CF22: =IF(AND(C22<>0,'A05'!C84=""),"* No olvide registrar ingresos a control de salud de los respectivos RN, en REM A05-sección E. ","") -> * No olvide registrar ingresos a control de salud de los respectivos RN, en REM A05-sección E. | CL22: 1 | CM22: 0 | CN22: 0 | CO22: 0 | CP22: 0 | CQ22: 0 | CR22: 0 | CS22: 0 | CT22: 0 | CU22: 0
A23: 01080040 | C23: MATRONA /ÓN | D23: =IFERROR(VLOOKUP($A23,Filtro_!$A$4:$AX$2299,2,FALSE),0) -> 1990 | E23: =IFERROR(VLOOKUP($A23,Filtro_!$A$4:$AX$2299,3,FALSE),0) -> 0 | F23: =IFERROR(VLOOKUP($A23,Filtro_!$A$4:$AX$2299,4,FALSE),0) -> 0 | G23: =IFERROR(VLOOKUP($A23,Filtro_!$A$4:$AX$2299,5,FALSE),0) -> 4 | H23: =IFERROR(VLOOKUP($A23,Filtro_!$A$4:$AX$2299,6,FALSE),0) -> 132 | I23: =IFERROR(VLOOKUP($A23,Filtro_!$A$4:$AX$2299,7,FALSE),0) -> 409 | J23: =IFERROR(VLOOKUP($A23,Filtro_!$A$4:$AX$2299,8,FALSE),0) -> 571 | K23: =IFERROR(VLOOKUP($A23,Filtro_!$A$4:$AX$2299,9,FALSE),0) -> 537 | L23: =IFERROR(VLOOKUP($A23,Filtro_!$A$4:$AX$2299,10,FALSE),0) -> 257 | M23: =IFERROR(VLOOKUP($A23,Filtro_!$A$4:$AX$2299,11,FALSE),0) -> 78 | N23: =IFERROR(VLOOKUP($A23,Filtro_!$A$4:$AX$2299,12,FALSE),0) -> 2 | O23: =IFERROR(VLOOKUP($A23,Filtro_!$A$4:$AX$2299,13,FALSE),0) -> 0 | P23: =IFERROR(VLOOKUP($A23,Filtro_!$A$4:$AX$2299,14,FALSE),0) -> 0 | Q23: =IFERROR(VLOOKUP($A23,Filtro_!$A$4:$AX$2299,15,FALSE),0) -> 0 | R23: =IFERROR(VLOOKUP($A23,Filtro_!$A$4:$AX$2299,16,FALSE),0) -> 0 | S23: =IFERROR(VLOOKUP($A23,Filtro_!$A$4:$AX$2299,17,FALSE),0) -> 0 | T23: =IFERROR(VLOOKUP($A23,Filtro_!$A$4:$AX$2299,18,FALSE),0) -> 0 | U23: =IFERROR(VLOOKUP($A23,Filtro_!$A$4:$AX$2299,19,FALSE),0) -> 0 | V23: =IFERROR(VLOOKUP($A23,Filtro_!$A$4:$AX$2299,20,FALSE),0) -> 0 | W23: =IFERROR(VLOOKUP($A23,Filtro_!$A$4:$AX$2299,21,FALSE),0) -> 1912 | X23: =IFERROR(VLOOKUP($A23,Filtro_!$A$4:$AX$2299,22,FALSE),0) -> 1917 | Y23: =IFERROR(VLOOKUP($A23,Filtro_!$A$4:$AX$2299,23,FALSE),0) -> 0 | Z23: =IFERROR(VLOOKUP($A23,Filtro_!$A$4:$AX$2299,24,FALSE),0) -> 590 | AA23: =IFERROR(VLOOKUP($A23,Filtro_!$A$4:$AX$2299,25,FALSE),0) -> 1416 | AB23: =IFERROR(VLOOKUP($A23,Filtro_!$A$4:$AX$2299,26,FALSE),0) -> 413 | AC23: =IFERROR(VLOOKUP($A23,Filtro_!$A$4:$AX$2299,27,FALSE),0) -> 30 | CA23: * El número de Sexo Hombres y mujeres debe ser igual al total. | CF23: =IF(AND(C23<>0,'A05'!C84=""),"* No olvide registrar ingresos a control de salud de los respectivos RN, en REM A05-sección E. ","") -> * No olvide registrar ingresos a control de salud de los respectivos RN, en REM A05-sección E. | CL23: 1 | CM23: 0 | CN23: 0 | CO23: 0 | CP23: 0 | CQ23: 0 | CR23: 0 | CS23: 0 | CT23: 0 | CU23: 0
A24: 01501090 | B24: RECIÉN NACIDO HASTA 10 DÍAS DE VIDA | C24: MÉDICO | D24: =IFERROR(VLOOKUP($A24,Filtro_!$A$4:$AX$2299,2,FALSE),0) -> 4 | E24: =IFERROR(VLOOKUP($A24,Filtro_!$A$4:$AX$2299,3,FALSE),0) -> 4 | F24: =IFERROR(VLOOKUP($A24,Filtro_!$A$4:$AX$2299,4,FALSE),0) -> 0 | G24: =IFERROR(VLOOKUP($A24,Filtro_!$A$4:$AX$2299,5,FALSE),0) -> 0 | H24: =IFERROR(VLOOKUP($A24,Filtro_!$A$4:$AX$2299,6,FALSE),0) -> 0 | I24: =IFERROR(VLOOKUP($A24,Filtro_!$A$4:$AX$2299,7,FALSE),0) -> 0 | J24: =IFERROR(VLOOKUP($A24,Filtro_!$A$4:$AX$2299,8,FALSE),0) -> 0 | K24: =IFERROR(VLOOKUP($A24,Filtro_!$A$4:$AX$2299,9,FALSE),0) -> 0 | L24: =IFERROR(VLOOKUP($A24,Filtro_!$A$4:$AX$2299,10,FALSE),0) -> 0 | M24: =IFERROR(VLOOKUP($A24,Filtro_!$A$4:$AX$2299,11,FALSE),0) -> 0 | N24: =IFERROR(VLOOKUP($A24,Filtro_!$A$4:$AX$2299,12,FALSE),0) -> 0 | O24: =IFERROR(VLOOKUP($A24,Filtro_!$A$4:$AX$2299,13,FALSE),0) -> 0 | P24: =IFERROR(VLOOKUP($A24,Filtro_!$A$4:$AX$2299,14,FALSE),0) -> 0 | Q24: =IFERROR(VLOOKUP($A24,Filtro_!$A$4:$AX$2299,15,FALSE),0) -> 0 | R24: =IFERROR(VLOOKUP($A24,Filtro_!$A$4:$AX$2299,16,FALSE),0) -> 0 | S24: =IFERROR(VLOOKUP($A24,Filtro_!$A$4:$AX$2299,17,FALSE),0) -> 0 | T24: =IFERROR(VLOOKUP($A24,Filtro_!$A$4:$AX$2299,18,FALSE),0) -> 0 | U24: =IFERROR(VLOOKUP($A24,Filtro_!$A$4:$AX$2299,19,FALSE),0) -> 0 | V24: =IFERROR(VLOOKUP($A24,Filtro_!$A$4:$AX$2299,20,FALSE),0) -> 2 | W24: =IFERROR(VLOOKUP($A24,Filtro_!$A$4:$AX$2299,21,FALSE),0) -> 0 | X24: =IFERROR(VLOOKUP($A24,Filtro_!$A$4:$AX$2299,22,FALSE),0) -> 2 | Y24: =IFERROR(VLOOKUP($A24,Filtro_!$A$4:$AX$2299,23,FALSE),0) -> 0 | Z24: =IFERROR(VLOOKUP($A24,Filtro_!$A$4:$AX$2299,24,FALSE),0) -> 0 | AA24: =IFERROR(VLOOKUP($A24,Filtro_!$A$4:$AX$2299,25,FALSE),0) -> 2 | AB24: =IFERROR(VLOOKUP($A24,Filtro_!$A$4:$AX$2299,26,FALSE),0) -> 2 | AC24: =IFERROR(VLOOKUP($A24,Filtro_!$A$4:$AX$2299,27,FALSE),0) -> 0 | CA24: * El número de Sexo Hombres y mujeres debe ser igual al total. | CF24: =IF(AND(C24<>0,'A05'!C84=""),"* No olvide registrar ingresos a control de salud de los respectivos RN, en REM A05-sección E. ","") -> * No olvide registrar ingresos a control de salud de los respectivos RN, en REM A05-sección E. | CL24: 1 | CM24: 0 | CN24: 0 | CO24: 0 | CP24: 0 | CQ24: 0 | CR24: 0 | CS24: 0 | CT24: 0 | CU24: 0
A25: 01502000 | C25: MATRONA /ÓN | D25: =IFERROR(VLOOKUP($A25,Filtro_!$A$4:$AX$2299,2,FALSE),0) -> 951 | E25: =IFERROR(VLOOKUP($A25,Filtro_!$A$4:$AX$2299,3,FALSE),0) -> 951 | F25: =IFERROR(VLOOKUP($A25,Filtro_!$A$4:$AX$2299,4,FALSE),0) -> 0 | G25: =IFERROR(VLOOKUP($A25,Filtro_!$A$4:$AX$2299,5,FALSE),0) -> 0 | H25: =IFERROR(VLOOKUP($A25,Filtro_!$A$4:$AX$2299,6,FALSE),0) -> 0 | I25: =IFERROR(VLOOKUP($A25,Filtro_!$A$4:$AX$2299,7,FALSE),0) -> 0 | J25: =IFERROR(VLOOKUP($A25,Filtro_!$A$4:$AX$2299,8,FALSE),0) -> 0 | K25: =IFERROR(VLOOKUP($A25,Filtro_!$A$4:$AX$2299,9,FALSE),0) -> 0 | L25: =IFERROR(VLOOKUP($A25,Filtro_!$A$4:$AX$2299,10,FALSE),0) -> 0 | M25: =IFERROR(VLOOKUP($A25,Filtro_!$A$4:$AX$2299,11,FALSE),0) -> 0 | N25: =IFERROR(VLOOKUP($A25,Filtro_!$A$4:$AX$2299,12,FALSE),0) -> 0 | O25: =IFERROR(VLOOKUP($A25,Filtro_!$A$4:$AX$2299,13,FALSE),0) -> 0 | P25: =IFERROR(VLOOKUP($A25,Filtro_!$A$4:$AX$2299,14,FALSE),0) -> 0 | Q25: =IFERROR(VLOOKUP($A25,Filtro_!$A$4:$AX$2299,15,FALSE),0) -> 0 | R25: =IFERROR(VLOOKUP($A25,Filtro_!$A$4:$AX$2299,16,FALSE),0) -> 0 | S25: =IFERROR(VLOOKUP($A25,Filtro_!$A$4:$AX$2299,17,FALSE),0) -> 0 | T25: =IFERROR(VLOOKUP($A25,Filtro_!$A$4:$AX$2299,18,FALSE),0) -> 0 | U25: =IFERROR(VLOOKUP($A25,Filtro_!$A$4:$AX$2299,19,FALSE),0) -> 0 | V25: =IFERROR(VLOOKUP($A25,Filtro_!$A$4:$AX$2299,20,FALSE),0) -> 393 | W25: =IFERROR(VLOOKUP($A25,Filtro_!$A$4:$AX$2299,21,FALSE),0) -> 539 | X25: =IFERROR(VLOOKUP($A25,Filtro_!$A$4:$AX$2299,22,FALSE),0) -> 840 | Y25: =IFERROR(VLOOKUP($A25,Filtro_!$A$4:$AX$2299,23,FALSE),0) -> 206 | Z25: =IFERROR(VLOOKUP($A25,Filtro_!$A$4:$AX$2299,24,FALSE),0) -> 364 | AA25: =IFERROR(VLOOKUP($A25,Filtro_!$A$4:$AX$2299,25,FALSE),0) -> 664 | AB25: =IFERROR(VLOOKUP($A25,Filtro_!$A$4:$AX$2299,26,FALSE),0) -> 105 | AC25: =IFERROR(VLOOKUP($A25,Filtro_!$A$4:$AX$2299,27,FALSE),0) -> 16 | CA25: * El número de Sexo Hombres y mujeres debe ser igual al total. | CF25: =IF(AND(C25<>0,'A05'!C84=""),"* No olvide registrar ingresos a control de salud de los respectivos RN, en REM A05-sección E. ","") -> * No olvide registrar ingresos a control de salud de los respectivos RN, en REM A05-sección E. | CL25: 1 | CM25: 0 | CN25: 0 | CO25: 0 | CP25: 0 | CQ25: 0 | CR25: 0 | CS25: 0 | CT25: 0
A26: 01502010 | B26: RECIÉN NACIDO ENTRE 11 y 28 DÍAS | C26: MÉDICO | D26: =IFERROR(VLOOKUP($A26,Filtro_!$A$4:$AX$2299,2,FALSE),0) -> 2 | E26: =IFERROR(VLOOKUP($A26,Filtro_!$A$4:$AX$2299,3,FALSE),0) -> 2 | F26: =IFERROR(VLOOKUP($A26,Filtro_!$A$4:$AX$2299,4,FALSE),0) -> 0 | G26: =IFERROR(VLOOKUP($A26,Filtro_!$A$4:$AX$2299,5,FALSE),0) -> 0 | H26: =IFERROR(VLOOKUP($A26,Filtro_!$A$4:$AX$2299,6,FALSE),0) -> 0 | I26: =IFERROR(VLOOKUP($A26,Filtro_!$A$4:$AX$2299,7,FALSE),0) -> 0 | J26: =IFERROR(VLOOKUP($A26,Filtro_!$A$4:$AX$2299,8,FALSE),0) -> 0 | K26: =IFERROR(VLOOKUP($A26,Filtro_!$A$4:$AX$2299,9,FALSE),0) -> 0 | L26: =IFERROR(VLOOKUP($A26,Filtro_!$A$4:$AX$2299,10,FALSE),0) -> 0 | M26: =IFERROR(VLOOKUP($A26,Filtro_!$A$4:$AX$2299,11,FALSE),0) -> 0 | N26: =IFERROR(VLOOKUP($A26,Filtro_!$A$4:$AX$2299,12,FALSE),0) -> 0 | O26: =IFERROR(VLOOKUP($A26,Filtro_!$A$4:$AX$2299,13,FALSE),0) -> 0 | P26: =IFERROR(VLOOKUP($A26,Filtro_!$A$4:$AX$2299,14,FALSE),0) -> 0 | Q26: =IFERROR(VLOOKUP($A26,Filtro_!$A$4:$AX$2299,15,FALSE),0) -> 0 | R26: =IFERROR(VLOOKUP($A26,Filtro_!$A$4:$AX$2299,16,FALSE),0) -> 0 | S26: =IFERROR(VLOOKUP($A26,Filtro_!$A$4:$AX$2299,17,FALSE),0) -> 0 | T26: =IFERROR(VLOOKUP($A26,Filtro_!$A$4:$AX$2299,18,FALSE),0) -> 0 | U26: =IFERROR(VLOOKUP($A26,Filtro_!$A$4:$AX$2299,19,FALSE),0) -> 0 | V26: =IFERROR(VLOOKUP($A26,Filtro_!$A$4:$AX$2299,20,FALSE),0) -> 2 | W26: =IFERROR(VLOOKUP($A26,Filtro_!$A$4:$AX$2299,21,FALSE),0) -> 0 | X26: =IFERROR(VLOOKUP($A26,Filtro_!$A$4:$AX$2299,22,FALSE),0) -> 2 | Y26: =IFERROR(VLOOKUP($A26,Filtro_!$A$4:$AX$2299,23,FALSE),0) -> 0 | Z26: =IFERROR(VLOOKUP($A26,Filtro_!$A$4:$AX$2299,24,FALSE),0) -> 0 | AA26: =IFERROR(VLOOKUP($A26,Filtro_!$A$4:$AX$2299,25,FALSE),0) -> 2 | AB26: =IFERROR(VLOOKUP($A26,Filtro_!$A$4:$AX$2299,26,FALSE),0) -> 1 | AC26: =IFERROR(VLOOKUP($A26,Filtro_!$A$4:$AX$2299,27,FALSE),0) -> 0 | CA26: * El número de Sexo Hombres y mujeres debe ser igual al total. | CF26: =IF(AND(C26<>0,'A05'!C84=""),"* No olvide registrar ingresos a control de salud de los respectivos RN, en REM A05-sección E. ","") -> * No olvide registrar ingresos a control de salud de los respectivos RN, en REM A05-sección E. | CL26: 1 | CM26: 0 | CN26: 0 | CO26: 0 | CP26: 0 | CQ26: 0 | CR26: 0 | CS26: 0 | CT26: 0
A27: 01502020 | C27: MATRONA /ÓN | D27: =IFERROR(VLOOKUP($A27,Filtro_!$A$4:$AX$2299,2,FALSE),0) -> 513 | E27: =IFERROR(VLOOKUP($A27,Filtro_!$A$4:$AX$2299,3,FALSE),0) -> 513 | F27: =IFERROR(VLOOKUP($A27,Filtro_!$A$4:$AX$2299,4,FALSE),0) -> 0 | G27: =IFERROR(VLOOKUP($A27,Filtro_!$A$4:$AX$2299,5,FALSE),0) -> 0 | H27: =IFERROR(VLOOKUP($A27,Filtro_!$A$4:$AX$2299,6,FALSE),0) -> 0 | I27: =IFERROR(VLOOKUP($A27,Filtro_!$A$4:$AX$2299,7,FALSE),0) -> 0 | J27: =IFERROR(VLOOKUP($A27,Filtro_!$A$4:$AX$2299,8,FALSE),0) -> 0 | K27: =IFERROR(VLOOKUP($A27,Filtro_!$A$4:$AX$2299,9,FALSE),0) -> 0 | L27: =IFERROR(VLOOKUP($A27,Filtro_!$A$4:$AX$2299,10,FALSE),0) -> 0 | M27: =IFERROR(VLOOKUP($A27,Filtro_!$A$4:$AX$2299,11,FALSE),0) -> 0 | N27: =IFERROR(VLOOKUP($A27,Filtro_!$A$4:$AX$2299,12,FALSE),0) -> 0 | O27: =IFERROR(VLOOKUP($A27,Filtro_!$A$4:$AX$2299,13,FALSE),0) -> 0 | P27: =IFERROR(VLOOKUP($A27,Filtro_!$A$4:$AX$2299,14,FALSE),0) -> 0 | Q27: =IFERROR(VLOOKUP($A27,Filtro_!$A$4:$AX$2299,15,FALSE),0) -> 0 | R27: =IFERROR(VLOOKUP($A27,Filtro_!$A$4:$AX$2299,16,FALSE),0) -> 0 | S27: =IFERROR(VLOOKUP($A27,Filtro_!$A$4:$AX$2299,17,FALSE),0) -> 0 | T27: =IFERROR(VLOOKUP($A27,Filtro_!$A$4:$AX$2299,18,FALSE),0) -> 0 | U27: =IFERROR(VLOOKUP($A27,Filtro_!$A$4:$AX$2299,19,FALSE),0) -> 0 | V27: =IFERROR(VLOOKUP($A27,Filtro_!$A$4:$AX$2299,20,FALSE),0) -> 205 | W27: =IFERROR(VLOOKUP($A27,Filtro_!$A$4:$AX$2299,21,FALSE),0) -> 295 | X27: =IFERROR(VLOOKUP($A27,Filtro_!$A$4:$AX$2299,22,FALSE),0) -> 478 | Y27: =IFERROR(VLOOKUP($A27,Filtro_!$A$4:$AX$2299,23,FALSE),0) -> 96 | Z27: =IFERROR(VLOOKUP($A27,Filtro_!$A$4:$AX$2299,24,FALSE),0) -> 138 | AA27: =IFERROR(VLOOKUP($A27,Filtro_!$A$4:$AX$2299,25,FALSE),0) -> 326 | AB27: =IFERROR(VLOOKUP($A27,Filtro_!$A$4:$AX$2299,26,FALSE),0) -> 91 | AC27: =IFERROR(VLOOKUP($A27,Filtro_!$A$4:$AX$2299,27,FALSE),0) -> 12 | CA27: * El número de Sexo Hombres y mujeres debe ser igual al total. | CF27: =IF(AND(C27<>0,'A05'!C84=""),"* No olvide registrar ingresos a control de salud de los respectivos RN, en REM A05-sección E. ","") -> * No olvide registrar ingresos a control de salud de los respectivos RN, en REM A05-sección E. | CL27: 1 | CM27: 0 | CN27: 0 | CO27: 0 | CP27: 0 | CQ27: 0 | CR27: 0 | CS27: 0 | CT27: 0
A28: 01010601 | B28: GINECOLÓGICO | C28: MÉDICO | D28: =IFERROR(VLOOKUP($A28,Filtro_!$A$4:$AX$2299,2,FALSE),0) -> 803 | E28: =IFERROR(VLOOKUP($A28,Filtro_!$A$4:$AX$2299,3,FALSE),0) -> 0 | F28: =IFERROR(VLOOKUP($A28,Filtro_!$A$4:$AX$2299,4,FALSE),0) -> 0 | G28: =IFERROR(VLOOKUP($A28,Filtro_!$A$4:$AX$2299,5,FALSE),0) -> 8 | H28: =IFERROR(VLOOKUP($A28,Filtro_!$A$4:$AX$2299,6,FALSE),0) -> 50 | I28: =IFERROR(VLOOKUP($A28,Filtro_!$A$4:$AX$2299,7,FALSE),0) -> 65 | J28: =IFERROR(VLOOKUP($A28,Filtro_!$A$4:$AX$2299,8,FALSE),0) -> 75 | K28: =IFERROR(VLOOKUP($A28,Filtro_!$A$4:$AX$2299,9,FALSE),0) -> 76 | L28: =IFERROR(VLOOKUP($A28,Filtro_!$A$4:$AX$2299,10,FALSE),0) -> 83 | M28: =IFERROR(VLOOKUP($A28,Filtro_!$A$4:$AX$2299,11,FALSE),0) -> 109 | N28: =IFERROR(VLOOKUP($A28,Filtro_!$A$4:$AX$2299,12,FALSE),0) -> 109 | O28: =IFERROR(VLOOKUP($A28,Filtro_!$A$4:$AX$2299,13,FALSE),0) -> 72 | P28: =IFERROR(VLOOKUP($A28,Filtro_!$A$4:$AX$2299,14,FALSE),0) -> 65 | Q28: =IFERROR(VLOOKUP($A28,Filtro_!$A$4:$AX$2299,15,FALSE),0) -> 35 | R28: =IFERROR(VLOOKUP($A28,Filtro_!$A$4:$AX$2299,16,FALSE),0) -> 22 | S28: =IFERROR(VLOOKUP($A28,Filtro_!$A$4:$AX$2299,17,FALSE),0) -> 16 | T28: =IFERROR(VLOOKUP($A28,Filtro_!$A$4:$AX$2299,18,FALSE),0) -> 10 | U28: =IFERROR(VLOOKUP($A28,Filtro_!$A$4:$AX$2299,19,FALSE),0) -> 8 | V28: =IFERROR(VLOOKUP($A28,Filtro_!$A$4:$AX$2299,20,FALSE),0) -> 0 | W28: =IFERROR(VLOOKUP($A28,Filtro_!$A$4:$AX$2299,21,FALSE),0) -> 803 | X28: =IFERROR(VLOOKUP($A28,Filtro_!$A$4:$AX$2299,22,FALSE),0) -> 803 | Y28: =IFERROR(VLOOKUP($A28,Filtro_!$A$4:$AX$2299,23,FALSE),0) -> 0 | Z28: =IFERROR(VLOOKUP($A28,Filtro_!$A$4:$AX$2299,24,FALSE),0) -> 0 | AA28: =IFERROR(VLOOKUP($A28,Filtro_!$A$4:$AX$2299,25,FALSE),0) -> 0 | AB28: =IFERROR(VLOOKUP($A28,Filtro_!$A$4:$AX$2299,26,FALSE),0) -> 0 | AC28: =IFERROR(VLOOKUP($A28,Filtro_!$A$4:$AX$2299,27,FALSE),0) -> 0 | CA28: * El número de Sexo Hombres y mujeres debe ser igual al total. | CL28: 1 | CM28: 0 | CN28: 0 | CO28: 0 | CQ28: 0 | CR28: 0
A29: 01010603 | C29: MATRONA /ÓN | D29: =IFERROR(VLOOKUP($A29,Filtro_!$A$4:$AX$2299,2,FALSE),0) -> 44301 | E29: =IFERROR(VLOOKUP($A29,Filtro_!$A$4:$AX$2299,3,FALSE),0) -> 0 | F29: =IFERROR(VLOOKUP($A29,Filtro_!$A$4:$AX$2299,4,FALSE),0) -> 0 | G29: =IFERROR(VLOOKUP($A29,Filtro_!$A$4:$AX$2299,5,FALSE),0) -> 157 | H29: =IFERROR(VLOOKUP($A29,Filtro_!$A$4:$AX$2299,6,FALSE),0) -> 690 | I29: =IFERROR(VLOOKUP($A29,Filtro_!$A$4:$AX$2299,7,FALSE),0) -> 1970 | J29: =IFERROR(VLOOKUP($A29,Filtro_!$A$4:$AX$2299,8,FALSE),0) -> 3589 | K29: =IFERROR(VLOOKUP($A29,Filtro_!$A$4:$AX$2299,9,FALSE),0) -> 4329 | L29: =IFERROR(VLOOKUP($A29,Filtro_!$A$4:$AX$2299,10,FALSE),0) -> 4417 | M29: =IFERROR(VLOOKUP($A29,Filtro_!$A$4:$AX$2299,11,FALSE),0) -> 5111 | N29: =IFERROR(VLOOKUP($A29,Filtro_!$A$4:$AX$2299,12,FALSE),0) -> 5469 | O29: =IFERROR(VLOOKUP($A29,Filtro_!$A$4:$AX$2299,13,FALSE),0) -> 5618 | P29: =IFERROR(VLOOKUP($A29,Filtro_!$A$4:$AX$2299,14,FALSE),0) -> 5311 | Q29: =IFERROR(VLOOKUP($A29,Filtro_!$A$4:$AX$2299,15,FALSE),0) -> 4307 | R29: =IFERROR(VLOOKUP($A29,Filtro_!$A$4:$AX$2299,16,FALSE),0) -> 2062 | S29: =IFERROR(VLOOKUP($A29,Filtro_!$A$4:$AX$2299,17,FALSE),0) -> 820 | T29: =IFERROR(VLOOKUP($A29,Filtro_!$A$4:$AX$2299,18,FALSE),0) -> 303 | U29: =IFERROR(VLOOKUP($A29,Filtro_!$A$4:$AX$2299,19,FALSE),0) -> 148 | V29: =IFERROR(VLOOKUP($A29,Filtro_!$A$4:$AX$2299,20,FALSE),0) -> 0 | W29: =IFERROR(VLOOKUP($A29,Filtro_!$A$4:$AX$2299,21,FALSE),0) -> 42972 | X29: =IFERROR(VLOOKUP($A29,Filtro_!$A$4:$AX$2299,22,FALSE),0) -> 42292 | Y29: =IFERROR(VLOOKUP($A29,Filtro_!$A$4:$AX$2299,23,FALSE),0) -> 0 | Z29: =IFERROR(VLOOKUP($A29,Filtro_!$A$4:$AX$2299,24,FALSE),0) -> 0 | AA29: =IFERROR(VLOOKUP($A29,Filtro_!$A$4:$AX$2299,25,FALSE),0) -> 0 | AB29: =IFERROR(VLOOKUP($A29,Filtro_!$A$4:$AX$2299,26,FALSE),0) -> 0 | AC29: =IFERROR(VLOOKUP($A29,Filtro_!$A$4:$AX$2299,27,FALSE),0) -> 0 | CA29: * El número de Sexo Hombres y mujeres debe ser igual al total. | CL29: 1 | CM29: 0 | CN29: 0 | CO29: 0 | CQ29: 0 | CR29: 0
A30: 01010901 | B30: CLIMATERIO | C30: MÉDICO | D30: =IFERROR(VLOOKUP($A30,Filtro_!$A$4:$AX$2299,2,FALSE),0) -> 437 | E30: =IFERROR(VLOOKUP($A30,Filtro_!$A$4:$AX$2299,3,FALSE),0) -> 0 | F30: =IFERROR(VLOOKUP($A30,Filtro_!$A$4:$AX$2299,4,FALSE),0) -> 0 | G30: =IFERROR(VLOOKUP($A30,Filtro_!$A$4:$AX$2299,5,FALSE),0) -> 0 | H30: =IFERROR(VLOOKUP($A30,Filtro_!$A$4:$AX$2299,6,FALSE),0) -> 0 | I30: =IFERROR(VLOOKUP($A30,Filtro_!$A$4:$AX$2299,7,FALSE),0) -> 0 | J30: =IFERROR(VLOOKUP($A30,Filtro_!$A$4:$AX$2299,8,FALSE),0) -> 0 | K30: =IFERROR(VLOOKUP($A30,Filtro_!$A$4:$AX$2299,9,FALSE),0) -> 0 | L30: =IFERROR(VLOOKUP($A30,Filtro_!$A$4:$AX$2299,10,FALSE),0) -> 0 | M30: =IFERROR(VLOOKUP($A30,Filtro_!$A$4:$AX$2299,11,FALSE),0) -> 0 | N30: =IFERROR(VLOOKUP($A30,Filtro_!$A$4:$AX$2299,12,FALSE),0) -> 151 | O30: =IFERROR(VLOOKUP($A30,Filtro_!$A$4:$AX$2299,13,FALSE),0) -> 130 | P30: =IFERROR(VLOOKUP($A30,Filtro_!$A$4:$AX$2299,14,FALSE),0) -> 106 | Q30: =IFERROR(VLOOKUP($A30,Filtro_!$A$4:$AX$2299,15,FALSE),0) -> 50 | R30: =IFERROR(VLOOKUP($A30,Filtro_!$A$4:$AX$2299,16,FALSE),0) -> 0 | S30: =IFERROR(VLOOKUP($A30,Filtro_!$A$4:$AX$2299,17,FALSE),0) -> 0 | T30: =IFERROR(VLOOKUP($A30,Filtro_!$A$4:$AX$2299,18,FALSE),0) -> 0 | U30: =IFERROR(VLOOKUP($A30,Filtro_!$A$4:$AX$2299,19,FALSE),0) -> 0 | V30: =IFERROR(VLOOKUP($A30,Filtro_!$A$4:$AX$2299,20,FALSE),0) -> 0 | W30: =IFERROR(VLOOKUP($A30,Filtro_!$A$4:$AX$2299,21,FALSE),0) -> 445 | X30: =IFERROR(VLOOKUP($A30,Filtro_!$A$4:$AX$2299,22,FALSE),0) -> 445 | Y30: =IFERROR(VLOOKUP($A30,Filtro_!$A$4:$AX$2299,23,FALSE),0) -> 0 | Z30: =IFERROR(VLOOKUP($A30,Filtro_!$A$4:$AX$2299,24,FALSE),0) -> 0 | AA30: =IFERROR(VLOOKUP($A30,Filtro_!$A$4:$AX$2299,25,FALSE),0) -> 0 | AB30: =IFERROR(VLOOKUP($A30,Filtro_!$A$4:$AX$2299,26,FALSE),0) -> 0 | AC30: =IFERROR(VLOOKUP($A30,Filtro_!$A$4:$AX$2299,27,FALSE),0) -> 0 | CA30: * El número de Sexo Hombres y mujeres debe ser igual al total. | CL30: 1 | CM30: 0 | CN30: 0 | CO30: 0 | CQ30: 0 | CR30: 0
A31: 01010903 | C31: MATRONA /ÓN | D31: =IFERROR(VLOOKUP($A31,Filtro_!$A$4:$AX$2299,2,FALSE),0) -> 2888 | E31: =IFERROR(VLOOKUP($A31,Filtro_!$A$4:$AX$2299,3,FALSE),0) -> 0 | F31: =IFERROR(VLOOKUP($A31,Filtro_!$A$4:$AX$2299,4,FALSE),0) -> 0 | G31: =IFERROR(VLOOKUP($A31,Filtro_!$A$4:$AX$2299,5,FALSE),0) -> 0 | H31: =IFERROR(VLOOKUP($A31,Filtro_!$A$4:$AX$2299,6,FALSE),0) -> 0 | I31: =IFERROR(VLOOKUP($A31,Filtro_!$A$4:$AX$2299,7,FALSE),0) -> 0 | J31: =IFERROR(VLOOKUP($A31,Filtro_!$A$4:$AX$2299,8,FALSE),0) -> 0 | K31: =IFERROR(VLOOKUP($A31,Filtro_!$A$4:$AX$2299,9,FALSE),0) -> 0 | L31: =IFERROR(VLOOKUP($A31,Filtro_!$A$4:$AX$2299,10,FALSE),0) -> 0 | M31: =IFERROR(VLOOKUP($A31,Filtro_!$A$4:$AX$2299,11,FALSE),0) -> 0 | N31: =IFERROR(VLOOKUP($A31,Filtro_!$A$4:$AX$2299,12,FALSE),0) -> 826 | O31: =IFERROR(VLOOKUP($A31,Filtro_!$A$4:$AX$2299,13,FALSE),0) -> 1085 | P31: =IFERROR(VLOOKUP($A31,Filtro_!$A$4:$AX$2299,14,FALSE),0) -> 678 | Q31: =IFERROR(VLOOKUP($A31,Filtro_!$A$4:$AX$2299,15,FALSE),0) -> 299 | R31: =IFERROR(VLOOKUP($A31,Filtro_!$A$4:$AX$2299,16,FALSE),0) -> 0 | S31: =IFERROR(VLOOKUP($A31,Filtro_!$A$4:$AX$2299,17,FALSE),0) -> 0 | T31: =IFERROR(VLOOKUP($A31,Filtro_!$A$4:$AX$2299,18,FALSE),0) -> 0 | U31: =IFERROR(VLOOKUP($A31,Filtro_!$A$4:$AX$2299,19,FALSE),0) -> 0 | V31: =IFERROR(VLOOKUP($A31,Filtro_!$A$4:$AX$2299,20,FALSE),0) -> 0 | W31: =IFERROR(VLOOKUP($A31,Filtro_!$A$4:$AX$2299,21,FALSE),0) -> 3063 | X31: =IFERROR(VLOOKUP($A31,Filtro_!$A$4:$AX$2299,22,FALSE),0) -> 2967 | Y31: =IFERROR(VLOOKUP($A31,Filtro_!$A$4:$AX$2299,23,FALSE),0) -> 0 | Z31: =IFERROR(VLOOKUP($A31,Filtro_!$A$4:$AX$2299,24,FALSE),0) -> 0 | AA31: =IFERROR(VLOOKUP($A31,Filtro_!$A$4:$AX$2299,25,FALSE),0) -> 0 | AB31: =IFERROR(VLOOKUP($A31,Filtro_!$A$4:$AX$2299,26,FALSE),0) -> 0 | AC31: =IFERROR(VLOOKUP($A31,Filtro_!$A$4:$AX$2299,27,FALSE),0) -> 0 | CA31: * El número de Sexo Hombres y mujeres debe ser igual al total. | CL31: 1 | CM31: 0 | CN31: 0 | CO31: 0 | CQ31: 0 | CR31: 0
A32: 01010401 | B32: REGULACIÓN DE FECUNDIDAD | C32: MÉDICO | D32: =IFERROR(VLOOKUP($A32,Filtro_!$A$4:$AX$2299,2,FALSE),0) -> 136 | E32: =IFERROR(VLOOKUP($A32,Filtro_!$A$4:$AX$2299,3,FALSE),0) -> 0 | F32: =IFERROR(VLOOKUP($A32,Filtro_!$A$4:$AX$2299,4,FALSE),0) -> 0 | G32: =IFERROR(VLOOKUP($A32,Filtro_!$A$4:$AX$2299,5,FALSE),0) -> 1 | H32: =IFERROR(VLOOKUP($A32,Filtro_!$A$4:$AX$2299,6,FALSE),0) -> 19 | I32: =IFERROR(VLOOKUP($A32,Filtro_!$A$4:$AX$2299,7,FALSE),0) -> 21 | J32: =IFERROR(VLOOKUP($A32,Filtro_!$A$4:$AX$2299,8,FALSE),0) -> 24 | K32: =IFERROR(VLOOKUP($A32,Filtro_!$A$4:$AX$2299,9,FALSE),0) -> 13 | L32: =IFERROR(VLOOKUP($A32,Filtro_!$A$4:$AX$2299,10,FALSE),0) -> 27 | M32: =IFERROR(VLOOKUP($A32,Filtro_!$A$4:$AX$2299,11,FALSE),0) -> 12 | N32: =IFERROR(VLOOKUP($A32,Filtro_!$A$4:$AX$2299,12,FALSE),0) -> 14 | O32: =IFERROR(VLOOKUP($A32,Filtro_!$A$4:$AX$2299,13,FALSE),0) -> 4 | P32: =IFERROR(VLOOKUP($A32,Filtro_!$A$4:$AX$2299,14,FALSE),0) -> 0 | Q32: =IFERROR(VLOOKUP($A32,Filtro_!$A$4:$AX$2299,15,FALSE),0) -> 0 | R32: =IFERROR(VLOOKUP($A32,Filtro_!$A$4:$AX$2299,16,FALSE),0) -> 0 | S32: =IFERROR(VLOOKUP($A32,Filtro_!$A$4:$AX$2299,17,FALSE),0) -> 1 | T32: =IFERROR(VLOOKUP($A32,Filtro_!$A$4:$AX$2299,18,FALSE),0) -> 0 | U32: =IFERROR(VLOOKUP($A32,Filtro_!$A$4:$AX$2299,19,FALSE),0) -> 0 | V32: =IFERROR(VLOOKUP($A32,Filtro_!$A$4:$AX$2299,20,FALSE),0) -> 0 | W32: =IFERROR(VLOOKUP($A32,Filtro_!$A$4:$AX$2299,21,FALSE),0) -> 138 | X32: =IFERROR(VLOOKUP($A32,Filtro_!$A$4:$AX$2299,22,FALSE),0) -> 6 | Y32: =IFERROR(VLOOKUP($A32,Filtro_!$A$4:$AX$2299,23,FALSE),0) -> 0 | Z32: =IFERROR(VLOOKUP($A32,Filtro_!$A$4:$AX$2299,24,FALSE),0) -> 0 | AA32: =IFERROR(VLOOKUP($A32,Filtro_!$A$4:$AX$2299,25,FALSE),0) -> 0 | AB32: =IFERROR(VLOOKUP($A32,Filtro_!$A$4:$AX$2299,26,FALSE),0) -> 0 | AC32: =IFERROR(VLOOKUP($A32,Filtro_!$A$4:$AX$2299,27,FALSE),0) -> 0 | CA32: * El número de Sexo Hombres y mujeres debe ser igual al total. | CL32: 1 | CM32: 0 | CN32: 0 | CO32: 0 | CQ32: 0 | CR32: 0
A33: 01010403 | C33: MATRONA /ÓN | D33: =IFERROR(VLOOKUP($A33,Filtro_!$A$4:$AX$2299,2,FALSE),0) -> 70369 | E33: =IFERROR(VLOOKUP($A33,Filtro_!$A$4:$AX$2299,3,FALSE),0) -> 0 | F33: =IFERROR(VLOOKUP($A33,Filtro_!$A$4:$AX$2299,4,FALSE),0) -> 0 | G33: =IFERROR(VLOOKUP($A33,Filtro_!$A$4:$AX$2299,5,FALSE),0) -> 1375 | H33: =IFERROR(VLOOKUP($A33,Filtro_!$A$4:$AX$2299,6,FALSE),0) -> 9501 | I33: =IFERROR(VLOOKUP($A33,Filtro_!$A$4:$AX$2299,7,FALSE),0) -> 12184 | J33: =IFERROR(VLOOKUP($A33,Filtro_!$A$4:$AX$2299,8,FALSE),0) -> 12803 | K33: =IFERROR(VLOOKUP($A33,Filtro_!$A$4:$AX$2299,9,FALSE),0) -> 11570 | L33: =IFERROR(VLOOKUP($A33,Filtro_!$A$4:$AX$2299,10,FALSE),0) -> 8792 | M33: =IFERROR(VLOOKUP($A33,Filtro_!$A$4:$AX$2299,11,FALSE),0) -> 7015 | N33: =IFERROR(VLOOKUP($A33,Filtro_!$A$4:$AX$2299,12,FALSE),0) -> 5210 | O33: =IFERROR(VLOOKUP($A33,Filtro_!$A$4:$AX$2299,13,FALSE),0) -> 1678 | P33: =IFERROR(VLOOKUP($A33,Filtro_!$A$4:$AX$2299,14,FALSE),0) -> 177 | Q33: =IFERROR(VLOOKUP($A33,Filtro_!$A$4:$AX$2299,15,FALSE),0) -> 49 | R33: =IFERROR(VLOOKUP($A33,Filtro_!$A$4:$AX$2299,16,FALSE),0) -> 7 | S33: =IFERROR(VLOOKUP($A33,Filtro_!$A$4:$AX$2299,17,FALSE),0) -> 3 | T33: =IFERROR(VLOOKUP($A33,Filtro_!$A$4:$AX$2299,18,FALSE),0) -> 4 | U33: =IFERROR(VLOOKUP($A33,Filtro_!$A$4:$AX$2299,19,FALSE),0) -> 1 | V33: =IFERROR(VLOOKUP($A33,Filtro_!$A$4:$AX$2299,20,FALSE),0) -> 289 | W33: =IFERROR(VLOOKUP($A33,Filtro_!$A$4:$AX$2299,21,FALSE),0) -> 69037 | X33: =IFERROR(VLOOKUP($A33,Filtro_!$A$4:$AX$2299,22,FALSE),0) -> 68156 | Y33: =IFERROR(VLOOKUP($A33,Filtro_!$A$4:$AX$2299,23,FALSE),0) -> 0 | Z33: =IFERROR(VLOOKUP($A33,Filtro_!$A$4:$AX$2299,24,FALSE),0) -> 0 | AA33: =IFERROR(VLOOKUP($A33,Filtro_!$A$4:$AX$2299,25,FALSE),0) -> 0 | AB33: =IFERROR(VLOOKUP($A33,Filtro_!$A$4:$AX$2299,26,FALSE),0) -> 0 | AC33: =IFERROR(VLOOKUP($A33,Filtro_!$A$4:$AX$2299,27,FALSE),0) -> 0 | CA33: * El número de Sexo Hombres y mujeres debe ser igual al total. | CL33: 1 | CM33: 0 | CN33: 0 | CO33: 0 | CQ33: 0 | CR33: 0
B34: SECCIÓN B: CONTROLES DE SALUD SEGÚN CICLO VITAL
B35: TIPO DE CONTROL | C35: PROFESIONAL | D35: TOTAL | G35: POR EDAD | AJ35: Beneficiarios | AK35: CONTROL CON PRESENCIA DEL PADRE | AM35: Niños, Niñas, Adolescentes y Jóvenes Población SENAME
D36: Ambos Sexos | E36: Hombres | F36: Mujeres | G36: Menor de 1 mes | H36: 1 mes | I36: 2 meses | J36: 3 meses | K36: 4 meses | L36: 5 meses | M36: 6 meses | N36: 7 - 11 meses | O36: 12 a 17 meses | P36: 18 - 23 meses | Q36: 24 - 47 meses | R36: 48 - 59 meses | S36: 60 - 71 meses | T36: 6 - 9 | U36: 10 - 14 | V36: 15 - 19 | W36: 20 - 24 | X36: 25 - 29 | Y36: 30 - 34 | Z36: 35 - 39 | AA36: 40 - 44 | AB36: 45 - 49 | AC36: 50 - 54 | AD36: 55 - 59 | AE36: 60 - 64 | AF36: 65 - 69 | AG36: 70 - 74 | AH36: 75 - 79 | AI36: 80 y mas | AK36: menor 1 año | AL36: 1 año a 3 años 11 meses 29 días
A37: 02010101 | B37: DE SALUD | C37: MÉDICO | D37: =IFERROR(VLOOKUP($A37,Filtro_!$A$4:$AX$2299,2,FALSE),0) -> 21383 | E37: =IFERROR(VLOOKUP($A37,Filtro_!$A$4:$AX$2299,3,FALSE),0) -> 9669 | F37: =IFERROR(VLOOKUP($A37,Filtro_!$A$4:$AX$2299,4,FALSE),0) -> 11733 | G37: =IFERROR(VLOOKUP($A37,Filtro_!$A$4:$AX$2299,5,FALSE),0) -> 189 | H37: =IFERROR(VLOOKUP($A37,Filtro_!$A$4:$AX$2299,6,FALSE),0) -> 5411 | I37: =IFERROR(VLOOKUP($A37,Filtro_!$A$4:$AX$2299,7,FALSE),0) -> 385 | J37: =IFERROR(VLOOKUP($A37,Filtro_!$A$4:$AX$2299,8,FALSE),0) -> 4876 | K37: =IFERROR(VLOOKUP($A37,Filtro_!$A$4:$AX$2299,9,FALSE),0) -> 360 | L37: =IFERROR(VLOOKUP($A37,Filtro_!$A$4:$AX$2299,10,FALSE),0) -> 107 | M37: =IFERROR(VLOOKUP($A37,Filtro_!$A$4:$AX$2299,11,FALSE),0) -> 57 | N37: =IFERROR(VLOOKUP($A37,Filtro_!$A$4:$AX$2299,12,FALSE),0) -> 49 | O37: =IFERROR(VLOOKUP($A37,Filtro_!$A$4:$AX$2299,13,FALSE),0) -> 44 | P37: =IFERROR(VLOOKUP($A37,Filtro_!$A$4:$AX$2299,14,FALSE),0) -> 79 | Q37: =IFERROR(VLOOKUP($A37,Filtro_!$A$4:$AX$2299,15,FALSE),0) -> 183 | R37: =IFERROR(VLOOKUP($A37,Filtro_!$A$4:$AX$2299,16,FALSE),0) -> 205 | S37: =IFERROR(VLOOKUP($A37,Filtro_!$A$4:$AX$2299,17,FALSE),0) -> 206 | T37: =IFERROR(VLOOKUP($A37,Filtro_!$A$4:$AX$2299,18,FALSE),0) -> 933 | U37: =IFERROR(VLOOKUP($A37,Filtro_!$A$4:$AX$2299,19,FALSE),0) -> 839 | V37: =IFERROR(VLOOKUP($A37,Filtro_!$A$4:$AX$2299,20,FALSE),0) -> 504 | W37: =IFERROR(VLOOKUP($A37,Filtro_!$A$4:$AX$2299,21,FALSE),0) -> 172 | X37: =IFERROR(VLOOKUP($A37,Filtro_!$A$4:$AX$2299,22,FALSE),0) -> 279 | Y37: =IFERROR(VLOOKUP($A37,Filtro_!$A$4:$AX$2299,23,FALSE),0) -> 334 | Z37: =IFERROR(VLOOKUP($A37,Filtro_!$A$4:$AX$2299,24,FALSE),0) -> 324 | AA37: =IFERROR(VLOOKUP($A37,Filtro_!$A$4:$AX$2299,25,FALSE),0) -> 371 | AB37: =IFERROR(VLOOKUP($A37,Filtro_!$A$4:$AX$2299,26,FALSE),0) -> 460 | AC37: =IFERROR(VLOOKUP($A37,Filtro_!$A$4:$AX$2299,27,FALSE),0) -> 517 | AD37: =IFERROR(VLOOKUP($A37,Filtro_!$A$4:$AX$2299,28,FALSE),0) -> 695 | AE37: =IFERROR(VLOOKUP($A37,Filtro_!$A$4:$AX$2299,29,FALSE),0) -> 754 | AF37: =IFERROR(VLOOKUP($A37,Filtro_!$A$4:$AX$2299,30,FALSE),0) -> 904 | AG37: =IFERROR(VLOOKUP($A37,Filtro_!$A$4:$AX$2299,31,FALSE),0) -> 799 | AH37: =IFERROR(VLOOKUP($A37,Filtro_!$A$4:$AX$2299,32,FALSE),0) -> 590 | AI37: =IFERROR(VLOOKUP($A37,Filtro_!$A$4:$AX$2299,33,FALSE),0) -> 757 | AJ37: =IFERROR(VLOOKUP($A37,Filtro_!$A$4:$AX$2299,34,FALSE),0) -> 20476 | AK37: =IFERROR(VLOOKUP($A37,Filtro_!$A$4:$AX$2299,35,FALSE),0) -> 2791 | AL37: =IFERROR(VLOOKUP($A37,Filtro_!$A$4:$AX$2299,36,FALSE),0) -> 50 | AM37: =IFERROR(VLOOKUP($A37,Filtro_!$A$4:$AX$2299,37,FALSE),0) -> 248 | CE37: * El número de controles según sexo NO DEBE ser diferente al Total. | CH37: 0 | CI37: =IF(AJ37>SUM(F37:M37),1,IF(AK37>SUM(N37:P37),1,0)) -> 1 | CJ37: 1
A38: 02010201 | C38: ENFERMERA /O | D38: =IFERROR(VLOOKUP($A38,Filtro_!$A$4:$AX$2299,2,FALSE),0) -> 91584 | E38: =IFERROR(VLOOKUP($A38,Filtro_!$A$4:$AX$2299,3,FALSE),0) -> 43344 | F38: =IFERROR(VLOOKUP($A38,Filtro_!$A$4:$AX$2299,4,FALSE),0) -> 47584 | G38: =IFERROR(VLOOKUP($A38,Filtro_!$A$4:$AX$2299,5,FALSE),0) -> 75 | H38: =IFERROR(VLOOKUP($A38,Filtro_!$A$4:$AX$2299,6,FALSE),0) -> 110 | I38: =IFERROR(VLOOKUP($A38,Filtro_!$A$4:$AX$2299,7,FALSE),0) -> 5447 | J38: =IFERROR(VLOOKUP($A38,Filtro_!$A$4:$AX$2299,8,FALSE),0) -> 261 | K38: =IFERROR(VLOOKUP($A38,Filtro_!$A$4:$AX$2299,9,FALSE),0) -> 5280 | L38: =IFERROR(VLOOKUP($A38,Filtro_!$A$4:$AX$2299,10,FALSE),0) -> 350 | M38: =IFERROR(VLOOKUP($A38,Filtro_!$A$4:$AX$2299,11,FALSE),0) -> 4879 | N38: =IFERROR(VLOOKUP($A38,Filtro_!$A$4:$AX$2299,12,FALSE),0) -> 5987 | O38: =IFERROR(VLOOKUP($A38,Filtro_!$A$4:$AX$2299,13,FALSE),0) -> 5881 | P38: =IFERROR(VLOOKUP($A38,Filtro_!$A$4:$AX$2299,14,FALSE),0) -> 5566 | Q38: =IFERROR(VLOOKUP($A38,Filtro_!$A$4:$AX$2299,15,FALSE),0) -> 12179 | R38: =IFERROR(VLOOKUP($A38,Filtro_!$A$4:$AX$2299,16,FALSE),0) -> 5314 | S38: =IFERROR(VLOOKUP($A38,Filtro_!$A$4:$AX$2299,17,FALSE),0) -> 4537 | T38: =IFERROR(VLOOKUP($A38,Filtro_!$A$4:$AX$2299,18,FALSE),0) -> 10251 | U38: =IFERROR(VLOOKUP($A38,Filtro_!$A$4:$AX$2299,19,FALSE),0) -> 5668 | V38: =IFERROR(VLOOKUP($A38,Filtro_!$A$4:$AX$2299,20,FALSE),0) -> 1208 | W38: =IFERROR(VLOOKUP($A38,Filtro_!$A$4:$AX$2299,21,FALSE),0) -> 414 | X38: =IFERROR(VLOOKUP($A38,Filtro_!$A$4:$AX$2299,22,FALSE),0) -> 530 | Y38: =IFERROR(VLOOKUP($A38,Filtro_!$A$4:$AX$2299,23,FALSE),0) -> 630 | Z38: =IFERROR(VLOOKUP($A38,Filtro_!$A$4:$AX$2299,24,FALSE),0) -> 688 | AA38: =IFERROR(VLOOKUP($A38,Filtro_!$A$4:$AX$2299,25,FALSE),0) -> 697 | AB38: =IFERROR(VLOOKUP($A38,Filtro_!$A$4:$AX$2299,26,FALSE),0) -> 763 | AC38: =IFERROR(VLOOKUP($A38,Filtro_!$A$4:$AX$2299,27,FALSE),0) -> 851 | AD38: =IFERROR(VLOOKUP($A38,Filtro_!$A$4:$AX$2299,28,FALSE),0) -> 1002 | AE38: =IFERROR(VLOOKUP($A38,Filtro_!$A$4:$AX$2299,29,FALSE),0) -> 1116 | AF38: =IFERROR(VLOOKUP($A38,Filtro_!$A$4:$AX$2299,30,FALSE),0) -> 3050 | AG38: =IFERROR(VLOOKUP($A38,Filtro_!$A$4:$AX$2299,31,FALSE),0) -> 2920 | AH38: =IFERROR(VLOOKUP($A38,Filtro_!$A$4:$AX$2299,32,FALSE),0) -> 2489 | AI38: =IFERROR(VLOOKUP($A38,Filtro_!$A$4:$AX$2299,33,FALSE),0) -> 3441 | AJ38: =IFERROR(VLOOKUP($A38,Filtro_!$A$4:$AX$2299,34,FALSE),0) -> 86769 | AK38: =IFERROR(VLOOKUP($A38,Filtro_!$A$4:$AX$2299,35,FALSE),0) -> 3299 | AL38: =IFERROR(VLOOKUP($A38,Filtro_!$A$4:$AX$2299,36,FALSE),0) -> 2957 | AM38: =IFERROR(VLOOKUP($A38,Filtro_!$A$4:$AX$2299,37,FALSE),0) -> 795 | CE38: * El número de controles según sexo NO DEBE ser diferente al Total. | CH38: 0 | CI38: =IF(AJ38>SUM(F38:M38),1,IF(AK38>SUM(N38:P38),1,0)) -> 1 | CJ38: 1
A39: 02010103 | C39: MATRONA /ÓN | D39: =IFERROR(VLOOKUP($A39,Filtro_!$A$4:$AX$2299,2,FALSE),0) -> 25867 | E39: =IFERROR(VLOOKUP($A39,Filtro_!$A$4:$AX$2299,3,FALSE),0) -> 4334 | F39: =IFERROR(VLOOKUP($A39,Filtro_!$A$4:$AX$2299,4,FALSE),0) -> 21536 | G39: =IFERROR(VLOOKUP($A39,Filtro_!$A$4:$AX$2299,5,FALSE),0) -> 4316 | H39: =IFERROR(VLOOKUP($A39,Filtro_!$A$4:$AX$2299,6,FALSE),0) -> 0 | I39: =IFERROR(VLOOKUP($A39,Filtro_!$A$4:$AX$2299,7,FALSE),0) -> 0 | J39: =IFERROR(VLOOKUP($A39,Filtro_!$A$4:$AX$2299,8,FALSE),0) -> 0 | K39: =IFERROR(VLOOKUP($A39,Filtro_!$A$4:$AX$2299,9,FALSE),0) -> 0 | L39: =IFERROR(VLOOKUP($A39,Filtro_!$A$4:$AX$2299,10,FALSE),0) -> 0 | M39: =IFERROR(VLOOKUP($A39,Filtro_!$A$4:$AX$2299,11,FALSE),0) -> 0 | N39: =IFERROR(VLOOKUP($A39,Filtro_!$A$4:$AX$2299,12,FALSE),0) -> 0 | O39: =IFERROR(VLOOKUP($A39,Filtro_!$A$4:$AX$2299,13,FALSE),0) -> 0 | P39: =IFERROR(VLOOKUP($A39,Filtro_!$A$4:$AX$2299,14,FALSE),0) -> 0 | Q39: =IFERROR(VLOOKUP($A39,Filtro_!$A$4:$AX$2299,15,FALSE),0) -> 0 | R39: =IFERROR(VLOOKUP($A39,Filtro_!$A$4:$AX$2299,16,FALSE),0) -> 0 | S39: =IFERROR(VLOOKUP($A39,Filtro_!$A$4:$AX$2299,17,FALSE),0) -> 0 | T39: =IFERROR(VLOOKUP($A39,Filtro_!$A$4:$AX$2299,18,FALSE),0) -> 0 | U39: =IFERROR(VLOOKUP($A39,Filtro_!$A$4:$AX$2299,19,FALSE),0) -> 3628 | V39: =IFERROR(VLOOKUP($A39,Filtro_!$A$4:$AX$2299,20,FALSE),0) -> 3070 | W39: =IFERROR(VLOOKUP($A39,Filtro_!$A$4:$AX$2299,21,FALSE),0) -> 2118 | X39: =IFERROR(VLOOKUP($A39,Filtro_!$A$4:$AX$2299,22,FALSE),0) -> 2602 | Y39: =IFERROR(VLOOKUP($A39,Filtro_!$A$4:$AX$2299,23,FALSE),0) -> 2463 | Z39: =IFERROR(VLOOKUP($A39,Filtro_!$A$4:$AX$2299,24,FALSE),0) -> 1930 | AA39: =IFERROR(VLOOKUP($A39,Filtro_!$A$4:$AX$2299,25,FALSE),0) -> 1525 | AB39: =IFERROR(VLOOKUP($A39,Filtro_!$A$4:$AX$2299,26,FALSE),0) -> 1443 | AC39: =IFERROR(VLOOKUP($A39,Filtro_!$A$4:$AX$2299,27,FALSE),0) -> 1068 | AD39: =IFERROR(VLOOKUP($A39,Filtro_!$A$4:$AX$2299,28,FALSE),0) -> 783 | AE39: =IFERROR(VLOOKUP($A39,Filtro_!$A$4:$AX$2299,29,FALSE),0) -> 582 | AF39: =IFERROR(VLOOKUP($A39,Filtro_!$A$4:$AX$2299,30,FALSE),0) -> 222 | AG39: =IFERROR(VLOOKUP($A39,Filtro_!$A$4:$AX$2299,31,FALSE),0) -> 97 | AH39: =IFERROR(VLOOKUP($A39,Filtro_!$A$4:$AX$2299,32,FALSE),0) -> 15 | AI39: =IFERROR(VLOOKUP($A39,Filtro_!$A$4:$AX$2299,33,FALSE),0) -> 7 | AJ39: =IFERROR(VLOOKUP($A39,Filtro_!$A$4:$AX$2299,34,FALSE),0) -> 25144 | AK39: =IFERROR(VLOOKUP($A39,Filtro_!$A$4:$AX$2299,35,FALSE),0) -> 1382 | AL39: =IFERROR(VLOOKUP($A39,Filtro_!$A$4:$AX$2299,36,FALSE),0) -> 0 | AM39: =IFERROR(VLOOKUP($A39,Filtro_!$A$4:$AX$2299,37,FALSE),0) -> 131 | CE39: * El número de controles según sexo NO DEBE ser diferente al Total. | CH39: 0 | CI39: =IF(AJ39>SUM(F39:M39),1,IF(AK39>SUM(N39:P39),1,0)) -> 1 | CJ39: 1
A40: 02010105 | C40: TÉCNICO PARAMÉDICO | D40: =IFERROR(VLOOKUP($A40,Filtro_!$A$4:$AX$2299,2,FALSE),0) -> 11 | E40: =IFERROR(VLOOKUP($A40,Filtro_!$A$4:$AX$2299,3,FALSE),0) -> 2 | F40: =IFERROR(VLOOKUP($A40,Filtro_!$A$4:$AX$2299,4,FALSE),0) -> 4 | G40: =IFERROR(VLOOKUP($A40,Filtro_!$A$4:$AX$2299,5,FALSE),0) -> 0 | H40: =IFERROR(VLOOKUP($A40,Filtro_!$A$4:$AX$2299,6,FALSE),0) -> 0 | I40: =IFERROR(VLOOKUP($A40,Filtro_!$A$4:$AX$2299,7,FALSE),0) -> 0 | J40: =IFERROR(VLOOKUP($A40,Filtro_!$A$4:$AX$2299,8,FALSE),0) -> 0 | K40: =IFERROR(VLOOKUP($A40,Filtro_!$A$4:$AX$2299,9,FALSE),0) -> 0 | L40: =IFERROR(VLOOKUP($A40,Filtro_!$A$4:$AX$2299,10,FALSE),0) -> 0 | M40: =IFERROR(VLOOKUP($A40,Filtro_!$A$4:$AX$2299,11,FALSE),0) -> 0 | N40: =IFERROR(VLOOKUP($A40,Filtro_!$A$4:$AX$2299,12,FALSE),0) -> 0 | O40: =IFERROR(VLOOKUP($A40,Filtro_!$A$4:$AX$2299,13,FALSE),0) -> 0 | P40: =IFERROR(VLOOKUP($A40,Filtro_!$A$4:$AX$2299,14,FALSE),0) -> 1 | Q40: =IFERROR(VLOOKUP($A40,Filtro_!$A$4:$AX$2299,15,FALSE),0) -> 2 | R40: =IFERROR(VLOOKUP($A40,Filtro_!$A$4:$AX$2299,16,FALSE),0) -> 3 | S40: =IFERROR(VLOOKUP($A40,Filtro_!$A$4:$AX$2299,17,FALSE),0) -> 2 | T40: =IFERROR(VLOOKUP($A40,Filtro_!$A$4:$AX$2299,18,FALSE),0) -> 3 | U40: =IFERROR(VLOOKUP($A40,Filtro_!$A$4:$AX$2299,19,FALSE),0) -> 0 | V40: =IFERROR(VLOOKUP($A40,Filtro_!$A$4:$AX$2299,20,FALSE),0) -> 0 | W40: =IFERROR(VLOOKUP($A40,Filtro_!$A$4:$AX$2299,21,FALSE),0) -> 0 | X40: =IFERROR(VLOOKUP($A40,Filtro_!$A$4:$AX$2299,22,FALSE),0) -> 0 | Y40: =IFERROR(VLOOKUP($A40,Filtro_!$A$4:$AX$2299,23,FALSE),0) -> 0 | Z40: =IFERROR(VLOOKUP($A40,Filtro_!$A$4:$AX$2299,24,FALSE),0) -> 0 | AA40: =IFERROR(VLOOKUP($A40,Filtro_!$A$4:$AX$2299,25,FALSE),0) -> 0 | AB40: =IFERROR(VLOOKUP($A40,Filtro_!$A$4:$AX$2299,26,FALSE),0) -> 0 | AC40: =IFERROR(VLOOKUP($A40,Filtro_!$A$4:$AX$2299,27,FALSE),0) -> 0 | AD40: =IFERROR(VLOOKUP($A40,Filtro_!$A$4:$AX$2299,28,FALSE),0) -> 0 | AE40: =IFERROR(VLOOKUP($A40,Filtro_!$A$4:$AX$2299,29,FALSE),0) -> 0 | AF40: =IFERROR(VLOOKUP($A40,Filtro_!$A$4:$AX$2299,30,FALSE),0) -> 0 | AG40: =IFERROR(VLOOKUP($A40,Filtro_!$A$4:$AX$2299,31,FALSE),0) -> 0 | AH40: =IFERROR(VLOOKUP($A40,Filtro_!$A$4:$AX$2299,32,FALSE),0) -> 0 | AI40: =IFERROR(VLOOKUP($A40,Filtro_!$A$4:$AX$2299,33,FALSE),0) -> 0 | AJ40: =IFERROR(VLOOKUP($A40,Filtro_!$A$4:$AX$2299,34,FALSE),0) -> 11 | AK40: =IFERROR(VLOOKUP($A40,Filtro_!$A$4:$AX$2299,35,FALSE),0) -> 0 | AL40: =IFERROR(VLOOKUP($A40,Filtro_!$A$4:$AX$2299,36,FALSE),0) -> 0 | AM40: =IFERROR(VLOOKUP($A40,Filtro_!$A$4:$AX$2299,37,FALSE),0) -> 9 | CE40: * El número de controles según sexo NO DEBE ser diferente al Total. | CH40: 0 | CI40: =IF(AJ40>SUM(F40:M40),1,IF(AK40>SUM(N40:P40),1,0)) -> 1 | CJ40: 1
B41: SECCIÓN C: CONTROLES SEGÚN PROBLEMA DE SALUD
B42: TIPO DE CONTROL | C42: PROFESIONAL | D42: TOTAL | G42: POR EDAD | AO42: Beneficiarios
G43: 0 - 4 | I43: 5 - 9 | K43: 10 - 14 | M43: 15 a 19 | O43: 20 - 24 | Q43: 25 - 29 | S43: 30 - 34 | U43: 35 - 39 | W43: 40 - 44 | Y43: 45 - 49 | AA43: 50 - 54 | AC43: 55 - 59 | AE43: 60 - 64 | AG43: 65 - 69 | AI43: 70 - 74 | AK43: 75 - 79 | AM43: 80 y mas
D44: Ambos Sexos | E44: Hombres | F44: Mujeres | G44: Hombres | H44: Mujeres | I44: Hombres | J44: Mujeres | K44: Hombres | L44: Mujeres | M44: Hombres | N44: Mujeres | O44: Hombres | P44: Mujeres | Q44: Hombres | R44: Mujeres | S44: Hombres | T44: Mujeres | U44: Hombres | V44: Mujeres | W44: Hombres | X44: Mujeres | Y44: Hombres | Z44: Mujeres | AA44: Hombres | AB44: Mujeres | AC44: Hombres | AD44: Mujeres | AE44: Hombres | AF44: Mujeres | AG44: Hombres | AH44: Mujeres | AI44: Hombres | AJ44: Mujeres | AK44: Hombres | AL44: Mujeres | AM44: Hombres | AN44: Mujeres
A45: 03010501 | B45: DE SALUD CARDIOVASCULAR | C45: MÉDICO | D45: =IFERROR(VLOOKUP($A45,Filtro_!$A$4:$AX$2299,2,FALSE),0) -> 131939 | E45: =IFERROR(VLOOKUP($A45,Filtro_!$A$4:$AX$2299,3,FALSE),0) -> 45302 | F45: =IFERROR(VLOOKUP($A45,Filtro_!$A$4:$AX$2299,4,FALSE),0) -> 86637 | G45: =IFERROR(VLOOKUP($A45,Filtro_!$A$4:$AX$2299,5,FALSE),0) -> 0 | H45: =IFERROR(VLOOKUP($A45,Filtro_!$A$4:$AX$2299,6,FALSE),0) -> 0 | I45: =IFERROR(VLOOKUP($A45,Filtro_!$A$4:$AX$2299,7,FALSE),0) -> 0 | J45: =IFERROR(VLOOKUP($A45,Filtro_!$A$4:$AX$2299,8,FALSE),0) -> 0 | K45: =IFERROR(VLOOKUP($A45,Filtro_!$A$4:$AX$2299,9,FALSE),0) -> 0 | L45: =IFERROR(VLOOKUP($A45,Filtro_!$A$4:$AX$2299,10,FALSE),0) -> 0 | M45: =IFERROR(VLOOKUP($A45,Filtro_!$A$4:$AX$2299,11,FALSE),0) -> 102 | N45: =IFERROR(VLOOKUP($A45,Filtro_!$A$4:$AX$2299,12,FALSE),0) -> 129 | O45: =IFERROR(VLOOKUP($A45,Filtro_!$A$4:$AX$2299,13,FALSE),0) -> 117 | P45: =IFERROR(VLOOKUP($A45,Filtro_!$A$4:$AX$2299,14,FALSE),0) -> 280 | Q45: =IFERROR(VLOOKUP($A45,Filtro_!$A$4:$AX$2299,15,FALSE),0) -> 206 | R45: =IFERROR(VLOOKUP($A45,Filtro_!$A$4:$AX$2299,16,FALSE),0) -> 580 | S45: =IFERROR(VLOOKUP($A45,Filtro_!$A$4:$AX$2299,17,FALSE),0) -> 411 | T45: =IFERROR(VLOOKUP($A45,Filtro_!$A$4:$AX$2299,18,FALSE),0) -> 1112 | U45: =IFERROR(VLOOKUP($A45,Filtro_!$A$4:$AX$2299,19,FALSE),0) -> 637 | V45: =IFERROR(VLOOKUP($A45,Filtro_!$A$4:$AX$2299,20,FALSE),0) -> 1667 | W45: =IFERROR(VLOOKUP($A45,Filtro_!$A$4:$AX$2299,21,FALSE),0) -> 968 | X45: =IFERROR(VLOOKUP($A45,Filtro_!$A$4:$AX$2299,22,FALSE),0) -> 2937 | Y45: =IFERROR(VLOOKUP($A45,Filtro_!$A$4:$AX$2299,23,FALSE),0) -> 1670 | Z45: =IFERROR(VLOOKUP($A45,Filtro_!$A$4:$AX$2299,24,FALSE),0) -> 4726 | AA45: =IFERROR(VLOOKUP($A45,Filtro_!$A$4:$AX$2299,25,FALSE),0) -> 3020 | AB45: =IFERROR(VLOOKUP($A45,Filtro_!$A$4:$AX$2299,26,FALSE),0) -> 7392 | AC45: =IFERROR(VLOOKUP($A45,Filtro_!$A$4:$AX$2299,27,FALSE),0) -> 4570 | AD45: =IFERROR(VLOOKUP($A45,Filtro_!$A$4:$AX$2299,28,FALSE),0) -> 10806 | AE45: =IFERROR(VLOOKUP($A45,Filtro_!$A$4:$AX$2299,29,FALSE),0) -> 6196 | AF45: =IFERROR(VLOOKUP($A45,Filtro_!$A$4:$AX$2299,30,FALSE),0) -> 12025 | AG45: =IFERROR(VLOOKUP($A45,Filtro_!$A$4:$AX$2299,31,FALSE),0) -> 7568 | AH45: =IFERROR(VLOOKUP($A45,Filtro_!$A$4:$AX$2299,32,FALSE),0) -> 12937 | AI45: =IFERROR(VLOOKUP($A45,Filtro_!$A$4:$AX$2299,33,FALSE),0) -> 7059 | AJ45: =IFERROR(VLOOKUP($A45,Filtro_!$A$4:$AX$2299,34,FALSE),0) -> 11213 | AK45: =IFERROR(VLOOKUP($A45,Filtro_!$A$4:$AX$2299,35,FALSE),0) -> 5893 | AL45: =IFERROR(VLOOKUP($A45,Filtro_!$A$4:$AX$2299,36,FALSE),0) -> 9120 | AM45: =IFERROR(VLOOKUP($A45,Filtro_!$A$4:$AX$2299,37,FALSE),0) -> 6885 | AN45: =IFERROR(VLOOKUP($A45,Filtro_!$A$4:$AX$2299,38,FALSE),0) -> 11713 | AO45: =IFERROR(VLOOKUP($A45,Filtro_!$A$4:$AX$2299,39,FALSE),0) -> 130093 | CI45: 0 | CJ45: 0
A46: 03010502 | C46: ENFERMERA /O | D46: =IFERROR(VLOOKUP($A46,Filtro_!$A$4:$AX$2299,2,FALSE),0) -> 54391 | E46: =IFERROR(VLOOKUP($A46,Filtro_!$A$4:$AX$2299,3,FALSE),0) -> 19631 | F46: =IFERROR(VLOOKUP($A46,Filtro_!$A$4:$AX$2299,4,FALSE),0) -> 34760 | G46: =IFERROR(VLOOKUP($A46,Filtro_!$A$4:$AX$2299,5,FALSE),0) -> 0 | H46: =IFERROR(VLOOKUP($A46,Filtro_!$A$4:$AX$2299,6,FALSE),0) -> 0 | I46: =IFERROR(VLOOKUP($A46,Filtro_!$A$4:$AX$2299,7,FALSE),0) -> 0 | J46: =IFERROR(VLOOKUP($A46,Filtro_!$A$4:$AX$2299,8,FALSE),0) -> 0 | K46: =IFERROR(VLOOKUP($A46,Filtro_!$A$4:$AX$2299,9,FALSE),0) -> 0 | L46: =IFERROR(VLOOKUP($A46,Filtro_!$A$4:$AX$2299,10,FALSE),0) -> 0 | M46: =IFERROR(VLOOKUP($A46,Filtro_!$A$4:$AX$2299,11,FALSE),0) -> 40 | N46: =IFERROR(VLOOKUP($A46,Filtro_!$A$4:$AX$2299,12,FALSE),0) -> 37 | O46: =IFERROR(VLOOKUP($A46,Filtro_!$A$4:$AX$2299,13,FALSE),0) -> 44 | P46: =IFERROR(VLOOKUP($A46,Filtro_!$A$4:$AX$2299,14,FALSE),0) -> 98 | Q46: =IFERROR(VLOOKUP($A46,Filtro_!$A$4:$AX$2299,15,FALSE),0) -> 89 | R46: =IFERROR(VLOOKUP($A46,Filtro_!$A$4:$AX$2299,16,FALSE),0) -> 220 | S46: =IFERROR(VLOOKUP($A46,Filtro_!$A$4:$AX$2299,17,FALSE),0) -> 186 | T46: =IFERROR(VLOOKUP($A46,Filtro_!$A$4:$AX$2299,18,FALSE),0) -> 427 | U46: =IFERROR(VLOOKUP($A46,Filtro_!$A$4:$AX$2299,19,FALSE),0) -> 284 | V46: =IFERROR(VLOOKUP($A46,Filtro_!$A$4:$AX$2299,20,FALSE),0) -> 713 | W46: =IFERROR(VLOOKUP($A46,Filtro_!$A$4:$AX$2299,21,FALSE),0) -> 463 | X46: =IFERROR(VLOOKUP($A46,Filtro_!$A$4:$AX$2299,22,FALSE),0) -> 1299 | Y46: =IFERROR(VLOOKUP($A46,Filtro_!$A$4:$AX$2299,23,FALSE),0) -> 773 | Z46: =IFERROR(VLOOKUP($A46,Filtro_!$A$4:$AX$2299,24,FALSE),0) -> 1924 | AA46: =IFERROR(VLOOKUP($A46,Filtro_!$A$4:$AX$2299,25,FALSE),0) -> 1317 | AB46: =IFERROR(VLOOKUP($A46,Filtro_!$A$4:$AX$2299,26,FALSE),0) -> 2971 | AC46: =IFERROR(VLOOKUP($A46,Filtro_!$A$4:$AX$2299,27,FALSE),0) -> 1898 | AD46: =IFERROR(VLOOKUP($A46,Filtro_!$A$4:$AX$2299,28,FALSE),0) -> 4262 | AE46: =IFERROR(VLOOKUP($A46,Filtro_!$A$4:$AX$2299,29,FALSE),0) -> 2394 | AF46: =IFERROR(VLOOKUP($A46,Filtro_!$A$4:$AX$2299,30,FALSE),0) -> 4657 | AG46: =IFERROR(VLOOKUP($A46,Filtro_!$A$4:$AX$2299,31,FALSE),0) -> 3360 | AH46: =IFERROR(VLOOKUP($A46,Filtro_!$A$4:$AX$2299,32,FALSE),0) -> 5430 | AI46: =IFERROR(VLOOKUP($A46,Filtro_!$A$4:$AX$2299,33,FALSE),0) -> 3134 | AJ46: =IFERROR(VLOOKUP($A46,Filtro_!$A$4:$AX$2299,34,FALSE),0) -> 4606 | AK46: =IFERROR(VLOOKUP($A46,Filtro_!$A$4:$AX$2299,35,FALSE),0) -> 2633 | AL46: =IFERROR(VLOOKUP($A46,Filtro_!$A$4:$AX$2299,36,FALSE),0) -> 3712 | AM46: =IFERROR(VLOOKUP($A46,Filtro_!$A$4:$AX$2299,37,FALSE),0) -> 3016 | AN46: =IFERROR(VLOOKUP($A46,Filtro_!$A$4:$AX$2299,38,FALSE),0) -> 4404 | AO46: =IFERROR(VLOOKUP($A46,Filtro_!$A$4:$AX$2299,39,FALSE),0) -> 53309 | CI46: 0 | CJ46: 0
A47: 03010504 | C47: NUTRICIONISTA | D47: =IFERROR(VLOOKUP($A47,Filtro_!$A$4:$AX$2299,2,FALSE),0) -> 51536 | E47: =IFERROR(VLOOKUP($A47,Filtro_!$A$4:$AX$2299,3,FALSE),0) -> 16588 | F47: =IFERROR(VLOOKUP($A47,Filtro_!$A$4:$AX$2299,4,FALSE),0) -> 34948 | G47: =IFERROR(VLOOKUP($A47,Filtro_!$A$4:$AX$2299,5,FALSE),0) -> 0 | H47: =IFERROR(VLOOKUP($A47,Filtro_!$A$4:$AX$2299,6,FALSE),0) -> 0 | I47: =IFERROR(VLOOKUP($A47,Filtro_!$A$4:$AX$2299,7,FALSE),0) -> 0 | J47: =IFERROR(VLOOKUP($A47,Filtro_!$A$4:$AX$2299,8,FALSE),0) -> 0 | K47: =IFERROR(VLOOKUP($A47,Filtro_!$A$4:$AX$2299,9,FALSE),0) -> 0 | L47: =IFERROR(VLOOKUP($A47,Filtro_!$A$4:$AX$2299,10,FALSE),0) -> 0 | M47: =IFERROR(VLOOKUP($A47,Filtro_!$A$4:$AX$2299,11,FALSE),0) -> 44 | N47: =IFERROR(VLOOKUP($A47,Filtro_!$A$4:$AX$2299,12,FALSE),0) -> 58 | O47: =IFERROR(VLOOKUP($A47,Filtro_!$A$4:$AX$2299,13,FALSE),0) -> 48 | P47: =IFERROR(VLOOKUP($A47,Filtro_!$A$4:$AX$2299,14,FALSE),0) -> 164 | Q47: =IFERROR(VLOOKUP($A47,Filtro_!$A$4:$AX$2299,15,FALSE),0) -> 89 | R47: =IFERROR(VLOOKUP($A47,Filtro_!$A$4:$AX$2299,16,FALSE),0) -> 285 | S47: =IFERROR(VLOOKUP($A47,Filtro_!$A$4:$AX$2299,17,FALSE),0) -> 148 | T47: =IFERROR(VLOOKUP($A47,Filtro_!$A$4:$AX$2299,18,FALSE),0) -> 566 | U47: =IFERROR(VLOOKUP($A47,Filtro_!$A$4:$AX$2299,19,FALSE),0) -> 261 | V47: =IFERROR(VLOOKUP($A47,Filtro_!$A$4:$AX$2299,20,FALSE),0) -> 852 | W47: =IFERROR(VLOOKUP($A47,Filtro_!$A$4:$AX$2299,21,FALSE),0) -> 486 | X47: =IFERROR(VLOOKUP($A47,Filtro_!$A$4:$AX$2299,22,FALSE),0) -> 1447 | Y47: =IFERROR(VLOOKUP($A47,Filtro_!$A$4:$AX$2299,23,FALSE),0) -> 692 | Z47: =IFERROR(VLOOKUP($A47,Filtro_!$A$4:$AX$2299,24,FALSE),0) -> 2280 | AA47: =IFERROR(VLOOKUP($A47,Filtro_!$A$4:$AX$2299,25,FALSE),0) -> 1229 | AB47: =IFERROR(VLOOKUP($A47,Filtro_!$A$4:$AX$2299,26,FALSE),0) -> 3300 | AC47: =IFERROR(VLOOKUP($A47,Filtro_!$A$4:$AX$2299,27,FALSE),0) -> 1739 | AD47: =IFERROR(VLOOKUP($A47,Filtro_!$A$4:$AX$2299,28,FALSE),0) -> 4602 | AE47: =IFERROR(VLOOKUP($A47,Filtro_!$A$4:$AX$2299,29,FALSE),0) -> 2152 | AF47: =IFERROR(VLOOKUP($A47,Filtro_!$A$4:$AX$2299,30,FALSE),0) -> 4933 | AG47: =IFERROR(VLOOKUP($A47,Filtro_!$A$4:$AX$2299,31,FALSE),0) -> 2746 | AH47: =IFERROR(VLOOKUP($A47,Filtro_!$A$4:$AX$2299,32,FALSE),0) -> 5163 | AI47: =IFERROR(VLOOKUP($A47,Filtro_!$A$4:$AX$2299,33,FALSE),0) -> 2573 | AJ47: =IFERROR(VLOOKUP($A47,Filtro_!$A$4:$AX$2299,34,FALSE),0) -> 4243 | AK47: =IFERROR(VLOOKUP($A47,Filtro_!$A$4:$AX$2299,35,FALSE),0) -> 2047 | AL47: =IFERROR(VLOOKUP($A47,Filtro_!$A$4:$AX$2299,36,FALSE),0) -> 3363 | AM47: =IFERROR(VLOOKUP($A47,Filtro_!$A$4:$AX$2299,37,FALSE),0) -> 2334 | AN47: =IFERROR(VLOOKUP($A47,Filtro_!$A$4:$AX$2299,38,FALSE),0) -> 3692 | AO47: =IFERROR(VLOOKUP($A47,Filtro_!$A$4:$AX$2299,39,FALSE),0) -> 50584 | CI47: 0 | CJ47: 0
A48: 03010505 | C48: TÉCNICO PARAMÉDICO | D48: =IFERROR(VLOOKUP($A48,Filtro_!$A$4:$AX$2299,2,FALSE),0) -> 2966 | E48: =IFERROR(VLOOKUP($A48,Filtro_!$A$4:$AX$2299,3,FALSE),0) -> 1047 | F48: =IFERROR(VLOOKUP($A48,Filtro_!$A$4:$AX$2299,4,FALSE),0) -> 1919 | G48: =IFERROR(VLOOKUP($A48,Filtro_!$A$4:$AX$2299,5,FALSE),0) -> 0 | H48: =IFERROR(VLOOKUP($A48,Filtro_!$A$4:$AX$2299,6,FALSE),0) -> 0 | I48: =IFERROR(VLOOKUP($A48,Filtro_!$A$4:$AX$2299,7,FALSE),0) -> 0 | J48: =IFERROR(VLOOKUP($A48,Filtro_!$A$4:$AX$2299,8,FALSE),0) -> 0 | K48: =IFERROR(VLOOKUP($A48,Filtro_!$A$4:$AX$2299,9,FALSE),0) -> 0 | L48: =IFERROR(VLOOKUP($A48,Filtro_!$A$4:$AX$2299,10,FALSE),0) -> 0 | M48: =IFERROR(VLOOKUP($A48,Filtro_!$A$4:$AX$2299,11,FALSE),0) -> 5 | N48: =IFERROR(VLOOKUP($A48,Filtro_!$A$4:$AX$2299,12,FALSE),0) -> 8 | O48: =IFERROR(VLOOKUP($A48,Filtro_!$A$4:$AX$2299,13,FALSE),0) -> 12 | P48: =IFERROR(VLOOKUP($A48,Filtro_!$A$4:$AX$2299,14,FALSE),0) -> 8 | Q48: =IFERROR(VLOOKUP($A48,Filtro_!$A$4:$AX$2299,15,FALSE),0) -> 24 | R48: =IFERROR(VLOOKUP($A48,Filtro_!$A$4:$AX$2299,16,FALSE),0) -> 13 | S48: =IFERROR(VLOOKUP($A48,Filtro_!$A$4:$AX$2299,17,FALSE),0) -> 16 | T48: =IFERROR(VLOOKUP($A48,Filtro_!$A$4:$AX$2299,18,FALSE),0) -> 43 | U48: =IFERROR(VLOOKUP($A48,Filtro_!$A$4:$AX$2299,19,FALSE),0) -> 18 | V48: =IFERROR(VLOOKUP($A48,Filtro_!$A$4:$AX$2299,20,FALSE),0) -> 44 | W48: =IFERROR(VLOOKUP($A48,Filtro_!$A$4:$AX$2299,21,FALSE),0) -> 29 | X48: =IFERROR(VLOOKUP($A48,Filtro_!$A$4:$AX$2299,22,FALSE),0) -> 78 | Y48: =IFERROR(VLOOKUP($A48,Filtro_!$A$4:$AX$2299,23,FALSE),0) -> 64 | Z48: =IFERROR(VLOOKUP($A48,Filtro_!$A$4:$AX$2299,24,FALSE),0) -> 130 | AA48: =IFERROR(VLOOKUP($A48,Filtro_!$A$4:$AX$2299,25,FALSE),0) -> 69 | AB48: =IFERROR(VLOOKUP($A48,Filtro_!$A$4:$AX$2299,26,FALSE),0) -> 159 | AC48: =IFERROR(VLOOKUP($A48,Filtro_!$A$4:$AX$2299,27,FALSE),0) -> 122 | AD48: =IFERROR(VLOOKUP($A48,Filtro_!$A$4:$AX$2299,28,FALSE),0) -> 243 | AE48: =IFERROR(VLOOKUP($A48,Filtro_!$A$4:$AX$2299,29,FALSE),0) -> 120 | AF48: =IFERROR(VLOOKUP($A48,Filtro_!$A$4:$AX$2299,30,FALSE),0) -> 230 | AG48: =IFERROR(VLOOKUP($A48,Filtro_!$A$4:$AX$2299,31,FALSE),0) -> 157 | AH48: =IFERROR(VLOOKUP($A48,Filtro_!$A$4:$AX$2299,32,FALSE),0) -> 305 | AI48: =IFERROR(VLOOKUP($A48,Filtro_!$A$4:$AX$2299,33,FALSE),0) -> 153 | AJ48: =IFERROR(VLOOKUP($A48,Filtro_!$A$4:$AX$2299,34,FALSE),0) -> 258 | AK48: =IFERROR(VLOOKUP($A48,Filtro_!$A$4:$AX$2299,35,FALSE),0) -> 137 | AL48: =IFERROR(VLOOKUP($A48,Filtro_!$A$4:$AX$2299,36,FALSE),0) -> 180 | AM48: =IFERROR(VLOOKUP($A48,Filtro_!$A$4:$AX$2299,37,FALSE),0) -> 121 | AN48: =IFERROR(VLOOKUP($A48,Filtro_!$A$4:$AX$2299,38,FALSE),0) -> 220 | AO48: =IFERROR(VLOOKUP($A48,Filtro_!$A$4:$AX$2299,39,FALSE),0) -> 2777 | CI48: 0
B49: DE TUBERCULOSIS | C49: MÉDICO | D49: =IFERROR(VLOOKUP($A49,Filtro_!$A$4:$AX$2299,2,FALSE),0) -> 0 | E49: =IFERROR(VLOOKUP($A49,Filtro_!$A$4:$AX$2299,3,FALSE),0) -> 0 | F49: =IFERROR(VLOOKUP($A49,Filtro_!$A$4:$AX$2299,4,FALSE),0) -> 0 | G49: =IFERROR(VLOOKUP($A49,Filtro_!$A$4:$AX$2299,5,FALSE),0) -> 0 | H49: =IFERROR(VLOOKUP($A49,Filtro_!$A$4:$AX$2299,6,FALSE),0) -> 0 | I49: =IFERROR(VLOOKUP($A49,Filtro_!$A$4:$AX$2299,7,FALSE),0) -> 0 | J49: =IFERROR(VLOOKUP($A49,Filtro_!$A$4:$AX$2299,8,FALSE),0) -> 0 | K49: =IFERROR(VLOOKUP($A49,Filtro_!$A$4:$AX$2299,9,FALSE),0) -> 0 | L49: =IFERROR(VLOOKUP($A49,Filtro_!$A$4:$AX$2299,10,FALSE),0) -> 0 | M49: =IFERROR(VLOOKUP($A49,Filtro_!$A$4:$AX$2299,11,FALSE),0) -> 0 | N49: =IFERROR(VLOOKUP($A49,Filtro_!$A$4:$AX$2299,12,FALSE),0) -> 0 | O49: =IFERROR(VLOOKUP($A49,Filtro_!$A$4:$AX$2299,13,FALSE),0) -> 0 | P49: =IFERROR(VLOOKUP($A49,Filtro_!$A$4:$AX$2299,14,FALSE),0) -> 0 | Q49: =IFERROR(VLOOKUP($A49,Filtro_!$A$4:$AX$2299,15,FALSE),0) -> 0 | R49: =IFERROR(VLOOKUP($A49,Filtro_!$A$4:$AX$2299,16,FALSE),0) -> 0 | S49: =IFERROR(VLOOKUP($A49,Filtro_!$A$4:$AX$2299,17,FALSE),0) -> 0 | T49: =IFERROR(VLOOKUP($A49,Filtro_!$A$4:$AX$2299,18,FALSE),0) -> 0 | U49: =IFERROR(VLOOKUP($A49,Filtro_!$A$4:$AX$2299,19,FALSE),0) -> 0 | V49: =IFERROR(VLOOKUP($A49,Filtro_!$A$4:$AX$2299,20,FALSE),0) -> 0 | W49: =IFERROR(VLOOKUP($A49,Filtro_!$A$4:$AX$2299,21,FALSE),0) -> 0 | X49: =IFERROR(VLOOKUP($A49,Filtro_!$A$4:$AX$2299,22,FALSE),0) -> 0 | Y49: =IFERROR(VLOOKUP($A49,Filtro_!$A$4:$AX$2299,23,FALSE),0) -> 0 | Z49: =IFERROR(VLOOKUP($A49,Filtro_!$A$4:$AX$2299,24,FALSE),0) -> 0 | AA49: =IFERROR(VLOOKUP($A49,Filtro_!$A$4:$AX$2299,25,FALSE),0) -> 0 | AB49: =IFERROR(VLOOKUP($A49,Filtro_!$A$4:$AX$2299,26,FALSE),0) -> 0 | AC49: =IFERROR(VLOOKUP($A49,Filtro_!$A$4:$AX$2299,27,FALSE),0) -> 0 | AD49: =IFERROR(VLOOKUP($A49,Filtro_!$A$4:$AX$2299,28,FALSE),0) -> 0 | AE49: =IFERROR(VLOOKUP($A49,Filtro_!$A$4:$AX$2299,29,FALSE),0) -> 0 | AF49: =IFERROR(VLOOKUP($A49,Filtro_!$A$4:$AX$2299,30,FALSE),0) -> 0 | AG49: =IFERROR(VLOOKUP($A49,Filtro_!$A$4:$AX$2299,31,FALSE),0) -> 0 | AH49: =IFERROR(VLOOKUP($A49,Filtro_!$A$4:$AX$2299,32,FALSE),0) -> 0 | AI49: =IFERROR(VLOOKUP($A49,Filtro_!$A$4:$AX$2299,33,FALSE),0) -> 0 | AJ49: =IFERROR(VLOOKUP($A49,Filtro_!$A$4:$AX$2299,34,FALSE),0) -> 0 | AK49: =IFERROR(VLOOKUP($A49,Filtro_!$A$4:$AX$2299,35,FALSE),0) -> 0 | AL49: =IFERROR(VLOOKUP($A49,Filtro_!$A$4:$AX$2299,36,FALSE),0) -> 0 | AM49: =IFERROR(VLOOKUP($A49,Filtro_!$A$4:$AX$2299,37,FALSE),0) -> 0 | AN49: =IFERROR(VLOOKUP($A49,Filtro_!$A$4:$AX$2299,38,FALSE),0) -> 0 | AO49: =IFERROR(VLOOKUP($A49,Filtro_!$A$4:$AX$2299,39,FALSE),0) -> 0 | CI49: 0 | CJ49: 0
C50: ENFERMERA /O | D50: =IFERROR(VLOOKUP($A50,Filtro_!$A$4:$AX$2299,2,FALSE),0) -> 0 | E50: =IFERROR(VLOOKUP($A50,Filtro_!$A$4:$AX$2299,3,FALSE),0) -> 0 | F50: =IFERROR(VLOOKUP($A50,Filtro_!$A$4:$AX$2299,4,FALSE),0) -> 0 | G50: =IFERROR(VLOOKUP($A50,Filtro_!$A$4:$AX$2299,5,FALSE),0) -> 0 | H50: =IFERROR(VLOOKUP($A50,Filtro_!$A$4:$AX$2299,6,FALSE),0) -> 0 | I50: =IFERROR(VLOOKUP($A50,Filtro_!$A$4:$AX$2299,7,FALSE),0) -> 0 | J50: =IFERROR(VLOOKUP($A50,Filtro_!$A$4:$AX$2299,8,FALSE),0) -> 0 | K50: =IFERROR(VLOOKUP($A50,Filtro_!$A$4:$AX$2299,9,FALSE),0) -> 0 | L50: =IFERROR(VLOOKUP($A50,Filtro_!$A$4:$AX$2299,10,FALSE),0) -> 0 | M50: =IFERROR(VLOOKUP($A50,Filtro_!$A$4:$AX$2299,11,FALSE),0) -> 0 | N50: =IFERROR(VLOOKUP($A50,Filtro_!$A$4:$AX$2299,12,FALSE),0) -> 0 | O50: =IFERROR(VLOOKUP($A50,Filtro_!$A$4:$AX$2299,13,FALSE),0) -> 0 | P50: =IFERROR(VLOOKUP($A50,Filtro_!$A$4:$AX$2299,14,FALSE),0) -> 0 | Q50: =IFERROR(VLOOKUP($A50,Filtro_!$A$4:$AX$2299,15,FALSE),0) -> 0 | R50: =IFERROR(VLOOKUP($A50,Filtro_!$A$4:$AX$2299,16,FALSE),0) -> 0 | S50: =IFERROR(VLOOKUP($A50,Filtro_!$A$4:$AX$2299,17,FALSE),0) -> 0 | T50: =IFERROR(VLOOKUP($A50,Filtro_!$A$4:$AX$2299,18,FALSE),0) -> 0 | U50: =IFERROR(VLOOKUP($A50,Filtro_!$A$4:$AX$2299,19,FALSE),0) -> 0 | V50: =IFERROR(VLOOKUP($A50,Filtro_!$A$4:$AX$2299,20,FALSE),0) -> 0 | W50: =IFERROR(VLOOKUP($A50,Filtro_!$A$4:$AX$2299,21,FALSE),0) -> 0 | X50: =IFERROR(VLOOKUP($A50,Filtro_!$A$4:$AX$2299,22,FALSE),0) -> 0 | Y50: =IFERROR(VLOOKUP($A50,Filtro_!$A$4:$AX$2299,23,FALSE),0) -> 0 | Z50: =IFERROR(VLOOKUP($A50,Filtro_!$A$4:$AX$2299,24,FALSE),0) -> 0 | AA50: =IFERROR(VLOOKUP($A50,Filtro_!$A$4:$AX$2299,25,FALSE),0) -> 0 | AB50: =IFERROR(VLOOKUP($A50,Filtro_!$A$4:$AX$2299,26,FALSE),0) -> 0 | AC50: =IFERROR(VLOOKUP($A50,Filtro_!$A$4:$AX$2299,27,FALSE),0) -> 0 | AD50: =IFERROR(VLOOKUP($A50,Filtro_!$A$4:$AX$2299,28,FALSE),0) -> 0 | AE50: =IFERROR(VLOOKUP($A50,Filtro_!$A$4:$AX$2299,29,FALSE),0) -> 0 | AF50: =IFERROR(VLOOKUP($A50,Filtro_!$A$4:$AX$2299,30,FALSE),0) -> 0 | AG50: =IFERROR(VLOOKUP($A50,Filtro_!$A$4:$AX$2299,31,FALSE),0) -> 0 | AH50: =IFERROR(VLOOKUP($A50,Filtro_!$A$4:$AX$2299,32,FALSE),0) -> 0 | AI50: =IFERROR(VLOOKUP($A50,Filtro_!$A$4:$AX$2299,33,FALSE),0) -> 0 | AJ50: =IFERROR(VLOOKUP($A50,Filtro_!$A$4:$AX$2299,34,FALSE),0) -> 0 | AK50: =IFERROR(VLOOKUP($A50,Filtro_!$A$4:$AX$2299,35,FALSE),0) -> 0 | AL50: =IFERROR(VLOOKUP($A50,Filtro_!$A$4:$AX$2299,36,FALSE),0) -> 0 | AM50: =IFERROR(VLOOKUP($A50,Filtro_!$A$4:$AX$2299,37,FALSE),0) -> 0 | AN50: =IFERROR(VLOOKUP($A50,Filtro_!$A$4:$AX$2299,38,FALSE),0) -> 0 | AO50: =IFERROR(VLOOKUP($A50,Filtro_!$A$4:$AX$2299,39,FALSE),0) -> 0 | CI50: 0
A51: 01030100A | B51: SEGUIMIENTO AUTOVALENTE CON RIESGO | C51: MÉDICO | D51: =IFERROR(VLOOKUP($A51,Filtro_!$A$4:$AX$2299,2,FALSE),0) -> 17 | E51: =IFERROR(VLOOKUP($A51,Filtro_!$A$4:$AX$2299,3,FALSE),0) -> 4 | F51: =IFERROR(VLOOKUP($A51,Filtro_!$A$4:$AX$2299,4,FALSE),0) -> 13 | G51: =IFERROR(VLOOKUP($A51,Filtro_!$A$4:$AX$2299,5,FALSE),0) -> 0 | H51: =IFERROR(VLOOKUP($A51,Filtro_!$A$4:$AX$2299,6,FALSE),0) -> 0 | I51: =IFERROR(VLOOKUP($A51,Filtro_!$A$4:$AX$2299,7,FALSE),0) -> 0 | J51: =IFERROR(VLOOKUP($A51,Filtro_!$A$4:$AX$2299,8,FALSE),0) -> 0 | K51: =IFERROR(VLOOKUP($A51,Filtro_!$A$4:$AX$2299,9,FALSE),0) -> 0 | L51: =IFERROR(VLOOKUP($A51,Filtro_!$A$4:$AX$2299,10,FALSE),0) -> 0 | M51: =IFERROR(VLOOKUP($A51,Filtro_!$A$4:$AX$2299,11,FALSE),0) -> 0 | N51: =IFERROR(VLOOKUP($A51,Filtro_!$A$4:$AX$2299,12,FALSE),0) -> 0 | O51: =IFERROR(VLOOKUP($A51,Filtro_!$A$4:$AX$2299,13,FALSE),0) -> 0 | P51: =IFERROR(VLOOKUP($A51,Filtro_!$A$4:$AX$2299,14,FALSE),0) -> 0 | Q51: =IFERROR(VLOOKUP($A51,Filtro_!$A$4:$AX$2299,15,FALSE),0) -> 0 | R51: =IFERROR(VLOOKUP($A51,Filtro_!$A$4:$AX$2299,16,FALSE),0) -> 0 | S51: =IFERROR(VLOOKUP($A51,Filtro_!$A$4:$AX$2299,17,FALSE),0) -> 0 | T51: =IFERROR(VLOOKUP($A51,Filtro_!$A$4:$AX$2299,18,FALSE),0) -> 0 | U51: =IFERROR(VLOOKUP($A51,Filtro_!$A$4:$AX$2299,19,FALSE),0) -> 0 | V51: =IFERROR(VLOOKUP($A51,Filtro_!$A$4:$AX$2299,20,FALSE),0) -> 0 | W51: =IFERROR(VLOOKUP($A51,Filtro_!$A$4:$AX$2299,21,FALSE),0) -> 0 | X51: =IFERROR(VLOOKUP($A51,Filtro_!$A$4:$AX$2299,22,FALSE),0) -> 0 | Y51: =IFERROR(VLOOKUP($A51,Filtro_!$A$4:$AX$2299,23,FALSE),0) -> 0 | Z51: =IFERROR(VLOOKUP($A51,Filtro_!$A$4:$AX$2299,24,FALSE),0) -> 0 | AA51: =IFERROR(VLOOKUP($A51,Filtro_!$A$4:$AX$2299,25,FALSE),0) -> 0 | AB51: =IFERROR(VLOOKUP($A51,Filtro_!$A$4:$AX$2299,26,FALSE),0) -> 0 | AC51: =IFERROR(VLOOKUP($A51,Filtro_!$A$4:$AX$2299,27,FALSE),0) -> 0 | AD51: =IFERROR(VLOOKUP($A51,Filtro_!$A$4:$AX$2299,28,FALSE),0) -> 0 | AE51: =IFERROR(VLOOKUP($A51,Filtro_!$A$4:$AX$2299,29,FALSE),0) -> 0 | AF51: =IFERROR(VLOOKUP($A51,Filtro_!$A$4:$AX$2299,30,FALSE),0) -> 0 | AG51: =IFERROR(VLOOKUP($A51,Filtro_!$A$4:$AX$2299,31,FALSE),0) -> 0 | AH51: =IFERROR(VLOOKUP($A51,Filtro_!$A$4:$AX$2299,32,FALSE),0) -> 3 | AI51: =IFERROR(VLOOKUP($A51,Filtro_!$A$4:$AX$2299,33,FALSE),0) -> 1 | AJ51: =IFERROR(VLOOKUP($A51,Filtro_!$A$4:$AX$2299,34,FALSE),0) -> 3 | AK51: =IFERROR(VLOOKUP($A51,Filtro_!$A$4:$AX$2299,35,FALSE),0) -> 1 | AL51: =IFERROR(VLOOKUP($A51,Filtro_!$A$4:$AX$2299,36,FALSE),0) -> 1 | AM51: =IFERROR(VLOOKUP($A51,Filtro_!$A$4:$AX$2299,37,FALSE),0) -> 2 | AN51: =IFERROR(VLOOKUP($A51,Filtro_!$A$4:$AX$2299,38,FALSE),0) -> 6 | AO51: =IFERROR(VLOOKUP($A51,Filtro_!$A$4:$AX$2299,39,FALSE),0) -> 18 | CI51: 0
A52: 01030200B | C52: ENFERMERA /O | D52: =IFERROR(VLOOKUP($A52,Filtro_!$A$4:$AX$2299,2,FALSE),0) -> 862 | E52: =IFERROR(VLOOKUP($A52,Filtro_!$A$4:$AX$2299,3,FALSE),0) -> 336 | F52: =IFERROR(VLOOKUP($A52,Filtro_!$A$4:$AX$2299,4,FALSE),0) -> 526 | G52: =IFERROR(VLOOKUP($A52,Filtro_!$A$4:$AX$2299,5,FALSE),0) -> 0 | H52: =IFERROR(VLOOKUP($A52,Filtro_!$A$4:$AX$2299,6,FALSE),0) -> 0 | I52: =IFERROR(VLOOKUP($A52,Filtro_!$A$4:$AX$2299,7,FALSE),0) -> 0 | J52: =IFERROR(VLOOKUP($A52,Filtro_!$A$4:$AX$2299,8,FALSE),0) -> 0 | K52: =IFERROR(VLOOKUP($A52,Filtro_!$A$4:$AX$2299,9,FALSE),0) -> 0 | L52: =IFERROR(VLOOKUP($A52,Filtro_!$A$4:$AX$2299,10,FALSE),0) -> 0 | M52: =IFERROR(VLOOKUP($A52,Filtro_!$A$4:$AX$2299,11,FALSE),0) -> 0 | N52: =IFERROR(VLOOKUP($A52,Filtro_!$A$4:$AX$2299,12,FALSE),0) -> 0 | O52: =IFERROR(VLOOKUP($A52,Filtro_!$A$4:$AX$2299,13,FALSE),0) -> 0 | P52: =IFERROR(VLOOKUP($A52,Filtro_!$A$4:$AX$2299,14,FALSE),0) -> 0 | Q52: =IFERROR(VLOOKUP($A52,Filtro_!$A$4:$AX$2299,15,FALSE),0) -> 0 | R52: =IFERROR(VLOOKUP($A52,Filtro_!$A$4:$AX$2299,16,FALSE),0) -> 0 | S52: =IFERROR(VLOOKUP($A52,Filtro_!$A$4:$AX$2299,17,FALSE),0) -> 0 | T52: =IFERROR(VLOOKUP($A52,Filtro_!$A$4:$AX$2299,18,FALSE),0) -> 0 | U52: =IFERROR(VLOOKUP($A52,Filtro_!$A$4:$AX$2299,19,FALSE),0) -> 0 | V52: =IFERROR(VLOOKUP($A52,Filtro_!$A$4:$AX$2299,20,FALSE),0) -> 0 | W52: =IFERROR(VLOOKUP($A52,Filtro_!$A$4:$AX$2299,21,FALSE),0) -> 0 | X52: =IFERROR(VLOOKUP($A52,Filtro_!$A$4:$AX$2299,22,FALSE),0) -> 0 | Y52: =IFERROR(VLOOKUP($A52,Filtro_!$A$4:$AX$2299,23,FALSE),0) -> 0 | Z52: =IFERROR(VLOOKUP($A52,Filtro_!$A$4:$AX$2299,24,FALSE),0) -> 0 | AA52: =IFERROR(VLOOKUP($A52,Filtro_!$A$4:$AX$2299,25,FALSE),0) -> 0 | AB52: =IFERROR(VLOOKUP($A52,Filtro_!$A$4:$AX$2299,26,FALSE),0) -> 0 | AC52: =IFERROR(VLOOKUP($A52,Filtro_!$A$4:$AX$2299,27,FALSE),0) -> 0 | AD52: =IFERROR(VLOOKUP($A52,Filtro_!$A$4:$AX$2299,28,FALSE),0) -> 0 | AE52: =IFERROR(VLOOKUP($A52,Filtro_!$A$4:$AX$2299,29,FALSE),0) -> 0 | AF52: =IFERROR(VLOOKUP($A52,Filtro_!$A$4:$AX$2299,30,FALSE),0) -> 0 | AG52: =IFERROR(VLOOKUP($A52,Filtro_!$A$4:$AX$2299,31,FALSE),0) -> 105 | AH52: =IFERROR(VLOOKUP($A52,Filtro_!$A$4:$AX$2299,32,FALSE),0) -> 150 | AI52: =IFERROR(VLOOKUP($A52,Filtro_!$A$4:$AX$2299,33,FALSE),0) -> 98 | AJ52: =IFERROR(VLOOKUP($A52,Filtro_!$A$4:$AX$2299,34,FALSE),0) -> 155 | AK52: =IFERROR(VLOOKUP($A52,Filtro_!$A$4:$AX$2299,35,FALSE),0) -> 69 | AL52: =IFERROR(VLOOKUP($A52,Filtro_!$A$4:$AX$2299,36,FALSE),0) -> 119 | AM52: =IFERROR(VLOOKUP($A52,Filtro_!$A$4:$AX$2299,37,FALSE),0) -> 64 | AN52: =IFERROR(VLOOKUP($A52,Filtro_!$A$4:$AX$2299,38,FALSE),0) -> 102 | AO52: =IFERROR(VLOOKUP($A52,Filtro_!$A$4:$AX$2299,39,FALSE),0) -> 836 | CI52: 0
A53: 01030300C | B53: SEGUIMIENTO RIESGO DEPENDENCIA | C53: MÉDICO | D53: =IFERROR(VLOOKUP($A53,Filtro_!$A$4:$AX$2299,2,FALSE),0) -> 12 | E53: =IFERROR(VLOOKUP($A53,Filtro_!$A$4:$AX$2299,3,FALSE),0) -> 8 | F53: =IFERROR(VLOOKUP($A53,Filtro_!$A$4:$AX$2299,4,FALSE),0) -> 4 | G53: =IFERROR(VLOOKUP($A53,Filtro_!$A$4:$AX$2299,5,FALSE),0) -> 0 | H53: =IFERROR(VLOOKUP($A53,Filtro_!$A$4:$AX$2299,6,FALSE),0) -> 0 | I53: =IFERROR(VLOOKUP($A53,Filtro_!$A$4:$AX$2299,7,FALSE),0) -> 0 | J53: =IFERROR(VLOOKUP($A53,Filtro_!$A$4:$AX$2299,8,FALSE),0) -> 0 | K53: =IFERROR(VLOOKUP($A53,Filtro_!$A$4:$AX$2299,9,FALSE),0) -> 0 | L53: =IFERROR(VLOOKUP($A53,Filtro_!$A$4:$AX$2299,10,FALSE),0) -> 0 | M53: =IFERROR(VLOOKUP($A53,Filtro_!$A$4:$AX$2299,11,FALSE),0) -> 0 | N53: =IFERROR(VLOOKUP($A53,Filtro_!$A$4:$AX$2299,12,FALSE),0) -> 0 | O53: =IFERROR(VLOOKUP($A53,Filtro_!$A$4:$AX$2299,13,FALSE),0) -> 0 | P53: =IFERROR(VLOOKUP($A53,Filtro_!$A$4:$AX$2299,14,FALSE),0) -> 0 | Q53: =IFERROR(VLOOKUP($A53,Filtro_!$A$4:$AX$2299,15,FALSE),0) -> 0 | R53: =IFERROR(VLOOKUP($A53,Filtro_!$A$4:$AX$2299,16,FALSE),0) -> 0 | S53: =IFERROR(VLOOKUP($A53,Filtro_!$A$4:$AX$2299,17,FALSE),0) -> 0 | T53: =IFERROR(VLOOKUP($A53,Filtro_!$A$4:$AX$2299,18,FALSE),0) -> 0 | U53: =IFERROR(VLOOKUP($A53,Filtro_!$A$4:$AX$2299,19,FALSE),0) -> 0 | V53: =IFERROR(VLOOKUP($A53,Filtro_!$A$4:$AX$2299,20,FALSE),0) -> 0 | W53: =IFERROR(VLOOKUP($A53,Filtro_!$A$4:$AX$2299,21,FALSE),0) -> 0 | X53: =IFERROR(VLOOKUP($A53,Filtro_!$A$4:$AX$2299,22,FALSE),0) -> 0 | Y53: =IFERROR(VLOOKUP($A53,Filtro_!$A$4:$AX$2299,23,FALSE),0) -> 0 | Z53: =IFERROR(VLOOKUP($A53,Filtro_!$A$4:$AX$2299,24,FALSE),0) -> 0 | AA53: =IFERROR(VLOOKUP($A53,Filtro_!$A$4:$AX$2299,25,FALSE),0) -> 0 | AB53: =IFERROR(VLOOKUP($A53,Filtro_!$A$4:$AX$2299,26,FALSE),0) -> 0 | AC53: =IFERROR(VLOOKUP($A53,Filtro_!$A$4:$AX$2299,27,FALSE),0) -> 0 | AD53: =IFERROR(VLOOKUP($A53,Filtro_!$A$4:$AX$2299,28,FALSE),0) -> 0 | AE53: =IFERROR(VLOOKUP($A53,Filtro_!$A$4:$AX$2299,29,FALSE),0) -> 0 | AF53: =IFERROR(VLOOKUP($A53,Filtro_!$A$4:$AX$2299,30,FALSE),0) -> 0 | AG53: =IFERROR(VLOOKUP($A53,Filtro_!$A$4:$AX$2299,31,FALSE),0) -> 1 | AH53: =IFERROR(VLOOKUP($A53,Filtro_!$A$4:$AX$2299,32,FALSE),0) -> 1 | AI53: =IFERROR(VLOOKUP($A53,Filtro_!$A$4:$AX$2299,33,FALSE),0) -> 2 | AJ53: =IFERROR(VLOOKUP($A53,Filtro_!$A$4:$AX$2299,34,FALSE),0) -> 1 | AK53: =IFERROR(VLOOKUP($A53,Filtro_!$A$4:$AX$2299,35,FALSE),0) -> 2 | AL53: =IFERROR(VLOOKUP($A53,Filtro_!$A$4:$AX$2299,36,FALSE),0) -> 1 | AM53: =IFERROR(VLOOKUP($A53,Filtro_!$A$4:$AX$2299,37,FALSE),0) -> 3 | AN53: =IFERROR(VLOOKUP($A53,Filtro_!$A$4:$AX$2299,38,FALSE),0) -> 1 | AO53: =IFERROR(VLOOKUP($A53,Filtro_!$A$4:$AX$2299,39,FALSE),0) -> 12 | CI53: 0
A54: 01030400D | C54: ENFERMERA /O | D54: =IFERROR(VLOOKUP($A54,Filtro_!$A$4:$AX$2299,2,FALSE),0) -> 564 | E54: =IFERROR(VLOOKUP($A54,Filtro_!$A$4:$AX$2299,3,FALSE),0) -> 184 | F54: =IFERROR(VLOOKUP($A54,Filtro_!$A$4:$AX$2299,4,FALSE),0) -> 380 | G54: =IFERROR(VLOOKUP($A54,Filtro_!$A$4:$AX$2299,5,FALSE),0) -> 0 | H54: =IFERROR(VLOOKUP($A54,Filtro_!$A$4:$AX$2299,6,FALSE),0) -> 0 | I54: =IFERROR(VLOOKUP($A54,Filtro_!$A$4:$AX$2299,7,FALSE),0) -> 0 | J54: =IFERROR(VLOOKUP($A54,Filtro_!$A$4:$AX$2299,8,FALSE),0) -> 0 | K54: =IFERROR(VLOOKUP($A54,Filtro_!$A$4:$AX$2299,9,FALSE),0) -> 0 | L54: =IFERROR(VLOOKUP($A54,Filtro_!$A$4:$AX$2299,10,FALSE),0) -> 0 | M54: =IFERROR(VLOOKUP($A54,Filtro_!$A$4:$AX$2299,11,FALSE),0) -> 0 | N54: =IFERROR(VLOOKUP($A54,Filtro_!$A$4:$AX$2299,12,FALSE),0) -> 0 | O54: =IFERROR(VLOOKUP($A54,Filtro_!$A$4:$AX$2299,13,FALSE),0) -> 0 | P54: =IFERROR(VLOOKUP($A54,Filtro_!$A$4:$AX$2299,14,FALSE),0) -> 0 | Q54: =IFERROR(VLOOKUP($A54,Filtro_!$A$4:$AX$2299,15,FALSE),0) -> 0 | R54: =IFERROR(VLOOKUP($A54,Filtro_!$A$4:$AX$2299,16,FALSE),0) -> 0 | S54: =IFERROR(VLOOKUP($A54,Filtro_!$A$4:$AX$2299,17,FALSE),0) -> 0 | T54: =IFERROR(VLOOKUP($A54,Filtro_!$A$4:$AX$2299,18,FALSE),0) -> 0 | U54: =IFERROR(VLOOKUP($A54,Filtro_!$A$4:$AX$2299,19,FALSE),0) -> 0 | V54: =IFERROR(VLOOKUP($A54,Filtro_!$A$4:$AX$2299,20,FALSE),0) -> 0 | W54: =IFERROR(VLOOKUP($A54,Filtro_!$A$4:$AX$2299,21,FALSE),0) -> 0 | X54: =IFERROR(VLOOKUP($A54,Filtro_!$A$4:$AX$2299,22,FALSE),0) -> 0 | Y54: =IFERROR(VLOOKUP($A54,Filtro_!$A$4:$AX$2299,23,FALSE),0) -> 0 | Z54: =IFERROR(VLOOKUP($A54,Filtro_!$A$4:$AX$2299,24,FALSE),0) -> 0 | AA54: =IFERROR(VLOOKUP($A54,Filtro_!$A$4:$AX$2299,25,FALSE),0) -> 0 | AB54: =IFERROR(VLOOKUP($A54,Filtro_!$A$4:$AX$2299,26,FALSE),0) -> 0 | AC54: =IFERROR(VLOOKUP($A54,Filtro_!$A$4:$AX$2299,27,FALSE),0) -> 0 | AD54: =IFERROR(VLOOKUP($A54,Filtro_!$A$4:$AX$2299,28,FALSE),0) -> 0 | AE54: =IFERROR(VLOOKUP($A54,Filtro_!$A$4:$AX$2299,29,FALSE),0) -> 0 | AF54: =IFERROR(VLOOKUP($A54,Filtro_!$A$4:$AX$2299,30,FALSE),0) -> 0 | AG54: =IFERROR(VLOOKUP($A54,Filtro_!$A$4:$AX$2299,31,FALSE),0) -> 20 | AH54: =IFERROR(VLOOKUP($A54,Filtro_!$A$4:$AX$2299,32,FALSE),0) -> 45 | AI54: =IFERROR(VLOOKUP($A54,Filtro_!$A$4:$AX$2299,33,FALSE),0) -> 26 | AJ54: =IFERROR(VLOOKUP($A54,Filtro_!$A$4:$AX$2299,34,FALSE),0) -> 73 | AK54: =IFERROR(VLOOKUP($A54,Filtro_!$A$4:$AX$2299,35,FALSE),0) -> 44 | AL54: =IFERROR(VLOOKUP($A54,Filtro_!$A$4:$AX$2299,36,FALSE),0) -> 78 | AM54: =IFERROR(VLOOKUP($A54,Filtro_!$A$4:$AX$2299,37,FALSE),0) -> 94 | AN54: =IFERROR(VLOOKUP($A54,Filtro_!$A$4:$AX$2299,38,FALSE),0) -> 184 | AO54: =IFERROR(VLOOKUP($A54,Filtro_!$A$4:$AX$2299,39,FALSE),0) -> 557 | CI54: 0
A55: 01200010 | B55: DE INFECCIÓN TRANSMISIÓN SEXUAL | C55: MÉDICO | D55: =IFERROR(VLOOKUP($A55,Filtro_!$A$4:$AX$2299,2,FALSE),0) -> 157 | E55: =IFERROR(VLOOKUP($A55,Filtro_!$A$4:$AX$2299,3,FALSE),0) -> 46 | F55: =IFERROR(VLOOKUP($A55,Filtro_!$A$4:$AX$2299,4,FALSE),0) -> 111 | G55: =IFERROR(VLOOKUP($A55,Filtro_!$A$4:$AX$2299,5,FALSE),0) -> 0 | H55: =IFERROR(VLOOKUP($A55,Filtro_!$A$4:$AX$2299,6,FALSE),0) -> 1 | I55: =IFERROR(VLOOKUP($A55,Filtro_!$A$4:$AX$2299,7,FALSE),0) -> 0 | J55: =IFERROR(VLOOKUP($A55,Filtro_!$A$4:$AX$2299,8,FALSE),0) -> 0 | K55: =IFERROR(VLOOKUP($A55,Filtro_!$A$4:$AX$2299,9,FALSE),0) -> 0 | L55: =IFERROR(VLOOKUP($A55,Filtro_!$A$4:$AX$2299,10,FALSE),0) -> 0 | M55: =IFERROR(VLOOKUP($A55,Filtro_!$A$4:$AX$2299,11,FALSE),0) -> 0 | N55: =IFERROR(VLOOKUP($A55,Filtro_!$A$4:$AX$2299,12,FALSE),0) -> 0 | O55: =IFERROR(VLOOKUP($A55,Filtro_!$A$4:$AX$2299,13,FALSE),0) -> 2 | P55: =IFERROR(VLOOKUP($A55,Filtro_!$A$4:$AX$2299,14,FALSE),0) -> 5 | Q55: =IFERROR(VLOOKUP($A55,Filtro_!$A$4:$AX$2299,15,FALSE),0) -> 3 | R55: =IFERROR(VLOOKUP($A55,Filtro_!$A$4:$AX$2299,16,FALSE),0) -> 2 | S55: =IFERROR(VLOOKUP($A55,Filtro_!$A$4:$AX$2299,17,FALSE),0) -> 0 | T55: =IFERROR(VLOOKUP($A55,Filtro_!$A$4:$AX$2299,18,FALSE),0) -> 0 | U55: =IFERROR(VLOOKUP($A55,Filtro_!$A$4:$AX$2299,19,FALSE),0) -> 0 | V55: =IFERROR(VLOOKUP($A55,Filtro_!$A$4:$AX$2299,20,FALSE),0) -> 4 | W55: =IFERROR(VLOOKUP($A55,Filtro_!$A$4:$AX$2299,21,FALSE),0) -> 1 | X55: =IFERROR(VLOOKUP($A55,Filtro_!$A$4:$AX$2299,22,FALSE),0) -> 0 | Y55: =IFERROR(VLOOKUP($A55,Filtro_!$A$4:$AX$2299,23,FALSE),0) -> 2 | Z55: =IFERROR(VLOOKUP($A55,Filtro_!$A$4:$AX$2299,24,FALSE),0) -> 5 | AA55: =IFERROR(VLOOKUP($A55,Filtro_!$A$4:$AX$2299,25,FALSE),0) -> 1 | AB55: =IFERROR(VLOOKUP($A55,Filtro_!$A$4:$AX$2299,26,FALSE),0) -> 3 | AC55: =IFERROR(VLOOKUP($A55,Filtro_!$A$4:$AX$2299,27,FALSE),0) -> 2 | AD55: =IFERROR(VLOOKUP($A55,Filtro_!$A$4:$AX$2299,28,FALSE),0) -> 3 | AE55: =IFERROR(VLOOKUP($A55,Filtro_!$A$4:$AX$2299,29,FALSE),0) -> 3 | AF55: =IFERROR(VLOOKUP($A55,Filtro_!$A$4:$AX$2299,30,FALSE),0) -> 3 | AG55: =IFERROR(VLOOKUP($A55,Filtro_!$A$4:$AX$2299,31,FALSE),0) -> 7 | AH55: =IFERROR(VLOOKUP($A55,Filtro_!$A$4:$AX$2299,32,FALSE),0) -> 6 | AI55: =IFERROR(VLOOKUP($A55,Filtro_!$A$4:$AX$2299,33,FALSE),0) -> 7 | AJ55: =IFERROR(VLOOKUP($A55,Filtro_!$A$4:$AX$2299,34,FALSE),0) -> 7 | AK55: =IFERROR(VLOOKUP($A55,Filtro_!$A$4:$AX$2299,35,FALSE),0) -> 3 | AL55: =IFERROR(VLOOKUP($A55,Filtro_!$A$4:$AX$2299,36,FALSE),0) -> 11 | AM55: =IFERROR(VLOOKUP($A55,Filtro_!$A$4:$AX$2299,37,FALSE),0) -> 15 | AN55: =IFERROR(VLOOKUP($A55,Filtro_!$A$4:$AX$2299,38,FALSE),0) -> 61 | AO55: =IFERROR(VLOOKUP($A55,Filtro_!$A$4:$AX$2299,39,FALSE),0) -> 27 | CI55: 0
A56: 01200020 | C56: ENFERMERA /O | D56: =IFERROR(VLOOKUP($A56,Filtro_!$A$4:$AX$2299,2,FALSE),0) -> 5 | E56: =IFERROR(VLOOKUP($A56,Filtro_!$A$4:$AX$2299,3,FALSE),0) -> 2 | F56: =IFERROR(VLOOKUP($A56,Filtro_!$A$4:$AX$2299,4,FALSE),0) -> 3 | G56: =IFERROR(VLOOKUP($A56,Filtro_!$A$4:$AX$2299,5,FALSE),0) -> 0 | H56: =IFERROR(VLOOKUP($A56,Filtro_!$A$4:$AX$2299,6,FALSE),0) -> 0 | I56: =IFERROR(VLOOKUP($A56,Filtro_!$A$4:$AX$2299,7,FALSE),0) -> 0 | J56: =IFERROR(VLOOKUP($A56,Filtro_!$A$4:$AX$2299,8,FALSE),0) -> 0 | K56: =IFERROR(VLOOKUP($A56,Filtro_!$A$4:$AX$2299,9,FALSE),0) -> 0 | L56: =IFERROR(VLOOKUP($A56,Filtro_!$A$4:$AX$2299,10,FALSE),0) -> 0 | M56: =IFERROR(VLOOKUP($A56,Filtro_!$A$4:$AX$2299,11,FALSE),0) -> 0 | N56: =IFERROR(VLOOKUP($A56,Filtro_!$A$4:$AX$2299,12,FALSE),0) -> 0 | O56: =IFERROR(VLOOKUP($A56,Filtro_!$A$4:$AX$2299,13,FALSE),0) -> 0 | P56: =IFERROR(VLOOKUP($A56,Filtro_!$A$4:$AX$2299,14,FALSE),0) -> 0 | Q56: =IFERROR(VLOOKUP($A56,Filtro_!$A$4:$AX$2299,15,FALSE),0) -> 0 | R56: =IFERROR(VLOOKUP($A56,Filtro_!$A$4:$AX$2299,16,FALSE),0) -> 0 | S56: =IFERROR(VLOOKUP($A56,Filtro_!$A$4:$AX$2299,17,FALSE),0) -> 0 | T56: =IFERROR(VLOOKUP($A56,Filtro_!$A$4:$AX$2299,18,FALSE),0) -> 0 | U56: =IFERROR(VLOOKUP($A56,Filtro_!$A$4:$AX$2299,19,FALSE),0) -> 0 | V56: =IFERROR(VLOOKUP($A56,Filtro_!$A$4:$AX$2299,20,FALSE),0) -> 0 | W56: =IFERROR(VLOOKUP($A56,Filtro_!$A$4:$AX$2299,21,FALSE),0) -> 0 | X56: =IFERROR(VLOOKUP($A56,Filtro_!$A$4:$AX$2299,22,FALSE),0) -> 0 | Y56: =IFERROR(VLOOKUP($A56,Filtro_!$A$4:$AX$2299,23,FALSE),0) -> 0 | Z56: =IFERROR(VLOOKUP($A56,Filtro_!$A$4:$AX$2299,24,FALSE),0) -> 0 | AA56: =IFERROR(VLOOKUP($A56,Filtro_!$A$4:$AX$2299,25,FALSE),0) -> 0 | AB56: =IFERROR(VLOOKUP($A56,Filtro_!$A$4:$AX$2299,26,FALSE),0) -> 0 | AC56: =IFERROR(VLOOKUP($A56,Filtro_!$A$4:$AX$2299,27,FALSE),0) -> 0 | AD56: =IFERROR(VLOOKUP($A56,Filtro_!$A$4:$AX$2299,28,FALSE),0) -> 0 | AE56: =IFERROR(VLOOKUP($A56,Filtro_!$A$4:$AX$2299,29,FALSE),0) -> 0 | AF56: =IFERROR(VLOOKUP($A56,Filtro_!$A$4:$AX$2299,30,FALSE),0) -> 0 | AG56: =IFERROR(VLOOKUP($A56,Filtro_!$A$4:$AX$2299,31,FALSE),0) -> 1 | AH56: =IFERROR(VLOOKUP($A56,Filtro_!$A$4:$AX$2299,32,FALSE),0) -> 0 | AI56: =IFERROR(VLOOKUP($A56,Filtro_!$A$4:$AX$2299,33,FALSE),0) -> 0 | AJ56: =IFERROR(VLOOKUP($A56,Filtro_!$A$4:$AX$2299,34,FALSE),0) -> 2 | AK56: =IFERROR(VLOOKUP($A56,Filtro_!$A$4:$AX$2299,35,FALSE),0) -> 1 | AL56: =IFERROR(VLOOKUP($A56,Filtro_!$A$4:$AX$2299,36,FALSE),0) -> 0 | AM56: =IFERROR(VLOOKUP($A56,Filtro_!$A$4:$AX$2299,37,FALSE),0) -> 0 | AN56: =IFERROR(VLOOKUP($A56,Filtro_!$A$4:$AX$2299,38,FALSE),0) -> 1 | AO56: =IFERROR(VLOOKUP($A56,Filtro_!$A$4:$AX$2299,39,FALSE),0) -> 5 | CI56: 0
A57: 01200030 | C57: MATRONA /ÓN | D57: =IFERROR(VLOOKUP($A57,Filtro_!$A$4:$AX$2299,2,FALSE),0) -> 205 | E57: =IFERROR(VLOOKUP($A57,Filtro_!$A$4:$AX$2299,3,FALSE),0) -> 33 | F57: =IFERROR(VLOOKUP($A57,Filtro_!$A$4:$AX$2299,4,FALSE),0) -> 172 | G57: =IFERROR(VLOOKUP($A57,Filtro_!$A$4:$AX$2299,5,FALSE),0) -> 0 | H57: =IFERROR(VLOOKUP($A57,Filtro_!$A$4:$AX$2299,6,FALSE),0) -> 0 | I57: =IFERROR(VLOOKUP($A57,Filtro_!$A$4:$AX$2299,7,FALSE),0) -> 0 | J57: =IFERROR(VLOOKUP($A57,Filtro_!$A$4:$AX$2299,8,FALSE),0) -> 0 | K57: =IFERROR(VLOOKUP($A57,Filtro_!$A$4:$AX$2299,9,FALSE),0) -> 0 | L57: =IFERROR(VLOOKUP($A57,Filtro_!$A$4:$AX$2299,10,FALSE),0) -> 1 | M57: =IFERROR(VLOOKUP($A57,Filtro_!$A$4:$AX$2299,11,FALSE),0) -> 5 | N57: =IFERROR(VLOOKUP($A57,Filtro_!$A$4:$AX$2299,12,FALSE),0) -> 19 | O57: =IFERROR(VLOOKUP($A57,Filtro_!$A$4:$AX$2299,13,FALSE),0) -> 6 | P57: =IFERROR(VLOOKUP($A57,Filtro_!$A$4:$AX$2299,14,FALSE),0) -> 34 | Q57: =IFERROR(VLOOKUP($A57,Filtro_!$A$4:$AX$2299,15,FALSE),0) -> 5 | R57: =IFERROR(VLOOKUP($A57,Filtro_!$A$4:$AX$2299,16,FALSE),0) -> 28 | S57: =IFERROR(VLOOKUP($A57,Filtro_!$A$4:$AX$2299,17,FALSE),0) -> 5 | T57: =IFERROR(VLOOKUP($A57,Filtro_!$A$4:$AX$2299,18,FALSE),0) -> 32 | U57: =IFERROR(VLOOKUP($A57,Filtro_!$A$4:$AX$2299,19,FALSE),0) -> 4 | V57: =IFERROR(VLOOKUP($A57,Filtro_!$A$4:$AX$2299,20,FALSE),0) -> 14 | W57: =IFERROR(VLOOKUP($A57,Filtro_!$A$4:$AX$2299,21,FALSE),0) -> 0 | X57: =IFERROR(VLOOKUP($A57,Filtro_!$A$4:$AX$2299,22,FALSE),0) -> 11 | Y57: =IFERROR(VLOOKUP($A57,Filtro_!$A$4:$AX$2299,23,FALSE),0) -> 1 | Z57: =IFERROR(VLOOKUP($A57,Filtro_!$A$4:$AX$2299,24,FALSE),0) -> 13 | AA57: =IFERROR(VLOOKUP($A57,Filtro_!$A$4:$AX$2299,25,FALSE),0) -> 6 | AB57: =IFERROR(VLOOKUP($A57,Filtro_!$A$4:$AX$2299,26,FALSE),0) -> 14 | AC57: =IFERROR(VLOOKUP($A57,Filtro_!$A$4:$AX$2299,27,FALSE),0) -> 1 | AD57: =IFERROR(VLOOKUP($A57,Filtro_!$A$4:$AX$2299,28,FALSE),0) -> 4 | AE57: =IFERROR(VLOOKUP($A57,Filtro_!$A$4:$AX$2299,29,FALSE),0) -> 0 | AF57: =IFERROR(VLOOKUP($A57,Filtro_!$A$4:$AX$2299,30,FALSE),0) -> 0 | AG57: =IFERROR(VLOOKUP($A57,Filtro_!$A$4:$AX$2299,31,FALSE),0) -> 0 | AH57: =IFERROR(VLOOKUP($A57,Filtro_!$A$4:$AX$2299,32,FALSE),0) -> 1 | AI57: =IFERROR(VLOOKUP($A57,Filtro_!$A$4:$AX$2299,33,FALSE),0) -> 0 | AJ57: =IFERROR(VLOOKUP($A57,Filtro_!$A$4:$AX$2299,34,FALSE),0) -> 0 | AK57: =IFERROR(VLOOKUP($A57,Filtro_!$A$4:$AX$2299,35,FALSE),0) -> 0 | AL57: =IFERROR(VLOOKUP($A57,Filtro_!$A$4:$AX$2299,36,FALSE),0) -> 0 | AM57: =IFERROR(VLOOKUP($A57,Filtro_!$A$4:$AX$2299,37,FALSE),0) -> 0 | AN57: =IFERROR(VLOOKUP($A57,Filtro_!$A$4:$AX$2299,38,FALSE),0) -> 1 | AO57: =IFERROR(VLOOKUP($A57,Filtro_!$A$4:$AX$2299,39,FALSE),0) -> 201 | CI57: 0
A58: 03030140 | B58: OTROS PROBLEMAS DE SALUD | C58: MÉDICO | D58: =IFERROR(VLOOKUP($A58,Filtro_!$A$4:$AX$2299,2,FALSE),0) -> 29217 | E58: =IFERROR(VLOOKUP($A58,Filtro_!$A$4:$AX$2299,3,FALSE),0) -> 8993 | F58: =IFERROR(VLOOKUP($A58,Filtro_!$A$4:$AX$2299,4,FALSE),0) -> 20224 | G58: =IFERROR(VLOOKUP($A58,Filtro_!$A$4:$AX$2299,5,FALSE),0) -> 78 | H58: =IFERROR(VLOOKUP($A58,Filtro_!$A$4:$AX$2299,6,FALSE),0) -> 80 | I58: =IFERROR(VLOOKUP($A58,Filtro_!$A$4:$AX$2299,7,FALSE),0) -> 119 | J58: =IFERROR(VLOOKUP($A58,Filtro_!$A$4:$AX$2299,8,FALSE),0) -> 91 | K58: =IFERROR(VLOOKUP($A58,Filtro_!$A$4:$AX$2299,9,FALSE),0) -> 149 | L58: =IFERROR(VLOOKUP($A58,Filtro_!$A$4:$AX$2299,10,FALSE),0) -> 114 | M58: =IFERROR(VLOOKUP($A58,Filtro_!$A$4:$AX$2299,11,FALSE),0) -> 183 | N58: =IFERROR(VLOOKUP($A58,Filtro_!$A$4:$AX$2299,12,FALSE),0) -> 255 | O58: =IFERROR(VLOOKUP($A58,Filtro_!$A$4:$AX$2299,13,FALSE),0) -> 141 | P58: =IFERROR(VLOOKUP($A58,Filtro_!$A$4:$AX$2299,14,FALSE),0) -> 308 | Q58: =IFERROR(VLOOKUP($A58,Filtro_!$A$4:$AX$2299,15,FALSE),0) -> 154 | R58: =IFERROR(VLOOKUP($A58,Filtro_!$A$4:$AX$2299,16,FALSE),0) -> 432 | S58: =IFERROR(VLOOKUP($A58,Filtro_!$A$4:$AX$2299,17,FALSE),0) -> 142 | T58: =IFERROR(VLOOKUP($A58,Filtro_!$A$4:$AX$2299,18,FALSE),0) -> 664 | U58: =IFERROR(VLOOKUP($A58,Filtro_!$A$4:$AX$2299,19,FALSE),0) -> 174 | V58: =IFERROR(VLOOKUP($A58,Filtro_!$A$4:$AX$2299,20,FALSE),0) -> 714 | W58: =IFERROR(VLOOKUP($A58,Filtro_!$A$4:$AX$2299,21,FALSE),0) -> 210 | X58: =IFERROR(VLOOKUP($A58,Filtro_!$A$4:$AX$2299,22,FALSE),0) -> 938 | Y58: =IFERROR(VLOOKUP($A58,Filtro_!$A$4:$AX$2299,23,FALSE),0) -> 257 | Z58: =IFERROR(VLOOKUP($A58,Filtro_!$A$4:$AX$2299,24,FALSE),0) -> 1279 | AA58: =IFERROR(VLOOKUP($A58,Filtro_!$A$4:$AX$2299,25,FALSE),0) -> 391 | AB58: =IFERROR(VLOOKUP($A58,Filtro_!$A$4:$AX$2299,26,FALSE),0) -> 1683 | AC58: =IFERROR(VLOOKUP($A58,Filtro_!$A$4:$AX$2299,27,FALSE),0) -> 682 | AD58: =IFERROR(VLOOKUP($A58,Filtro_!$A$4:$AX$2299,28,FALSE),0) -> 2372 | AE58: =IFERROR(VLOOKUP($A58,Filtro_!$A$4:$AX$2299,29,FALSE),0) -> 1054 | AF58: =IFERROR(VLOOKUP($A58,Filtro_!$A$4:$AX$2299,30,FALSE),0) -> 2583 | AG58: =IFERROR(VLOOKUP($A58,Filtro_!$A$4:$AX$2299,31,FALSE),0) -> 1255 | AH58: =IFERROR(VLOOKUP($A58,Filtro_!$A$4:$AX$2299,32,FALSE),0) -> 2536 | AI58: =IFERROR(VLOOKUP($A58,Filtro_!$A$4:$AX$2299,33,FALSE),0) -> 1255 | AJ58: =IFERROR(VLOOKUP($A58,Filtro_!$A$4:$AX$2299,34,FALSE),0) -> 2206 | AK58: =IFERROR(VLOOKUP($A58,Filtro_!$A$4:$AX$2299,35,FALSE),0) -> 1077 | AL58: =IFERROR(VLOOKUP($A58,Filtro_!$A$4:$AX$2299,36,FALSE),0) -> 1728 | AM58: =IFERROR(VLOOKUP($A58,Filtro_!$A$4:$AX$2299,37,FALSE),0) -> 1672 | AN58: =IFERROR(VLOOKUP($A58,Filtro_!$A$4:$AX$2299,38,FALSE),0) -> 2241 | AO58: =IFERROR(VLOOKUP($A58,Filtro_!$A$4:$AX$2299,39,FALSE),0) -> 28389 | CI58: 0
A59: 03030150 | C59: ENFERMERA /O | D59: =IFERROR(VLOOKUP($A59,Filtro_!$A$4:$AX$2299,2,FALSE),0) -> 2474 | E59: =IFERROR(VLOOKUP($A59,Filtro_!$A$4:$AX$2299,3,FALSE),0) -> 1083 | F59: =IFERROR(VLOOKUP($A59,Filtro_!$A$4:$AX$2299,4,FALSE),0) -> 1391 | G59: =IFERROR(VLOOKUP($A59,Filtro_!$A$4:$AX$2299,5,FALSE),0) -> 73 | H59: =IFERROR(VLOOKUP($A59,Filtro_!$A$4:$AX$2299,6,FALSE),0) -> 66 | I59: =IFERROR(VLOOKUP($A59,Filtro_!$A$4:$AX$2299,7,FALSE),0) -> 35 | J59: =IFERROR(VLOOKUP($A59,Filtro_!$A$4:$AX$2299,8,FALSE),0) -> 43 | K59: =IFERROR(VLOOKUP($A59,Filtro_!$A$4:$AX$2299,9,FALSE),0) -> 9 | L59: =IFERROR(VLOOKUP($A59,Filtro_!$A$4:$AX$2299,10,FALSE),0) -> 15 | M59: =IFERROR(VLOOKUP($A59,Filtro_!$A$4:$AX$2299,11,FALSE),0) -> 3 | N59: =IFERROR(VLOOKUP($A59,Filtro_!$A$4:$AX$2299,12,FALSE),0) -> 13 | O59: =IFERROR(VLOOKUP($A59,Filtro_!$A$4:$AX$2299,13,FALSE),0) -> 16 | P59: =IFERROR(VLOOKUP($A59,Filtro_!$A$4:$AX$2299,14,FALSE),0) -> 30 | Q59: =IFERROR(VLOOKUP($A59,Filtro_!$A$4:$AX$2299,15,FALSE),0) -> 11 | R59: =IFERROR(VLOOKUP($A59,Filtro_!$A$4:$AX$2299,16,FALSE),0) -> 23 | S59: =IFERROR(VLOOKUP($A59,Filtro_!$A$4:$AX$2299,17,FALSE),0) -> 12 | T59: =IFERROR(VLOOKUP($A59,Filtro_!$A$4:$AX$2299,18,FALSE),0) -> 34 | U59: =IFERROR(VLOOKUP($A59,Filtro_!$A$4:$AX$2299,19,FALSE),0) -> 2 | V59: =IFERROR(VLOOKUP($A59,Filtro_!$A$4:$AX$2299,20,FALSE),0) -> 48 | W59: =IFERROR(VLOOKUP($A59,Filtro_!$A$4:$AX$2299,21,FALSE),0) -> 28 | X59: =IFERROR(VLOOKUP($A59,Filtro_!$A$4:$AX$2299,22,FALSE),0) -> 37 | Y59: =IFERROR(VLOOKUP($A59,Filtro_!$A$4:$AX$2299,23,FALSE),0) -> 45 | Z59: =IFERROR(VLOOKUP($A59,Filtro_!$A$4:$AX$2299,24,FALSE),0) -> 75 | AA59: =IFERROR(VLOOKUP($A59,Filtro_!$A$4:$AX$2299,25,FALSE),0) -> 82 | AB59: =IFERROR(VLOOKUP($A59,Filtro_!$A$4:$AX$2299,26,FALSE),0) -> 87 | AC59: =IFERROR(VLOOKUP($A59,Filtro_!$A$4:$AX$2299,27,FALSE),0) -> 120 | AD59: =IFERROR(VLOOKUP($A59,Filtro_!$A$4:$AX$2299,28,FALSE),0) -> 136 | AE59: =IFERROR(VLOOKUP($A59,Filtro_!$A$4:$AX$2299,29,FALSE),0) -> 123 | AF59: =IFERROR(VLOOKUP($A59,Filtro_!$A$4:$AX$2299,30,FALSE),0) -> 177 | AG59: =IFERROR(VLOOKUP($A59,Filtro_!$A$4:$AX$2299,31,FALSE),0) -> 116 | AH59: =IFERROR(VLOOKUP($A59,Filtro_!$A$4:$AX$2299,32,FALSE),0) -> 215 | AI59: =IFERROR(VLOOKUP($A59,Filtro_!$A$4:$AX$2299,33,FALSE),0) -> 195 | AJ59: =IFERROR(VLOOKUP($A59,Filtro_!$A$4:$AX$2299,34,FALSE),0) -> 154 | AK59: =IFERROR(VLOOKUP($A59,Filtro_!$A$4:$AX$2299,35,FALSE),0) -> 101 | AL59: =IFERROR(VLOOKUP($A59,Filtro_!$A$4:$AX$2299,36,FALSE),0) -> 71 | AM59: =IFERROR(VLOOKUP($A59,Filtro_!$A$4:$AX$2299,37,FALSE),0) -> 112 | AN59: =IFERROR(VLOOKUP($A59,Filtro_!$A$4:$AX$2299,38,FALSE),0) -> 167 | AO59: =IFERROR(VLOOKUP($A59,Filtro_!$A$4:$AX$2299,39,FALSE),0) -> 2420 | CI59: 0
A60: 03030170 | C60: MATRONA /ÓN | D60: =IFERROR(VLOOKUP($A60,Filtro_!$A$4:$AX$2299,2,FALSE),0) -> 84 | E60: =IFERROR(VLOOKUP($A60,Filtro_!$A$4:$AX$2299,3,FALSE),0) -> 11 | F60: =IFERROR(VLOOKUP($A60,Filtro_!$A$4:$AX$2299,4,FALSE),0) -> 73 | G60: =IFERROR(VLOOKUP($A60,Filtro_!$A$4:$AX$2299,5,FALSE),0) -> 1 | H60: =IFERROR(VLOOKUP($A60,Filtro_!$A$4:$AX$2299,6,FALSE),0) -> 2 | I60: =IFERROR(VLOOKUP($A60,Filtro_!$A$4:$AX$2299,7,FALSE),0) -> 0 | J60: =IFERROR(VLOOKUP($A60,Filtro_!$A$4:$AX$2299,8,FALSE),0) -> 0 | K60: =IFERROR(VLOOKUP($A60,Filtro_!$A$4:$AX$2299,9,FALSE),0) -> 1 | L60: =IFERROR(VLOOKUP($A60,Filtro_!$A$4:$AX$2299,10,FALSE),0) -> 5 | M60: =IFERROR(VLOOKUP($A60,Filtro_!$A$4:$AX$2299,11,FALSE),0) -> 8 | N60: =IFERROR(VLOOKUP($A60,Filtro_!$A$4:$AX$2299,12,FALSE),0) -> 43 | O60: =IFERROR(VLOOKUP($A60,Filtro_!$A$4:$AX$2299,13,FALSE),0) -> 0 | P60: =IFERROR(VLOOKUP($A60,Filtro_!$A$4:$AX$2299,14,FALSE),0) -> 1 | Q60: =IFERROR(VLOOKUP($A60,Filtro_!$A$4:$AX$2299,15,FALSE),0) -> 0 | R60: =IFERROR(VLOOKUP($A60,Filtro_!$A$4:$AX$2299,16,FALSE),0) -> 2 | S60: =IFERROR(VLOOKUP($A60,Filtro_!$A$4:$AX$2299,17,FALSE),0) -> 1 | T60: =IFERROR(VLOOKUP($A60,Filtro_!$A$4:$AX$2299,18,FALSE),0) -> 1 | U60: =IFERROR(VLOOKUP($A60,Filtro_!$A$4:$AX$2299,19,FALSE),0) -> 0 | V60: =IFERROR(VLOOKUP($A60,Filtro_!$A$4:$AX$2299,20,FALSE),0) -> 4 | W60: =IFERROR(VLOOKUP($A60,Filtro_!$A$4:$AX$2299,21,FALSE),0) -> 0 | X60: =IFERROR(VLOOKUP($A60,Filtro_!$A$4:$AX$2299,22,FALSE),0) -> 3 | Y60: =IFERROR(VLOOKUP($A60,Filtro_!$A$4:$AX$2299,23,FALSE),0) -> 0 | Z60: =IFERROR(VLOOKUP($A60,Filtro_!$A$4:$AX$2299,24,FALSE),0) -> 4 | AA60: =IFERROR(VLOOKUP($A60,Filtro_!$A$4:$AX$2299,25,FALSE),0) -> 0 | AB60: =IFERROR(VLOOKUP($A60,Filtro_!$A$4:$AX$2299,26,FALSE),0) -> 3 | AC60: =IFERROR(VLOOKUP($A60,Filtro_!$A$4:$AX$2299,27,FALSE),0) -> 0 | AD60: =IFERROR(VLOOKUP($A60,Filtro_!$A$4:$AX$2299,28,FALSE),0) -> 3 | AE60: =IFERROR(VLOOKUP($A60,Filtro_!$A$4:$AX$2299,29,FALSE),0) -> 0 | AF60: =IFERROR(VLOOKUP($A60,Filtro_!$A$4:$AX$2299,30,FALSE),0) -> 1 | AG60: =IFERROR(VLOOKUP($A60,Filtro_!$A$4:$AX$2299,31,FALSE),0) -> 0 | AH60: =IFERROR(VLOOKUP($A60,Filtro_!$A$4:$AX$2299,32,FALSE),0) -> 0 | AI60: =IFERROR(VLOOKUP($A60,Filtro_!$A$4:$AX$2299,33,FALSE),0) -> 0 | AJ60: =IFERROR(VLOOKUP($A60,Filtro_!$A$4:$AX$2299,34,FALSE),0) -> 1 | AK60: =IFERROR(VLOOKUP($A60,Filtro_!$A$4:$AX$2299,35,FALSE),0) -> 0 | AL60: =IFERROR(VLOOKUP($A60,Filtro_!$A$4:$AX$2299,36,FALSE),0) -> 0 | AM60: =IFERROR(VLOOKUP($A60,Filtro_!$A$4:$AX$2299,37,FALSE),0) -> 0 | AN60: =IFERROR(VLOOKUP($A60,Filtro_!$A$4:$AX$2299,38,FALSE),0) -> 0 | AO60: =IFERROR(VLOOKUP($A60,Filtro_!$A$4:$AX$2299,39,FALSE),0) -> 84 | CI60: 0
A61: 03030160 | C61: NUTRICIONISTA | D61: =IFERROR(VLOOKUP($A61,Filtro_!$A$4:$AX$2299,2,FALSE),0) -> 3592 | E61: =IFERROR(VLOOKUP($A61,Filtro_!$A$4:$AX$2299,3,FALSE),0) -> 772 | F61: =IFERROR(VLOOKUP($A61,Filtro_!$A$4:$AX$2299,4,FALSE),0) -> 2822 | G61: =IFERROR(VLOOKUP($A61,Filtro_!$A$4:$AX$2299,5,FALSE),0) -> 203 | H61: =IFERROR(VLOOKUP($A61,Filtro_!$A$4:$AX$2299,6,FALSE),0) -> 164 | I61: =IFERROR(VLOOKUP($A61,Filtro_!$A$4:$AX$2299,7,FALSE),0) -> 45 | J61: =IFERROR(VLOOKUP($A61,Filtro_!$A$4:$AX$2299,8,FALSE),0) -> 58 | K61: =IFERROR(VLOOKUP($A61,Filtro_!$A$4:$AX$2299,9,FALSE),0) -> 51 | L61: =IFERROR(VLOOKUP($A61,Filtro_!$A$4:$AX$2299,10,FALSE),0) -> 90 | M61: =IFERROR(VLOOKUP($A61,Filtro_!$A$4:$AX$2299,11,FALSE),0) -> 38 | N61: =IFERROR(VLOOKUP($A61,Filtro_!$A$4:$AX$2299,12,FALSE),0) -> 205 | O61: =IFERROR(VLOOKUP($A61,Filtro_!$A$4:$AX$2299,13,FALSE),0) -> 31 | P61: =IFERROR(VLOOKUP($A61,Filtro_!$A$4:$AX$2299,14,FALSE),0) -> 225 | Q61: =IFERROR(VLOOKUP($A61,Filtro_!$A$4:$AX$2299,15,FALSE),0) -> 30 | R61: =IFERROR(VLOOKUP($A61,Filtro_!$A$4:$AX$2299,16,FALSE),0) -> 282 | S61: =IFERROR(VLOOKUP($A61,Filtro_!$A$4:$AX$2299,17,FALSE),0) -> 33 | T61: =IFERROR(VLOOKUP($A61,Filtro_!$A$4:$AX$2299,18,FALSE),0) -> 297 | U61: =IFERROR(VLOOKUP($A61,Filtro_!$A$4:$AX$2299,19,FALSE),0) -> 32 | V61: =IFERROR(VLOOKUP($A61,Filtro_!$A$4:$AX$2299,20,FALSE),0) -> 214 | W61: =IFERROR(VLOOKUP($A61,Filtro_!$A$4:$AX$2299,21,FALSE),0) -> 23 | X61: =IFERROR(VLOOKUP($A61,Filtro_!$A$4:$AX$2299,22,FALSE),0) -> 196 | Y61: =IFERROR(VLOOKUP($A61,Filtro_!$A$4:$AX$2299,23,FALSE),0) -> 30 | Z61: =IFERROR(VLOOKUP($A61,Filtro_!$A$4:$AX$2299,24,FALSE),0) -> 234 | AA61: =IFERROR(VLOOKUP($A61,Filtro_!$A$4:$AX$2299,25,FALSE),0) -> 44 | AB61: =IFERROR(VLOOKUP($A61,Filtro_!$A$4:$AX$2299,26,FALSE),0) -> 209 | AC61: =IFERROR(VLOOKUP($A61,Filtro_!$A$4:$AX$2299,27,FALSE),0) -> 48 | AD61: =IFERROR(VLOOKUP($A61,Filtro_!$A$4:$AX$2299,28,FALSE),0) -> 207 | AE61: =IFERROR(VLOOKUP($A61,Filtro_!$A$4:$AX$2299,29,FALSE),0) -> 37 | AF61: =IFERROR(VLOOKUP($A61,Filtro_!$A$4:$AX$2299,30,FALSE),0) -> 156 | AG61: =IFERROR(VLOOKUP($A61,Filtro_!$A$4:$AX$2299,31,FALSE),0) -> 46 | AH61: =IFERROR(VLOOKUP($A61,Filtro_!$A$4:$AX$2299,32,FALSE),0) -> 120 | AI61: =IFERROR(VLOOKUP($A61,Filtro_!$A$4:$AX$2299,33,FALSE),0) -> 28 | AJ61: =IFERROR(VLOOKUP($A61,Filtro_!$A$4:$AX$2299,34,FALSE),0) -> 81 | AK61: =IFERROR(VLOOKUP($A61,Filtro_!$A$4:$AX$2299,35,FALSE),0) -> 30 | AL61: =IFERROR(VLOOKUP($A61,Filtro_!$A$4:$AX$2299,36,FALSE),0) -> 57 | AM61: =IFERROR(VLOOKUP($A61,Filtro_!$A$4:$AX$2299,37,FALSE),0) -> 23 | AN61: =IFERROR(VLOOKUP($A61,Filtro_!$A$4:$AX$2299,38,FALSE),0) -> 48 | AO61: =IFERROR(VLOOKUP($A61,Filtro_!$A$4:$AX$2299,39,FALSE),0) -> 3231 | CI61: 0
A62: 03030180 | C62: TÉCNICO PARAMÉDICO | D62: =IFERROR(VLOOKUP($A62,Filtro_!$A$4:$AX$2299,2,FALSE),0) -> 835 | E62: =IFERROR(VLOOKUP($A62,Filtro_!$A$4:$AX$2299,3,FALSE),0) -> 306 | F62: =IFERROR(VLOOKUP($A62,Filtro_!$A$4:$AX$2299,4,FALSE),0) -> 529 | G62: =IFERROR(VLOOKUP($A62,Filtro_!$A$4:$AX$2299,5,FALSE),0) -> 12 | H62: =IFERROR(VLOOKUP($A62,Filtro_!$A$4:$AX$2299,6,FALSE),0) -> 11 | I62: =IFERROR(VLOOKUP($A62,Filtro_!$A$4:$AX$2299,7,FALSE),0) -> 17 | J62: =IFERROR(VLOOKUP($A62,Filtro_!$A$4:$AX$2299,8,FALSE),0) -> 21 | K62: =IFERROR(VLOOKUP($A62,Filtro_!$A$4:$AX$2299,9,FALSE),0) -> 11 | L62: =IFERROR(VLOOKUP($A62,Filtro_!$A$4:$AX$2299,10,FALSE),0) -> 25 | M62: =IFERROR(VLOOKUP($A62,Filtro_!$A$4:$AX$2299,11,FALSE),0) -> 7 | N62: =IFERROR(VLOOKUP($A62,Filtro_!$A$4:$AX$2299,12,FALSE),0) -> 24 | O62: =IFERROR(VLOOKUP($A62,Filtro_!$A$4:$AX$2299,13,FALSE),0) -> 14 | P62: =IFERROR(VLOOKUP($A62,Filtro_!$A$4:$AX$2299,14,FALSE),0) -> 40 | Q62: =IFERROR(VLOOKUP($A62,Filtro_!$A$4:$AX$2299,15,FALSE),0) -> 15 | R62: =IFERROR(VLOOKUP($A62,Filtro_!$A$4:$AX$2299,16,FALSE),0) -> 58 | S62: =IFERROR(VLOOKUP($A62,Filtro_!$A$4:$AX$2299,17,FALSE),0) -> 15 | T62: =IFERROR(VLOOKUP($A62,Filtro_!$A$4:$AX$2299,18,FALSE),0) -> 39 | U62: =IFERROR(VLOOKUP($A62,Filtro_!$A$4:$AX$2299,19,FALSE),0) -> 29 | V62: =IFERROR(VLOOKUP($A62,Filtro_!$A$4:$AX$2299,20,FALSE),0) -> 41 | W62: =IFERROR(VLOOKUP($A62,Filtro_!$A$4:$AX$2299,21,FALSE),0) -> 20 | X62: =IFERROR(VLOOKUP($A62,Filtro_!$A$4:$AX$2299,22,FALSE),0) -> 29 | Y62: =IFERROR(VLOOKUP($A62,Filtro_!$A$4:$AX$2299,23,FALSE),0) -> 27 | Z62: =IFERROR(VLOOKUP($A62,Filtro_!$A$4:$AX$2299,24,FALSE),0) -> 19 | AA62: =IFERROR(VLOOKUP($A62,Filtro_!$A$4:$AX$2299,25,FALSE),0) -> 8 | AB62: =IFERROR(VLOOKUP($A62,Filtro_!$A$4:$AX$2299,26,FALSE),0) -> 40 | AC62: =IFERROR(VLOOKUP($A62,Filtro_!$A$4:$AX$2299,27,FALSE),0) -> 13 | AD62: =IFERROR(VLOOKUP($A62,Filtro_!$A$4:$AX$2299,28,FALSE),0) -> 38 | AE62: =IFERROR(VLOOKUP($A62,Filtro_!$A$4:$AX$2299,29,FALSE),0) -> 41 | AF62: =IFERROR(VLOOKUP($A62,Filtro_!$A$4:$AX$2299,30,FALSE),0) -> 27 | AG62: =IFERROR(VLOOKUP($A62,Filtro_!$A$4:$AX$2299,31,FALSE),0) -> 27 | AH62: =IFERROR(VLOOKUP($A62,Filtro_!$A$4:$AX$2299,32,FALSE),0) -> 41 | AI62: =IFERROR(VLOOKUP($A62,Filtro_!$A$4:$AX$2299,33,FALSE),0) -> 25 | AJ62: =IFERROR(VLOOKUP($A62,Filtro_!$A$4:$AX$2299,34,FALSE),0) -> 22 | AK62: =IFERROR(VLOOKUP($A62,Filtro_!$A$4:$AX$2299,35,FALSE),0) -> 14 | AL62: =IFERROR(VLOOKUP($A62,Filtro_!$A$4:$AX$2299,36,FALSE),0) -> 26 | AM62: =IFERROR(VLOOKUP($A62,Filtro_!$A$4:$AX$2299,37,FALSE),0) -> 11 | AN62: =IFERROR(VLOOKUP($A62,Filtro_!$A$4:$AX$2299,38,FALSE),0) -> 28 | AO62: =IFERROR(VLOOKUP($A62,Filtro_!$A$4:$AX$2299,39,FALSE),0) -> 784 | CI62: 0
A63: 01200031 | B63: NIÑOS CON NECESIDADES ESPECIALES | C63: MÉDICO | D63: =IFERROR(VLOOKUP($A63,Filtro_!$A$4:$AX$2299,2,FALSE),0) -> 28 | E63: =IFERROR(VLOOKUP($A63,Filtro_!$A$4:$AX$2299,3,FALSE),0) -> 12 | F63: =IFERROR(VLOOKUP($A63,Filtro_!$A$4:$AX$2299,4,FALSE),0) -> 16 | G63: =IFERROR(VLOOKUP($A63,Filtro_!$A$4:$AX$2299,5,FALSE),0) -> 9 | H63: =IFERROR(VLOOKUP($A63,Filtro_!$A$4:$AX$2299,6,FALSE),0) -> 10 | I63: =IFERROR(VLOOKUP($A63,Filtro_!$A$4:$AX$2299,7,FALSE),0) -> 1 | J63: =IFERROR(VLOOKUP($A63,Filtro_!$A$4:$AX$2299,8,FALSE),0) -> 5 | K63: =IFERROR(VLOOKUP($A63,Filtro_!$A$4:$AX$2299,9,FALSE),0) -> 1 | L63: =IFERROR(VLOOKUP($A63,Filtro_!$A$4:$AX$2299,10,FALSE),0) -> 0 | M63: =IFERROR(VLOOKUP($A63,Filtro_!$A$4:$AX$2299,11,FALSE),0) -> 1 | N63: =IFERROR(VLOOKUP($A63,Filtro_!$A$4:$AX$2299,12,FALSE),0) -> 1 | O63: =IFERROR(VLOOKUP($A63,Filtro_!$A$4:$AX$2299,13,FALSE),0) -> 0 | P63: =IFERROR(VLOOKUP($A63,Filtro_!$A$4:$AX$2299,14,FALSE),0) -> 0 | Q63: =IFERROR(VLOOKUP($A63,Filtro_!$A$4:$AX$2299,15,FALSE),0) -> 0 | R63: =IFERROR(VLOOKUP($A63,Filtro_!$A$4:$AX$2299,16,FALSE),0) -> 0 | S63: =IFERROR(VLOOKUP($A63,Filtro_!$A$4:$AX$2299,17,FALSE),0) -> 0 | T63: =IFERROR(VLOOKUP($A63,Filtro_!$A$4:$AX$2299,18,FALSE),0) -> 0 | U63: =IFERROR(VLOOKUP($A63,Filtro_!$A$4:$AX$2299,19,FALSE),0) -> 0 | V63: =IFERROR(VLOOKUP($A63,Filtro_!$A$4:$AX$2299,20,FALSE),0) -> 0 | W63: =IFERROR(VLOOKUP($A63,Filtro_!$A$4:$AX$2299,21,FALSE),0) -> 0 | X63: =IFERROR(VLOOKUP($A63,Filtro_!$A$4:$AX$2299,22,FALSE),0) -> 0 | Y63: =IFERROR(VLOOKUP($A63,Filtro_!$A$4:$AX$2299,23,FALSE),0) -> 0 | Z63: =IFERROR(VLOOKUP($A63,Filtro_!$A$4:$AX$2299,24,FALSE),0) -> 0 | AA63: =IFERROR(VLOOKUP($A63,Filtro_!$A$4:$AX$2299,25,FALSE),0) -> 0 | AB63: =IFERROR(VLOOKUP($A63,Filtro_!$A$4:$AX$2299,26,FALSE),0) -> 0 | AC63: =IFERROR(VLOOKUP($A63,Filtro_!$A$4:$AX$2299,27,FALSE),0) -> 0 | AD63: =IFERROR(VLOOKUP($A63,Filtro_!$A$4:$AX$2299,28,FALSE),0) -> 0 | AE63: =IFERROR(VLOOKUP($A63,Filtro_!$A$4:$AX$2299,29,FALSE),0) -> 0 | AF63: =IFERROR(VLOOKUP($A63,Filtro_!$A$4:$AX$2299,30,FALSE),0) -> 0 | AG63: =IFERROR(VLOOKUP($A63,Filtro_!$A$4:$AX$2299,31,FALSE),0) -> 0 | AH63: =IFERROR(VLOOKUP($A63,Filtro_!$A$4:$AX$2299,32,FALSE),0) -> 0 | AI63: =IFERROR(VLOOKUP($A63,Filtro_!$A$4:$AX$2299,33,FALSE),0) -> 0 | AJ63: =IFERROR(VLOOKUP($A63,Filtro_!$A$4:$AX$2299,34,FALSE),0) -> 0 | AK63: =IFERROR(VLOOKUP($A63,Filtro_!$A$4:$AX$2299,35,FALSE),0) -> 0 | AL63: =IFERROR(VLOOKUP($A63,Filtro_!$A$4:$AX$2299,36,FALSE),0) -> 0 | AM63: =IFERROR(VLOOKUP($A63,Filtro_!$A$4:$AX$2299,37,FALSE),0) -> 0 | AN63: =IFERROR(VLOOKUP($A63,Filtro_!$A$4:$AX$2299,38,FALSE),0) -> 0 | AO63: =IFERROR(VLOOKUP($A63,Filtro_!$A$4:$AX$2299,39,FALSE),0) -> 27 | CI63: 0 | CJ63: 0
A64: 01200032 | C64: ENFERMERA /O | D64: =IFERROR(VLOOKUP($A64,Filtro_!$A$4:$AX$2299,2,FALSE),0) -> 357 | E64: =IFERROR(VLOOKUP($A64,Filtro_!$A$4:$AX$2299,3,FALSE),0) -> 231 | F64: =IFERROR(VLOOKUP($A64,Filtro_!$A$4:$AX$2299,4,FALSE),0) -> 126 | G64: =IFERROR(VLOOKUP($A64,Filtro_!$A$4:$AX$2299,5,FALSE),0) -> 172 | H64: =IFERROR(VLOOKUP($A64,Filtro_!$A$4:$AX$2299,6,FALSE),0) -> 99 | I64: =IFERROR(VLOOKUP($A64,Filtro_!$A$4:$AX$2299,7,FALSE),0) -> 45 | J64: =IFERROR(VLOOKUP($A64,Filtro_!$A$4:$AX$2299,8,FALSE),0) -> 19 | K64: =IFERROR(VLOOKUP($A64,Filtro_!$A$4:$AX$2299,9,FALSE),0) -> 11 | L64: =IFERROR(VLOOKUP($A64,Filtro_!$A$4:$AX$2299,10,FALSE),0) -> 6 | M64: =IFERROR(VLOOKUP($A64,Filtro_!$A$4:$AX$2299,11,FALSE),0) -> 3 | N64: =IFERROR(VLOOKUP($A64,Filtro_!$A$4:$AX$2299,12,FALSE),0) -> 2 | O64: =IFERROR(VLOOKUP($A64,Filtro_!$A$4:$AX$2299,13,FALSE),0) -> 0 | P64: =IFERROR(VLOOKUP($A64,Filtro_!$A$4:$AX$2299,14,FALSE),0) -> 0 | Q64: =IFERROR(VLOOKUP($A64,Filtro_!$A$4:$AX$2299,15,FALSE),0) -> 0 | R64: =IFERROR(VLOOKUP($A64,Filtro_!$A$4:$AX$2299,16,FALSE),0) -> 0 | S64: =IFERROR(VLOOKUP($A64,Filtro_!$A$4:$AX$2299,17,FALSE),0) -> 0 | T64: =IFERROR(VLOOKUP($A64,Filtro_!$A$4:$AX$2299,18,FALSE),0) -> 0 | U64: =IFERROR(VLOOKUP($A64,Filtro_!$A$4:$AX$2299,19,FALSE),0) -> 0 | V64: =IFERROR(VLOOKUP($A64,Filtro_!$A$4:$AX$2299,20,FALSE),0) -> 0 | W64: =IFERROR(VLOOKUP($A64,Filtro_!$A$4:$AX$2299,21,FALSE),0) -> 0 | X64: =IFERROR(VLOOKUP($A64,Filtro_!$A$4:$AX$2299,22,FALSE),0) -> 0 | Y64: =IFERROR(VLOOKUP($A64,Filtro_!$A$4:$AX$2299,23,FALSE),0) -> 0 | Z64: =IFERROR(VLOOKUP($A64,Filtro_!$A$4:$AX$2299,24,FALSE),0) -> 0 | AA64: =IFERROR(VLOOKUP($A64,Filtro_!$A$4:$AX$2299,25,FALSE),0) -> 0 | AB64: =IFERROR(VLOOKUP($A64,Filtro_!$A$4:$AX$2299,26,FALSE),0) -> 0 | AC64: =IFERROR(VLOOKUP($A64,Filtro_!$A$4:$AX$2299,27,FALSE),0) -> 0 | AD64: =IFERROR(VLOOKUP($A64,Filtro_!$A$4:$AX$2299,28,FALSE),0) -> 0 | AE64: =IFERROR(VLOOKUP($A64,Filtro_!$A$4:$AX$2299,29,FALSE),0) -> 0 | AF64: =IFERROR(VLOOKUP($A64,Filtro_!$A$4:$AX$2299,30,FALSE),0) -> 0 | AG64: =IFERROR(VLOOKUP($A64,Filtro_!$A$4:$AX$2299,31,FALSE),0) -> 0 | AH64: =IFERROR(VLOOKUP($A64,Filtro_!$A$4:$AX$2299,32,FALSE),0) -> 0 | AI64: =IFERROR(VLOOKUP($A64,Filtro_!$A$4:$AX$2299,33,FALSE),0) -> 0 | AJ64: =IFERROR(VLOOKUP($A64,Filtro_!$A$4:$AX$2299,34,FALSE),0) -> 0 | AK64: =IFERROR(VLOOKUP($A64,Filtro_!$A$4:$AX$2299,35,FALSE),0) -> 0 | AL64: =IFERROR(VLOOKUP($A64,Filtro_!$A$4:$AX$2299,36,FALSE),0) -> 0 | AM64: =IFERROR(VLOOKUP($A64,Filtro_!$A$4:$AX$2299,37,FALSE),0) -> 0 | AN64: =IFERROR(VLOOKUP($A64,Filtro_!$A$4:$AX$2299,38,FALSE),0) -> 0 | AO64: =IFERROR(VLOOKUP($A64,Filtro_!$A$4:$AX$2299,39,FALSE),0) -> 262 | CI64: 0
A65: 01200033 | C65: MATRONA /ÓN | D65: =IFERROR(VLOOKUP($A65,Filtro_!$A$4:$AX$2299,2,FALSE),0) -> 16 | E65: =IFERROR(VLOOKUP($A65,Filtro_!$A$4:$AX$2299,3,FALSE),0) -> 9 | F65: =IFERROR(VLOOKUP($A65,Filtro_!$A$4:$AX$2299,4,FALSE),0) -> 7 | G65: =IFERROR(VLOOKUP($A65,Filtro_!$A$4:$AX$2299,5,FALSE),0) -> 6 | H65: =IFERROR(VLOOKUP($A65,Filtro_!$A$4:$AX$2299,6,FALSE),0) -> 4 | I65: =IFERROR(VLOOKUP($A65,Filtro_!$A$4:$AX$2299,7,FALSE),0) -> 3 | J65: =IFERROR(VLOOKUP($A65,Filtro_!$A$4:$AX$2299,8,FALSE),0) -> 3 | K65: =IFERROR(VLOOKUP($A65,Filtro_!$A$4:$AX$2299,9,FALSE),0) -> 0 | L65: =IFERROR(VLOOKUP($A65,Filtro_!$A$4:$AX$2299,10,FALSE),0) -> 0 | M65: =IFERROR(VLOOKUP($A65,Filtro_!$A$4:$AX$2299,11,FALSE),0) -> 0 | N65: =IFERROR(VLOOKUP($A65,Filtro_!$A$4:$AX$2299,12,FALSE),0) -> 0 | O65: =IFERROR(VLOOKUP($A65,Filtro_!$A$4:$AX$2299,13,FALSE),0) -> 0 | P65: =IFERROR(VLOOKUP($A65,Filtro_!$A$4:$AX$2299,14,FALSE),0) -> 0 | Q65: =IFERROR(VLOOKUP($A65,Filtro_!$A$4:$AX$2299,15,FALSE),0) -> 0 | R65: =IFERROR(VLOOKUP($A65,Filtro_!$A$4:$AX$2299,16,FALSE),0) -> 0 | S65: =IFERROR(VLOOKUP($A65,Filtro_!$A$4:$AX$2299,17,FALSE),0) -> 0 | T65: =IFERROR(VLOOKUP($A65,Filtro_!$A$4:$AX$2299,18,FALSE),0) -> 0 | U65: =IFERROR(VLOOKUP($A65,Filtro_!$A$4:$AX$2299,19,FALSE),0) -> 0 | V65: =IFERROR(VLOOKUP($A65,Filtro_!$A$4:$AX$2299,20,FALSE),0) -> 0 | W65: =IFERROR(VLOOKUP($A65,Filtro_!$A$4:$AX$2299,21,FALSE),0) -> 0 | X65: =IFERROR(VLOOKUP($A65,Filtro_!$A$4:$AX$2299,22,FALSE),0) -> 0 | Y65: =IFERROR(VLOOKUP($A65,Filtro_!$A$4:$AX$2299,23,FALSE),0) -> 0 | Z65: =IFERROR(VLOOKUP($A65,Filtro_!$A$4:$AX$2299,24,FALSE),0) -> 0 | AA65: =IFERROR(VLOOKUP($A65,Filtro_!$A$4:$AX$2299,25,FALSE),0) -> 0 | AB65: =IFERROR(VLOOKUP($A65,Filtro_!$A$4:$AX$2299,26,FALSE),0) -> 0 | AC65: =IFERROR(VLOOKUP($A65,Filtro_!$A$4:$AX$2299,27,FALSE),0) -> 0 | AD65: =IFERROR(VLOOKUP($A65,Filtro_!$A$4:$AX$2299,28,FALSE),0) -> 0 | AE65: =IFERROR(VLOOKUP($A65,Filtro_!$A$4:$AX$2299,29,FALSE),0) -> 0 | AF65: =IFERROR(VLOOKUP($A65,Filtro_!$A$4:$AX$2299,30,FALSE),0) -> 0 | AG65: =IFERROR(VLOOKUP($A65,Filtro_!$A$4:$AX$2299,31,FALSE),0) -> 0 | AH65: =IFERROR(VLOOKUP($A65,Filtro_!$A$4:$AX$2299,32,FALSE),0) -> 0 | AI65: =IFERROR(VLOOKUP($A65,Filtro_!$A$4:$AX$2299,33,FALSE),0) -> 0 | AJ65: =IFERROR(VLOOKUP($A65,Filtro_!$A$4:$AX$2299,34,FALSE),0) -> 0 | AK65: =IFERROR(VLOOKUP($A65,Filtro_!$A$4:$AX$2299,35,FALSE),0) -> 0 | AL65: =IFERROR(VLOOKUP($A65,Filtro_!$A$4:$AX$2299,36,FALSE),0) -> 0 | AM65: =IFERROR(VLOOKUP($A65,Filtro_!$A$4:$AX$2299,37,FALSE),0) -> 0 | AN65: =IFERROR(VLOOKUP($A65,Filtro_!$A$4:$AX$2299,38,FALSE),0) -> 0 | AO65: =IFERROR(VLOOKUP($A65,Filtro_!$A$4:$AX$2299,39,FALSE),0) -> 3 | CI65: 0
A66: 01200034 | C66: NUTRICIONISTA | D66: =IFERROR(VLOOKUP($A66,Filtro_!$A$4:$AX$2299,2,FALSE),0) -> 109 | E66: =IFERROR(VLOOKUP($A66,Filtro_!$A$4:$AX$2299,3,FALSE),0) -> 55 | F66: =IFERROR(VLOOKUP($A66,Filtro_!$A$4:$AX$2299,4,FALSE),0) -> 54 | G66: =IFERROR(VLOOKUP($A66,Filtro_!$A$4:$AX$2299,5,FALSE),0) -> 34 | H66: =IFERROR(VLOOKUP($A66,Filtro_!$A$4:$AX$2299,6,FALSE),0) -> 34 | I66: =IFERROR(VLOOKUP($A66,Filtro_!$A$4:$AX$2299,7,FALSE),0) -> 14 | J66: =IFERROR(VLOOKUP($A66,Filtro_!$A$4:$AX$2299,8,FALSE),0) -> 15 | K66: =IFERROR(VLOOKUP($A66,Filtro_!$A$4:$AX$2299,9,FALSE),0) -> 6 | L66: =IFERROR(VLOOKUP($A66,Filtro_!$A$4:$AX$2299,10,FALSE),0) -> 5 | M66: =IFERROR(VLOOKUP($A66,Filtro_!$A$4:$AX$2299,11,FALSE),0) -> 1 | N66: =IFERROR(VLOOKUP($A66,Filtro_!$A$4:$AX$2299,12,FALSE),0) -> 0 | O66: =IFERROR(VLOOKUP($A66,Filtro_!$A$4:$AX$2299,13,FALSE),0) -> 0 | P66: =IFERROR(VLOOKUP($A66,Filtro_!$A$4:$AX$2299,14,FALSE),0) -> 0 | Q66: =IFERROR(VLOOKUP($A66,Filtro_!$A$4:$AX$2299,15,FALSE),0) -> 0 | R66: =IFERROR(VLOOKUP($A66,Filtro_!$A$4:$AX$2299,16,FALSE),0) -> 0 | S66: =IFERROR(VLOOKUP($A66,Filtro_!$A$4:$AX$2299,17,FALSE),0) -> 0 | T66: =IFERROR(VLOOKUP($A66,Filtro_!$A$4:$AX$2299,18,FALSE),0) -> 0 | U66: =IFERROR(VLOOKUP($A66,Filtro_!$A$4:$AX$2299,19,FALSE),0) -> 0 | V66: =IFERROR(VLOOKUP($A66,Filtro_!$A$4:$AX$2299,20,FALSE),0) -> 0 | W66: =IFERROR(VLOOKUP($A66,Filtro_!$A$4:$AX$2299,21,FALSE),0) -> 0 | X66: =IFERROR(VLOOKUP($A66,Filtro_!$A$4:$AX$2299,22,FALSE),0) -> 0 | Y66: =IFERROR(VLOOKUP($A66,Filtro_!$A$4:$AX$2299,23,FALSE),0) -> 0 | Z66: =IFERROR(VLOOKUP($A66,Filtro_!$A$4:$AX$2299,24,FALSE),0) -> 0 | AA66: =IFERROR(VLOOKUP($A66,Filtro_!$A$4:$AX$2299,25,FALSE),0) -> 0 | AB66: =IFERROR(VLOOKUP($A66,Filtro_!$A$4:$AX$2299,26,FALSE),0) -> 0 | AC66: =IFERROR(VLOOKUP($A66,Filtro_!$A$4:$AX$2299,27,FALSE),0) -> 0 | AD66: =IFERROR(VLOOKUP($A66,Filtro_!$A$4:$AX$2299,28,FALSE),0) -> 0 | AE66: =IFERROR(VLOOKUP($A66,Filtro_!$A$4:$AX$2299,29,FALSE),0) -> 0 | AF66: =IFERROR(VLOOKUP($A66,Filtro_!$A$4:$AX$2299,30,FALSE),0) -> 0 | AG66: =IFERROR(VLOOKUP($A66,Filtro_!$A$4:$AX$2299,31,FALSE),0) -> 0 | AH66: =IFERROR(VLOOKUP($A66,Filtro_!$A$4:$AX$2299,32,FALSE),0) -> 0 | AI66: =IFERROR(VLOOKUP($A66,Filtro_!$A$4:$AX$2299,33,FALSE),0) -> 0 | AJ66: =IFERROR(VLOOKUP($A66,Filtro_!$A$4:$AX$2299,34,FALSE),0) -> 0 | AK66: =IFERROR(VLOOKUP($A66,Filtro_!$A$4:$AX$2299,35,FALSE),0) -> 0 | AL66: =IFERROR(VLOOKUP($A66,Filtro_!$A$4:$AX$2299,36,FALSE),0) -> 0 | AM66: =IFERROR(VLOOKUP($A66,Filtro_!$A$4:$AX$2299,37,FALSE),0) -> 0 | AN66: =IFERROR(VLOOKUP($A66,Filtro_!$A$4:$AX$2299,38,FALSE),0) -> 0 | AO66: =IFERROR(VLOOKUP($A66,Filtro_!$A$4:$AX$2299,39,FALSE),0) -> 99 | CI66: 0
A67: 01200035 | C67: TÉCNICO PARAMÉDICO | D67: =IFERROR(VLOOKUP($A67,Filtro_!$A$4:$AX$2299,2,FALSE),0) -> 5 | E67: =IFERROR(VLOOKUP($A67,Filtro_!$A$4:$AX$2299,3,FALSE),0) -> 1 | F67: =IFERROR(VLOOKUP($A67,Filtro_!$A$4:$AX$2299,4,FALSE),0) -> 4 | G67: =IFERROR(VLOOKUP($A67,Filtro_!$A$4:$AX$2299,5,FALSE),0) -> 0 | H67: =IFERROR(VLOOKUP($A67,Filtro_!$A$4:$AX$2299,6,FALSE),0) -> 0 | I67: =IFERROR(VLOOKUP($A67,Filtro_!$A$4:$AX$2299,7,FALSE),0) -> 0 | J67: =IFERROR(VLOOKUP($A67,Filtro_!$A$4:$AX$2299,8,FALSE),0) -> 0 | K67: =IFERROR(VLOOKUP($A67,Filtro_!$A$4:$AX$2299,9,FALSE),0) -> 1 | L67: =IFERROR(VLOOKUP($A67,Filtro_!$A$4:$AX$2299,10,FALSE),0) -> 4 | M67: =IFERROR(VLOOKUP($A67,Filtro_!$A$4:$AX$2299,11,FALSE),0) -> 0 | N67: =IFERROR(VLOOKUP($A67,Filtro_!$A$4:$AX$2299,12,FALSE),0) -> 0 | O67: =IFERROR(VLOOKUP($A67,Filtro_!$A$4:$AX$2299,13,FALSE),0) -> 0 | P67: =IFERROR(VLOOKUP($A67,Filtro_!$A$4:$AX$2299,14,FALSE),0) -> 0 | Q67: =IFERROR(VLOOKUP($A67,Filtro_!$A$4:$AX$2299,15,FALSE),0) -> 0 | R67: =IFERROR(VLOOKUP($A67,Filtro_!$A$4:$AX$2299,16,FALSE),0) -> 0 | S67: =IFERROR(VLOOKUP($A67,Filtro_!$A$4:$AX$2299,17,FALSE),0) -> 0 | T67: =IFERROR(VLOOKUP($A67,Filtro_!$A$4:$AX$2299,18,FALSE),0) -> 0 | U67: =IFERROR(VLOOKUP($A67,Filtro_!$A$4:$AX$2299,19,FALSE),0) -> 0 | V67: =IFERROR(VLOOKUP($A67,Filtro_!$A$4:$AX$2299,20,FALSE),0) -> 0 | W67: =IFERROR(VLOOKUP($A67,Filtro_!$A$4:$AX$2299,21,FALSE),0) -> 0 | X67: =IFERROR(VLOOKUP($A67,Filtro_!$A$4:$AX$2299,22,FALSE),0) -> 0 | Y67: =IFERROR(VLOOKUP($A67,Filtro_!$A$4:$AX$2299,23,FALSE),0) -> 0 | Z67: =IFERROR(VLOOKUP($A67,Filtro_!$A$4:$AX$2299,24,FALSE),0) -> 0 | AA67: =IFERROR(VLOOKUP($A67,Filtro_!$A$4:$AX$2299,25,FALSE),0) -> 0 | AB67: =IFERROR(VLOOKUP($A67,Filtro_!$A$4:$AX$2299,26,FALSE),0) -> 0 | AC67: =IFERROR(VLOOKUP($A67,Filtro_!$A$4:$AX$2299,27,FALSE),0) -> 0 | AD67: =IFERROR(VLOOKUP($A67,Filtro_!$A$4:$AX$2299,28,FALSE),0) -> 0 | AE67: =IFERROR(VLOOKUP($A67,Filtro_!$A$4:$AX$2299,29,FALSE),0) -> 0 | AF67: =IFERROR(VLOOKUP($A67,Filtro_!$A$4:$AX$2299,30,FALSE),0) -> 0 | AG67: =IFERROR(VLOOKUP($A67,Filtro_!$A$4:$AX$2299,31,FALSE),0) -> 0 | AH67: =IFERROR(VLOOKUP($A67,Filtro_!$A$4:$AX$2299,32,FALSE),0) -> 0 | AI67: =IFERROR(VLOOKUP($A67,Filtro_!$A$4:$AX$2299,33,FALSE),0) -> 0 | AJ67: =IFERROR(VLOOKUP($A67,Filtro_!$A$4:$AX$2299,34,FALSE),0) -> 0 | AK67: =IFERROR(VLOOKUP($A67,Filtro_!$A$4:$AX$2299,35,FALSE),0) -> 0 | AL67: =IFERROR(VLOOKUP($A67,Filtro_!$A$4:$AX$2299,36,FALSE),0) -> 0 | AM67: =IFERROR(VLOOKUP($A67,Filtro_!$A$4:$AX$2299,37,FALSE),0) -> 0 | AN67: =IFERROR(VLOOKUP($A67,Filtro_!$A$4:$AX$2299,38,FALSE),0) -> 0 | AO67: =IFERROR(VLOOKUP($A67,Filtro_!$A$4:$AX$2299,39,FALSE),0) -> 7 | CI67: 0
B68: SECCIÓN D: CONTROL DE SALUD INTEGRAL DE ADOLESCENTES (incluidos en sección B)
B69: LUGAR DEL CONTROL, SEGÚN EDAD | D69: 10 A 14 AÑOS | G69: 15 A 19 AÑOS
D70: Ambos Sexos | E70: Hombres | F70: Mujeres | G70: Ambos Sexos | H70: Hombres | I70: Mujeres
A71: 01030500 | B71: EN ESPACIO AMIGABLE | D71: =IFERROR(VLOOKUP($A71,Filtro_!$A$4:$AX$2299,2,FALSE),0) -> 1359 | E71: =IFERROR(VLOOKUP($A71,Filtro_!$A$4:$AX$2299,3,FALSE),0) -> 456 | F71: =IFERROR(VLOOKUP($A71,Filtro_!$A$4:$AX$2299,4,FALSE),0) -> 903 | G71: =IFERROR(VLOOKUP($A71,Filtro_!$A$4:$AX$2299,5,FALSE),0) -> 1704 | H71: =IFERROR(VLOOKUP($A71,Filtro_!$A$4:$AX$2299,6,FALSE),0) -> 401 | I71: =IFERROR(VLOOKUP($A71,Filtro_!$A$4:$AX$2299,7,FALSE),0) -> 1303
A72: 01030600 | B72: EN OTROS ESPACIOS DEL ESTABLECIMIENTO DE SALUD | D72: =IFERROR(VLOOKUP($A72,Filtro_!$A$4:$AX$2299,2,FALSE),0) -> 3092 | E72: =IFERROR(VLOOKUP($A72,Filtro_!$A$4:$AX$2299,3,FALSE),0) -> 1358 | F72: =IFERROR(VLOOKUP($A72,Filtro_!$A$4:$AX$2299,4,FALSE),0) -> 1734 | G72: =IFERROR(VLOOKUP($A72,Filtro_!$A$4:$AX$2299,5,FALSE),0) -> 1147 | H72: =IFERROR(VLOOKUP($A72,Filtro_!$A$4:$AX$2299,6,FALSE),0) -> 384 | I72: =IFERROR(VLOOKUP($A72,Filtro_!$A$4:$AX$2299,7,FALSE),0) -> 763
A73: 01030700 | B73: EN ESTABLECIMIENTOS EDUCACIONALES | D73: =IFERROR(VLOOKUP($A73,Filtro_!$A$4:$AX$2299,2,FALSE),0) -> 5383 | E73: =IFERROR(VLOOKUP($A73,Filtro_!$A$4:$AX$2299,3,FALSE),0) -> 2514 | F73: =IFERROR(VLOOKUP($A73,Filtro_!$A$4:$AX$2299,4,FALSE),0) -> 2869 | G73: =IFERROR(VLOOKUP($A73,Filtro_!$A$4:$AX$2299,5,FALSE),0) -> 847 | H73: =IFERROR(VLOOKUP($A73,Filtro_!$A$4:$AX$2299,6,FALSE),0) -> 397 | I73: =IFERROR(VLOOKUP($A73,Filtro_!$A$4:$AX$2299,7,FALSE),0) -> 450
A74: 01030800 | B74: EN OTROS LUGARES FUERA DEL ESTABLECIMIENTO DE SALUD | D74: =IFERROR(VLOOKUP($A74,Filtro_!$A$4:$AX$2299,2,FALSE),0) -> 135 | E74: =IFERROR(VLOOKUP($A74,Filtro_!$A$4:$AX$2299,3,FALSE),0) -> 51 | F74: =IFERROR(VLOOKUP($A74,Filtro_!$A$4:$AX$2299,4,FALSE),0) -> 84 | G74: =IFERROR(VLOOKUP($A74,Filtro_!$A$4:$AX$2299,5,FALSE),0) -> 89 | H74: =IFERROR(VLOOKUP($A74,Filtro_!$A$4:$AX$2299,6,FALSE),0) -> 36 | I74: =IFERROR(VLOOKUP($A74,Filtro_!$A$4:$AX$2299,7,FALSE),0) -> 53
B75: TOTAL | D75: =SUM(D71:D74) -> 9969 | E75: 4379 | F75: 5590 | G75: 3787 | H75: 1218 | I75: 2569
B76: SECCIÓN E: CONTROLES DE SALUD EN ESTABLECIMIENTO EDUCACIONAL (Los controles individuales deben estar incluídos en la Sección B)
B77: TIPO DE CONTROLES | C77: CURSO | D77: TOTAL* | E77: TOTAL NIÑOS Y NIÑAS | F77: SEXO
F78: Hombres | G78: Mujeres
A79: 01031000 | B79: CONTROLES INDIVIDUALES | C79: KÍNDER | D79: =IFERROR(VLOOKUP($A79,Filtro_!$A$4:$AX$2299,2,FALSE),0) -> 501 | E79: =IFERROR(VLOOKUP($A79,Filtro_!$A$4:$AX$2299,3,FALSE),0) -> 0 | F79: =IFERROR(VLOOKUP($A79,Filtro_!$A$4:$AX$2299,4,FALSE),0) -> 269 | G79: =IFERROR(VLOOKUP($A79,Filtro_!$A$4:$AX$2299,5,FALSE),0) -> 232
A80: 01031100 | C80: PRIMERO BÁSICO | D80: =IFERROR(VLOOKUP($A80,Filtro_!$A$4:$AX$2299,2,FALSE),0) -> 869 | E80: =IFERROR(VLOOKUP($A80,Filtro_!$A$4:$AX$2299,3,FALSE),0) -> 0 | F80: =IFERROR(VLOOKUP($A80,Filtro_!$A$4:$AX$2299,4,FALSE),0) -> 444 | G80: =IFERROR(VLOOKUP($A80,Filtro_!$A$4:$AX$2299,5,FALSE),0) -> 425
A81: 01031200 | C81: SEGUNDO BÁSICO | D81: =IFERROR(VLOOKUP($A81,Filtro_!$A$4:$AX$2299,2,FALSE),0) -> 872 | E81: =IFERROR(VLOOKUP($A81,Filtro_!$A$4:$AX$2299,3,FALSE),0) -> 0 | F81: =IFERROR(VLOOKUP($A81,Filtro_!$A$4:$AX$2299,4,FALSE),0) -> 430 | G81: =IFERROR(VLOOKUP($A81,Filtro_!$A$4:$AX$2299,5,FALSE),0) -> 442
A82: 01031300 | C82: TERCERO BÁSICO | D82: =IFERROR(VLOOKUP($A82,Filtro_!$A$4:$AX$2299,2,FALSE),0) -> 758 | E82: =IFERROR(VLOOKUP($A82,Filtro_!$A$4:$AX$2299,3,FALSE),0) -> 0 | F82: =IFERROR(VLOOKUP($A82,Filtro_!$A$4:$AX$2299,4,FALSE),0) -> 383 | G82: =IFERROR(VLOOKUP($A82,Filtro_!$A$4:$AX$2299,5,FALSE),0) -> 375
A83: 01031400 | C83: CUARTO BÁSICO | D83: =IFERROR(VLOOKUP($A83,Filtro_!$A$4:$AX$2299,2,FALSE),0) -> 853 | E83: =IFERROR(VLOOKUP($A83,Filtro_!$A$4:$AX$2299,3,FALSE),0) -> 0 | F83: =IFERROR(VLOOKUP($A83,Filtro_!$A$4:$AX$2299,4,FALSE),0) -> 411 | G83: =IFERROR(VLOOKUP($A83,Filtro_!$A$4:$AX$2299,5,FALSE),0) -> 442
A84: 01031500 | B84: CONTROLES GRUPALES * | C84: KÍNDER | D84: =IFERROR(VLOOKUP($A84,Filtro_!$A$4:$AX$2299,2,FALSE),0) -> 0 | E84: =IFERROR(VLOOKUP($A84,Filtro_!$A$4:$AX$2299,3,FALSE),0) -> 6 | F84: =IFERROR(VLOOKUP($A84,Filtro_!$A$4:$AX$2299,4,FALSE),0) -> 2 | G84: =IFERROR(VLOOKUP($A84,Filtro_!$A$4:$AX$2299,5,FALSE),0) -> 4
A85: 01031600 | C85: PRIMERO BÁSICO | D85: =IFERROR(VLOOKUP($A85,Filtro_!$A$4:$AX$2299,2,FALSE),0) -> 12 | E85: =IFERROR(VLOOKUP($A85,Filtro_!$A$4:$AX$2299,3,FALSE),0) -> 31 | F85: =IFERROR(VLOOKUP($A85,Filtro_!$A$4:$AX$2299,4,FALSE),0) -> 17 | G85: =IFERROR(VLOOKUP($A85,Filtro_!$A$4:$AX$2299,5,FALSE),0) -> 14
A86: 01031700 | C86: SEGUNDO BÁSICO | D86: =IFERROR(VLOOKUP($A86,Filtro_!$A$4:$AX$2299,2,FALSE),0) -> 15 | E86: =IFERROR(VLOOKUP($A86,Filtro_!$A$4:$AX$2299,3,FALSE),0) -> 30 | F86: =IFERROR(VLOOKUP($A86,Filtro_!$A$4:$AX$2299,4,FALSE),0) -> 15 | G86: =IFERROR(VLOOKUP($A86,Filtro_!$A$4:$AX$2299,5,FALSE),0) -> 15
A87: 01031800 | C87: TERCERO BÁSICO | D87: =IFERROR(VLOOKUP($A87,Filtro_!$A$4:$AX$2299,2,FALSE),0) -> 16 | E87: =IFERROR(VLOOKUP($A87,Filtro_!$A$4:$AX$2299,3,FALSE),0) -> 33 | F87: =IFERROR(VLOOKUP($A87,Filtro_!$A$4:$AX$2299,4,FALSE),0) -> 23 | G87: =IFERROR(VLOOKUP($A87,Filtro_!$A$4:$AX$2299,5,FALSE),0) -> 10
A88: 01031900 | C88: CUARTO BÁSICO | D88: =IFERROR(VLOOKUP($A88,Filtro_!$A$4:$AX$2299,2,FALSE),0) -> 17 | E88: =IFERROR(VLOOKUP($A88,Filtro_!$A$4:$AX$2299,3,FALSE),0) -> 35 | F88: =IFERROR(VLOOKUP($A88,Filtro_!$A$4:$AX$2299,4,FALSE),0) -> 18 | G88: =IFERROR(VLOOKUP($A88,Filtro_!$A$4:$AX$2299,5,FALSE),0) -> 17
B89: En Total* se registra el número de controles grupales
B90: SECCIÓN F: CONTROLES INTEGRALES DE PERSONAS CON CONDICIONES CRÓNICAS (incluidos en Secciones B y C)
B91: TIPO DE CONTROL | C91: TOTAL | F91: POR EDAD | AH91: Beneficiarios | AI91: Migrantes | AJ91: Pueblos Originarios | CA91: * No olvide digitar el campo BENEFICIARIOS (Digite CEROS si no tiene). | CH91: 0 | CI91: 0 | CJ91: 0
F92: 15 - 19 | H92: 20 - 24 | J92: 25 - 29 | L92: 30 - 34 | N92: 35 - 39 | P92: 40 - 44 | R92: 45 - 49 | T92: 50 - 54 | V92: 55 - 59 | X92: 60 - 64 | Z92: 65 - 69 | AB92: 70 - 74 | AD92: 75 - 79 | AF92: 80 y mas
C93: Ambos Sexos | D93: Hombres | E93: Mujeres | F93: Hombres | G93: Mujeres | H93: Hombres | I93: Mujeres | J93: Hombres | K93: Mujeres | L93: Hombres | M93: Mujeres | N93: Hombres | O93: Mujeres | P93: Hombres | Q93: Mujeres | R93: Hombres | S93: Mujeres | T93: Hombres | U93: Mujeres | V93: Hombres | W93: Mujeres | X93: Hombres | Y93: Mujeres | Z93: Hombres | AA93: Mujeres | AB93: Hombres | AC93: Mujeres | AD93: Hombres | AE93: Mujeres | AF93: Hombres | AG93: Mujeres
A94: 01501010 | B94: CONTROL INTEGRAL CON RIESGO LEVE (G1) | C94: =IFERROR(VLOOKUP($A94,Filtro_!$A$4:$AX$2299,2,FALSE),0) -> 1595 | D94: =IFERROR(VLOOKUP($A94,Filtro_!$A$4:$AX$2299,3,FALSE),0) -> 506 | E94: =IFERROR(VLOOKUP($A94,Filtro_!$A$4:$AX$2299,4,FALSE),0) -> 1089 | F94: =IFERROR(VLOOKUP($A94,Filtro_!$A$4:$AX$2299,5,FALSE),0) -> 3 | G94: =IFERROR(VLOOKUP($A94,Filtro_!$A$4:$AX$2299,6,FALSE),0) -> 8 | H94: =IFERROR(VLOOKUP($A94,Filtro_!$A$4:$AX$2299,7,FALSE),0) -> 4 | I94: =IFERROR(VLOOKUP($A94,Filtro_!$A$4:$AX$2299,8,FALSE),0) -> 12 | J94: =IFERROR(VLOOKUP($A94,Filtro_!$A$4:$AX$2299,9,FALSE),0) -> 9 | K94: =IFERROR(VLOOKUP($A94,Filtro_!$A$4:$AX$2299,10,FALSE),0) -> 14 | L94: =IFERROR(VLOOKUP($A94,Filtro_!$A$4:$AX$2299,11,FALSE),0) -> 5 | M94: =IFERROR(VLOOKUP($A94,Filtro_!$A$4:$AX$2299,12,FALSE),0) -> 34 | N94: =IFERROR(VLOOKUP($A94,Filtro_!$A$4:$AX$2299,13,FALSE),0) -> 8 | O94: =IFERROR(VLOOKUP($A94,Filtro_!$A$4:$AX$2299,14,FALSE),0) -> 32 | P94: =IFERROR(VLOOKUP($A94,Filtro_!$A$4:$AX$2299,15,FALSE),0) -> 16 | Q94: =IFERROR(VLOOKUP($A94,Filtro_!$A$4:$AX$2299,16,FALSE),0) -> 33 | R94: =IFERROR(VLOOKUP($A94,Filtro_!$A$4:$AX$2299,17,FALSE),0) -> 21 | S94: =IFERROR(VLOOKUP($A94,Filtro_!$A$4:$AX$2299,18,FALSE),0) -> 61 | T94: =IFERROR(VLOOKUP($A94,Filtro_!$A$4:$AX$2299,19,FALSE),0) -> 38 | U94: =IFERROR(VLOOKUP($A94,Filtro_!$A$4:$AX$2299,20,FALSE),0) -> 84 | V94: =IFERROR(VLOOKUP($A94,Filtro_!$A$4:$AX$2299,21,FALSE),0) -> 63 | W94: =IFERROR(VLOOKUP($A94,Filtro_!$A$4:$AX$2299,22,FALSE),0) -> 120 | X94: =IFERROR(VLOOKUP($A94,Filtro_!$A$4:$AX$2299,23,FALSE),0) -> 55 | Y94: =IFERROR(VLOOKUP($A94,Filtro_!$A$4:$AX$2299,24,FALSE),0) -> 134 | Z94: =IFERROR(VLOOKUP($A94,Filtro_!$A$4:$AX$2299,25,FALSE),0) -> 67 | AA94: =IFERROR(VLOOKUP($A94,Filtro_!$A$4:$AX$2299,26,FALSE),0) -> 150 | AB94: =IFERROR(VLOOKUP($A94,Filtro_!$A$4:$AX$2299,27,FALSE),0) -> 70 | AC94: =IFERROR(VLOOKUP($A94,Filtro_!$A$4:$AX$2299,28,FALSE),0) -> 147 | AD94: =IFERROR(VLOOKUP($A94,Filtro_!$A$4:$AX$2299,29,FALSE),0) -> 76 | AE94: =IFERROR(VLOOKUP($A94,Filtro_!$A$4:$AX$2299,30,FALSE),0) -> 122 | AF94: =IFERROR(VLOOKUP($A94,Filtro_!$A$4:$AX$2299,31,FALSE),0) -> 71 | AG94: =IFERROR(VLOOKUP($A94,Filtro_!$A$4:$AX$2299,32,FALSE),0) -> 138 | AH94: =IFERROR(VLOOKUP($A94,Filtro_!$A$4:$AX$2299,33,FALSE),0) -> 1674 | AI94: =IFERROR(VLOOKUP($A94,Filtro_!$A$4:$AX$2299,34,FALSE),0) -> 8 | AJ94: =IFERROR(VLOOKUP($A94,Filtro_!$A$4:$AX$2299,35,FALSE),0) -> 0 | CH94: 1 | CI94: 0 | CJ94: 0 | CK94: 1
A95: 01501020 | B95: CONTROL INTEGRAL CON RIESGO MODERADO (G2) | C95: =IFERROR(VLOOKUP($A95,Filtro_!$A$4:$AX$2299,2,FALSE),0) -> 1612 | D95: =IFERROR(VLOOKUP($A95,Filtro_!$A$4:$AX$2299,3,FALSE),0) -> 605 | E95: =IFERROR(VLOOKUP($A95,Filtro_!$A$4:$AX$2299,4,FALSE),0) -> 1007 | F95: =IFERROR(VLOOKUP($A95,Filtro_!$A$4:$AX$2299,5,FALSE),0) -> 2 | G95: =IFERROR(VLOOKUP($A95,Filtro_!$A$4:$AX$2299,6,FALSE),0) -> 1 | H95: =IFERROR(VLOOKUP($A95,Filtro_!$A$4:$AX$2299,7,FALSE),0) -> 3 | I95: =IFERROR(VLOOKUP($A95,Filtro_!$A$4:$AX$2299,8,FALSE),0) -> 2 | J95: =IFERROR(VLOOKUP($A95,Filtro_!$A$4:$AX$2299,9,FALSE),0) -> 2 | K95: =IFERROR(VLOOKUP($A95,Filtro_!$A$4:$AX$2299,10,FALSE),0) -> 8 | L95: =IFERROR(VLOOKUP($A95,Filtro_!$A$4:$AX$2299,11,FALSE),0) -> 4 | M95: =IFERROR(VLOOKUP($A95,Filtro_!$A$4:$AX$2299,12,FALSE),0) -> 15 | N95: =IFERROR(VLOOKUP($A95,Filtro_!$A$4:$AX$2299,13,FALSE),0) -> 56 | O95: =IFERROR(VLOOKUP($A95,Filtro_!$A$4:$AX$2299,14,FALSE),0) -> 22 | P95: =IFERROR(VLOOKUP($A95,Filtro_!$A$4:$AX$2299,15,FALSE),0) -> 10 | Q95: =IFERROR(VLOOKUP($A95,Filtro_!$A$4:$AX$2299,16,FALSE),0) -> 39 | R95: =IFERROR(VLOOKUP($A95,Filtro_!$A$4:$AX$2299,17,FALSE),0) -> 24 | S95: =IFERROR(VLOOKUP($A95,Filtro_!$A$4:$AX$2299,18,FALSE),0) -> 55 | T95: =IFERROR(VLOOKUP($A95,Filtro_!$A$4:$AX$2299,19,FALSE),0) -> 38 | U95: =IFERROR(VLOOKUP($A95,Filtro_!$A$4:$AX$2299,20,FALSE),0) -> 90 | V95: =IFERROR(VLOOKUP($A95,Filtro_!$A$4:$AX$2299,21,FALSE),0) -> 54 | W95: =IFERROR(VLOOKUP($A95,Filtro_!$A$4:$AX$2299,22,FALSE),0) -> 126 | X95: =IFERROR(VLOOKUP($A95,Filtro_!$A$4:$AX$2299,23,FALSE),0) -> 82 | Y95: =IFERROR(VLOOKUP($A95,Filtro_!$A$4:$AX$2299,24,FALSE),0) -> 150 | Z95: =IFERROR(VLOOKUP($A95,Filtro_!$A$4:$AX$2299,25,FALSE),0) -> 92 | AA95: =IFERROR(VLOOKUP($A95,Filtro_!$A$4:$AX$2299,26,FALSE),0) -> 149 | AB95: =IFERROR(VLOOKUP($A95,Filtro_!$A$4:$AX$2299,27,FALSE),0) -> 93 | AC95: =IFERROR(VLOOKUP($A95,Filtro_!$A$4:$AX$2299,28,FALSE),0) -> 142 | AD95: =IFERROR(VLOOKUP($A95,Filtro_!$A$4:$AX$2299,29,FALSE),0) -> 80 | AE95: =IFERROR(VLOOKUP($A95,Filtro_!$A$4:$AX$2299,30,FALSE),0) -> 93 | AF95: =IFERROR(VLOOKUP($A95,Filtro_!$A$4:$AX$2299,31,FALSE),0) -> 65 | AG95: =IFERROR(VLOOKUP($A95,Filtro_!$A$4:$AX$2299,32,FALSE),0) -> 115 | AH95: =IFERROR(VLOOKUP($A95,Filtro_!$A$4:$AX$2299,33,FALSE),0) -> 1453 | AI95: =IFERROR(VLOOKUP($A95,Filtro_!$A$4:$AX$2299,34,FALSE),0) -> 3 | AJ95: =IFERROR(VLOOKUP($A95,Filtro_!$A$4:$AX$2299,35,FALSE),0) -> 0 | CH95: 0 | CI95: 0 | CJ95: 0
A96: 01501030 | B96: CONTROL INTEGRAL CON RIESGO ALTO (G3) | C96: =IFERROR(VLOOKUP($A96,Filtro_!$A$4:$AX$2299,2,FALSE),0) -> 2509 | D96: =IFERROR(VLOOKUP($A96,Filtro_!$A$4:$AX$2299,3,FALSE),0) -> 898 | E96: =IFERROR(VLOOKUP($A96,Filtro_!$A$4:$AX$2299,4,FALSE),0) -> 1611 | F96: =IFERROR(VLOOKUP($A96,Filtro_!$A$4:$AX$2299,5,FALSE),0) -> 1 | G96: =IFERROR(VLOOKUP($A96,Filtro_!$A$4:$AX$2299,6,FALSE),0) -> 1 | H96: =IFERROR(VLOOKUP($A96,Filtro_!$A$4:$AX$2299,7,FALSE),0) -> 1 | I96: =IFERROR(VLOOKUP($A96,Filtro_!$A$4:$AX$2299,8,FALSE),0) -> 0 | J96: =IFERROR(VLOOKUP($A96,Filtro_!$A$4:$AX$2299,9,FALSE),0) -> 6 | K96: =IFERROR(VLOOKUP($A96,Filtro_!$A$4:$AX$2299,10,FALSE),0) -> 8 | L96: =IFERROR(VLOOKUP($A96,Filtro_!$A$4:$AX$2299,11,FALSE),0) -> 4 | M96: =IFERROR(VLOOKUP($A96,Filtro_!$A$4:$AX$2299,12,FALSE),0) -> 16 | N96: =IFERROR(VLOOKUP($A96,Filtro_!$A$4:$AX$2299,13,FALSE),0) -> 4 | O96: =IFERROR(VLOOKUP($A96,Filtro_!$A$4:$AX$2299,14,FALSE),0) -> 21 | P96: =IFERROR(VLOOKUP($A96,Filtro_!$A$4:$AX$2299,15,FALSE),0) -> 13 | Q96: =IFERROR(VLOOKUP($A96,Filtro_!$A$4:$AX$2299,16,FALSE),0) -> 39 | R96: =IFERROR(VLOOKUP($A96,Filtro_!$A$4:$AX$2299,17,FALSE),0) -> 20 | S96: =IFERROR(VLOOKUP($A96,Filtro_!$A$4:$AX$2299,18,FALSE),0) -> 56 | T96: =IFERROR(VLOOKUP($A96,Filtro_!$A$4:$AX$2299,19,FALSE),0) -> 63 | U96: =IFERROR(VLOOKUP($A96,Filtro_!$A$4:$AX$2299,20,FALSE),0) -> 122 | V96: =IFERROR(VLOOKUP($A96,Filtro_!$A$4:$AX$2299,21,FALSE),0) -> 74 | W96: =IFERROR(VLOOKUP($A96,Filtro_!$A$4:$AX$2299,22,FALSE),0) -> 140 | X96: =IFERROR(VLOOKUP($A96,Filtro_!$A$4:$AX$2299,23,FALSE),0) -> 113 | Y96: =IFERROR(VLOOKUP($A96,Filtro_!$A$4:$AX$2299,24,FALSE),0) -> 193 | Z96: =IFERROR(VLOOKUP($A96,Filtro_!$A$4:$AX$2299,25,FALSE),0) -> 160 | AA96: =IFERROR(VLOOKUP($A96,Filtro_!$A$4:$AX$2299,26,FALSE),0) -> 275 | AB96: =IFERROR(VLOOKUP($A96,Filtro_!$A$4:$AX$2299,27,FALSE),0) -> 149 | AC96: =IFERROR(VLOOKUP($A96,Filtro_!$A$4:$AX$2299,28,FALSE),0) -> 218 | AD96: =IFERROR(VLOOKUP($A96,Filtro_!$A$4:$AX$2299,29,FALSE),0) -> 126 | AE96: =IFERROR(VLOOKUP($A96,Filtro_!$A$4:$AX$2299,30,FALSE),0) -> 177 | AF96: =IFERROR(VLOOKUP($A96,Filtro_!$A$4:$AX$2299,31,FALSE),0) -> 164 | AG96: =IFERROR(VLOOKUP($A96,Filtro_!$A$4:$AX$2299,32,FALSE),0) -> 345 | AH96: =IFERROR(VLOOKUP($A96,Filtro_!$A$4:$AX$2299,33,FALSE),0) -> 2325 | AI96: =IFERROR(VLOOKUP($A96,Filtro_!$A$4:$AX$2299,34,FALSE),0) -> 5 | AJ96: =IFERROR(VLOOKUP($A96,Filtro_!$A$4:$AX$2299,35,FALSE),0) -> 1 | CH96: 0 | CI96: 0 | CJ96: 0
A97: 01502030 | B97: SEGUIMIENTO A DISTANCIA CON RIESGO LEVE (G1) | C97: =IFERROR(VLOOKUP($A97,Filtro_!$A$4:$AX$2299,2,FALSE),0) -> 3 | D97: =IFERROR(VLOOKUP($A97,Filtro_!$A$4:$AX$2299,3,FALSE),0) -> 0 | E97: =IFERROR(VLOOKUP($A97,Filtro_!$A$4:$AX$2299,4,FALSE),0) -> 3 | F97: =IFERROR(VLOOKUP($A97,Filtro_!$A$4:$AX$2299,5,FALSE),0) -> 0 | G97: =IFERROR(VLOOKUP($A97,Filtro_!$A$4:$AX$2299,6,FALSE),0) -> 0 | H97: =IFERROR(VLOOKUP($A97,Filtro_!$A$4:$AX$2299,7,FALSE),0) -> 0 | I97: =IFERROR(VLOOKUP($A97,Filtro_!$A$4:$AX$2299,8,FALSE),0) -> 0 | J97: =IFERROR(VLOOKUP($A97,Filtro_!$A$4:$AX$2299,9,FALSE),0) -> 0 | K97: =IFERROR(VLOOKUP($A97,Filtro_!$A$4:$AX$2299,10,FALSE),0) -> 0 | L97: =IFERROR(VLOOKUP($A97,Filtro_!$A$4:$AX$2299,11,FALSE),0) -> 0 | M97: =IFERROR(VLOOKUP($A97,Filtro_!$A$4:$AX$2299,12,FALSE),0) -> 0 | N97: =IFERROR(VLOOKUP($A97,Filtro_!$A$4:$AX$2299,13,FALSE),0) -> 0 | O97: =IFERROR(VLOOKUP($A97,Filtro_!$A$4:$AX$2299,14,FALSE),0) -> 0 | P97: =IFERROR(VLOOKUP($A97,Filtro_!$A$4:$AX$2299,15,FALSE),0) -> 0 | Q97: =IFERROR(VLOOKUP($A97,Filtro_!$A$4:$AX$2299,16,FALSE),0) -> 0 | R97: =IFERROR(VLOOKUP($A97,Filtro_!$A$4:$AX$2299,17,FALSE),0) -> 0 | S97: =IFERROR(VLOOKUP($A97,Filtro_!$A$4:$AX$2299,18,FALSE),0) -> 0 | T97: =IFERROR(VLOOKUP($A97,Filtro_!$A$4:$AX$2299,19,FALSE),0) -> 0 | U97: =IFERROR(VLOOKUP($A97,Filtro_!$A$4:$AX$2299,20,FALSE),0) -> 0 | V97: =IFERROR(VLOOKUP($A97,Filtro_!$A$4:$AX$2299,21,FALSE),0) -> 0 | W97: =IFERROR(VLOOKUP($A97,Filtro_!$A$4:$AX$2299,22,FALSE),0) -> 0 | X97: =IFERROR(VLOOKUP($A97,Filtro_!$A$4:$AX$2299,23,FALSE),0) -> 0 | Y97: =IFERROR(VLOOKUP($A97,Filtro_!$A$4:$AX$2299,24,FALSE),0) -> 0 | Z97: =IFERROR(VLOOKUP($A97,Filtro_!$A$4:$AX$2299,25,FALSE),0) -> 0 | AA97: =IFERROR(VLOOKUP($A97,Filtro_!$A$4:$AX$2299,26,FALSE),0) -> 1 | AB97: =IFERROR(VLOOKUP($A97,Filtro_!$A$4:$AX$2299,27,FALSE),0) -> 0 | AC97: =IFERROR(VLOOKUP($A97,Filtro_!$A$4:$AX$2299,28,FALSE),0) -> 1 | AD97: =IFERROR(VLOOKUP($A97,Filtro_!$A$4:$AX$2299,29,FALSE),0) -> 0 | AE97: =IFERROR(VLOOKUP($A97,Filtro_!$A$4:$AX$2299,30,FALSE),0) -> 1 | AF97: =IFERROR(VLOOKUP($A97,Filtro_!$A$4:$AX$2299,31,FALSE),0) -> 0 | AG97: =IFERROR(VLOOKUP($A97,Filtro_!$A$4:$AX$2299,32,FALSE),0) -> 0 | AH97: =IFERROR(VLOOKUP($A97,Filtro_!$A$4:$AX$2299,33,FALSE),0) -> 3 | AI97: =IFERROR(VLOOKUP($A97,Filtro_!$A$4:$AX$2299,34,FALSE),0) -> 0 | AJ97: =IFERROR(VLOOKUP($A97,Filtro_!$A$4:$AX$2299,35,FALSE),0) -> 0 | CH97: 0 | CI97: 0 | CJ97: 0 | CK97: 1
A98: 01502040 | B98: SEGUIMIENTO A DISTANCIA CON RIESGO MODEADO (G2) | C98: =IFERROR(VLOOKUP($A98,Filtro_!$A$4:$AX$2299,2,FALSE),0) -> 8 | D98: =IFERROR(VLOOKUP($A98,Filtro_!$A$4:$AX$2299,3,FALSE),0) -> 4 | E98: =IFERROR(VLOOKUP($A98,Filtro_!$A$4:$AX$2299,4,FALSE),0) -> 4 | F98: =IFERROR(VLOOKUP($A98,Filtro_!$A$4:$AX$2299,5,FALSE),0) -> 0 | G98: =IFERROR(VLOOKUP($A98,Filtro_!$A$4:$AX$2299,6,FALSE),0) -> 0 | H98: =IFERROR(VLOOKUP($A98,Filtro_!$A$4:$AX$2299,7,FALSE),0) -> 0 | I98: =IFERROR(VLOOKUP($A98,Filtro_!$A$4:$AX$2299,8,FALSE),0) -> 0 | J98: =IFERROR(VLOOKUP($A98,Filtro_!$A$4:$AX$2299,9,FALSE),0) -> 0 | K98: =IFERROR(VLOOKUP($A98,Filtro_!$A$4:$AX$2299,10,FALSE),0) -> 0 | L98: =IFERROR(VLOOKUP($A98,Filtro_!$A$4:$AX$2299,11,FALSE),0) -> 0 | M98: =IFERROR(VLOOKUP($A98,Filtro_!$A$4:$AX$2299,12,FALSE),0) -> 0 | N98: =IFERROR(VLOOKUP($A98,Filtro_!$A$4:$AX$2299,13,FALSE),0) -> 0 | O98: =IFERROR(VLOOKUP($A98,Filtro_!$A$4:$AX$2299,14,FALSE),0) -> 0 | P98: =IFERROR(VLOOKUP($A98,Filtro_!$A$4:$AX$2299,15,FALSE),0) -> 0 | Q98: =IFERROR(VLOOKUP($A98,Filtro_!$A$4:$AX$2299,16,FALSE),0) -> 0 | R98: =IFERROR(VLOOKUP($A98,Filtro_!$A$4:$AX$2299,17,FALSE),0) -> 0 | S98: =IFERROR(VLOOKUP($A98,Filtro_!$A$4:$AX$2299,18,FALSE),0) -> 0 | T98: =IFERROR(VLOOKUP($A98,Filtro_!$A$4:$AX$2299,19,FALSE),0) -> 0 | U98: =IFERROR(VLOOKUP($A98,Filtro_!$A$4:$AX$2299,20,FALSE),0) -> 2 | V98: =IFERROR(VLOOKUP($A98,Filtro_!$A$4:$AX$2299,21,FALSE),0) -> 0 | W98: =IFERROR(VLOOKUP($A98,Filtro_!$A$4:$AX$2299,22,FALSE),0) -> 0 | X98: =IFERROR(VLOOKUP($A98,Filtro_!$A$4:$AX$2299,23,FALSE),0) -> 1 | Y98: =IFERROR(VLOOKUP($A98,Filtro_!$A$4:$AX$2299,24,FALSE),0) -> 0 | Z98: =IFERROR(VLOOKUP($A98,Filtro_!$A$4:$AX$2299,25,FALSE),0) -> 2 | AA98: =IFERROR(VLOOKUP($A98,Filtro_!$A$4:$AX$2299,26,FALSE),0) -> 0 | AB98: =IFERROR(VLOOKUP($A98,Filtro_!$A$4:$AX$2299,27,FALSE),0) -> 0 | AC98: =IFERROR(VLOOKUP($A98,Filtro_!$A$4:$AX$2299,28,FALSE),0) -> 0 | AD98: =IFERROR(VLOOKUP($A98,Filtro_!$A$4:$AX$2299,29,FALSE),0) -> 1 | AE98: =IFERROR(VLOOKUP($A98,Filtro_!$A$4:$AX$2299,30,FALSE),0) -> 1 | AF98: =IFERROR(VLOOKUP($A98,Filtro_!$A$4:$AX$2299,31,FALSE),0) -> 0 | AG98: =IFERROR(VLOOKUP($A98,Filtro_!$A$4:$AX$2299,32,FALSE),0) -> 1 | AH98: =IFERROR(VLOOKUP($A98,Filtro_!$A$4:$AX$2299,33,FALSE),0) -> 8 | AI98: =IFERROR(VLOOKUP($A98,Filtro_!$A$4:$AX$2299,34,FALSE),0) -> 0 | AJ98: =IFERROR(VLOOKUP($A98,Filtro_!$A$4:$AX$2299,35,FALSE),0) -> 0 | CH98: 0 | CI98: 0 | CJ98: 0 | CK98: 1
A99: 01501040 | B99: SEGUIMIENTO A DISTANCIA CON RIESGO ALTO (G3) | C99: =IFERROR(VLOOKUP($A99,Filtro_!$A$4:$AX$2299,2,FALSE),0) -> 182 | D99: =IFERROR(VLOOKUP($A99,Filtro_!$A$4:$AX$2299,3,FALSE),0) -> 54 | E99: =IFERROR(VLOOKUP($A99,Filtro_!$A$4:$AX$2299,4,FALSE),0) -> 128 | F99: =IFERROR(VLOOKUP($A99,Filtro_!$A$4:$AX$2299,5,FALSE),0) -> 0 | G99: =IFERROR(VLOOKUP($A99,Filtro_!$A$4:$AX$2299,6,FALSE),0) -> 0 | H99: =IFERROR(VLOOKUP($A99,Filtro_!$A$4:$AX$2299,7,FALSE),0) -> 0 | I99: =IFERROR(VLOOKUP($A99,Filtro_!$A$4:$AX$2299,8,FALSE),0) -> 0 | J99: =IFERROR(VLOOKUP($A99,Filtro_!$A$4:$AX$2299,9,FALSE),0) -> 0 | K99: =IFERROR(VLOOKUP($A99,Filtro_!$A$4:$AX$2299,10,FALSE),0) -> 0 | L99: =IFERROR(VLOOKUP($A99,Filtro_!$A$4:$AX$2299,11,FALSE),0) -> 2 | M99: =IFERROR(VLOOKUP($A99,Filtro_!$A$4:$AX$2299,12,FALSE),0) -> 0 | N99: =IFERROR(VLOOKUP($A99,Filtro_!$A$4:$AX$2299,13,FALSE),0) -> 0 | O99: =IFERROR(VLOOKUP($A99,Filtro_!$A$4:$AX$2299,14,FALSE),0) -> 0 | P99: =IFERROR(VLOOKUP($A99,Filtro_!$A$4:$AX$2299,15,FALSE),0) -> 0 | Q99: =IFERROR(VLOOKUP($A99,Filtro_!$A$4:$AX$2299,16,FALSE),0) -> 0 | R99: =IFERROR(VLOOKUP($A99,Filtro_!$A$4:$AX$2299,17,FALSE),0) -> 2 | S99: =IFERROR(VLOOKUP($A99,Filtro_!$A$4:$AX$2299,18,FALSE),0) -> 8 | T99: =IFERROR(VLOOKUP($A99,Filtro_!$A$4:$AX$2299,19,FALSE),0) -> 1 | U99: =IFERROR(VLOOKUP($A99,Filtro_!$A$4:$AX$2299,20,FALSE),0) -> 9 | V99: =IFERROR(VLOOKUP($A99,Filtro_!$A$4:$AX$2299,21,FALSE),0) -> 5 | W99: =IFERROR(VLOOKUP($A99,Filtro_!$A$4:$AX$2299,22,FALSE),0) -> 15 | X99: =IFERROR(VLOOKUP($A99,Filtro_!$A$4:$AX$2299,23,FALSE),0) -> 6 | Y99: =IFERROR(VLOOKUP($A99,Filtro_!$A$4:$AX$2299,24,FALSE),0) -> 19 | Z99: =IFERROR(VLOOKUP($A99,Filtro_!$A$4:$AX$2299,25,FALSE),0) -> 13 | AA99: =IFERROR(VLOOKUP($A99,Filtro_!$A$4:$AX$2299,26,FALSE),0) -> 20 | AB99: =IFERROR(VLOOKUP($A99,Filtro_!$A$4:$AX$2299,27,FALSE),0) -> 5 | AC99: =IFERROR(VLOOKUP($A99,Filtro_!$A$4:$AX$2299,28,FALSE),0) -> 18 | AD99: =IFERROR(VLOOKUP($A99,Filtro_!$A$4:$AX$2299,29,FALSE),0) -> 8 | AE99: =IFERROR(VLOOKUP($A99,Filtro_!$A$4:$AX$2299,30,FALSE),0) -> 5 | AF99: =IFERROR(VLOOKUP($A99,Filtro_!$A$4:$AX$2299,31,FALSE),0) -> 12 | AG99: =IFERROR(VLOOKUP($A99,Filtro_!$A$4:$AX$2299,32,FALSE),0) -> 34 | AH99: =IFERROR(VLOOKUP($A99,Filtro_!$A$4:$AX$2299,33,FALSE),0) -> 182 | AI99: =IFERROR(VLOOKUP($A99,Filtro_!$A$4:$AX$2299,34,FALSE),0) -> 0 | AJ99: =IFERROR(VLOOKUP($A99,Filtro_!$A$4:$AX$2299,35,FALSE),0) -> 0 | CH99: 0 | CI99: 0 | CJ99: 0
B193: =SUM(D12:D33,X12:X33,V32:W33,Z20:AC23,Y14:Y15,D37:D40,E37:F40,AJ37:AJ40,D45:F67,D71:D75,G71:G75,D79:D83,E84:E88,C94:C99) -> 1422367 | C193: =SUM(CH1:CV88) -> 30

Sheet A02
B1: MINISTERIO DE SALUD
B2: SERVICIO DE SALUD COQUIMBO
B3: DEPARTAMENTO DE GESTIÓN, PLANIFICACIÓN Y CONTROL
B4: SUBDEPTO. DE ESTADÍSTICAS Y GESTIÓN DE LA INFORMACIÓN
B5: AÑO 2022
B6: REM-A02. EXAMEN DE MEDICINA PREVENTIVA EN MAYORES DE 15 AÑOS
B8: SECCIÓN A: EMP REALIZADO POR PROFESIONAL
B9: PROFESIONAL | C9: TOTAL
C10: Ambos Sexos | D10: Hombres | E10: Mujeres
B11: TOTAL | C11: =SUM(C12:C17) -> 76751 | D11: =SUM(D12:D17) -> 25974 | E11: =SUM(E12:E17) -> 50777
A12: 03030101 | B12: MÉDICO | C12: =IFERROR(VLOOKUP($A12,Filtro_!$A$4:$AX$2299,2,FALSE),0) -> 710 | D12: =IFERROR(VLOOKUP($A12,Filtro_!$A$4:$AX$2299,3,FALSE),0) -> 281 | E12: =IFERROR(VLOOKUP($A12,Filtro_!$A$4:$AX$2299,4,FALSE),0) -> 429
A13: 03030102 | B13: ENFERMERA /O | C13: =IFERROR(VLOOKUP($A13,Filtro_!$A$4:$AX$2299,2,FALSE),0) -> 47414 | D13: =IFERROR(VLOOKUP($A13,Filtro_!$A$4:$AX$2299,3,FALSE),0) -> 17394 | E13: =IFERROR(VLOOKUP($A13,Filtro_!$A$4:$AX$2299,4,FALSE),0) -> 30020
A14: 03030103 | B14: MATRONA /ÓN | C14: =IFERROR(VLOOKUP($A14,Filtro_!$A$4:$AX$2299,2,FALSE),0) -> 2918 | D14: =IFERROR(VLOOKUP($A14,Filtro_!$A$4:$AX$2299,3,FALSE),0) -> 103 | E14: =IFERROR(VLOOKUP($A14,Filtro_!$A$4:$AX$2299,4,FALSE),0) -> 2815
A15: 03030104 | B15: NUTRICIONISTA | C15: =IFERROR(VLOOKUP($A15,Filtro_!$A$4:$AX$2299,2,FALSE),0) -> 5717 | D15: =IFERROR(VLOOKUP($A15,Filtro_!$A$4:$AX$2299,3,FALSE),0) -> 1696 | E15: =IFERROR(VLOOKUP($A15,Filtro_!$A$4:$AX$2299,4,FALSE),0) -> 4021
A16: 03030350 | B16: OTRO PROFESIONAL | C16: =IFERROR(VLOOKUP($A16,Filtro_!$A$4:$AX$2299,2,FALSE),0) -> 8800 | D16: =IFERROR(VLOOKUP($A16,Filtro_!$A$4:$AX$2299,3,FALSE),0) -> 3113 | E16: =IFERROR(VLOOKUP($A16,Filtro_!$A$4:$AX$2299,4,FALSE),0) -> 5687
A17: 03030110 | B17: TÉCNICO PARAMÉDICO | C17: =IFERROR(VLOOKUP($A17,Filtro_!$A$4:$AX$2299,2,FALSE),0) -> 11192 | D17: =IFERROR(VLOOKUP($A17,Filtro_!$A$4:$AX$2299,3,FALSE),0) -> 3387 | E17: =IFERROR(VLOOKUP($A17,Filtro_!$A$4:$AX$2299,4,FALSE),0) -> 7805
B18: SECCIÓN B: EMP SEGÚN RESULTADO DEL ESTADO NUTRICIONAL
B19: ESTADO NUTRICIONAL | C19: TOTAL | F19: 15 a 19 | H19: 20 a 24 | J19: 25 a 29 | L19: 30 a 34 | N19: 35 a 39 | P19: 40 a 44 | R19: 45 a 49 | T19: 50 a 54 | V19: 55 a 59 | X19: 60 a 64 | Z19: 65 a 69 | AB19: 70 a 74 | AD19: 75 a 79 | AF19: 80 y más
C20: Ambos Sexos | D20: Hombres | E20: Mujeres | F20: Hombres | G20: Mujeres | H20: Hombres | I20: Mujeres | J20: Hombres | K20: Mujeres | L20: Hombres | M20: Mujeres | N20: Hombres | O20: Mujeres | P20: Hombres | Q20: Mujeres | R20: Hombres | S20: Mujeres | T20: Hombres | U20: Mujeres | V20: Hombres | W20: Mujeres | X20: Hombres | Y20: Mujeres | Z20: Hombres | AA20: Mujeres | AB20: Hombres | AC20: Mujeres | AD20: Hombres | AE20: Mujeres | AF20: Hombres | AG20: Mujeres
B21: TOTAL | C21: =SUM(C22:C25) -> 76744 | D21: 26004 | E21: 50746 | F21: 292 | G21: 564 | H21: 1501 | I21: 3524 | J21: 1528 | K21: 3904 | L21: 1629 | M21: 4228 | N21: 1522 | O21: 3961 | P21: 1448 | Q21: 3586 | R21: 1396 | S21: 3294 | T21: 1356 | U21: 2932 | V21: 1219 | W21: 2451 | X21: 1053 | Y21: 1671 | Z21: 3250 | AA21: 5466 | AB21: 3289 | AC21: 4940 | AD21: 2824 | AE21: 4245 | AF21: 3697 | AG21: * Debe coincidir el total de EMP según Estado Nutricional con EMP realizado según profesional. | CA21: * Debe coincidir el total de EMP según Estado Nutricional con EMP realizado según profesional. | CI21: 1 | CJ21: 0
A22: 03030330 | B22: NORMAL | C22: =IFERROR(VLOOKUP($A22,Filtro_!$A$4:$AX$2299,2,FALSE),0) -> 22920 | D22: =IFERROR(VLOOKUP($A22,Filtro_!$A$4:$AX$2299,3,FALSE),0) -> 8842 | E22: =IFERROR(VLOOKUP($A22,Filtro_!$A$4:$AX$2299,4,FALSE),0) -> 14084 | F22: =IFERROR(VLOOKUP($A22,Filtro_!$A$4:$AX$2299,5,FALSE),0) -> 134 | G22: =IFERROR(VLOOKUP($A22,Filtro_!$A$4:$AX$2299,6,FALSE),0) -> 208 | H22: =IFERROR(VLOOKUP($A22,Filtro_!$A$4:$AX$2299,7,FALSE),0) -> 666 | I22: =IFERROR(VLOOKUP($A22,Filtro_!$A$4:$AX$2299,8,FALSE),0) -> 1272 | J22: =IFERROR(VLOOKUP($A22,Filtro_!$A$4:$AX$2299,9,FALSE),0) -> 501 | K22: =IFERROR(VLOOKUP($A22,Filtro_!$A$4:$AX$2299,10,FALSE),0) -> 1078 | L22: =IFERROR(VLOOKUP($A22,Filtro_!$A$4:$AX$2299,11,FALSE),0) -> 444 | M22: =IFERROR(VLOOKUP($A22,Filtro_!$A$4:$AX$2299,12,FALSE),0) -> 1059 | N22: =IFERROR(VLOOKUP($A22,Filtro_!$A$4:$AX$2299,13,FALSE),0) -> 311 | O22: =IFERROR(VLOOKUP($A22,Filtro_!$A$4:$AX$2299,14,FALSE),0) -> 848 | P22: =IFERROR(VLOOKUP($A22,Filtro_!$A$4:$AX$2299,15,FALSE),0) -> 312 | Q22: =IFERROR(VLOOKUP($A22,Filtro_!$A$4:$AX$2299,16,FALSE),0) -> 674 | R22: =IFERROR(VLOOKUP($A22,Filtro_!$A$4:$AX$2299,17,FALSE),0) -> 271 | S22: =IFERROR(VLOOKUP($A22,Filtro_!$A$4:$AX$2299,18,FALSE),0) -> 577 | T22: =IFERROR(VLOOKUP($A22,Filtro_!$A$4:$AX$2299,19,FALSE),0) -> 263 | U22: =IFERROR(VLOOKUP($A22,Filtro_!$A$4:$AX$2299,20,FALSE),0) -> 529 | V22: =IFERROR(VLOOKUP($A22,Filtro_!$A$4:$AX$2299,21,FALSE),0) -> 240 | W22: =IFERROR(VLOOKUP($A22,Filtro_!$A$4:$AX$2299,22,FALSE),0) -> 485 | X22: =IFERROR(VLOOKUP($A22,Filtro_!$A$4:$AX$2299,23,FALSE),0) -> 219 | Y22: =IFERROR(VLOOKUP($A22,Filtro_!$A$4:$AX$2299,24,FALSE),0) -> 390 | Z22: =IFERROR(VLOOKUP($A22,Filtro_!$A$4:$AX$2299,25,FALSE),0) -> 1186 | AA22: =IFERROR(VLOOKUP($A22,Filtro_!$A$4:$AX$2299,26,FALSE),0) -> 1585 | AB22: =IFERROR(VLOOKUP($A22,Filtro_!$A$4:$AX$2299,27,FALSE),0) -> 1342 | AC22: =IFERROR(VLOOKUP($A22,Filtro_!$A$4:$AX$2299,28,FALSE),0) -> 1519 | AD22: =IFERROR(VLOOKUP($A22,Filtro_!$A$4:$AX$2299,29,FALSE),0) -> 1237 | AE22: =IFERROR(VLOOKUP($A22,Filtro_!$A$4:$AX$2299,30,FALSE),0) -> 1424 | AF22: =IFERROR(VLOOKUP($A22,Filtro_!$A$4:$AX$2299,31,FALSE),0) -> 1716 | AG22: =IFERROR(VLOOKUP($A22,Filtro_!$A$4:$AX$2299,32,FALSE),0) -> 2443
A23: 03030340 | B23: BAJO PESO | C23: =IFERROR(VLOOKUP($A23,Filtro_!$A$4:$AX$2299,2,FALSE),0) -> 3851 | D23: =IFERROR(VLOOKUP($A23,Filtro_!$A$4:$AX$2299,3,FALSE),0) -> 1514 | E23: =IFERROR(VLOOKUP($A23,Filtro_!$A$4:$AX$2299,4,FALSE),0) -> 2337 | F23: =IFERROR(VLOOKUP($A23,Filtro_!$A$4:$AX$2299,5,FALSE),0) -> 28 | G23: =IFERROR(VLOOKUP($A23,Filtro_!$A$4:$AX$2299,6,FALSE),0) -> 29 | H23: =IFERROR(VLOOKUP($A23,Filtro_!$A$4:$AX$2299,7,FALSE),0) -> 37 | I23: =IFERROR(VLOOKUP($A23,Filtro_!$A$4:$AX$2299,8,FALSE),0) -> 85 | J23: =IFERROR(VLOOKUP($A23,Filtro_!$A$4:$AX$2299,9,FALSE),0) -> 34 | K23: =IFERROR(VLOOKUP($A23,Filtro_!$A$4:$AX$2299,10,FALSE),0) -> 58 | L23: =IFERROR(VLOOKUP($A23,Filtro_!$A$4:$AX$2299,11,FALSE),0) -> 26 | M23: =IFERROR(VLOOKUP($A23,Filtro_!$A$4:$AX$2299,12,FALSE),0) -> 43 | N23: =IFERROR(VLOOKUP($A23,Filtro_!$A$4:$AX$2299,13,FALSE),0) -> 23 | O23: =IFERROR(VLOOKUP($A23,Filtro_!$A$4:$AX$2299,14,FALSE),0) -> 63 | P23: =IFERROR(VLOOKUP($A23,Filtro_!$A$4:$AX$2299,15,FALSE),0) -> 27 | Q23: =IFERROR(VLOOKUP($A23,Filtro_!$A$4:$AX$2299,16,FALSE),0) -> 40 | R23: =IFERROR(VLOOKUP($A23,Filtro_!$A$4:$AX$2299,17,FALSE),0) -> 22 | S23: =IFERROR(VLOOKUP($A23,Filtro_!$A$4:$AX$2299,18,FALSE),0) -> 34 | T23: =IFERROR(VLOOKUP($A23,Filtro_!$A$4:$AX$2299,19,FALSE),0) -> 14 | U23: =IFERROR(VLOOKUP($A23,Filtro_!$A$4:$AX$2299,20,FALSE),0) -> 34 | V23: =IFERROR(VLOOKUP($A23,Filtro_!$A$4:$AX$2299,21,FALSE),0) -> 14 | W23: =IFERROR(VLOOKUP($A23,Filtro_!$A$4:$AX$2299,22,FALSE),0) -> 21 | X23: =IFERROR(VLOOKUP($A23,Filtro_!$A$4:$AX$2299,23,FALSE),0) -> 11 | Y23: =IFERROR(VLOOKUP($A23,Filtro_!$A$4:$AX$2299,24,FALSE),0) -> 19 | Z23: =IFERROR(VLOOKUP($A23,Filtro_!$A$4:$AX$2299,25,FALSE),0) -> 229 | AA23: =IFERROR(VLOOKUP($A23,Filtro_!$A$4:$AX$2299,26,FALSE),0) -> 264 | AB23: =IFERROR(VLOOKUP($A23,Filtro_!$A$4:$AX$2299,27,FALSE),0) -> 238 | AC23: =IFERROR(VLOOKUP($A23,Filtro_!$A$4:$AX$2299,28,FALSE),0) -> 314 | AD23: =IFERROR(VLOOKUP($A23,Filtro_!$A$4:$AX$2299,29,FALSE),0) -> 241 | AE23: =IFERROR(VLOOKUP($A23,Filtro_!$A$4:$AX$2299,30,FALSE),0) -> 365 | AF23: =IFERROR(VLOOKUP($A23,Filtro_!$A$4:$AX$2299,31,FALSE),0) -> 570 | AG23: =IFERROR(VLOOKUP($A23,Filtro_!$A$4:$AX$2299,32,FALSE),0) -> 968
A24: 03030120 | B24: SOBREPESO | C24: =IFERROR(VLOOKUP($A24,Filtro_!$A$4:$AX$2299,2,FALSE),0) -> 26240 | D24: =IFERROR(VLOOKUP($A24,Filtro_!$A$4:$AX$2299,3,FALSE),0) -> 9319 | E24: =IFERROR(VLOOKUP($A24,Filtro_!$A$4:$AX$2299,4,FALSE),0) -> 16921 | F24: =IFERROR(VLOOKUP($A24,Filtro_!$A$4:$AX$2299,5,FALSE),0) -> 65 | G24: =IFERROR(VLOOKUP($A24,Filtro_!$A$4:$AX$2299,6,FALSE),0) -> 169 | H24: =IFERROR(VLOOKUP($A24,Filtro_!$A$4:$AX$2299,7,FALSE),0) -> 457 | I24: =IFERROR(VLOOKUP($A24,Filtro_!$A$4:$AX$2299,8,FALSE),0) -> 1074 | J24: =IFERROR(VLOOKUP($A24,Filtro_!$A$4:$AX$2299,9,FALSE),0) -> 555 | K24: =IFERROR(VLOOKUP($A24,Filtro_!$A$4:$AX$2299,10,FALSE),0) -> 1302 | L24: =IFERROR(VLOOKUP($A24,Filtro_!$A$4:$AX$2299,11,FALSE),0) -> 674 | M24: =IFERROR(VLOOKUP($A24,Filtro_!$A$4:$AX$2299,12,FALSE),0) -> 1459 | N24: =IFERROR(VLOOKUP($A24,Filtro_!$A$4:$AX$2299,13,FALSE),0) -> 667 | O24: =IFERROR(VLOOKUP($A24,Filtro_!$A$4:$AX$2299,14,FALSE),0) -> 1496 | P24: =IFERROR(VLOOKUP($A24,Filtro_!$A$4:$AX$2299,15,FALSE),0) -> 628 | Q24: =IFERROR(VLOOKUP($A24,Filtro_!$A$4:$AX$2299,16,FALSE),0) -> 1385 | R24: =IFERROR(VLOOKUP($A24,Filtro_!$A$4:$AX$2299,17,FALSE),0) -> 631 | S24: =IFERROR(VLOOKUP($A24,Filtro_!$A$4:$AX$2299,18,FALSE),0) -> 1294 | T24: =IFERROR(VLOOKUP($A24,Filtro_!$A$4:$AX$2299,19,FALSE),0) -> 600 | U24: =IFERROR(VLOOKUP($A24,Filtro_!$A$4:$AX$2299,20,FALSE),0) -> 1176 | V24: =IFERROR(VLOOKUP($A24,Filtro_!$A$4:$AX$2299,21,FALSE),0) -> 594 | W24: =IFERROR(VLOOKUP($A24,Filtro_!$A$4:$AX$2299,22,FALSE),0) -> 1000 | X24: =IFERROR(VLOOKUP($A24,Filtro_!$A$4:$AX$2299,23,FALSE),0) -> 491 | Y24: =IFERROR(VLOOKUP($A24,Filtro_!$A$4:$AX$2299,24,FALSE),0) -> 654 | Z24: =IFERROR(VLOOKUP($A24,Filtro_!$A$4:$AX$2299,25,FALSE),0) -> 1080 | AA24: =IFERROR(VLOOKUP($A24,Filtro_!$A$4:$AX$2299,26,FALSE),0) -> 1654 | AB24: =IFERROR(VLOOKUP($A24,Filtro_!$A$4:$AX$2299,27,FALSE),0) -> 1046 | AC24: =IFERROR(VLOOKUP($A24,Filtro_!$A$4:$AX$2299,28,FALSE),0) -> 1551 | AD24: =IFERROR(VLOOKUP($A24,Filtro_!$A$4:$AX$2299,29,FALSE),0) -> 879 | AE24: =IFERROR(VLOOKUP($A24,Filtro_!$A$4:$AX$2299,30,FALSE),0) -> 1283 | AF24: =IFERROR(VLOOKUP($A24,Filtro_!$A$4:$AX$2299,31,FALSE),0) -> 952 | AG24: =IFERROR(VLOOKUP($A24,Filtro_!$A$4:$AX$2299,32,FALSE),0) -> 1424
A25: 03030130 | B25: OBESOS | C25: =IFERROR(VLOOKUP($A25,Filtro_!$A$4:$AX$2299,2,FALSE),0) -> 23733 | D25: =IFERROR(VLOOKUP($A25,Filtro_!$A$4:$AX$2299,3,FALSE),0) -> 6329 | E25: =IFERROR(VLOOKUP($A25,Filtro_!$A$4:$AX$2299,4,FALSE),0) -> 17404 | F25: =IFERROR(VLOOKUP($A25,Filtro_!$A$4:$AX$2299,5,FALSE),0) -> 65 | G25: =IFERROR(VLOOKUP($A25,Filtro_!$A$4:$AX$2299,6,FALSE),0) -> 158 | H25: =IFERROR(VLOOKUP($A25,Filtro_!$A$4:$AX$2299,7,FALSE),0) -> 341 | I25: =IFERROR(VLOOKUP($A25,Filtro_!$A$4:$AX$2299,8,FALSE),0) -> 1093 | J25: =IFERROR(VLOOKUP($A25,Filtro_!$A$4:$AX$2299,9,FALSE),0) -> 438 | K25: =IFERROR(VLOOKUP($A25,Filtro_!$A$4:$AX$2299,10,FALSE),0) -> 1466 | L25: =IFERROR(VLOOKUP($A25,Filtro_!$A$4:$AX$2299,11,FALSE),0) -> 485 | M25: =IFERROR(VLOOKUP($A25,Filtro_!$A$4:$AX$2299,12,FALSE),0) -> 1667 | N25: =IFERROR(VLOOKUP($A25,Filtro_!$A$4:$AX$2299,13,FALSE),0) -> 521 | O25: =IFERROR(VLOOKUP($A25,Filtro_!$A$4:$AX$2299,14,FALSE),0) -> 1554 | P25: =IFERROR(VLOOKUP($A25,Filtro_!$A$4:$AX$2299,15,FALSE),0) -> 481 | Q25: =IFERROR(VLOOKUP($A25,Filtro_!$A$4:$AX$2299,16,FALSE),0) -> 1487 | R25: =IFERROR(VLOOKUP($A25,Filtro_!$A$4:$AX$2299,17,FALSE),0) -> 472 | S25: =IFERROR(VLOOKUP($A25,Filtro_!$A$4:$AX$2299,18,FALSE),0) -> 1389 | T25: =IFERROR(VLOOKUP($A25,Filtro_!$A$4:$AX$2299,19,FALSE),0) -> 479 | U25: =IFERROR(VLOOKUP($A25,Filtro_!$A$4:$AX$2299,20,FALSE),0) -> 1193 | V25: =IFERROR(VLOOKUP($A25,Filtro_!$A$4:$AX$2299,21,FALSE),0) -> 371 | W25: =IFERROR(VLOOKUP($A25,Filtro_!$A$4:$AX$2299,22,FALSE),0) -> 945 | X25: =IFERROR(VLOOKUP($A25,Filtro_!$A$4:$AX$2299,23,FALSE),0) -> 332 | Y25: =IFERROR(VLOOKUP($A25,Filtro_!$A$4:$AX$2299,24,FALSE),0) -> 608 | Z25: =IFERROR(VLOOKUP($A25,Filtro_!$A$4:$AX$2299,25,FALSE),0) -> 755 | AA25: =IFERROR(VLOOKUP($A25,Filtro_!$A$4:$AX$2299,26,FALSE),0) -> 1963 | AB25: =IFERROR(VLOOKUP($A25,Filtro_!$A$4:$AX$2299,27,FALSE),0) -> 663 | AC25: =IFERROR(VLOOKUP($A25,Filtro_!$A$4:$AX$2299,28,FALSE),0) -> 1556 | AD25: =IFERROR(VLOOKUP($A25,Filtro_!$A$4:$AX$2299,29,FALSE),0) -> 467 | AE25: =IFERROR(VLOOKUP($A25,Filtro_!$A$4:$AX$2299,30,FALSE),0) -> 1173 | AF25: =IFERROR(VLOOKUP($A25,Filtro_!$A$4:$AX$2299,31,FALSE),0) -> 459 | AG25: =IFERROR(VLOOKUP($A25,Filtro_!$A$4:$AX$2299,32,FALSE),0) -> 1152
B26: SECCIÓN C: RESULTADOS DE EMP SEGÚN ESTADO DE SALUD
B27: ESTADO DE SALUD | C27: TOTAL | F27: 15 a 19 | H27: 20 a 24 | J27: 25 a 29 | L27: 30 a 34 | N27: 35 a 39 | P27: 40 a 44 | R27: 45 a 49 | T27: 50 a 54 | V27: 55 a 59 | X27: 60 a 64 | Z27: 65 a 69 | AB27: 70 a 74 | AD27: 75 a 79 | AF27: 80 y más
C28: Ambos Sexos | D28: Hombres | E28: Mujeres | F28: Hombres | G28: Mujeres | H28: Hombres | I28: Mujeres | J28: Hombres | K28: Mujeres | L28: Hombres | M28: Mujeres | N28: Hombres | O28: Mujeres | P28: Hombres | Q28: Mujeres | R28: Hombres | S28: Mujeres | T28: Hombres | U28: Mujeres | V28: Hombres | W28: Mujeres | X28: Hombres | Y28: Mujeres | Z28: Hombres | AA28: Mujeres | AB28: Hombres | AC28: Mujeres | AD28: Hombres | AE28: Mujeres | AF28: Hombres | AG28: Mujeres
A29: 02200010 | B29: TABAQUISMO | C29: =IFERROR(VLOOKUP($A29,Filtro_!$A$4:$AX$2299,2,FALSE),0) -> 11527 | D29: =IFERROR(VLOOKUP($A29,Filtro_!$A$4:$AX$2299,3,FALSE),0) -> 4118 | E29: =IFERROR(VLOOKUP($A29,Filtro_!$A$4:$AX$2299,4,FALSE),0) -> 7409 | F29: =IFERROR(VLOOKUP($A29,Filtro_!$A$4:$AX$2299,5,FALSE),0) -> 35 | G29: =IFERROR(VLOOKUP($A29,Filtro_!$A$4:$AX$2299,6,FALSE),0) -> 49 | H29: =IFERROR(VLOOKUP($A29,Filtro_!$A$4:$AX$2299,7,FALSE),0) -> 374 | I29: =IFERROR(VLOOKUP($A29,Filtro_!$A$4:$AX$2299,8,FALSE),0) -> 724 | J29: =IFERROR(VLOOKUP($A29,Filtro_!$A$4:$AX$2299,9,FALSE),0) -> 435 | K29: =IFERROR(VLOOKUP($A29,Filtro_!$A$4:$AX$2299,10,FALSE),0) -> 846 | L29: =IFERROR(VLOOKUP($A29,Filtro_!$A$4:$AX$2299,11,FALSE),0) -> 510 | M29: =IFERROR(VLOOKUP($A29,Filtro_!$A$4:$AX$2299,12,FALSE),0) -> 1050 | N29: =IFERROR(VLOOKUP($A29,Filtro_!$A$4:$AX$2299,13,FALSE),0) -> 433 | O29: =IFERROR(VLOOKUP($A29,Filtro_!$A$4:$AX$2299,14,FALSE),0) -> 1004 | P29: =IFERROR(VLOOKUP($A29,Filtro_!$A$4:$AX$2299,15,FALSE),0) -> 433 | Q29: =IFERROR(VLOOKUP($A29,Filtro_!$A$4:$AX$2299,16,FALSE),0) -> 830 | R29: =IFERROR(VLOOKUP($A29,Filtro_!$A$4:$AX$2299,17,FALSE),0) -> 385 | S29: =IFERROR(VLOOKUP($A29,Filtro_!$A$4:$AX$2299,18,FALSE),0) -> 734 | T29: =IFERROR(VLOOKUP($A29,Filtro_!$A$4:$AX$2299,19,FALSE),0) -> 358 | U29: =IFERROR(VLOOKUP($A29,Filtro_!$A$4:$AX$2299,20,FALSE),0) -> 607 | V29: =IFERROR(VLOOKUP($A29,Filtro_!$A$4:$AX$2299,21,FALSE),0) -> 296 | W29: =IFERROR(VLOOKUP($A29,Filtro_!$A$4:$AX$2299,22,FALSE),0) -> 443 | X29: =IFERROR(VLOOKUP($A29,Filtro_!$A$4:$AX$2299,23,FALSE),0) -> 210 | Y29: =IFERROR(VLOOKUP($A29,Filtro_!$A$4:$AX$2299,24,FALSE),0) -> 313 | Z29: =IFERROR(VLOOKUP($A29,Filtro_!$A$4:$AX$2299,25,FALSE),0) -> 261 | AA29: =IFERROR(VLOOKUP($A29,Filtro_!$A$4:$AX$2299,26,FALSE),0) -> 361 | AB29: =IFERROR(VLOOKUP($A29,Filtro_!$A$4:$AX$2299,27,FALSE),0) -> 174 | AC29: =IFERROR(VLOOKUP($A29,Filtro_!$A$4:$AX$2299,28,FALSE),0) -> 236 | AD29: =IFERROR(VLOOKUP($A29,Filtro_!$A$4:$AX$2299,29,FALSE),0) -> 120 | AE29: =IFERROR(VLOOKUP($A29,Filtro_!$A$4:$AX$2299,30,FALSE),0) -> 118 | AF29: =IFERROR(VLOOKUP($A29,Filtro_!$A$4:$AX$2299,31,FALSE),0) -> 94 | AG29: =IFERROR(VLOOKUP($A29,Filtro_!$A$4:$AX$2299,32,FALSE),0) -> 94 | CG29: 0 | CH29: 0
A30: 02200020 | B30: PRESIÓN ARTERIAL ELEVADA (= >140/90 mmHg) | C30: =IFERROR(VLOOKUP($A30,Filtro_!$A$4:$AX$2299,2,FALSE),0) -> 13481 | D30: =IFERROR(VLOOKUP($A30,Filtro_!$A$4:$AX$2299,3,FALSE),0) -> 5287 | E30: =IFERROR(VLOOKUP($A30,Filtro_!$A$4:$AX$2299,4,FALSE),0) -> 8194 | F30: =IFERROR(VLOOKUP($A30,Filtro_!$A$4:$AX$2299,5,FALSE),0) -> 12 | G30: =IFERROR(VLOOKUP($A30,Filtro_!$A$4:$AX$2299,6,FALSE),0) -> 9 | H30: =IFERROR(VLOOKUP($A30,Filtro_!$A$4:$AX$2299,7,FALSE),0) -> 148 | I30: =IFERROR(VLOOKUP($A30,Filtro_!$A$4:$AX$2299,8,FALSE),0) -> 176 | J30: =IFERROR(VLOOKUP($A30,Filtro_!$A$4:$AX$2299,9,FALSE),0) -> 176 | K30: =IFERROR(VLOOKUP($A30,Filtro_!$A$4:$AX$2299,10,FALSE),0) -> 235 | L30: =IFERROR(VLOOKUP($A30,Filtro_!$A$4:$AX$2299,11,FALSE),0) -> 216 | M30: =IFERROR(VLOOKUP($A30,Filtro_!$A$4:$AX$2299,12,FALSE),0) -> 303 | N30: =IFERROR(VLOOKUP($A30,Filtro_!$A$4:$AX$2299,13,FALSE),0) -> 231 | O30: =IFERROR(VLOOKUP($A30,Filtro_!$A$4:$AX$2299,14,FALSE),0) -> 402 | P30: =IFERROR(VLOOKUP($A30,Filtro_!$A$4:$AX$2299,15,FALSE),0) -> 279 | Q30: =IFERROR(VLOOKUP($A30,Filtro_!$A$4:$AX$2299,16,FALSE),0) -> 488 | R30: =IFERROR(VLOOKUP($A30,Filtro_!$A$4:$AX$2299,17,FALSE),0) -> 302 | S30: =IFERROR(VLOOKUP($A30,Filtro_!$A$4:$AX$2299,18,FALSE),0) -> 533 | T30: =IFERROR(VLOOKUP($A30,Filtro_!$A$4:$AX$2299,19,FALSE),0) -> 344 | U30: =IFERROR(VLOOKUP($A30,Filtro_!$A$4:$AX$2299,20,FALSE),0) -> 582 | V30: =IFERROR(VLOOKUP($A30,Filtro_!$A$4:$AX$2299,21,FALSE),0) -> 381 | W30: =IFERROR(VLOOKUP($A30,Filtro_!$A$4:$AX$2299,22,FALSE),0) -> 477 | X30: =IFERROR(VLOOKUP($A30,Filtro_!$A$4:$AX$2299,23,FALSE),0) -> 332 | Y30: =IFERROR(VLOOKUP($A30,Filtro_!$A$4:$AX$2299,24,FALSE),0) -> 373 | Z30: =IFERROR(VLOOKUP($A30,Filtro_!$A$4:$AX$2299,25,FALSE),0) -> 718 | AA30: =IFERROR(VLOOKUP($A30,Filtro_!$A$4:$AX$2299,26,FALSE),0) -> 1118 | AB30: =IFERROR(VLOOKUP($A30,Filtro_!$A$4:$AX$2299,27,FALSE),0) -> 750 | AC30: =IFERROR(VLOOKUP($A30,Filtro_!$A$4:$AX$2299,28,FALSE),0) -> 1056 | AD30: =IFERROR(VLOOKUP($A30,Filtro_!$A$4:$AX$2299,29,FALSE),0) -> 616 | AE30: =IFERROR(VLOOKUP($A30,Filtro_!$A$4:$AX$2299,30,FALSE),0) -> 1026 | AF30: =IFERROR(VLOOKUP($A30,Filtro_!$A$4:$AX$2299,31,FALSE),0) -> 782 | AG30: =IFERROR(VLOOKUP($A30,Filtro_!$A$4:$AX$2299,32,FALSE),0) -> 1416 | CG30: 0 | CH30: 0
B31: SECCIÓN D: RESULTADOS DE EMP SEGÚN ESTADO DE SALUD (EXÁMENES DE LABORATORIO)
B32: ESTADO DE SALUD | C32: TOTAL | F32: 15 a 19 años | H32: 20 a 24 años | J32: 25 a 29 | L32: 30 a 34 | N32: 35 a 39 | P32: 40 a 44 | R32: 45 a 49 | T32: 50 a 54 | V32: 55 a 59 | X32: 60 a 64 | Z32: 65 a 69 | AB32: 70 a 74 | AD32: 75 a 79 | AF32: 80 y más
C33: Ambos Sexos | D33: Hombres | E33: Mujeres | F33: Hombres | G33: Mujeres | H33: Hombres | I33: Mujeres | J33: Hombres | K33: Mujeres | L33: Hombres | M33: Mujeres | N33: Hombres | O33: Mujeres | P33: Hombres | Q33: Mujeres | R33: Hombres | S33: Mujeres | T33: Hombres | U33: Mujeres | V33: Hombres | W33: Mujeres | X33: Hombres | Y33: Mujeres | Z33: Hombres | AA33: Mujeres | AB33: Hombres | AC33: Mujeres | AD33: Hombres | AE33: Mujeres | AF33: Hombres | AG33: Mujeres
A34: 02200030 | B34: GLICEMIA ALTERADA (= > a 100 mg/dl) | C34: =IFERROR(VLOOKUP($A34,Filtro_!$A$4:$AX$2299,2,FALSE),0) -> 7741 | D34: =IFERROR(VLOOKUP($A34,Filtro_!$A$4:$AX$2299,3,FALSE),0) -> 2671 | E34: =IFERROR(VLOOKUP($A34,Filtro_!$A$4:$AX$2299,4,FALSE),0) -> 5070 | F34: =IFERROR(VLOOKUP($A34,Filtro_!$A$4:$AX$2299,5,FALSE),0) -> 7 | G34: =IFERROR(VLOOKUP($A34,Filtro_!$A$4:$AX$2299,6,FALSE),0) -> 13 | H34: =IFERROR(VLOOKUP($A34,Filtro_!$A$4:$AX$2299,7,FALSE),0) -> 72 | I34: =IFERROR(VLOOKUP($A34,Filtro_!$A$4:$AX$2299,8,FALSE),0) -> 206 | J34: =IFERROR(VLOOKUP($A34,Filtro_!$A$4:$AX$2299,9,FALSE),0) -> 102 | K34: =IFERROR(VLOOKUP($A34,Filtro_!$A$4:$AX$2299,10,FALSE),0) -> 255 | L34: =IFERROR(VLOOKUP($A34,Filtro_!$A$4:$AX$2299,11,FALSE),0) -> 114 | M34: =IFERROR(VLOOKUP($A34,Filtro_!$A$4:$AX$2299,12,FALSE),0) -> 314 | N34: =IFERROR(VLOOKUP($A34,Filtro_!$A$4:$AX$2299,13,FALSE),0) -> 151 | O34: =IFERROR(VLOOKUP($A34,Filtro_!$A$4:$AX$2299,14,FALSE),0) -> 354 | P34: =IFERROR(VLOOKUP($A34,Filtro_!$A$4:$AX$2299,15,FALSE),0) -> 150 | Q34: =IFERROR(VLOOKUP($A34,Filtro_!$A$4:$AX$2299,16,FALSE),0) -> 428 | R34: =IFERROR(VLOOKUP($A34,Filtro_!$A$4:$AX$2299,17,FALSE),0) -> 176 | S34: =IFERROR(VLOOKUP($A34,Filtro_!$A$4:$AX$2299,18,FALSE),0) -> 411 | T34: =IFERROR(VLOOKUP($A34,Filtro_!$A$4:$AX$2299,19,FALSE),0) -> 174 | U34: =IFERROR(VLOOKUP($A34,Filtro_!$A$4:$AX$2299,20,FALSE),0) -> 395 | V34: =IFERROR(VLOOKUP($A34,Filtro_!$A$4:$AX$2299,21,FALSE),0) -> 201 | W34: =IFERROR(VLOOKUP($A34,Filtro_!$A$4:$AX$2299,22,FALSE),0) -> 379 | X34: =IFERROR(VLOOKUP($A34,Filtro_!$A$4:$AX$2299,23,FALSE),0) -> 165 | Y34: =IFERROR(VLOOKUP($A34,Filtro_!$A$4:$AX$2299,24,FALSE),0) -> 265 | Z34: =IFERROR(VLOOKUP($A34,Filtro_!$A$4:$AX$2299,25,FALSE),0) -> 404 | AA34: =IFERROR(VLOOKUP($A34,Filtro_!$A$4:$AX$2299,26,FALSE),0) -> 634 | AB34: =IFERROR(VLOOKUP($A34,Filtro_!$A$4:$AX$2299,27,FALSE),0) -> 367 | AC34: =IFERROR(VLOOKUP($A34,Filtro_!$A$4:$AX$2299,28,FALSE),0) -> 555 | AD34: =IFERROR(VLOOKUP($A34,Filtro_!$A$4:$AX$2299,29,FALSE),0) -> 308 | AE34: =IFERROR(VLOOKUP($A34,Filtro_!$A$4:$AX$2299,30,FALSE),0) -> 398 | AF34: =IFERROR(VLOOKUP($A34,Filtro_!$A$4:$AX$2299,31,FALSE),0) -> 280 | AG34: =IFERROR(VLOOKUP($A34,Filtro_!$A$4:$AX$2299,32,FALSE),0) -> 463
A35: 02200040 | B35: COLESTEROL ELEVADO (= > 200 mg/dl) | C35: =IFERROR(VLOOKUP($A35,Filtro_!$A$4:$AX$2299,2,FALSE),0) -> 4176 | D35: =IFERROR(VLOOKUP($A35,Filtro_!$A$4:$AX$2299,3,FALSE),0) -> 1351 | E35: =IFERROR(VLOOKUP($A35,Filtro_!$A$4:$AX$2299,4,FALSE),0) -> 2825 | F35: =IFERROR(VLOOKUP($A35,Filtro_!$A$4:$AX$2299,5,FALSE),0) -> 1 | G35: =IFERROR(VLOOKUP($A35,Filtro_!$A$4:$AX$2299,6,FALSE),0) -> 3 | H35: =IFERROR(VLOOKUP($A35,Filtro_!$A$4:$AX$2299,7,FALSE),0) -> 26 | I35: =IFERROR(VLOOKUP($A35,Filtro_!$A$4:$AX$2299,8,FALSE),0) -> 54 | J35: =IFERROR(VLOOKUP($A35,Filtro_!$A$4:$AX$2299,9,FALSE),0) -> 47 | K35: =IFERROR(VLOOKUP($A35,Filtro_!$A$4:$AX$2299,10,FALSE),0) -> 97 | L35: =IFERROR(VLOOKUP($A35,Filtro_!$A$4:$AX$2299,11,FALSE),0) -> 57 | M35: =IFERROR(VLOOKUP($A35,Filtro_!$A$4:$AX$2299,12,FALSE),0) -> 128 | N35: =IFERROR(VLOOKUP($A35,Filtro_!$A$4:$AX$2299,13,FALSE),0) -> 97 | O35: =IFERROR(VLOOKUP($A35,Filtro_!$A$4:$AX$2299,14,FALSE),0) -> 150 | P35: =IFERROR(VLOOKUP($A35,Filtro_!$A$4:$AX$2299,15,FALSE),0) -> 104 | Q35: =IFERROR(VLOOKUP($A35,Filtro_!$A$4:$AX$2299,16,FALSE),0) -> 239 | R35: =IFERROR(VLOOKUP($A35,Filtro_!$A$4:$AX$2299,17,FALSE),0) -> 124 | S35: =IFERROR(VLOOKUP($A35,Filtro_!$A$4:$AX$2299,18,FALSE),0) -> 232 | T35: =IFERROR(VLOOKUP($A35,Filtro_!$A$4:$AX$2299,19,FALSE),0) -> 119 | U35: =IFERROR(VLOOKUP($A35,Filtro_!$A$4:$AX$2299,20,FALSE),0) -> 255 | V35: =IFERROR(VLOOKUP($A35,Filtro_!$A$4:$AX$2299,21,FALSE),0) -> 113 | W35: =IFERROR(VLOOKUP($A35,Filtro_!$A$4:$AX$2299,22,FALSE),0) -> 251 | X35: =IFERROR(VLOOKUP($A35,Filtro_!$A$4:$AX$2299,23,FALSE),0) -> 99 | Y35: =IFERROR(VLOOKUP($A35,Filtro_!$A$4:$AX$2299,24,FALSE),0) -> 163 | Z35: =IFERROR(VLOOKUP($A35,Filtro_!$A$4:$AX$2299,25,FALSE),0) -> 170 | AA35: =IFERROR(VLOOKUP($A35,Filtro_!$A$4:$AX$2299,26,FALSE),0) -> 385 | AB35: =IFERROR(VLOOKUP($A35,Filtro_!$A$4:$AX$2299,27,FALSE),0) -> 141 | AC35: =IFERROR(VLOOKUP($A35,Filtro_!$A$4:$AX$2299,28,FALSE),0) -> 319 | AD35: =IFERROR(VLOOKUP($A35,Filtro_!$A$4:$AX$2299,29,FALSE),0) -> 127 | AE35: =IFERROR(VLOOKUP($A35,Filtro_!$A$4:$AX$2299,30,FALSE),0) -> 260 | AF35: =IFERROR(VLOOKUP($A35,Filtro_!$A$4:$AX$2299,31,FALSE),0) -> 126 | AG35: =IFERROR(VLOOKUP($A35,Filtro_!$A$4:$AX$2299,32,FALSE),0) -> 289
B195: =SUM(C12:C17,C21:C25,C29:C30,C34:C35) -> 267164 | C195: =SUM(CH7:CN52) -> 1

Sheet A03
B1: MINISTERIO DE SALUD
B2: SERVICIO DE SALUD COQUIMBO
B3: DEPARTAMENTO DE GESTIÓN, PLANIFICACIÓN Y CONTROL
B4: SUBDEPTO. DE ESTADÍSTICAS Y GESTIÓN DE LA INFORMACIÓN
B5: AÑO 2022
B6: REM-A03. APLICACIÓN Y RESULTADOS DE ESCALAS DE EVALUACIÓN
B7: SECCIÓN A: APLICACIÓN DE INSTRUMENTO Y RESULTADO EN EL NIÑO (A)
B8: SECCIÓN A.1: APLICACIÓN Y RESULTADOS DE PAUTA BREVE
B9: EVALUACIONES POR EDAD DEL NIÑO | D9: TOTAL | G9: GRUPO DE EDAD
G10: Menor de 1 mes | I10: 1 mes | K10: 2 meses | M10: 3 meses | O10: 4 meses | Q10: 5 meses | S10: 6 meses | U10: 7 - 11 meses | W10: 12 - 17 meses | Y10: 18 - 24 meses
D11: Ambos Sexos | E11: Hombres | F11: Mujeres | G11: Hombres | H11: Mujeres | I11: Hombres | J11: Mujeres | K11: Hombres | L11: Mujeres | M11: Hombres | N11: Mujeres | O11: Hombres | P11: Mujeres | Q11: Hombres | R11: Mujeres | S11: Hombres | T11: Mujeres | U11: Hombres | V11: Mujeres | W11: Hombres | X11: Mujeres | Y11: Hombres | Z11: Mujeres
A12: 02021730 | B12: APLICACIÓN PAUTA BREVE | D12: =IFERROR(VLOOKUP($A12,Filtro_!$A$4:$AX$2299,2,FALSE),0) -> 13761 | E12: =IFERROR(VLOOKUP($A12,Filtro_!$A$4:$AX$2299,3,FALSE),0) -> 6940 | F12: =IFERROR(VLOOKUP($A12,Filtro_!$A$4:$AX$2299,4,FALSE),0) -> 6821 | G12: =IFERROR(VLOOKUP($A12,Filtro_!$A$4:$AX$2299,5,FALSE),0) -> 11 | H12: =IFERROR(VLOOKUP($A12,Filtro_!$A$4:$AX$2299,6,FALSE),0) -> 7 | I12: =IFERROR(VLOOKUP($A12,Filtro_!$A$4:$AX$2299,7,FALSE),0) -> 22 | J12: =IFERROR(VLOOKUP($A12,Filtro_!$A$4:$AX$2299,8,FALSE),0) -> 15 | K12: =IFERROR(VLOOKUP($A12,Filtro_!$A$4:$AX$2299,9,FALSE),0) -> 17 | L12: =IFERROR(VLOOKUP($A12,Filtro_!$A$4:$AX$2299,10,FALSE),0) -> 18 | M12: =IFERROR(VLOOKUP($A12,Filtro_!$A$4:$AX$2299,11,FALSE),0) -> 100 | N12: =IFERROR(VLOOKUP($A12,Filtro_!$A$4:$AX$2299,12,FALSE),0) -> 116 | O12: =IFERROR(VLOOKUP($A12,Filtro_!$A$4:$AX$2299,13,FALSE),0) -> 2497 | P12: =IFERROR(VLOOKUP($A12,Filtro_!$A$4:$AX$2299,14,FALSE),0) -> 2366 | Q12: =IFERROR(VLOOKUP($A12,Filtro_!$A$4:$AX$2299,15,FALSE),0) -> 73 | R12: =IFERROR(VLOOKUP($A12,Filtro_!$A$4:$AX$2299,16,FALSE),0) -> 75 | S12: =IFERROR(VLOOKUP($A12,Filtro_!$A$4:$AX$2299,17,FALSE),0) -> 14 | T12: =IFERROR(VLOOKUP($A12,Filtro_!$A$4:$AX$2299,18,FALSE),0) -> 22 | U12: =IFERROR(VLOOKUP($A12,Filtro_!$A$4:$AX$2299,19,FALSE),0) -> 96 | V12: =IFERROR(VLOOKUP($A12,Filtro_!$A$4:$AX$2299,20,FALSE),0) -> 92 | W12: =IFERROR(VLOOKUP($A12,Filtro_!$A$4:$AX$2299,21,FALSE),0) -> 2205 | X12: =IFERROR(VLOOKUP($A12,Filtro_!$A$4:$AX$2299,22,FALSE),0) -> 2132 | Y12: =IFERROR(VLOOKUP($A12,Filtro_!$A$4:$AX$2299,23,FALSE),0) -> 1905 | Z12: =IFERROR(VLOOKUP($A12,Filtro_!$A$4:$AX$2299,24,FALSE),0) -> 1978
A13: 03500020 | B13: RESULTADOS | C13: NORMAL | D13: =IFERROR(VLOOKUP($A13,Filtro_!$A$4:$AX$2299,2,FALSE),0) -> 12309 | E13: =IFERROR(VLOOKUP($A13,Filtro_!$A$4:$AX$2299,3,FALSE),0) -> 6055 | F13: =IFERROR(VLOOKUP($A13,Filtro_!$A$4:$AX$2299,4,FALSE),0) -> 6254 | G13: =IFERROR(VLOOKUP($A13,Filtro_!$A$4:$AX$2299,5,FALSE),0) -> 10 | H13: =IFERROR(VLOOKUP($A13,Filtro_!$A$4:$AX$2299,6,FALSE),0) -> 7 | I13: =IFERROR(VLOOKUP($A13,Filtro_!$A$4:$AX$2299,7,FALSE),0) -> 22 | J13: =IFERROR(VLOOKUP($A13,Filtro_!$A$4:$AX$2299,8,FALSE),0) -> 15 | K13: =IFERROR(VLOOKUP($A13,Filtro_!$A$4:$AX$2299,9,FALSE),0) -> 16 | L13: =IFERROR(VLOOKUP($A13,Filtro_!$A$4:$AX$2299,10,FALSE),0) -> 16 | M13: =IFERROR(VLOOKUP($A13,Filtro_!$A$4:$AX$2299,11,FALSE),0) -> 101 | N13: =IFERROR(VLOOKUP($A13,Filtro_!$A$4:$AX$2299,12,FALSE),0) -> 113 | O13: =IFERROR(VLOOKUP($A13,Filtro_!$A$4:$AX$2299,13,FALSE),0) -> 2419 | P13: =IFERROR(VLOOKUP($A13,Filtro_!$A$4:$AX$2299,14,FALSE),0) -> 2300 | Q13: =IFERROR(VLOOKUP($A13,Filtro_!$A$4:$AX$2299,15,FALSE),0) -> 70 | R13: =IFERROR(VLOOKUP($A13,Filtro_!$A$4:$AX$2299,16,FALSE),0) -> 74 | S13: =IFERROR(VLOOKUP($A13,Filtro_!$A$4:$AX$2299,17,FALSE),0) -> 14 | T13: =IFERROR(VLOOKUP($A13,Filtro_!$A$4:$AX$2299,18,FALSE),0) -> 22 | U13: =IFERROR(VLOOKUP($A13,Filtro_!$A$4:$AX$2299,19,FALSE),0) -> 91 | V13: =IFERROR(VLOOKUP($A13,Filtro_!$A$4:$AX$2299,20,FALSE),0) -> 83 | W13: =IFERROR(VLOOKUP($A13,Filtro_!$A$4:$AX$2299,21,FALSE),0) -> 1961 | X13: =IFERROR(VLOOKUP($A13,Filtro_!$A$4:$AX$2299,22,FALSE),0) -> 1957 | Y13: =IFERROR(VLOOKUP($A13,Filtro_!$A$4:$AX$2299,23,FALSE),0) -> 1351 | Z13: =IFERROR(VLOOKUP($A13,Filtro_!$A$4:$AX$2299,24,FALSE),0) -> 1667 | CF13: * Aplicacion de Pauta Breve en Hombres Menor de 1 mes debe ser igual a la suma de resultados. | CM13: * Aplicacion de Pauta Breve en Mujeres de 3 meses debe ser igual a la suma de resultados. | CO13: * Aplicacion de Pauta Breve en Mujeres de 4 meses debe ser igual a la suma de resultados. | CP13: * Aplicacion de Pauta Breve en Hombres de 5 meses debe ser igual a la suma de resultados. | CU13: * Aplicacion de Pauta Breve en Mujeres de 7 - 11 meses debe ser igual a la suma de resultados. | CW13: * Aplicacion de Pauta Breve en Mujeres de 12 - 17 meses debe ser igual a la suma de resultados. | CX13: * Aplicacion de Pauta Breve en Hombres de 18 - 24 meses debe ser igual a la suma de resultados. | CY13: * Aplicacion de Pauta Breve en Mujeres de 18 - 24 meses debe ser igual a la suma de resultados. | DF13: 1 | DG13: 0 | DH13: 0 | DI13: 0 | DJ13: 0 | DK13: 0 | DL13: 0 | DM13: 1 | DN13: 0 | DO13: 1 | DP13: 1 | DQ13: 0 | DR13: 0 | DS13: 0 | DT13: 0 | DU13: 1 | DV13: 0 | DW13: 1 | DX13: 1 | DY13: 1 | DZ13: 0
A14: 03500030 | C14: ALTERADO | D14: =IFERROR(VLOOKUP($A14,Filtro_!$A$4:$AX$2299,2,FALSE),0) -> 1491 | E14: =IFERROR(VLOOKUP($A14,Filtro_!$A$4:$AX$2299,3,FALSE),0) -> 897 | F14: =IFERROR(VLOOKUP($A14,Filtro_!$A$4:$AX$2299,4,FALSE),0) -> 594 | G14: =IFERROR(VLOOKUP($A14,Filtro_!$A$4:$AX$2299,5,FALSE),0) -> 0 | H14: =IFERROR(VLOOKUP($A14,Filtro_!$A$4:$AX$2299,6,FALSE),0) -> 0 | I14: =IFERROR(VLOOKUP($A14,Filtro_!$A$4:$AX$2299,7,FALSE),0) -> 0 | J14: =IFERROR(VLOOKUP($A14,Filtro_!$A$4:$AX$2299,8,FALSE),0) -> 0 | K14: =IFERROR(VLOOKUP($A14,Filtro_!$A$4:$AX$2299,9,FALSE),0) -> 1 | L14: =IFERROR(VLOOKUP($A14,Filtro_!$A$4:$AX$2299,10,FALSE),0) -> 2 | M14: =IFERROR(VLOOKUP($A14,Filtro_!$A$4:$AX$2299,11,FALSE),0) -> 1 | N14: =IFERROR(VLOOKUP($A14,Filtro_!$A$4:$AX$2299,12,FALSE),0) -> 3 | O14: =IFERROR(VLOOKUP($A14,Filtro_!$A$4:$AX$2299,13,FALSE),0) -> 82 | P14: =IFERROR(VLOOKUP($A14,Filtro_!$A$4:$AX$2299,14,FALSE),0) -> 79 | Q14: =IFERROR(VLOOKUP($A14,Filtro_!$A$4:$AX$2299,15,FALSE),0) -> 3 | R14: =IFERROR(VLOOKUP($A14,Filtro_!$A$4:$AX$2299,16,FALSE),0) -> 1 | S14: =IFERROR(VLOOKUP($A14,Filtro_!$A$4:$AX$2299,17,FALSE),0) -> 0 | T14: =IFERROR(VLOOKUP($A14,Filtro_!$A$4:$AX$2299,18,FALSE),0) -> 0 | U14: =IFERROR(VLOOKUP($A14,Filtro_!$A$4:$AX$2299,19,FALSE),0) -> 5 | V14: =IFERROR(VLOOKUP($A14,Filtro_!$A$4:$AX$2299,20,FALSE),0) -> 9 | W14: =IFERROR(VLOOKUP($A14,Filtro_!$A$4:$AX$2299,21,FALSE),0) -> 246 | X14: =IFERROR(VLOOKUP($A14,Filtro_!$A$4:$AX$2299,22,FALSE),0) -> 182 | Y14: =IFERROR(VLOOKUP($A14,Filtro_!$A$4:$AX$2299,23,FALSE),0) -> 559 | Z14: =IFERROR(VLOOKUP($A14,Filtro_!$A$4:$AX$2299,24,FALSE),0) -> 318
B15: SECCIÓN A.2: RESULTADOS DE LA APLICACIÓN DE ESCALA DE EVALUACIÓN DEL DESARROLLO PSICOMOTOR
B16: ACTIVIDAD | C16: RESULTADO | D16: TOTAL | G16: POR EDAD | S16: MIGRANTES
G17: Menor 7 meses | I17: 7 - 11 meses | K17: 12 - 17 meses | M17: 18 - 23 meses | O17: 24 - 47 meses | Q17: 48 - 59 meses
D18: Ambos Sexos | E18: Hombres | F18: Mujeres | G18: Hombres | H18: Mujeres | I18: Hombres | J18: Mujeres | K18: Hombres | L18: Mujeres | M18: Hombres | N18: Mujeres | O18: Hombres | P18: Mujeres | Q18: Hombres | R18: Mujeres
A19: 02021740 | B19: APLICACIÓN TEST DE DESARROLLO PSICOMOTOR | D19: =IFERROR(VLOOKUP($A19,Filtro_!$A$4:$AX$2299,2,FALSE),0) -> 17253 | E19: =IFERROR(VLOOKUP($A19,Filtro_!$A$4:$AX$2299,3,FALSE),0) -> 8902 | F19: =IFERROR(VLOOKUP($A19,Filtro_!$A$4:$AX$2299,4,FALSE),0) -> 8351 | G19: =IFERROR(VLOOKUP($A19,Filtro_!$A$4:$AX$2299,5,FALSE),0) -> 66 | H19: =IFERROR(VLOOKUP($A19,Filtro_!$A$4:$AX$2299,6,FALSE),0) -> 69 | I19: =IFERROR(VLOOKUP($A19,Filtro_!$A$4:$AX$2299,7,FALSE),0) -> 2678 | J19: =IFERROR(VLOOKUP($A19,Filtro_!$A$4:$AX$2299,8,FALSE),0) -> 2560 | K19: =IFERROR(VLOOKUP($A19,Filtro_!$A$4:$AX$2299,9,FALSE),0) -> 527 | L19: =IFERROR(VLOOKUP($A19,Filtro_!$A$4:$AX$2299,10,FALSE),0) -> 535 | M19: =IFERROR(VLOOKUP($A19,Filtro_!$A$4:$AX$2299,11,FALSE),0) -> 2777 | N19: =IFERROR(VLOOKUP($A19,Filtro_!$A$4:$AX$2299,12,FALSE),0) -> 2718 | O19: =IFERROR(VLOOKUP($A19,Filtro_!$A$4:$AX$2299,13,FALSE),0) -> 2548 | P19: =IFERROR(VLOOKUP($A19,Filtro_!$A$4:$AX$2299,14,FALSE),0) -> 2214 | Q19: =IFERROR(VLOOKUP($A19,Filtro_!$A$4:$AX$2299,15,FALSE),0) -> 306 | R19: =IFERROR(VLOOKUP($A19,Filtro_!$A$4:$AX$2299,16,FALSE),0) -> 255 | S19: =IFERROR(VLOOKUP($A19,Filtro_!$A$4:$AX$2299,17,FALSE),0) -> 127 | BY19: * El total de aplicaciones de Migrantes no debe superar el total general de aplicaciones. | CB19: * El total de aplicaciones de 12-17 debe ser IGUAL a los resultados de la totalidad de las aplicaciones de la primera evaluación y la reevaluación. | CC19: * El total de aplicaciones de 18-23 debe ser IGUAL a los resultados de la totalidad de las aplicaciones de la primera evaluación y la reevaluación. | CD19: * El total de aplicaciones de 24-47 debe ser IGUAL a los resultados de la totalidad de las aplicaciones de la primera evaluación y la reevaluación. | CG19: 0 | CH19: 1 | CI19: 1 | CJ19: 1 | CK19: 0 | CL19: 0 | CM19: 0 | CN19: 1 | CO19: 0
A20: 02010320 | B20: PRIMERA EVALUACIÓN | C20: NORMAL | D20: =IFERROR(VLOOKUP($A20,Filtro_!$A$4:$AX$2299,2,FALSE),0) -> 13014 | E20: =IFERROR(VLOOKUP($A20,Filtro_!$A$4:$AX$2299,3,FALSE),0) -> 6312 | F20: =IFERROR(VLOOKUP($A20,Filtro_!$A$4:$AX$2299,4,FALSE),0) -> 6702 | G20: =IFERROR(VLOOKUP($A20,Filtro_!$A$4:$AX$2299,5,FALSE),0) -> 52 | H20: =IFERROR(VLOOKUP($A20,Filtro_!$A$4:$AX$2299,6,FALSE),0) -> 54 | I20: =IFERROR(VLOOKUP($A20,Filtro_!$A$4:$AX$2299,7,FALSE),0) -> 2371 | J20: =IFERROR(VLOOKUP($A20,Filtro_!$A$4:$AX$2299,8,FALSE),0) -> 2274 | K20: =IFERROR(VLOOKUP($A20,Filtro_!$A$4:$AX$2299,9,FALSE),0) -> 377 | L20: =IFERROR(VLOOKUP($A20,Filtro_!$A$4:$AX$2299,10,FALSE),0) -> 407 | M20: =IFERROR(VLOOKUP($A20,Filtro_!$A$4:$AX$2299,11,FALSE),0) -> 1823 | N20: =IFERROR(VLOOKUP($A20,Filtro_!$A$4:$AX$2299,12,FALSE),0) -> 2148 | O20: =IFERROR(VLOOKUP($A20,Filtro_!$A$4:$AX$2299,13,FALSE),0) -> 1483 | P20: =IFERROR(VLOOKUP($A20,Filtro_!$A$4:$AX$2299,14,FALSE),0) -> 1626 | Q20: =IFERROR(VLOOKUP($A20,Filtro_!$A$4:$AX$2299,15,FALSE),0) -> 206 | R20: =IFERROR(VLOOKUP($A20,Filtro_!$A$4:$AX$2299,16,FALSE),0) -> 193 | S20: =IFERROR(VLOOKUP($A20,Filtro_!$A$4:$AX$2299,17,FALSE),0) -> 89
A21: 05225303 | C21: NORMAL CON REZAGO | D21: =IFERROR(VLOOKUP($A21,Filtro_!$A$4:$AX$2299,2,FALSE),0) -> 935 | E21: =IFERROR(VLOOKUP($A21,Filtro_!$A$4:$AX$2299,3,FALSE),0) -> 540 | F21: =IFERROR(VLOOKUP($A21,Filtro_!$A$4:$AX$2299,4,FALSE),0) -> 395 | G21: =IFERROR(VLOOKUP($A21,Filtro_!$A$4:$AX$2299,5,FALSE),0) -> 4 | H21: =IFERROR(VLOOKUP($A21,Filtro_!$A$4:$AX$2299,6,FALSE),0) -> 7 | I21: =IFERROR(VLOOKUP($A21,Filtro_!$A$4:$AX$2299,7,FALSE),0) -> 102 | J21: =IFERROR(VLOOKUP($A21,Filtro_!$A$4:$AX$2299,8,FALSE),0) -> 104 | K21: =IFERROR(VLOOKUP($A21,Filtro_!$A$4:$AX$2299,9,FALSE),0) -> 45 | L21: =IFERROR(VLOOKUP($A21,Filtro_!$A$4:$AX$2299,10,FALSE),0) -> 27 | M21: =IFERROR(VLOOKUP($A21,Filtro_!$A$4:$AX$2299,11,FALSE),0) -> 120 | N21: =IFERROR(VLOOKUP($A21,Filtro_!$A$4:$AX$2299,12,FALSE),0) -> 77 | O21: =IFERROR(VLOOKUP($A21,Filtro_!$A$4:$AX$2299,13,FALSE),0) -> 258 | P21: =IFERROR(VLOOKUP($A21,Filtro_!$A$4:$AX$2299,14,FALSE),0) -> 170 | Q21: =IFERROR(VLOOKUP($A21,Filtro_!$A$4:$AX$2299,15,FALSE),0) -> 11 | R21: =IFERROR(VLOOKUP($A21,Filtro_!$A$4:$AX$2299,16,FALSE),0) -> 10 | S21: =IFERROR(VLOOKUP($A21,Filtro_!$A$4:$AX$2299,17,FALSE),0) -> 11
A22: 02010321 | C22: RIESGO | D22: =IFERROR(VLOOKUP($A22,Filtro_!$A$4:$AX$2299,2,FALSE),0) -> 1275 | E22: =IFERROR(VLOOKUP($A22,Filtro_!$A$4:$AX$2299,3,FALSE),0) -> 803 | F22: =IFERROR(VLOOKUP($A22,Filtro_!$A$4:$AX$2299,4,FALSE),0) -> 472 | G22: =IFERROR(VLOOKUP($A22,Filtro_!$A$4:$AX$2299,5,FALSE),0) -> 7 | H22: =IFERROR(VLOOKUP($A22,Filtro_!$A$4:$AX$2299,6,FALSE),0) -> 4 | I22: =IFERROR(VLOOKUP($A22,Filtro_!$A$4:$AX$2299,7,FALSE),0) -> 87 | J22: =IFERROR(VLOOKUP($A22,Filtro_!$A$4:$AX$2299,8,FALSE),0) -> 68 | K22: =IFERROR(VLOOKUP($A22,Filtro_!$A$4:$AX$2299,9,FALSE),0) -> 40 | L22: =IFERROR(VLOOKUP($A22,Filtro_!$A$4:$AX$2299,10,FALSE),0) -> 33 | M22: =IFERROR(VLOOKUP($A22,Filtro_!$A$4:$AX$2299,11,FALSE),0) -> 330 | N22: =IFERROR(VLOOKUP($A22,Filtro_!$A$4:$AX$2299,12,FALSE),0) -> 179 | O22: =IFERROR(VLOOKUP($A22,Filtro_!$A$4:$AX$2299,13,FALSE),0) -> 320 | P22: =IFERROR(VLOOKUP($A22,Filtro_!$A$4:$AX$2299,14,FALSE),0) -> 183 | Q22: =IFERROR(VLOOKUP($A22,Filtro_!$A$4:$AX$2299,15,FALSE),0) -> 19 | R22: =IFERROR(VLOOKUP($A22,Filtro_!$A$4:$AX$2299,16,FALSE),0) -> 5 | S22: =IFERROR(VLOOKUP($A22,Filtro_!$A$4:$AX$2299,17,FALSE),0) -> 15
A23: 02010322 | C23: RETRASO | D23: =IFERROR(VLOOKUP($A23,Filtro_!$A$4:$AX$2299,2,FALSE),0) -> 410 | E23: =IFERROR(VLOOKUP($A23,Filtro_!$A$4:$AX$2299,3,FALSE),0) -> 274 | F23: =IFERROR(VLOOKUP($A23,Filtro_!$A$4:$AX$2299,4,FALSE),0) -> 136 | G23: =IFERROR(VLOOKUP($A23,Filtro_!$A$4:$AX$2299,5,FALSE),0) -> 1 | H23: =IFERROR(VLOOKUP($A23,Filtro_!$A$4:$AX$2299,6,FALSE),0) -> 0 | I23: =IFERROR(VLOOKUP($A23,Filtro_!$A$4:$AX$2299,7,FALSE),0) -> 18 | J23: =IFERROR(VLOOKUP($A23,Filtro_!$A$4:$AX$2299,8,FALSE),0) -> 15 | K23: =IFERROR(VLOOKUP($A23,Filtro_!$A$4:$AX$2299,9,FALSE),0) -> 7 | L23: =IFERROR(VLOOKUP($A23,Filtro_!$A$4:$AX$2299,10,FALSE),0) -> 3 | M23: =IFERROR(VLOOKUP($A23,Filtro_!$A$4:$AX$2299,11,FALSE),0) -> 115 | N23: =IFERROR(VLOOKUP($A23,Filtro_!$A$4:$AX$2299,12,FALSE),0) -> 75 | O23: =IFERROR(VLOOKUP($A23,Filtro_!$A$4:$AX$2299,13,FALSE),0) -> 117 | P23: =IFERROR(VLOOKUP($A23,Filtro_!$A$4:$AX$2299,14,FALSE),0) -> 36 | Q23: =IFERROR(VLOOKUP($A23,Filtro_!$A$4:$AX$2299,15,FALSE),0) -> 16 | R23: =IFERROR(VLOOKUP($A23,Filtro_!$A$4:$AX$2299,16,FALSE),0) -> 7 | S23: =IFERROR(VLOOKUP($A23,Filtro_!$A$4:$AX$2299,17,FALSE),0) -> 3
A24: 05225304 | B24: REEVALUACIÓN | C24: NORMAL (desde normal con rezago) | D24: =IFERROR(VLOOKUP($A24,Filtro_!$A$4:$AX$2299,2,FALSE),0) -> 365 | E24: =IFERROR(VLOOKUP($A24,Filtro_!$A$4:$AX$2299,3,FALSE),0) -> 195 | F24: =IFERROR(VLOOKUP($A24,Filtro_!$A$4:$AX$2299,4,FALSE),0) -> 170 | G24: =IFERROR(VLOOKUP($A24,Filtro_!$A$4:$AX$2299,5,FALSE),0) -> 0 | H24: =IFERROR(VLOOKUP($A24,Filtro_!$A$4:$AX$2299,6,FALSE),0) -> 3 | I24: =IFERROR(VLOOKUP($A24,Filtro_!$A$4:$AX$2299,7,FALSE),0) -> 34 | J24: =IFERROR(VLOOKUP($A24,Filtro_!$A$4:$AX$2299,8,FALSE),0) -> 43 | K24: =IFERROR(VLOOKUP($A24,Filtro_!$A$4:$AX$2299,9,FALSE),0) -> 17 | L24: =IFERROR(VLOOKUP($A24,Filtro_!$A$4:$AX$2299,10,FALSE),0) -> 18 | M24: =IFERROR(VLOOKUP($A24,Filtro_!$A$4:$AX$2299,11,FALSE),0) -> 37 | N24: =IFERROR(VLOOKUP($A24,Filtro_!$A$4:$AX$2299,12,FALSE),0) -> 33 | O24: =IFERROR(VLOOKUP($A24,Filtro_!$A$4:$AX$2299,13,FALSE),0) -> 93 | P24: =IFERROR(VLOOKUP($A24,Filtro_!$A$4:$AX$2299,14,FALSE),0) -> 59 | Q24: =IFERROR(VLOOKUP($A24,Filtro_!$A$4:$AX$2299,15,FALSE),0) -> 14 | R24: =IFERROR(VLOOKUP($A24,Filtro_!$A$4:$AX$2299,16,FALSE),0) -> 14 | S24: =IFERROR(VLOOKUP($A24,Filtro_!$A$4:$AX$2299,17,FALSE),0) -> 1
A25: 02010420 | C25: NORMAL (desde riesgo) | D25: =IFERROR(VLOOKUP($A25,Filtro_!$A$4:$AX$2299,2,FALSE),0) -> 621 | E25: =IFERROR(VLOOKUP($A25,Filtro_!$A$4:$AX$2299,3,FALSE),0) -> 367 | F25: =IFERROR(VLOOKUP($A25,Filtro_!$A$4:$AX$2299,4,FALSE),0) -> 254 | G25: =IFERROR(VLOOKUP($A25,Filtro_!$A$4:$AX$2299,5,FALSE),0) -> 2 | H25: =IFERROR(VLOOKUP($A25,Filtro_!$A$4:$AX$2299,6,FALSE),0) -> 0 | I25: =IFERROR(VLOOKUP($A25,Filtro_!$A$4:$AX$2299,7,FALSE),0) -> 42 | J25: =IFERROR(VLOOKUP($A25,Filtro_!$A$4:$AX$2299,8,FALSE),0) -> 37 | K25: =IFERROR(VLOOKUP($A25,Filtro_!$A$4:$AX$2299,9,FALSE),0) -> 24 | L25: =IFERROR(VLOOKUP($A25,Filtro_!$A$4:$AX$2299,10,FALSE),0) -> 27 | M25: =IFERROR(VLOOKUP($A25,Filtro_!$A$4:$AX$2299,11,FALSE),0) -> 174 | N25: =IFERROR(VLOOKUP($A25,Filtro_!$A$4:$AX$2299,12,FALSE),0) -> 122 | O25: =IFERROR(VLOOKUP($A25,Filtro_!$A$4:$AX$2299,13,FALSE),0) -> 108 | P25: =IFERROR(VLOOKUP($A25,Filtro_!$A$4:$AX$2299,14,FALSE),0) -> 64 | Q25: =IFERROR(VLOOKUP($A25,Filtro_!$A$4:$AX$2299,15,FALSE),0) -> 17 | R25: =IFERROR(VLOOKUP($A25,Filtro_!$A$4:$AX$2299,16,FALSE),0) -> 4 | S25: =IFERROR(VLOOKUP($A25,Filtro_!$A$4:$AX$2299,17,FALSE),0) -> 5
A26: 05225305 | C26: NORMAL (desde retraso) | D26: =IFERROR(VLOOKUP($A26,Filtro_!$A$4:$AX$2299,2,FALSE),0) -> 76 | E26: =IFERROR(VLOOKUP($A26,Filtro_!$A$4:$AX$2299,3,FALSE),0) -> 43 | F26: =IFERROR(VLOOKUP($A26,Filtro_!$A$4:$AX$2299,4,FALSE),0) -> 33 | G26: =IFERROR(VLOOKUP($A26,Filtro_!$A$4:$AX$2299,5,FALSE),0) -> 0 | H26: =IFERROR(VLOOKUP($A26,Filtro_!$A$4:$AX$2299,6,FALSE),0) -> 0 | I26: =IFERROR(VLOOKUP($A26,Filtro_!$A$4:$AX$2299,7,FALSE),0) -> 4 | J26: =IFERROR(VLOOKUP($A26,Filtro_!$A$4:$AX$2299,8,FALSE),0) -> 3 | K26: =IFERROR(VLOOKUP($A26,Filtro_!$A$4:$AX$2299,9,FALSE),0) -> 1 | L26: =IFERROR(VLOOKUP($A26,Filtro_!$A$4:$AX$2299,10,FALSE),0) -> 3 | M26: =IFERROR(VLOOKUP($A26,Filtro_!$A$4:$AX$2299,11,FALSE),0) -> 18 | N26: =IFERROR(VLOOKUP($A26,Filtro_!$A$4:$AX$2299,12,FALSE),0) -> 12 | O26: =IFERROR(VLOOKUP($A26,Filtro_!$A$4:$AX$2299,13,FALSE),0) -> 15 | P26: =IFERROR(VLOOKUP($A26,Filtro_!$A$4:$AX$2299,14,FALSE),0) -> 11 | Q26: =IFERROR(VLOOKUP($A26,Filtro_!$A$4:$AX$2299,15,FALSE),0) -> 5 | R26: =IFERROR(VLOOKUP($A26,Filtro_!$A$4:$AX$2299,16,FALSE),0) -> 4 | S26: =IFERROR(VLOOKUP($A26,Filtro_!$A$4:$AX$2299,17,FALSE),0) -> 1
A27: 03500366 | C27: NORMAL CON REZAGO (desde riesgo) | D27: =IFERROR(VLOOKUP($A27,Filtro_!$A$4:$AX$2299,2,FALSE),0) -> 150 | E27: =IFERROR(VLOOKUP($A27,Filtro_!$A$4:$AX$2299,3,FALSE),0) -> 100 | F27: =IFERROR(VLOOKUP($A27,Filtro_!$A$4:$AX$2299,4,FALSE),0) -> 50 | G27: =IFERROR(VLOOKUP($A27,Filtro_!$A$4:$AX$2299,5,FALSE),0) -> 0 | H27: =IFERROR(VLOOKUP($A27,Filtro_!$A$4:$AX$2299,6,FALSE),0) -> 0 | I27: =IFERROR(VLOOKUP($A27,Filtro_!$A$4:$AX$2299,7,FALSE),0) -> 6 | J27: =IFERROR(VLOOKUP($A27,Filtro_!$A$4:$AX$2299,8,FALSE),0) -> 3 | K27: =IFERROR(VLOOKUP($A27,Filtro_!$A$4:$AX$2299,9,FALSE),0) -> 2 | L27: =IFERROR(VLOOKUP($A27,Filtro_!$A$4:$AX$2299,10,FALSE),0) -> 6 | M27: =IFERROR(VLOOKUP($A27,Filtro_!$A$4:$AX$2299,11,FALSE),0) -> 54 | N27: =IFERROR(VLOOKUP($A27,Filtro_!$A$4:$AX$2299,12,FALSE),0) -> 24 | O27: =IFERROR(VLOOKUP($A27,Filtro_!$A$4:$AX$2299,13,FALSE),0) -> 33 | P27: =IFERROR(VLOOKUP($A27,Filtro_!$A$4:$AX$2299,14,FALSE),0) -> 14 | Q27: =IFERROR(VLOOKUP($A27,Filtro_!$A$4:$AX$2299,15,FALSE),0) -> 5 | R27: =IFERROR(VLOOKUP($A27,Filtro_!$A$4:$AX$2299,16,FALSE),0) -> 3 | S27: =IFERROR(VLOOKUP($A27,Filtro_!$A$4:$AX$2299,17,FALSE),0) -> 0
A28: 03500400 | C28: NORMAL CON REZAGO (desde retraso) | D28: =IFERROR(VLOOKUP($A28,Filtro_!$A$4:$AX$2299,2,FALSE),0) -> 22 | E28: =IFERROR(VLOOKUP($A28,Filtro_!$A$4:$AX$2299,3,FALSE),0) -> 17 | F28: =IFERROR(VLOOKUP($A28,Filtro_!$A$4:$AX$2299,4,FALSE),0) -> 5 | G28: =IFERROR(VLOOKUP($A28,Filtro_!$A$4:$AX$2299,5,FALSE),0) -> 0 | H28: =IFERROR(VLOOKUP($A28,Filtro_!$A$4:$AX$2299,6,FALSE),0) -> 0 | I28: =IFERROR(VLOOKUP($A28,Filtro_!$A$4:$AX$2299,7,FALSE),0) -> 0 | J28: =IFERROR(VLOOKUP($A28,Filtro_!$A$4:$AX$2299,8,FALSE),0) -> 0 | K28: =IFERROR(VLOOKUP($A28,Filtro_!$A$4:$AX$2299,9,FALSE),0) -> 0 | L28: =IFERROR(VLOOKUP($A28,Filtro_!$A$4:$AX$2299,10,FALSE),0) -> 1 | M28: =IFERROR(VLOOKUP($A28,Filtro_!$A$4:$AX$2299,11,FALSE),0) -> 7 | N28: =IFERROR(VLOOKUP($A28,Filtro_!$A$4:$AX$2299,12,FALSE),0) -> 3 | O28: =IFERROR(VLOOKUP($A28,Filtro_!$A$4:$AX$2299,13,FALSE),0) -> 9 | P28: =IFERROR(VLOOKUP($A28,Filtro_!$A$4:$AX$2299,14,FALSE),0) -> 1 | Q28: =IFERROR(VLOOKUP($A28,Filtro_!$A$4:$AX$2299,15,FALSE),0) -> 1 | R28: =IFERROR(VLOOKUP($A28,Filtro_!$A$4:$AX$2299,16,FALSE),0) -> 0 | S28: =IFERROR(VLOOKUP($A28,Filtro_!$A$4:$AX$2299,17,FALSE),0) -> 1
A29: 03500401 | C29: RIESGO (desde retraso) | D29: =IFERROR(VLOOKUP($A29,Filtro_!$A$4:$AX$2299,2,FALSE),0) -> 66 | E29: =IFERROR(VLOOKUP($A29,Filtro_!$A$4:$AX$2299,3,FALSE),0) -> 35 | F29: =IFERROR(VLOOKUP($A29,Filtro_!$A$4:$AX$2299,4,FALSE),0) -> 31 | G29: =IFERROR(VLOOKUP($A29,Filtro_!$A$4:$AX$2299,5,FALSE),0) -> 0 | H29: =IFERROR(VLOOKUP($A29,Filtro_!$A$4:$AX$2299,6,FALSE),0) -> 0 | I29: =IFERROR(VLOOKUP($A29,Filtro_!$A$4:$AX$2299,7,FALSE),0) -> 2 | J29: =IFERROR(VLOOKUP($A29,Filtro_!$A$4:$AX$2299,8,FALSE),0) -> 3 | K29: =IFERROR(VLOOKUP($A29,Filtro_!$A$4:$AX$2299,9,FALSE),0) -> 2 | L29: =IFERROR(VLOOKUP($A29,Filtro_!$A$4:$AX$2299,10,FALSE),0) -> 3 | M29: =IFERROR(VLOOKUP($A29,Filtro_!$A$4:$AX$2299,11,FALSE),0) -> 19 | N29: =IFERROR(VLOOKUP($A29,Filtro_!$A$4:$AX$2299,12,FALSE),0) -> 12 | O29: =IFERROR(VLOOKUP($A29,Filtro_!$A$4:$AX$2299,13,FALSE),0) -> 11 | P29: =IFERROR(VLOOKUP($A29,Filtro_!$A$4:$AX$2299,14,FALSE),0) -> 11 | Q29: =IFERROR(VLOOKUP($A29,Filtro_!$A$4:$AX$2299,15,FALSE),0) -> 1 | R29: =IFERROR(VLOOKUP($A29,Filtro_!$A$4:$AX$2299,16,FALSE),0) -> 2 | S29: =IFERROR(VLOOKUP($A29,Filtro_!$A$4:$AX$2299,17,FALSE),0) -> 0
A30: 05225306 | C30: NORMAL CON REZAGO (desde normal con rezago) | D30: =IFERROR(VLOOKUP($A30,Filtro_!$A$4:$AX$2299,2,FALSE),0) -> 77 | E30: =IFERROR(VLOOKUP($A30,Filtro_!$A$4:$AX$2299,3,FALSE),0) -> 46 | F30: =IFERROR(VLOOKUP($A30,Filtro_!$A$4:$AX$2299,4,FALSE),0) -> 31 | G30: =IFERROR(VLOOKUP($A30,Filtro_!$A$4:$AX$2299,5,FALSE),0) -> 0 | H30: =IFERROR(VLOOKUP($A30,Filtro_!$A$4:$AX$2299,6,FALSE),0) -> 1 | I30: =IFERROR(VLOOKUP($A30,Filtro_!$A$4:$AX$2299,7,FALSE),0) -> 6 | J30: =IFERROR(VLOOKUP($A30,Filtro_!$A$4:$AX$2299,8,FALSE),0) -> 7 | K30: =IFERROR(VLOOKUP($A30,Filtro_!$A$4:$AX$2299,9,FALSE),0) -> 4 | L30: =IFERROR(VLOOKUP($A30,Filtro_!$A$4:$AX$2299,10,FALSE),0) -> 3 | M30: =IFERROR(VLOOKUP($A30,Filtro_!$A$4:$AX$2299,11,FALSE),0) -> 14 | N30: =IFERROR(VLOOKUP($A30,Filtro_!$A$4:$AX$2299,12,FALSE),0) -> 3 | O30: =IFERROR(VLOOKUP($A30,Filtro_!$A$4:$AX$2299,13,FALSE),0) -> 21 | P30: =IFERROR(VLOOKUP($A30,Filtro_!$A$4:$AX$2299,14,FALSE),0) -> 12 | Q30: =IFERROR(VLOOKUP($A30,Filtro_!$A$4:$AX$2299,15,FALSE),0) -> 1 | R30: =IFERROR(VLOOKUP($A30,Filtro_!$A$4:$AX$2299,16,FALSE),0) -> 5 | S30: =IFERROR(VLOOKUP($A30,Filtro_!$A$4:$AX$2299,17,FALSE),0) -> 0
A31: 02010421 | C31: RIESGO (desde riesgo) | D31: =IFERROR(VLOOKUP($A31,Filtro_!$A$4:$AX$2299,2,FALSE),0) -> 115 | E31: =IFERROR(VLOOKUP($A31,Filtro_!$A$4:$AX$2299,3,FALSE),0) -> 81 | F31: =IFERROR(VLOOKUP($A31,Filtro_!$A$4:$AX$2299,4,FALSE),0) -> 34 | G31: =IFERROR(VLOOKUP($A31,Filtro_!$A$4:$AX$2299,5,FALSE),0) -> 0 | H31: =IFERROR(VLOOKUP($A31,Filtro_!$A$4:$AX$2299,6,FALSE),0) -> 0 | I31: =IFERROR(VLOOKUP($A31,Filtro_!$A$4:$AX$2299,7,FALSE),0) -> 2 | J31: =IFERROR(VLOOKUP($A31,Filtro_!$A$4:$AX$2299,8,FALSE),0) -> 1 | K31: =IFERROR(VLOOKUP($A31,Filtro_!$A$4:$AX$2299,9,FALSE),0) -> 6 | L31: =IFERROR(VLOOKUP($A31,Filtro_!$A$4:$AX$2299,10,FALSE),0) -> 2 | M31: =IFERROR(VLOOKUP($A31,Filtro_!$A$4:$AX$2299,11,FALSE),0) -> 30 | N31: =IFERROR(VLOOKUP($A31,Filtro_!$A$4:$AX$2299,12,FALSE),0) -> 11 | O31: =IFERROR(VLOOKUP($A31,Filtro_!$A$4:$AX$2299,13,FALSE),0) -> 39 | P31: =IFERROR(VLOOKUP($A31,Filtro_!$A$4:$AX$2299,14,FALSE),0) -> 18 | Q31: =IFERROR(VLOOKUP($A31,Filtro_!$A$4:$AX$2299,15,FALSE),0) -> 4 | R31: =IFERROR(VLOOKUP($A31,Filtro_!$A$4:$AX$2299,16,FALSE),0) -> 2 | S31: =IFERROR(VLOOKUP($A31,Filtro_!$A$4:$AX$2299,17,FALSE),0) -> 0
A32: 03600110 | C32: RIESGO (desde normal con rezago) | D32: =IFERROR(VLOOKUP($A32,Filtro_!$A$4:$AX$2299,2,FALSE),0) -> 31 | E32: =IFERROR(VLOOKUP($A32,Filtro_!$A$4:$AX$2299,3,FALSE),0) -> 21 | F32: =IFERROR(VLOOKUP($A32,Filtro_!$A$4:$AX$2299,4,FALSE),0) -> 10 | G32: =IFERROR(VLOOKUP($A32,Filtro_!$A$4:$AX$2299,5,FALSE),0) -> 0 | H32: =IFERROR(VLOOKUP($A32,Filtro_!$A$4:$AX$2299,6,FALSE),0) -> 0 | I32: =IFERROR(VLOOKUP($A32,Filtro_!$A$4:$AX$2299,7,FALSE),0) -> 1 | J32: =IFERROR(VLOOKUP($A32,Filtro_!$A$4:$AX$2299,8,FALSE),0) -> 1 | K32: =IFERROR(VLOOKUP($A32,Filtro_!$A$4:$AX$2299,9,FALSE),0) -> 2 | L32: =IFERROR(VLOOKUP($A32,Filtro_!$A$4:$AX$2299,10,FALSE),0) -> 0 | M32: =IFERROR(VLOOKUP($A32,Filtro_!$A$4:$AX$2299,11,FALSE),0) -> 7 | N32: =IFERROR(VLOOKUP($A32,Filtro_!$A$4:$AX$2299,12,FALSE),0) -> 5 | O32: =IFERROR(VLOOKUP($A32,Filtro_!$A$4:$AX$2299,13,FALSE),0) -> 11 | P32: =IFERROR(VLOOKUP($A32,Filtro_!$A$4:$AX$2299,14,FALSE),0) -> 4 | Q32: =IFERROR(VLOOKUP($A32,Filtro_!$A$4:$AX$2299,15,FALSE),0) -> 0 | R32: =IFERROR(VLOOKUP($A32,Filtro_!$A$4:$AX$2299,16,FALSE),0) -> 0 | S32: =IFERROR(VLOOKUP($A32,Filtro_!$A$4:$AX$2299,17,FALSE),0) -> 0
A33: 02010422 | C33: RETRASO (desde retraso) | D33: =IFERROR(VLOOKUP($A33,Filtro_!$A$4:$AX$2299,2,FALSE),0) -> 55 | E33: =IFERROR(VLOOKUP($A33,Filtro_!$A$4:$AX$2299,3,FALSE),0) -> 37 | F33: =IFERROR(VLOOKUP($A33,Filtro_!$A$4:$AX$2299,4,FALSE),0) -> 18 | G33: =IFERROR(VLOOKUP($A33,Filtro_!$A$4:$AX$2299,5,FALSE),0) -> 0 | H33: =IFERROR(VLOOKUP($A33,Filtro_!$A$4:$AX$2299,6,FALSE),0) -> 0 | I33: =IFERROR(VLOOKUP($A33,Filtro_!$A$4:$AX$2299,7,FALSE),0) -> 2 | J33: =IFERROR(VLOOKUP($A33,Filtro_!$A$4:$AX$2299,8,FALSE),0) -> 1 | K33: =IFERROR(VLOOKUP($A33,Filtro_!$A$4:$AX$2299,9,FALSE),0) -> 0 | L33: =IFERROR(VLOOKUP($A33,Filtro_!$A$4:$AX$2299,10,FALSE),0) -> 2 | M33: =IFERROR(VLOOKUP($A33,Filtro_!$A$4:$AX$2299,11,FALSE),0) -> 17 | N33: =IFERROR(VLOOKUP($A33,Filtro_!$A$4:$AX$2299,12,FALSE),0) -> 9 | O33: =IFERROR(VLOOKUP($A33,Filtro_!$A$4:$AX$2299,13,FALSE),0) -> 15 | P33: =IFERROR(VLOOKUP($A33,Filtro_!$A$4:$AX$2299,14,FALSE),0) -> 4 | Q33: =IFERROR(VLOOKUP($A33,Filtro_!$A$4:$AX$2299,15,FALSE),0) -> 3 | R33: =IFERROR(VLOOKUP($A33,Filtro_!$A$4:$AX$2299,16,FALSE),0) -> 2 | S33: =IFERROR(VLOOKUP($A33,Filtro_!$A$4:$AX$2299,17,FALSE),0) -> 2
A34: 03600120 | C34: RETRASO (desde riesgo) | D34: =IFERROR(VLOOKUP($A34,Filtro_!$A$4:$AX$2299,2,FALSE),0) -> 60 | E34: =IFERROR(VLOOKUP($A34,Filtro_!$A$4:$AX$2299,3,FALSE),0) -> 42 | F34: =IFERROR(VLOOKUP($A34,Filtro_!$A$4:$AX$2299,4,FALSE),0) -> 18 | G34: =IFERROR(VLOOKUP($A34,Filtro_!$A$4:$AX$2299,5,FALSE),0) -> 0 | H34: =IFERROR(VLOOKUP($A34,Filtro_!$A$4:$AX$2299,6,FALSE),0) -> 0 | I34: =IFERROR(VLOOKUP($A34,Filtro_!$A$4:$AX$2299,7,FALSE),0) -> 0 | J34: =IFERROR(VLOOKUP($A34,Filtro_!$A$4:$AX$2299,8,FALSE),0) -> 2 | K34: =IFERROR(VLOOKUP($A34,Filtro_!$A$4:$AX$2299,9,FALSE),0) -> 4 | L34: =IFERROR(VLOOKUP($A34,Filtro_!$A$4:$AX$2299,10,FALSE),0) -> 2 | M34: =IFERROR(VLOOKUP($A34,Filtro_!$A$4:$AX$2299,11,FALSE),0) -> 18 | N34: =IFERROR(VLOOKUP($A34,Filtro_!$A$4:$AX$2299,12,FALSE),0) -> 4 | O34: =IFERROR(VLOOKUP($A34,Filtro_!$A$4:$AX$2299,13,FALSE),0) -> 16 | P34: =IFERROR(VLOOKUP($A34,Filtro_!$A$4:$AX$2299,14,FALSE),0) -> 7 | Q34: =IFERROR(VLOOKUP($A34,Filtro_!$A$4:$AX$2299,15,FALSE),0) -> 4 | R34: =IFERROR(VLOOKUP($A34,Filtro_!$A$4:$AX$2299,16,FALSE),0) -> 3 | S34: =IFERROR(VLOOKUP($A34,Filtro_!$A$4:$AX$2299,17,FALSE),0) -> 0
A35: 03600130 | C35: RETRASO (desde normal con rezago) | D35: =IFERROR(VLOOKUP($A35,Filtro_!$A$4:$AX$2299,2,FALSE),0) -> 6 | E35: =IFERROR(VLOOKUP($A35,Filtro_!$A$4:$AX$2299,3,FALSE),0) -> 5 | F35: =IFERROR(VLOOKUP($A35,Filtro_!$A$4:$AX$2299,4,FALSE),0) -> 1 | G35: =IFERROR(VLOOKUP($A35,Filtro_!$A$4:$AX$2299,5,FALSE),0) -> 0 | H35: =IFERROR(VLOOKUP($A35,Filtro_!$A$4:$AX$2299,6,FALSE),0) -> 0 | I35: =IFERROR(VLOOKUP($A35,Filtro_!$A$4:$AX$2299,7,FALSE),0) -> 0 | J35: =IFERROR(VLOOKUP($A35,Filtro_!$A$4:$AX$2299,8,FALSE),0) -> 0 | K35: =IFERROR(VLOOKUP($A35,Filtro_!$A$4:$AX$2299,9,FALSE),0) -> 0 | L35: =IFERROR(VLOOKUP($A35,Filtro_!$A$4:$AX$2299,10,FALSE),0) -> 0 | M35: =IFERROR(VLOOKUP($A35,Filtro_!$A$4:$AX$2299,11,FALSE),0) -> 2 | N35: =IFERROR(VLOOKUP($A35,Filtro_!$A$4:$AX$2299,12,FALSE),0) -> 0 | O35: =IFERROR(VLOOKUP($A35,Filtro_!$A$4:$AX$2299,13,FALSE),0) -> 2 | P35: =IFERROR(VLOOKUP($A35,Filtro_!$A$4:$AX$2299,14,FALSE),0) -> 0 | Q35: =IFERROR(VLOOKUP($A35,Filtro_!$A$4:$AX$2299,15,FALSE),0) -> 1 | R35: =IFERROR(VLOOKUP($A35,Filtro_!$A$4:$AX$2299,16,FALSE),0) -> 1 | S35: =IFERROR(VLOOKUP($A35,Filtro_!$A$4:$AX$2299,17,FALSE),0) -> 0
A36: 03500331 | B36: DERIVADOS A ESPECIALIDAD | C36: RIESGO | D36: =IFERROR(VLOOKUP($A36,Filtro_!$A$4:$AX$2299,2,FALSE),0) -> 84 | E36: =IFERROR(VLOOKUP($A36,Filtro_!$A$4:$AX$2299,3,FALSE),0) -> 59 | F36: =IFERROR(VLOOKUP($A36,Filtro_!$A$4:$AX$2299,4,FALSE),0) -> 25 | G36: =IFERROR(VLOOKUP($A36,Filtro_!$A$4:$AX$2299,5,FALSE),0) -> 0 | H36: =IFERROR(VLOOKUP($A36,Filtro_!$A$4:$AX$2299,6,FALSE),0) -> 0 | I36: =IFERROR(VLOOKUP($A36,Filtro_!$A$4:$AX$2299,7,FALSE),0) -> 5 | J36: =IFERROR(VLOOKUP($A36,Filtro_!$A$4:$AX$2299,8,FALSE),0) -> 2 | K36: =IFERROR(VLOOKUP($A36,Filtro_!$A$4:$AX$2299,9,FALSE),0) -> 5 | L36: =IFERROR(VLOOKUP($A36,Filtro_!$A$4:$AX$2299,10,FALSE),0) -> 5 | M36: =IFERROR(VLOOKUP($A36,Filtro_!$A$4:$AX$2299,11,FALSE),0) -> 31 | N36: =IFERROR(VLOOKUP($A36,Filtro_!$A$4:$AX$2299,12,FALSE),0) -> 10 | O36: =IFERROR(VLOOKUP($A36,Filtro_!$A$4:$AX$2299,13,FALSE),0) -> 18 | P36: =IFERROR(VLOOKUP($A36,Filtro_!$A$4:$AX$2299,14,FALSE),0) -> 7 | Q36: =IFERROR(VLOOKUP($A36,Filtro_!$A$4:$AX$2299,15,FALSE),0) -> 0 | R36: =IFERROR(VLOOKUP($A36,Filtro_!$A$4:$AX$2299,16,FALSE),0) -> 1 | S36: =IFERROR(VLOOKUP($A36,Filtro_!$A$4:$AX$2299,17,FALSE),0) -> 0
A37: 03500332 | C37: RETRASO | D37: =IFERROR(VLOOKUP($A37,Filtro_!$A$4:$AX$2299,2,FALSE),0) -> 148 | E37: =IFERROR(VLOOKUP($A37,Filtro_!$A$4:$AX$2299,3,FALSE),0) -> 106 | F37: =IFERROR(VLOOKUP($A37,Filtro_!$A$4:$AX$2299,4,FALSE),0) -> 42 | G37: =IFERROR(VLOOKUP($A37,Filtro_!$A$4:$AX$2299,5,FALSE),0) -> 0 | H37: =IFERROR(VLOOKUP($A37,Filtro_!$A$4:$AX$2299,6,FALSE),0) -> 0 | I37: =IFERROR(VLOOKUP($A37,Filtro_!$A$4:$AX$2299,7,FALSE),0) -> 3 | J37: =IFERROR(VLOOKUP($A37,Filtro_!$A$4:$AX$2299,8,FALSE),0) -> 3 | K37: =IFERROR(VLOOKUP($A37,Filtro_!$A$4:$AX$2299,9,FALSE),0) -> 5 | L37: =IFERROR(VLOOKUP($A37,Filtro_!$A$4:$AX$2299,10,FALSE),0) -> 2 | M37: =IFERROR(VLOOKUP($A37,Filtro_!$A$4:$AX$2299,11,FALSE),0) -> 50 | N37: =IFERROR(VLOOKUP($A37,Filtro_!$A$4:$AX$2299,12,FALSE),0) -> 23 | O37: =IFERROR(VLOOKUP($A37,Filtro_!$A$4:$AX$2299,13,FALSE),0) -> 40 | P37: =IFERROR(VLOOKUP($A37,Filtro_!$A$4:$AX$2299,14,FALSE),0) -> 9 | Q37: =IFERROR(VLOOKUP($A37,Filtro_!$A$4:$AX$2299,15,FALSE),0) -> 8 | R37: =IFERROR(VLOOKUP($A37,Filtro_!$A$4:$AX$2299,16,FALSE),0) -> 5 | S37: =IFERROR(VLOOKUP($A37,Filtro_!$A$4:$AX$2299,17,FALSE),0) -> 1
A38: 03500333 | B38: TRASLADO DE ESTABLECIMIENTO | C38: NORMAL CON REZAGO | D38: =IFERROR(VLOOKUP($A38,Filtro_!$A$4:$AX$2299,2,FALSE),0) -> 7 | E38: =IFERROR(VLOOKUP($A38,Filtro_!$A$4:$AX$2299,3,FALSE),0) -> 6 | F38: =IFERROR(VLOOKUP($A38,Filtro_!$A$4:$AX$2299,4,FALSE),0) -> 1 | G38: =IFERROR(VLOOKUP($A38,Filtro_!$A$4:$AX$2299,5,FALSE),0) -> 0 | H38: =IFERROR(VLOOKUP($A38,Filtro_!$A$4:$AX$2299,6,FALSE),0) -> 0 | I38: =IFERROR(VLOOKUP($A38,Filtro_!$A$4:$AX$2299,7,FALSE),0) -> 0 | J38: =IFERROR(VLOOKUP($A38,Filtro_!$A$4:$AX$2299,8,FALSE),0) -> 0 | K38: =IFERROR(VLOOKUP($A38,Filtro_!$A$4:$AX$2299,9,FALSE),0) -> 0 | L38: =IFERROR(VLOOKUP($A38,Filtro_!$A$4:$AX$2299,10,FALSE),0) -> 0 | M38: =IFERROR(VLOOKUP($A38,Filtro_!$A$4:$AX$2299,11,FALSE),0) -> 3 | N38: =IFERROR(VLOOKUP($A38,Filtro_!$A$4:$AX$2299,12,FALSE),0) -> 0 | O38: =IFERROR(VLOOKUP($A38,Filtro_!$A$4:$AX$2299,13,FALSE),0) -> 3 | P38: =IFERROR(VLOOKUP($A38,Filtro_!$A$4:$AX$2299,14,FALSE),0) -> 1 | Q38: =IFERROR(VLOOKUP($A38,Filtro_!$A$4:$AX$2299,15,FALSE),0) -> 0 | R38: =IFERROR(VLOOKUP($A38,Filtro_!$A$4:$AX$2299,16,FALSE),0) -> 0 | S38: =IFERROR(VLOOKUP($A38,Filtro_!$A$4:$AX$2299,17,FALSE),0) -> 1
A39: 03500334 | C39: RIESGO | D39: =IFERROR(VLOOKUP($A39,Filtro_!$A$4:$AX$2299,2,FALSE),0) -> 8 | E39: =IFERROR(VLOOKUP($A39,Filtro_!$A$4:$AX$2299,3,FALSE),0) -> 5 | F39: =IFERROR(VLOOKUP($A39,Filtro_!$A$4:$AX$2299,4,FALSE),0) -> 3 | G39: =IFERROR(VLOOKUP($A39,Filtro_!$A$4:$AX$2299,5,FALSE),0) -> 0 | H39: =IFERROR(VLOOKUP($A39,Filtro_!$A$4:$AX$2299,6,FALSE),0) -> 0 | I39: =IFERROR(VLOOKUP($A39,Filtro_!$A$4:$AX$2299,7,FALSE),0) -> 0 | J39: =IFERROR(VLOOKUP($A39,Filtro_!$A$4:$AX$2299,8,FALSE),0) -> 0 | K39: =IFERROR(VLOOKUP($A39,Filtro_!$A$4:$AX$2299,9,FALSE),0) -> 1 | L39: =IFERROR(VLOOKUP($A39,Filtro_!$A$4:$AX$2299,10,FALSE),0) -> 0 | M39: =IFERROR(VLOOKUP($A39,Filtro_!$A$4:$AX$2299,11,FALSE),0) -> 2 | N39: =IFERROR(VLOOKUP($A39,Filtro_!$A$4:$AX$2299,12,FALSE),0) -> 2 | O39: =IFERROR(VLOOKUP($A39,Filtro_!$A$4:$AX$2299,13,FALSE),0) -> 2 | P39: =IFERROR(VLOOKUP($A39,Filtro_!$A$4:$AX$2299,14,FALSE),0) -> 1 | Q39: =IFERROR(VLOOKUP($A39,Filtro_!$A$4:$AX$2299,15,FALSE),0) -> 0 | R39: =IFERROR(VLOOKUP($A39,Filtro_!$A$4:$AX$2299,16,FALSE),0) -> 0 | S39: =IFERROR(VLOOKUP($A39,Filtro_!$A$4:$AX$2299,17,FALSE),0) -> 0
A40: 03500335 | C40: RETRASO | D40: =IFERROR(VLOOKUP($A40,Filtro_!$A$4:$AX$2299,2,FALSE),0) -> 3 | E40: =IFERROR(VLOOKUP($A40,Filtro_!$A$4:$AX$2299,3,FALSE),0) -> 1 | F40: =IFERROR(VLOOKUP($A40,Filtro_!$A$4:$AX$2299,4,FALSE),0) -> 2 | G40: =IFERROR(VLOOKUP($A40,Filtro_!$A$4:$AX$2299,5,FALSE),0) -> 0 | H40: =IFERROR(VLOOKUP($A40,Filtro_!$A$4:$AX$2299,6,FALSE),0) -> 0 | I40: =IFERROR(VLOOKUP($A40,Filtro_!$A$4:$AX$2299,7,FALSE),0) -> 0 | J40: =IFERROR(VLOOKUP($A40,Filtro_!$A$4:$AX$2299,8,FALSE),0) -> 0 | K40: =IFERROR(VLOOKUP($A40,Filtro_!$A$4:$AX$2299,9,FALSE),0) -> 0 | L40: =IFERROR(VLOOKUP($A40,Filtro_!$A$4:$AX$2299,10,FALSE),0) -> 1 | M40: =IFERROR(VLOOKUP($A40,Filtro_!$A$4:$AX$2299,11,FALSE),0) -> 0 | N40: =IFERROR(VLOOKUP($A40,Filtro_!$A$4:$AX$2299,12,FALSE),0) -> 1 | O40: =IFERROR(VLOOKUP($A40,Filtro_!$A$4:$AX$2299,13,FALSE),0) -> 1 | P40: =IFERROR(VLOOKUP($A40,Filtro_!$A$4:$AX$2299,14,FALSE),0) -> 0 | Q40: =IFERROR(VLOOKUP($A40,Filtro_!$A$4:$AX$2299,15,FALSE),0) -> 0 | R40: =IFERROR(VLOOKUP($A40,Filtro_!$A$4:$AX$2299,16,FALSE),0) -> 0 | S40: =IFERROR(VLOOKUP($A40,Filtro_!$A$4:$AX$2299,17,FALSE),0) -> 0
B41: SECCIÓN A.3: NIÑOS Y NIÑAS CON REZAGO, DÉFICIT U OTRA VULNERABILIDAD DERIVADOS A ALGUNA MODALIDAD DE ESTIMULACIÓN EN LA PRIMERA EVALUACIÓN
B42: NIÑO / A | D42: TOTAL | G42: POR EDAD
G43: Menor 7 meses | I43: 7 - 11 meses | K43: 12 - 17 meses | M43: 18 - 23 meses | O43: 24 - 47 meses | Q43: 48 - 59 meses
D44: Ambos Sexos | E44: Hombres | F44: Mujeres | G44: Hombres | H44: Mujeres | I44: Hombres | J44: Mujeres | K44: Hombres | L44: Mujeres | M44: Hombres | N44: Mujeres | O44: Hombres | P44: Mujeres | Q44: Hombres | R44: Mujeres
A45: 02021790 | B45: NORMAL CON REZAGO | D45: =IFERROR(VLOOKUP($A45,Filtro_!$A$4:$AX$2299,2,FALSE),0) -> 1150 | E45: =IFERROR(VLOOKUP($A45,Filtro_!$A$4:$AX$2299,3,FALSE),0) -> 654 | F45: =IFERROR(VLOOKUP($A45,Filtro_!$A$4:$AX$2299,4,FALSE),0) -> 496 | G45: =IFERROR(VLOOKUP($A45,Filtro_!$A$4:$AX$2299,5,FALSE),0) -> 67 | H45: =IFERROR(VLOOKUP($A45,Filtro_!$A$4:$AX$2299,6,FALSE),0) -> 61 | I45: =IFERROR(VLOOKUP($A45,Filtro_!$A$4:$AX$2299,7,FALSE),0) -> 104 | J45: =IFERROR(VLOOKUP($A45,Filtro_!$A$4:$AX$2299,8,FALSE),0) -> 113 | K45: =IFERROR(VLOOKUP($A45,Filtro_!$A$4:$AX$2299,9,FALSE),0) -> 54 | L45: =IFERROR(VLOOKUP($A45,Filtro_!$A$4:$AX$2299,10,FALSE),0) -> 33 | M45: =IFERROR(VLOOKUP($A45,Filtro_!$A$4:$AX$2299,11,FALSE),0) -> 127 | N45: =IFERROR(VLOOKUP($A45,Filtro_!$A$4:$AX$2299,12,FALSE),0) -> 91 | O45: =IFERROR(VLOOKUP($A45,Filtro_!$A$4:$AX$2299,13,FALSE),0) -> 295 | P45: =IFERROR(VLOOKUP($A45,Filtro_!$A$4:$AX$2299,14,FALSE),0) -> 190 | Q45: =IFERROR(VLOOKUP($A45,Filtro_!$A$4:$AX$2299,15,FALSE),0) -> 7 | R45: =IFERROR(VLOOKUP($A45,Filtro_!$A$4:$AX$2299,16,FALSE),0) -> 8 | S45: =CB45 -> * Niños derivados deben ser iguales al ingreso de niños(as) Normal con Rezago a salas de estimulación REM A05 sección F. | CB45: =IF(D45<>'A05'!D89,"* Niños derivados deben ser iguales al ingreso de niños(as) Normal con Rezago a salas de estimulación REM A05 sección F. ","") -> * Niños derivados deben ser iguales al ingreso de niños(as) Normal con Rezago a salas de estimulación REM A05 sección F.
A46: 02021810 | B46: RIESGO | D46: =IFERROR(VLOOKUP($A46,Filtro_!$A$4:$AX$2299,2,FALSE),0) -> 1154 | E46: =IFERROR(VLOOKUP($A46,Filtro_!$A$4:$AX$2299,3,FALSE),0) -> 745 | F46: =IFERROR(VLOOKUP($A46,Filtro_!$A$4:$AX$2299,4,FALSE),0) -> 409 | G46: =IFERROR(VLOOKUP($A46,Filtro_!$A$4:$AX$2299,5,FALSE),0) -> 8 | H46: =IFERROR(VLOOKUP($A46,Filtro_!$A$4:$AX$2299,6,FALSE),0) -> 6 | I46: =IFERROR(VLOOKUP($A46,Filtro_!$A$4:$AX$2299,7,FALSE),0) -> 78 | J46: =IFERROR(VLOOKUP($A46,Filtro_!$A$4:$AX$2299,8,FALSE),0) -> 57 | K46: =IFERROR(VLOOKUP($A46,Filtro_!$A$4:$AX$2299,9,FALSE),0) -> 34 | L46: =IFERROR(VLOOKUP($A46,Filtro_!$A$4:$AX$2299,10,FALSE),0) -> 29 | M46: =IFERROR(VLOOKUP($A46,Filtro_!$A$4:$AX$2299,11,FALSE),0) -> 313 | N46: =IFERROR(VLOOKUP($A46,Filtro_!$A$4:$AX$2299,12,FALSE),0) -> 156 | O46: =IFERROR(VLOOKUP($A46,Filtro_!$A$4:$AX$2299,13,FALSE),0) -> 293 | P46: =IFERROR(VLOOKUP($A46,Filtro_!$A$4:$AX$2299,14,FALSE),0) -> 157 | Q46: =IFERROR(VLOOKUP($A46,Filtro_!$A$4:$AX$2299,15,FALSE),0) -> 19 | R46: =IFERROR(VLOOKUP($A46,Filtro_!$A$4:$AX$2299,16,FALSE),0) -> 4 | S46: =CB46 -> * Niños derivados deben ser iguales al ingreso de niños(as) con Riesgo a salas de estimulación REM A05 sección F. | CB46: =IF(D46<>'A05'!D90,"* Niños derivados deben ser iguales al ingreso de niños(as) con Riesgo a salas de estimulación REM A05 sección F. ","") -> * Niños derivados deben ser iguales al ingreso de niños(as) con Riesgo a salas de estimulación REM A05 sección F.
A47: 02021820 | B47: RETRASO | D47: =IFERROR(VLOOKUP($A47,Filtro_!$A$4:$AX$2299,2,FALSE),0) -> 419 | E47: =IFERROR(VLOOKUP($A47,Filtro_!$A$4:$AX$2299,3,FALSE),0) -> 280 | F47: =IFERROR(VLOOKUP($A47,Filtro_!$A$4:$AX$2299,4,FALSE),0) -> 139 | G47: =IFERROR(VLOOKUP($A47,Filtro_!$A$4:$AX$2299,5,FALSE),0) -> 1 | H47: =IFERROR(VLOOKUP($A47,Filtro_!$A$4:$AX$2299,6,FALSE),0) -> 2 | I47: =IFERROR(VLOOKUP($A47,Filtro_!$A$4:$AX$2299,7,FALSE),0) -> 19 | J47: =IFERROR(VLOOKUP($A47,Filtro_!$A$4:$AX$2299,8,FALSE),0) -> 15 | K47: =IFERROR(VLOOKUP($A47,Filtro_!$A$4:$AX$2299,9,FALSE),0) -> 12 | L47: =IFERROR(VLOOKUP($A47,Filtro_!$A$4:$AX$2299,10,FALSE),0) -> 6 | M47: =IFERROR(VLOOKUP($A47,Filtro_!$A$4:$AX$2299,11,FALSE),0) -> 111 | N47: =IFERROR(VLOOKUP($A47,Filtro_!$A$4:$AX$2299,12,FALSE),0) -> 67 | O47: =IFERROR(VLOOKUP($A47,Filtro_!$A$4:$AX$2299,13,FALSE),0) -> 119 | P47: =IFERROR(VLOOKUP($A47,Filtro_!$A$4:$AX$2299,14,FALSE),0) -> 43 | Q47: =IFERROR(VLOOKUP($A47,Filtro_!$A$4:$AX$2299,15,FALSE),0) -> 18 | R47: =IFERROR(VLOOKUP($A47,Filtro_!$A$4:$AX$2299,16,FALSE),0) -> 6 | S47: =CB47 -> * Niños derivados deben ser iguales al ingreso de niños(as) con Retraso a salas de estimulación REM A05 sección F. | CB47: =IF(D47<>'A05'!D91,"* Niños derivados deben ser iguales al ingreso de niños(as) con Retraso a salas de estimulación REM A05 sección F. ","") -> * Niños derivados deben ser iguales al ingreso de niños(as) con Retraso a salas de estimulación REM A05 sección F.
A48: 05225307 | B48: OTRA VULNERABILIDAD | D48: =IFERROR(VLOOKUP($A48,Filtro_!$A$4:$AX$2299,2,FALSE),0) -> 2024 | E48: =IFERROR(VLOOKUP($A48,Filtro_!$A$4:$AX$2299,3,FALSE),0) -> 1200 | F48: =IFERROR(VLOOKUP($A48,Filtro_!$A$4:$AX$2299,4,FALSE),0) -> 824 | G48: =IFERROR(VLOOKUP($A48,Filtro_!$A$4:$AX$2299,5,FALSE),0) -> 311 | H48: =IFERROR(VLOOKUP($A48,Filtro_!$A$4:$AX$2299,6,FALSE),0) -> 274 | I48: =IFERROR(VLOOKUP($A48,Filtro_!$A$4:$AX$2299,7,FALSE),0) -> 119 | J48: =IFERROR(VLOOKUP($A48,Filtro_!$A$4:$AX$2299,8,FALSE),0) -> 69 | K48: =IFERROR(VLOOKUP($A48,Filtro_!$A$4:$AX$2299,9,FALSE),0) -> 124 | L48: =IFERROR(VLOOKUP($A48,Filtro_!$A$4:$AX$2299,10,FALSE),0) -> 82 | M48: =IFERROR(VLOOKUP($A48,Filtro_!$A$4:$AX$2299,11,FALSE),0) -> 134 | N48: =IFERROR(VLOOKUP($A48,Filtro_!$A$4:$AX$2299,12,FALSE),0) -> 97 | O48: =IFERROR(VLOOKUP($A48,Filtro_!$A$4:$AX$2299,13,FALSE),0) -> 452 | P48: =IFERROR(VLOOKUP($A48,Filtro_!$A$4:$AX$2299,14,FALSE),0) -> 271 | Q48: =IFERROR(VLOOKUP($A48,Filtro_!$A$4:$AX$2299,15,FALSE),0) -> 60 | R48: =IFERROR(VLOOKUP($A48,Filtro_!$A$4:$AX$2299,16,FALSE),0) -> 31 | S48: =CB48 -> * Niños derivados deben ser iguales al ingreso de niños(as) con Otras Vulnerabilidad a salas de estimulación REM A05 sección F. | CB48: =IF(D48<>'A05'!D92,"* Niños derivados deben ser iguales al ingreso de niños(as) con Otras Vulnerabilidad a salas de estimulación REM A05 sección F. ","") -> * Niños derivados deben ser iguales al ingreso de niños(as) con Otras Vulnerabilidad a salas de estimulación REM A05 sección F.
B49: SECCIÓN A.4: RESULTADOS DE LA APLICACIÓN DE PROTOCOLO NEUROSENSORIAL
B50: RESULTADOS | D50: TOTAL | G50: POR EDAD
G51: 1 mes | I51: 2 meses
D52: Ambos Sexos | E52: Hombres | F52: Mujeres | G52: Hombres | H52: Mujeres | I52: Hombres | J52: Mujeres
A53: 02021760 | B53: APLICACIÓN DE PROTOCOLO NEUROSENSORIAL (1-2 MESES) | D53: =IFERROR(VLOOKUP($A53,Filtro_!$A$4:$AX$2299,2,FALSE),0) -> 4522 | E53: =IFERROR(VLOOKUP($A53,Filtro_!$A$4:$AX$2299,3,FALSE),0) -> 2307 | F53: =IFERROR(VLOOKUP($A53,Filtro_!$A$4:$AX$2299,4,FALSE),0) -> 2215 | G53: =IFERROR(VLOOKUP($A53,Filtro_!$A$4:$AX$2299,5,FALSE),0) -> 1944 | H53: =IFERROR(VLOOKUP($A53,Filtro_!$A$4:$AX$2299,6,FALSE),0) -> 1883 | I53: =IFERROR(VLOOKUP($A53,Filtro_!$A$4:$AX$2299,7,FALSE),0) -> 363 | J53: =IFERROR(VLOOKUP($A53,Filtro_!$A$4:$AX$2299,8,FALSE),0) -> 332
A54: 03500040 | B54: NORMAL | D54: =IFERROR(VLOOKUP($A54,Filtro_!$A$4:$AX$2299,2,FALSE),0) -> 3907 | E54: =IFERROR(VLOOKUP($A54,Filtro_!$A$4:$AX$2299,3,FALSE),0) -> 1976 | F54: =IFERROR(VLOOKUP($A54,Filtro_!$A$4:$AX$2299,4,FALSE),0) -> 1931 | G54: =IFERROR(VLOOKUP($A54,Filtro_!$A$4:$AX$2299,5,FALSE),0) -> 1671 | H54: =IFERROR(VLOOKUP($A54,Filtro_!$A$4:$AX$2299,6,FALSE),0) -> 1642 | I54: =IFERROR(VLOOKUP($A54,Filtro_!$A$4:$AX$2299,7,FALSE),0) -> 305 | J54: =IFERROR(VLOOKUP($A54,Filtro_!$A$4:$AX$2299,8,FALSE),0) -> 289
A55: 03500050 | B55: ANORMAL | D55: =IFERROR(VLOOKUP($A55,Filtro_!$A$4:$AX$2299,2,FALSE),0) -> 579 | E55: =IFERROR(VLOOKUP($A55,Filtro_!$A$4:$AX$2299,3,FALSE),0) -> 311 | F55: =IFERROR(VLOOKUP($A55,Filtro_!$A$4:$AX$2299,4,FALSE),0) -> 268 | G55: =IFERROR(VLOOKUP($A55,Filtro_!$A$4:$AX$2299,5,FALSE),0) -> 257 | H55: =IFERROR(VLOOKUP($A55,Filtro_!$A$4:$AX$2299,6,FALSE),0) -> 225 | I55: =IFERROR(VLOOKUP($A55,Filtro_!$A$4:$AX$2299,7,FALSE),0) -> 54 | J55: =IFERROR(VLOOKUP($A55,Filtro_!$A$4:$AX$2299,8,FALSE),0) -> 43
A56: 03500060 | B56: MUY ANORMAL | D56: =IFERROR(VLOOKUP($A56,Filtro_!$A$4:$AX$2299,2,FALSE),0) -> 36 | E56: =IFERROR(VLOOKUP($A56,Filtro_!$A$4:$AX$2299,3,FALSE),0) -> 20 | F56: =IFERROR(VLOOKUP($A56,Filtro_!$A$4:$AX$2299,4,FALSE),0) -> 16 | G56: =IFERROR(VLOOKUP($A56,Filtro_!$A$4:$AX$2299,5,FALSE),0) -> 16 | H56: =IFERROR(VLOOKUP($A56,Filtro_!$A$4:$AX$2299,6,FALSE),0) -> 16 | I56: =IFERROR(VLOOKUP($A56,Filtro_!$A$4:$AX$2299,7,FALSE),0) -> 4 | J56: =IFERROR(VLOOKUP($A56,Filtro_!$A$4:$AX$2299,8,FALSE),0) -> 0
B57: SECCIÓN A.5: LACTANCIA MATERNA EN MENORES CONTROLADOS
B58: TIPO DE ALIMENTACIÓN | D58: TOTAL | G58: SEGÚN CONTROL PROGRAMÁTICO | Q58: Pueblos Originarios | R58: Migrantes
G59: Del 1° mes | I59: Del 3° mes | K59: Del 6° mes | M59: Del 12° mes | O59: Del 24° mes | CH59: 0 | CI59: 0 | CJ59: 0 | CK59: 0 | CL59: 0
D60: Ambos Sexos | E60: Hombres | F60: Mujeres | G60: Hombres | H60: Mujeres | I60: Hombres | J60: Mujeres | K60: Hombres | L60: Mujeres | M60: Hombres | N60: Mujeres | O60: Hombres | P60: Mujeres
A61: A0200001 | B61: MENORES CONTROLADOS | D61: =IFERROR(VLOOKUP($A61,Filtro_!$A$4:$AX$2299,2,FALSE),0) -> 20632 | E61: =IFERROR(VLOOKUP($A61,Filtro_!$A$4:$AX$2299,3,FALSE),0) -> 10435 | F61: =IFERROR(VLOOKUP($A61,Filtro_!$A$4:$AX$2299,4,FALSE),0) -> 10197 | G61: =IFERROR(VLOOKUP($A61,Filtro_!$A$4:$AX$2299,5,FALSE),0) -> 2329 | H61: =IFERROR(VLOOKUP($A61,Filtro_!$A$4:$AX$2299,6,FALSE),0) -> 2246 | I61: =IFERROR(VLOOKUP($A61,Filtro_!$A$4:$AX$2299,7,FALSE),0) -> 2171 | J61: =IFERROR(VLOOKUP($A61,Filtro_!$A$4:$AX$2299,8,FALSE),0) -> 2125 | K61: =IFERROR(VLOOKUP($A61,Filtro_!$A$4:$AX$2299,9,FALSE),0) -> 2401 | L61: =IFERROR(VLOOKUP($A61,Filtro_!$A$4:$AX$2299,10,FALSE),0) -> 2415 | M61: =IFERROR(VLOOKUP($A61,Filtro_!$A$4:$AX$2299,11,FALSE),0) -> 1990 | N61: =IFERROR(VLOOKUP($A61,Filtro_!$A$4:$AX$2299,12,FALSE),0) -> 1934 | O61: =IFERROR(VLOOKUP($A61,Filtro_!$A$4:$AX$2299,13,FALSE),0) -> 1544 | P61: =IFERROR(VLOOKUP($A61,Filtro_!$A$4:$AX$2299,14,FALSE),0) -> 1477 | Q61: =IFERROR(VLOOKUP($A61,Filtro_!$A$4:$AX$2299,15,FALSE),0) -> 22 | R61: =IFERROR(VLOOKUP($A61,Filtro_!$A$4:$AX$2299,16,FALSE),0) -> 39 | BY61: * El total de menores controlados pertenecientes a Pueblos Originarios no puede superar el Total de Menores controlados. | BZ61: * El total de menores controlados pertenecientes a Población Migrante no puede superar el Total de Menores controlados. | CB61: * El número de menores con lactancia materna Exclusiva o Artificial al control del 3er mes NO debe ser MAYOR al número de menores controlados. | CG61: 0 | CH61: 1 | CI61: 0 | CJ61: 0 | CK61: 0 | CL61: 1 | CM61: 1 | CN61: 0
A62: A0200002 | B62: LACTANCIA MATERNA EXCLUSIVA | D62: =IFERROR(VLOOKUP($A62,Filtro_!$A$4:$AX$2299,2,FALSE),0) -> 8943 | E62: =IFERROR(VLOOKUP($A62,Filtro_!$A$4:$AX$2299,3,FALSE),0) -> 4397 | F62: =IFERROR(VLOOKUP($A62,Filtro_!$A$4:$AX$2299,4,FALSE),0) -> 4546 | G62: =IFERROR(VLOOKUP($A62,Filtro_!$A$4:$AX$2299,5,FALSE),0) -> 1664 | H62: =IFERROR(VLOOKUP($A62,Filtro_!$A$4:$AX$2299,6,FALSE),0) -> 1617 | I62: =IFERROR(VLOOKUP($A62,Filtro_!$A$4:$AX$2299,7,FALSE),0) -> 1434 | J62: =IFERROR(VLOOKUP($A62,Filtro_!$A$4:$AX$2299,8,FALSE),0) -> 1491 | K62: =IFERROR(VLOOKUP($A62,Filtro_!$A$4:$AX$2299,9,FALSE),0) -> 1299 | L62: =IFERROR(VLOOKUP($A62,Filtro_!$A$4:$AX$2299,10,FALSE),0) -> 1438 | M62: =IFERROR(VLOOKUP($A62,Filtro_!$A$4:$AX$2299,11,FALSE),0) -> 0 | N62: =IFERROR(VLOOKUP($A62,Filtro_!$A$4:$AX$2299,12,FALSE),0) -> 0 | O62: =IFERROR(VLOOKUP($A62,Filtro_!$A$4:$AX$2299,13,FALSE),0) -> 0 | P62: =IFERROR(VLOOKUP($A62,Filtro_!$A$4:$AX$2299,14,FALSE),0) -> 0 | Q62: =IFERROR(VLOOKUP($A62,Filtro_!$A$4:$AX$2299,15,FALSE),0) -> 8 | R62: =IFERROR(VLOOKUP($A62,Filtro_!$A$4:$AX$2299,16,FALSE),0) -> 24 | CB62: =IF(CH62=1," * El Número de menores pertenecientes a Pueblos Originarios NO puede ser mayor al Número Total de Menores. ","") ->  | CC62: =IF(CI62=1," * El Número de menores pertenecientes a Población Migrante NO puede ser mayor al Número Total de Menores. ","") ->  | CH62: =IF(Q62>$D62,1,0) -> 0 | CI62: =IF(R62>$D62,1,0) -> 0
A63: 03500359 | B63: LACTANCIA MATERNA / FORMULA LÁCTEA | D63: =IFERROR(VLOOKUP($A63,Filtro_!$A$4:$AX$2299,2,FALSE),0) -> 2661 | E63: =IFERROR(VLOOKUP($A63,Filtro_!$A$4:$AX$2299,3,FALSE),0) -> 1408 | F63: =IFERROR(VLOOKUP($A63,Filtro_!$A$4:$AX$2299,4,FALSE),0) -> 1253 | G63: =IFERROR(VLOOKUP($A63,Filtro_!$A$4:$AX$2299,5,FALSE),0) -> 554 | H63: =IFERROR(VLOOKUP($A63,Filtro_!$A$4:$AX$2299,6,FALSE),0) -> 525 | I63: =IFERROR(VLOOKUP($A63,Filtro_!$A$4:$AX$2299,7,FALSE),0) -> 489 | J63: =IFERROR(VLOOKUP($A63,Filtro_!$A$4:$AX$2299,8,FALSE),0) -> 428 | K63: =IFERROR(VLOOKUP($A63,Filtro_!$A$4:$AX$2299,9,FALSE),0) -> 365 | L63: =IFERROR(VLOOKUP($A63,Filtro_!$A$4:$AX$2299,10,FALSE),0) -> 300 | M63: =IFERROR(VLOOKUP($A63,Filtro_!$A$4:$AX$2299,11,FALSE),0) -> 0 | N63: =IFERROR(VLOOKUP($A63,Filtro_!$A$4:$AX$2299,12,FALSE),0) -> 0 | O63: =IFERROR(VLOOKUP($A63,Filtro_!$A$4:$AX$2299,13,FALSE),0) -> 0 | P63: =IFERROR(VLOOKUP($A63,Filtro_!$A$4:$AX$2299,14,FALSE),0) -> 0 | Q63: =IFERROR(VLOOKUP($A63,Filtro_!$A$4:$AX$2299,15,FALSE),0) -> 3 | R63: =IFERROR(VLOOKUP($A63,Filtro_!$A$4:$AX$2299,16,FALSE),0) -> 4 | CB63: =IF(CH63=1," * El Número de menores pertenecientes a Pueblos Originarios NO puede ser mayor al Número Total de Menores. ","") ->  | CC63: =IF(CI63=1," * El Número de menores pertenecientes a Población Migrante NO puede ser mayor al Número Total de Menores. ","") ->  | CH63: =IF(Q63>$D63,1,0) -> 0 | CI63: 0
A64: 03500360 | B64: FORMULA LÁCTEA | D64: =IFERROR(VLOOKUP($A64,Filtro_!$A$4:$AX$2299,2,FALSE),0) -> 1171 | E64: =IFERROR(VLOOKUP($A64,Filtro_!$A$4:$AX$2299,3,FALSE),0) -> 635 | F64: =IFERROR(VLOOKUP($A64,Filtro_!$A$4:$AX$2299,4,FALSE),0) -> 536 | G64: =IFERROR(VLOOKUP($A64,Filtro_!$A$4:$AX$2299,5,FALSE),0) -> 122 | H64: =IFERROR(VLOOKUP($A64,Filtro_!$A$4:$AX$2299,6,FALSE),0) -> 105 | I64: =IFERROR(VLOOKUP($A64,Filtro_!$A$4:$AX$2299,7,FALSE),0) -> 248 | J64: =IFERROR(VLOOKUP($A64,Filtro_!$A$4:$AX$2299,8,FALSE),0) -> 197 | K64: =IFERROR(VLOOKUP($A64,Filtro_!$A$4:$AX$2299,9,FALSE),0) -> 265 | L64: =IFERROR(VLOOKUP($A64,Filtro_!$A$4:$AX$2299,10,FALSE),0) -> 234 | M64: =IFERROR(VLOOKUP($A64,Filtro_!$A$4:$AX$2299,11,FALSE),0) -> 0 | N64: =IFERROR(VLOOKUP($A64,Filtro_!$A$4:$AX$2299,12,FALSE),0) -> 0 | O64: =IFERROR(VLOOKUP($A64,Filtro_!$A$4:$AX$2299,13,FALSE),0) -> 0 | P64: =IFERROR(VLOOKUP($A64,Filtro_!$A$4:$AX$2299,14,FALSE),0) -> 0 | Q64: =IFERROR(VLOOKUP($A64,Filtro_!$A$4:$AX$2299,15,FALSE),0) -> 0 | R64: =IFERROR(VLOOKUP($A64,Filtro_!$A$4:$AX$2299,16,FALSE),0) -> 0 | CH64: 0 | CI64: 0
A65: A0200003 | B65: LACTANCIA MATERNA MAS SÓLIDOS | D65: =IFERROR(VLOOKUP($A65,Filtro_!$A$4:$AX$2299,2,FALSE),0) -> 2149 | E65: =IFERROR(VLOOKUP($A65,Filtro_!$A$4:$AX$2299,3,FALSE),0) -> 1054 | F65: =IFERROR(VLOOKUP($A65,Filtro_!$A$4:$AX$2299,4,FALSE),0) -> 1095 | G65: =IFERROR(VLOOKUP($A65,Filtro_!$A$4:$AX$2299,5,FALSE),0) -> 0 | H65: =IFERROR(VLOOKUP($A65,Filtro_!$A$4:$AX$2299,6,FALSE),0) -> 0 | I65: =IFERROR(VLOOKUP($A65,Filtro_!$A$4:$AX$2299,7,FALSE),0) -> 0 | J65: =IFERROR(VLOOKUP($A65,Filtro_!$A$4:$AX$2299,8,FALSE),0) -> 0 | K65: =IFERROR(VLOOKUP($A65,Filtro_!$A$4:$AX$2299,9,FALSE),0) -> 167 | L65: =IFERROR(VLOOKUP($A65,Filtro_!$A$4:$AX$2299,10,FALSE),0) -> 151 | M65: =IFERROR(VLOOKUP($A65,Filtro_!$A$4:$AX$2299,11,FALSE),0) -> 649 | N65: =IFERROR(VLOOKUP($A65,Filtro_!$A$4:$AX$2299,12,FALSE),0) -> 678 | O65: =IFERROR(VLOOKUP($A65,Filtro_!$A$4:$AX$2299,13,FALSE),0) -> 238 | P65: =IFERROR(VLOOKUP($A65,Filtro_!$A$4:$AX$2299,14,FALSE),0) -> 266 | Q65: =IFERROR(VLOOKUP($A65,Filtro_!$A$4:$AX$2299,15,FALSE),0) -> 6 | R65: =IFERROR(VLOOKUP($A65,Filtro_!$A$4:$AX$2299,16,FALSE),0) -> 4 | CH65: 0 | CI65: 0
A66: 03600140 | B66: LACTANCIA MATERNA/FORMULA LÁCTEA MAS SÓLIDOS | D66: =IFERROR(VLOOKUP($A66,Filtro_!$A$4:$AX$2299,2,FALSE),0) -> 2179 | E66: =IFERROR(VLOOKUP($A66,Filtro_!$A$4:$AX$2299,3,FALSE),0) -> 1093 | F66: =IFERROR(VLOOKUP($A66,Filtro_!$A$4:$AX$2299,4,FALSE),0) -> 1086 | G66: =IFERROR(VLOOKUP($A66,Filtro_!$A$4:$AX$2299,5,FALSE),0) -> 0 | H66: =IFERROR(VLOOKUP($A66,Filtro_!$A$4:$AX$2299,6,FALSE),0) -> 0 | I66: =IFERROR(VLOOKUP($A66,Filtro_!$A$4:$AX$2299,7,FALSE),0) -> 0 | J66: =IFERROR(VLOOKUP($A66,Filtro_!$A$4:$AX$2299,8,FALSE),0) -> 0 | K66: =IFERROR(VLOOKUP($A66,Filtro_!$A$4:$AX$2299,9,FALSE),0) -> 154 | L66: =IFERROR(VLOOKUP($A66,Filtro_!$A$4:$AX$2299,10,FALSE),0) -> 146 | M66: =IFERROR(VLOOKUP($A66,Filtro_!$A$4:$AX$2299,11,FALSE),0) -> 546 | N66: =IFERROR(VLOOKUP($A66,Filtro_!$A$4:$AX$2299,12,FALSE),0) -> 567 | O66: =IFERROR(VLOOKUP($A66,Filtro_!$A$4:$AX$2299,13,FALSE),0) -> 393 | P66: =IFERROR(VLOOKUP($A66,Filtro_!$A$4:$AX$2299,14,FALSE),0) -> 373 | Q66: =IFERROR(VLOOKUP($A66,Filtro_!$A$4:$AX$2299,15,FALSE),0) -> 2 | R66: =IFERROR(VLOOKUP($A66,Filtro_!$A$4:$AX$2299,16,FALSE),0) -> 5 | CH66: 0 | CI66: 0
A67: 03600150 | B67: FORMULA LÁCTEA MAS SÓLIDOS | D67: =IFERROR(VLOOKUP($A67,Filtro_!$A$4:$AX$2299,2,FALSE),0) -> 3169 | E67: =IFERROR(VLOOKUP($A67,Filtro_!$A$4:$AX$2299,3,FALSE),0) -> 1653 | F67: =IFERROR(VLOOKUP($A67,Filtro_!$A$4:$AX$2299,4,FALSE),0) -> 1516 | G67: =IFERROR(VLOOKUP($A67,Filtro_!$A$4:$AX$2299,5,FALSE),0) -> 0 | H67: =IFERROR(VLOOKUP($A67,Filtro_!$A$4:$AX$2299,6,FALSE),0) -> 0 | I67: =IFERROR(VLOOKUP($A67,Filtro_!$A$4:$AX$2299,7,FALSE),0) -> 0 | J67: =IFERROR(VLOOKUP($A67,Filtro_!$A$4:$AX$2299,8,FALSE),0) -> 0 | K67: =IFERROR(VLOOKUP($A67,Filtro_!$A$4:$AX$2299,9,FALSE),0) -> 143 | L67: =IFERROR(VLOOKUP($A67,Filtro_!$A$4:$AX$2299,10,FALSE),0) -> 148 | M67: =IFERROR(VLOOKUP($A67,Filtro_!$A$4:$AX$2299,11,FALSE),0) -> 673 | N67: =IFERROR(VLOOKUP($A67,Filtro_!$A$4:$AX$2299,12,FALSE),0) -> 593 | O67: =IFERROR(VLOOKUP($A67,Filtro_!$A$4:$AX$2299,13,FALSE),0) -> 837 | P67: =IFERROR(VLOOKUP($A67,Filtro_!$A$4:$AX$2299,14,FALSE),0) -> 775 | Q67: =IFERROR(VLOOKUP($A67,Filtro_!$A$4:$AX$2299,15,FALSE),0) -> 8 | R67: =IFERROR(VLOOKUP($A67,Filtro_!$A$4:$AX$2299,16,FALSE),0) -> 8 | CH67: 0 | CI67: 0
B68: SECCION B: EVALUACIÓN, APLICACIÓN Y RESULTADOS DE ESCALAS EN LA MUJER
B69: SECCIÓN B.1: EVALUACIÓN DEL ESTADO NUTRICIONAL A MUJERES CONTROLADAS AL OCTAVO MES POST PARTO
B70: ESTADO NUTRICIONAL | D70: TOTAL
B72: TOTAL | D72: =SUM(D73:D76) -> 911
A73: 03500120 | B73: OBESA | D73: =IFERROR(VLOOKUP($A73,Filtro_!$A$4:$AX$2299,2,FALSE),0) -> 369
A74: 03500130 | B74: SOBREPESO | D74: =IFERROR(VLOOKUP($A74,Filtro_!$A$4:$AX$2299,2,FALSE),0) -> 317
A75: 03500140 | B75: NORMAL | D75: =IFERROR(VLOOKUP($A75,Filtro_!$A$4:$AX$2299,2,FALSE),0) -> 220
A76: 03500150 | B76: BAJO PESO | D76: =IFERROR(VLOOKUP($A76,Filtro_!$A$4:$AX$2299,2,FALSE),0) -> 5
B77: SECCIÓN B.2: APLICACIÓN DE ESCALA SEGÚN EVALUACIÓN DE RIESGO PSICOSOCIAL ABREVIADA A GESTANTES
B78: TIPO | D78: TOTAL DE APLICACIONES | E78: RIESGO | F78: DERIVADAS A EQUIPO DE CABECERA | G78: VIOLENCIA INTRAFAMILIAR | CH78: 0
A79: 02021830 | B79: EVALUACIÓN AL INGRESO | D79: =IFERROR(VLOOKUP($A79,Filtro_!$A$4:$AX$2299,2,FALSE),0) -> 6934 | E79: =IFERROR(VLOOKUP($A79,Filtro_!$A$4:$AX$2299,3,FALSE),0) -> 1904 | F79: =IFERROR(VLOOKUP($A79,Filtro_!$A$4:$AX$2299,4,FALSE),0) -> 1565 | G79: =IFERROR(VLOOKUP($A79,Filtro_!$A$4:$AX$2299,5,FALSE),0) -> 183 | H79: =CB79&CC79&CD79 ->  | CB79: =IF(CH79=1,"* Las Aplicaciones de EPSA con resultado de Riesgo NO DEBE ser MAYOR que el Total de las aplicaciones. ","") ->  | CC79: =IF(CI79=1,"* Las Aplicaciones de EPSA con resultado de Riesgo NO DEBE ser MENOR que las Derivaciones a equipo de cabecera. ","") ->  | CD79: =IF(CJ79=1,"* Las Aplicaciones de EPSA asociadas a Violencia Intrafamiliar NO DEBEN ser MAYOR al Total de las aplicaciones. ","") ->  | CH79: =IF(D79<E79,1,0) -> 0 | CI79: =IF(E79<F79,1,0) -> 0 | CJ79: =IF(G79>D79,1,0) -> 0
A80: 03600160 | B80: EVALUACIÓN AL TERCER TRIMESTRE | D80: =IFERROR(VLOOKUP($A80,Filtro_!$A$4:$AX$2299,2,FALSE),0) -> 317 | E80: =IFERROR(VLOOKUP($A80,Filtro_!$A$4:$AX$2299,3,FALSE),0) -> 49 | F80: =IFERROR(VLOOKUP($A80,Filtro_!$A$4:$AX$2299,4,FALSE),0) -> 34 | G80: =IFERROR(VLOOKUP($A80,Filtro_!$A$4:$AX$2299,5,FALSE),0) -> 1 | H80: =CB80&CC80&CD80 ->  | CB80: =IF(CH80=1,"* Las Aplicaciones de EPSA con resultado de Riesgo NO DEBE ser MAYOR que el Total de las aplicaciones. ","") ->  | CC80: =IF(CI80=1,"* Las Aplicaciones de EPSA con resultado de Riesgo NO DEBE ser MENOR que las Derivaciones a equipo de cabecera. ","") ->  | CD80: =IF(CJ80=1,"* Las Aplicaciones de EPSA asociadas a Violencia Intrafamiliar NO DEBEN ser MAYOR al Total de las aplicaciones. ","") ->  | CH80: =IF(D80<E80,1,0) -> 0 | CI80: =IF(E80<F80,1,0) -> 0 | CJ80: =IF(G80>D80,1,0) -> 0
B81: SECCIÓN B.3: APLICACIÓN DE ESCALA DE EDIMBURGO A GESTANTES Y MUJERES POST PARTO | CH81: 0
B82: CONCEPTO | D82: TOTAL DE APLICACIONES | E82: RESULTADOS 10 O MÁS PTOS. O RESULTADO DISTINTO DE 0 EN PREG 10 . (PUERPERAS) | F82: RESULTADOS 13 O MÁS PTOS O RESULTADO DISTINTO DE 0 EN PREG 10. (GESTANTES) | G82: TOTAL DE CASOS ALTERADOS DERIVADOS A SALUD MENTAL | CH82: 0
A83: 03500160 | B83: EVALUACIÓN A GESTANTES | C83: PRIMERA EVALUACIÓN (2º control prenatal) | D83: =IFERROR(VLOOKUP($A83,Filtro_!$A$4:$AX$2299,2,FALSE),0) -> 6862 | E83: =IFERROR(VLOOKUP($A83,Filtro_!$A$4:$AX$2299,3,FALSE),0) -> 0 | F83: =IFERROR(VLOOKUP($A83,Filtro_!$A$4:$AX$2299,4,FALSE),0) -> 721 | G83: =IFERROR(VLOOKUP($A83,Filtro_!$A$4:$AX$2299,5,FALSE),0) -> 689 | CG83: 0 | CH83: 0
A84: 03500170 | C84: REEVALUACIÓN (con puntaje elevado en la primera evaluación) | D84: =IFERROR(VLOOKUP($A84,Filtro_!$A$4:$AX$2299,2,FALSE),0) -> 30 | E84: =IFERROR(VLOOKUP($A84,Filtro_!$A$4:$AX$2299,3,FALSE),0) -> 0 | F84: =IFERROR(VLOOKUP($A84,Filtro_!$A$4:$AX$2299,4,FALSE),0) -> 11 | G84: =IFERROR(VLOOKUP($A84,Filtro_!$A$4:$AX$2299,5,FALSE),0) -> 7 | CG84: 0 | CH84: 0
A85: 03500200 | B85: EVALUACIÓN A MUJERES POST PARTO O SÍNTOMAS DE DEPRESIÓN | C85: A los 2 meses | D85: =IFERROR(VLOOKUP($A85,Filtro_!$A$4:$AX$2299,2,FALSE),0) -> 4690 | E85: =IFERROR(VLOOKUP($A85,Filtro_!$A$4:$AX$2299,3,FALSE),0) -> 632 | F85: =IFERROR(VLOOKUP($A85,Filtro_!$A$4:$AX$2299,4,FALSE),0) -> 0 | G85: =IFERROR(VLOOKUP($A85,Filtro_!$A$4:$AX$2299,5,FALSE),0) -> 435 | CG85: 0 | CH85: 0
A86: 03500210 | C86: A los 6 meses | D86: =IFERROR(VLOOKUP($A86,Filtro_!$A$4:$AX$2299,2,FALSE),0) -> 4176 | E86: =IFERROR(VLOOKUP($A86,Filtro_!$A$4:$AX$2299,3,FALSE),0) -> 599 | F86: =IFERROR(VLOOKUP($A86,Filtro_!$A$4:$AX$2299,4,FALSE),0) -> 0 | G86: =IFERROR(VLOOKUP($A86,Filtro_!$A$4:$AX$2299,5,FALSE),0) -> 437 | CG86: 0 | CH86: 0
B87: SECCIÓN C: RESULTADOS DE LA EVALUACIÓN DEL ESTADO NUTRICIONAL DEL ADOLESCENTE CON CONTROL SALUD INTEGRAL
B88: ESTADO NUTRICIONAL | D88: TOTAL | G88: 10 A 14 | I88: 15 A 19
D89: Ambos Sexos | E89: Hombres | F89: Mujeres | G89: Hombres | H89: Mujeres | I89: Hombres | J89: Mujeres
B90: TOTAL | D90: =SUM(D91:D95) -> 12713 | E90: =SUM(E91:E95) -> 5246 | F90: 7467 | G90: =SUM(G91:G95) -> 4077 | H90: 5208 | I90: 1169 | J90: 2259
A91: 03050400 | B91: NORMAL | D91: =IFERROR(VLOOKUP($A91,Filtro_!$A$4:$AX$2299,2,FALSE),0) -> 5288 | E91: =IFERROR(VLOOKUP($A91,Filtro_!$A$4:$AX$2299,3,FALSE),0) -> 2053 | F91: =IFERROR(VLOOKUP($A91,Filtro_!$A$4:$AX$2299,4,FALSE),0) -> 3235 | G91: =IFERROR(VLOOKUP($A91,Filtro_!$A$4:$AX$2299,5,FALSE),0) -> 1515 | H91: =IFERROR(VLOOKUP($A91,Filtro_!$A$4:$AX$2299,6,FALSE),0) -> 2256 | I91: =IFERROR(VLOOKUP($A91,Filtro_!$A$4:$AX$2299,7,FALSE),0) -> 538 | J91: =IFERROR(VLOOKUP($A91,Filtro_!$A$4:$AX$2299,8,FALSE),0) -> 979
A92: 03050500 | B92: BAJO PESO | D92: =IFERROR(VLOOKUP($A92,Filtro_!$A$4:$AX$2299,2,FALSE),0) -> 617 | E92: =IFERROR(VLOOKUP($A92,Filtro_!$A$4:$AX$2299,3,FALSE),0) -> 300 | F92: =IFERROR(VLOOKUP($A92,Filtro_!$A$4:$AX$2299,4,FALSE),0) -> 317 | G92: =IFERROR(VLOOKUP($A92,Filtro_!$A$4:$AX$2299,5,FALSE),0) -> 203 | H92: =IFERROR(VLOOKUP($A92,Filtro_!$A$4:$AX$2299,6,FALSE),0) -> 228 | I92: =IFERROR(VLOOKUP($A92,Filtro_!$A$4:$AX$2299,7,FALSE),0) -> 97 | J92: =IFERROR(VLOOKUP($A92,Filtro_!$A$4:$AX$2299,8,FALSE),0) -> 89
A93: 03050600 | B93: SOBREPESO | D93: =IFERROR(VLOOKUP($A93,Filtro_!$A$4:$AX$2299,2,FALSE),0) -> 3394 | E93: =IFERROR(VLOOKUP($A93,Filtro_!$A$4:$AX$2299,3,FALSE),0) -> 1284 | F93: =IFERROR(VLOOKUP($A93,Filtro_!$A$4:$AX$2299,4,FALSE),0) -> 2110 | G93: =IFERROR(VLOOKUP($A93,Filtro_!$A$4:$AX$2299,5,FALSE),0) -> 1022 | H93: =IFERROR(VLOOKUP($A93,Filtro_!$A$4:$AX$2299,6,FALSE),0) -> 1465 | I93: =IFERROR(VLOOKUP($A93,Filtro_!$A$4:$AX$2299,7,FALSE),0) -> 262 | J93: =IFERROR(VLOOKUP($A93,Filtro_!$A$4:$AX$2299,8,FALSE),0) -> 645
A94: 03050700 | B94: OBESOS | D94: =IFERROR(VLOOKUP($A94,Filtro_!$A$4:$AX$2299,2,FALSE),0) -> 2839 | E94: =IFERROR(VLOOKUP($A94,Filtro_!$A$4:$AX$2299,3,FALSE),0) -> 1316 | F94: =IFERROR(VLOOKUP($A94,Filtro_!$A$4:$AX$2299,4,FALSE),0) -> 1523 | G94: =IFERROR(VLOOKUP($A94,Filtro_!$A$4:$AX$2299,5,FALSE),0) -> 1102 | H94: =IFERROR(VLOOKUP($A94,Filtro_!$A$4:$AX$2299,6,FALSE),0) -> 1086 | I94: =IFERROR(VLOOKUP($A94,Filtro_!$A$4:$AX$2299,7,FALSE),0) -> 214 | J94: =IFERROR(VLOOKUP($A94,Filtro_!$A$4:$AX$2299,8,FALSE),0) -> 437
A95: 03050710 | B95: OBESOS SEVEROS | D95: =IFERROR(VLOOKUP($A95,Filtro_!$A$4:$AX$2299,2,FALSE),0) -> 575 | E95: =IFERROR(VLOOKUP($A95,Filtro_!$A$4:$AX$2299,3,FALSE),0) -> 293 | F95: =IFERROR(VLOOKUP($A95,Filtro_!$A$4:$AX$2299,4,FALSE),0) -> 282 | G95: =IFERROR(VLOOKUP($A95,Filtro_!$A$4:$AX$2299,5,FALSE),0) -> 235 | H95: =IFERROR(VLOOKUP($A95,Filtro_!$A$4:$AX$2299,6,FALSE),0) -> 173 | I95: =IFERROR(VLOOKUP($A95,Filtro_!$A$4:$AX$2299,7,FALSE),0) -> 58 | J95: =IFERROR(VLOOKUP($A95,Filtro_!$A$4:$AX$2299,8,FALSE),0) -> 109
B96: SECCIÓN D: OTRAS EVALUACIONES, APLICACIONES Y RESULTADOS DE ESCALAS EN TODAS LAS EDADES
B97: SECCIÓN D.1: APLICACIÓN DE TAMIZAJE PARA EVALUAR EL NIVEL DE RIESGO DE CONSUMO DE ALCOHOL, TABACO Y OTRAS DROGAS
B98: COMPONENTE | D98: TOTAL | G98: POR EDAD
G99: 10-14 años | I99: 15-19 años | K99: 20-24 años | M99: 25-44 años | O99: 45-64 años | Q99: 65-69 años | S99: 70-79 años | U99: 80 y más
D100: Ambos Sexos | E100: Hombres | F100: Mujeres | G100: Hombres | H100: Mujeres | I100: Hombres | J100: Mujeres | K100: Hombres | L100: Mujeres | M100: Hombres | N100: Mujeres | O100: Hombres | P100: Mujeres | Q100: Hombres | R100: Mujeres | S100: Hombres | T100: Mujeres | U100: Hombres | V100: Mujeres
A101: 03500346 | B101: Nº DE AUDIT (EMP/EMPAM) | D101: =IFERROR(VLOOKUP($A101,Filtro_!$A$4:$AX$2299,2,FALSE),0) -> 26569 | E101: =IFERROR(VLOOKUP($A101,Filtro_!$A$4:$AX$2299,3,FALSE),0) -> 8564 | F101: =IFERROR(VLOOKUP($A101,Filtro_!$A$4:$AX$2299,4,FALSE),0) -> 18005 | G101: =IFERROR(VLOOKUP($A101,Filtro_!$A$4:$AX$2299,5,FALSE),0) -> 0 | H101: =IFERROR(VLOOKUP($A101,Filtro_!$A$4:$AX$2299,6,FALSE),0) -> 0 | I101: =IFERROR(VLOOKUP($A101,Filtro_!$A$4:$AX$2299,7,FALSE),0) -> 116 | J101: =IFERROR(VLOOKUP($A101,Filtro_!$A$4:$AX$2299,8,FALSE),0) -> 221 | K101: =IFERROR(VLOOKUP($A101,Filtro_!$A$4:$AX$2299,9,FALSE),0) -> 439 | L101: =IFERROR(VLOOKUP($A101,Filtro_!$A$4:$AX$2299,10,FALSE),0) -> 1158 | M101: =IFERROR(VLOOKUP($A101,Filtro_!$A$4:$AX$2299,11,FALSE),0) -> 2130 | N101: =IFERROR(VLOOKUP($A101,Filtro_!$A$4:$AX$2299,12,FALSE),0) -> 5846 | O101: =IFERROR(VLOOKUP($A101,Filtro_!$A$4:$AX$2299,13,FALSE),0) -> 1888 | P101: =IFERROR(VLOOKUP($A101,Filtro_!$A$4:$AX$2299,14,FALSE),0) -> 4380 | Q101: =IFERROR(VLOOKUP($A101,Filtro_!$A$4:$AX$2299,15,FALSE),0) -> 1067 | R101: =IFERROR(VLOOKUP($A101,Filtro_!$A$4:$AX$2299,16,FALSE),0) -> 1781 | S101: =IFERROR(VLOOKUP($A101,Filtro_!$A$4:$AX$2299,17,FALSE),0) -> 1891 | T101: =IFERROR(VLOOKUP($A101,Filtro_!$A$4:$AX$2299,18,FALSE),0) -> 2826 | U101: =IFERROR(VLOOKUP($A101,Filtro_!$A$4:$AX$2299,19,FALSE),0) -> 1033 | V101: =IFERROR(VLOOKUP($A101,Filtro_!$A$4:$AX$2299,20,FALSE),0) -> 1793
A102: 03500347 | B102: Nº DE AUDIT APLICADO | D102: =IFERROR(VLOOKUP($A102,Filtro_!$A$4:$AX$2299,2,FALSE),0) -> 26514 | E102: =IFERROR(VLOOKUP($A102,Filtro_!$A$4:$AX$2299,3,FALSE),0) -> 8847 | F102: =IFERROR(VLOOKUP($A102,Filtro_!$A$4:$AX$2299,4,FALSE),0) -> 17667 | G102: =IFERROR(VLOOKUP($A102,Filtro_!$A$4:$AX$2299,5,FALSE),0) -> 0 | H102: =IFERROR(VLOOKUP($A102,Filtro_!$A$4:$AX$2299,6,FALSE),0) -> 0 | I102: =IFERROR(VLOOKUP($A102,Filtro_!$A$4:$AX$2299,7,FALSE),0) -> 0 | J102: =IFERROR(VLOOKUP($A102,Filtro_!$A$4:$AX$2299,8,FALSE),0) -> 0 | K102: =IFERROR(VLOOKUP($A102,Filtro_!$A$4:$AX$2299,9,FALSE),0) -> 1641 | L102: =IFERROR(VLOOKUP($A102,Filtro_!$A$4:$AX$2299,10,FALSE),0) -> 2550 | M102: =IFERROR(VLOOKUP($A102,Filtro_!$A$4:$AX$2299,11,FALSE),0) -> 2547 | N102: =IFERROR(VLOOKUP($A102,Filtro_!$A$4:$AX$2299,12,FALSE),0) -> 6352 | O102: =IFERROR(VLOOKUP($A102,Filtro_!$A$4:$AX$2299,13,FALSE),0) -> 2572 | P102: =IFERROR(VLOOKUP($A102,Filtro_!$A$4:$AX$2299,14,FALSE),0) -> 5489 | Q102: =IFERROR(VLOOKUP($A102,Filtro_!$A$4:$AX$2299,15,FALSE),0) -> 1070 | R102: =IFERROR(VLOOKUP($A102,Filtro_!$A$4:$AX$2299,16,FALSE),0) -> 1752 | S102: =IFERROR(VLOOKUP($A102,Filtro_!$A$4:$AX$2299,17,FALSE),0) -> 726 | T102: =IFERROR(VLOOKUP($A102,Filtro_!$A$4:$AX$2299,18,FALSE),0) -> 1174 | U102: =IFERROR(VLOOKUP($A102,Filtro_!$A$4:$AX$2299,19,FALSE),0) -> 291 | V102: =IFERROR(VLOOKUP($A102,Filtro_!$A$4:$AX$2299,20,FALSE),0) -> 350
A103: 03500402 | B103: Nº DE ASSIST (EMP/EMPAM) | D103: =IFERROR(VLOOKUP($A103,Filtro_!$A$4:$AX$2299,2,FALSE),0) -> 658 | E103: =IFERROR(VLOOKUP($A103,Filtro_!$A$4:$AX$2299,3,FALSE),0) -> 216 | F103: =IFERROR(VLOOKUP($A103,Filtro_!$A$4:$AX$2299,4,FALSE),0) -> 442 | G103: =IFERROR(VLOOKUP($A103,Filtro_!$A$4:$AX$2299,5,FALSE),0) -> 0 | H103: =IFERROR(VLOOKUP($A103,Filtro_!$A$4:$AX$2299,6,FALSE),0) -> 0 | I103: =IFERROR(VLOOKUP($A103,Filtro_!$A$4:$AX$2299,7,FALSE),0) -> 0 | J103: =IFERROR(VLOOKUP($A103,Filtro_!$A$4:$AX$2299,8,FALSE),0) -> 0 | K103: =IFERROR(VLOOKUP($A103,Filtro_!$A$4:$AX$2299,9,FALSE),0) -> 11 | L103: =IFERROR(VLOOKUP($A103,Filtro_!$A$4:$AX$2299,10,FALSE),0) -> 27 | M103: =IFERROR(VLOOKUP($A103,Filtro_!$A$4:$AX$2299,11,FALSE),0) -> 63 | N103: =IFERROR(VLOOKUP($A103,Filtro_!$A$4:$AX$2299,12,FALSE),0) -> 146 | O103: =IFERROR(VLOOKUP($A103,Filtro_!$A$4:$AX$2299,13,FALSE),0) -> 50 | P103: =IFERROR(VLOOKUP($A103,Filtro_!$A$4:$AX$2299,14,FALSE),0) -> 109 | Q103: =IFERROR(VLOOKUP($A103,Filtro_!$A$4:$AX$2299,15,FALSE),0) -> 34 | R103: =IFERROR(VLOOKUP($A103,Filtro_!$A$4:$AX$2299,16,FALSE),0) -> 60 | S103: =IFERROR(VLOOKUP($A103,Filtro_!$A$4:$AX$2299,17,FALSE),0) -> 45 | T103: =IFERROR(VLOOKUP($A103,Filtro_!$A$4:$AX$2299,18,FALSE),0) -> 54 | U103: =IFERROR(VLOOKUP($A103,Filtro_!$A$4:$AX$2299,19,FALSE),0) -> 13 | V103: =IFERROR(VLOOKUP($A103,Filtro_!$A$4:$AX$2299,20,FALSE),0) -> 46
A104: 03500348 | B104: N° DE ASSIST APLICADO | D104: =IFERROR(VLOOKUP($A104,Filtro_!$A$4:$AX$2299,2,FALSE),0) -> 3896 | E104: =IFERROR(VLOOKUP($A104,Filtro_!$A$4:$AX$2299,3,FALSE),0) -> 1383 | F104: =IFERROR(VLOOKUP($A104,Filtro_!$A$4:$AX$2299,4,FALSE),0) -> 2513 | G104: =IFERROR(VLOOKUP($A104,Filtro_!$A$4:$AX$2299,5,FALSE),0) -> 0 | H104: =IFERROR(VLOOKUP($A104,Filtro_!$A$4:$AX$2299,6,FALSE),0) -> 0 | I104: =IFERROR(VLOOKUP($A104,Filtro_!$A$4:$AX$2299,7,FALSE),0) -> 0 | J104: =IFERROR(VLOOKUP($A104,Filtro_!$A$4:$AX$2299,8,FALSE),0) -> 0 | K104: =IFERROR(VLOOKUP($A104,Filtro_!$A$4:$AX$2299,9,FALSE),0) -> 274 | L104: =IFERROR(VLOOKUP($A104,Filtro_!$A$4:$AX$2299,10,FALSE),0) -> 280 | M104: =IFERROR(VLOOKUP($A104,Filtro_!$A$4:$AX$2299,11,FALSE),0) -> 462 | N104: =IFERROR(VLOOKUP($A104,Filtro_!$A$4:$AX$2299,12,FALSE),0) -> 987 | O104: =IFERROR(VLOOKUP($A104,Filtro_!$A$4:$AX$2299,13,FALSE),0) -> 461 | P104: =IFERROR(VLOOKUP($A104,Filtro_!$A$4:$AX$2299,14,FALSE),0) -> 969 | Q104: =IFERROR(VLOOKUP($A104,Filtro_!$A$4:$AX$2299,15,FALSE),0) -> 96 | R104: =IFERROR(VLOOKUP($A104,Filtro_!$A$4:$AX$2299,16,FALSE),0) -> 139 | S104: =IFERROR(VLOOKUP($A104,Filtro_!$A$4:$AX$2299,17,FALSE),0) -> 72 | T104: =IFERROR(VLOOKUP($A104,Filtro_!$A$4:$AX$2299,18,FALSE),0) -> 112 | U104: =IFERROR(VLOOKUP($A104,Filtro_!$A$4:$AX$2299,19,FALSE),0) -> 18 | V104: =IFERROR(VLOOKUP($A104,Filtro_!$A$4:$AX$2299,20,FALSE),0) -> 26
A105: 03600100 | B105: N° DE CRAFFT EN CONTROL DE SALUD INTEGRAL DEL ADOLESCENTE | D105: =IFERROR(VLOOKUP($A105,Filtro_!$A$4:$AX$2299,2,FALSE),0) -> 4226 | E105: =IFERROR(VLOOKUP($A105,Filtro_!$A$4:$AX$2299,3,FALSE),0) -> 1794 | F105: =IFERROR(VLOOKUP($A105,Filtro_!$A$4:$AX$2299,4,FALSE),0) -> 2432 | G105: =IFERROR(VLOOKUP($A105,Filtro_!$A$4:$AX$2299,5,FALSE),0) -> 1230 | H105: =IFERROR(VLOOKUP($A105,Filtro_!$A$4:$AX$2299,6,FALSE),0) -> 1487 | I105: =IFERROR(VLOOKUP($A105,Filtro_!$A$4:$AX$2299,7,FALSE),0) -> 564 | J105: =IFERROR(VLOOKUP($A105,Filtro_!$A$4:$AX$2299,8,FALSE),0) -> 945 | K105: =IFERROR(VLOOKUP($A105,Filtro_!$A$4:$AX$2299,9,FALSE),0) -> 0 | L105: =IFERROR(VLOOKUP($A105,Filtro_!$A$4:$AX$2299,10,FALSE),0) -> 0 | M105: =IFERROR(VLOOKUP($A105,Filtro_!$A$4:$AX$2299,11,FALSE),0) -> 0 | N105: =IFERROR(VLOOKUP($A105,Filtro_!$A$4:$AX$2299,12,FALSE),0) -> 0 | O105: =IFERROR(VLOOKUP($A105,Filtro_!$A$4:$AX$2299,13,FALSE),0) -> 0 | P105: =IFERROR(VLOOKUP($A105,Filtro_!$A$4:$AX$2299,14,FALSE),0) -> 0 | Q105: =IFERROR(VLOOKUP($A105,Filtro_!$A$4:$AX$2299,15,FALSE),0) -> 0 | R105: =IFERROR(VLOOKUP($A105,Filtro_!$A$4:$AX$2299,16,FALSE),0) -> 0 | S105: =IFERROR(VLOOKUP($A105,Filtro_!$A$4:$AX$2299,17,FALSE),0) -> 0 | T105: =IFERROR(VLOOKUP($A105,Filtro_!$A$4:$AX$2299,18,FALSE),0) -> 0 | U105: =IFERROR(VLOOKUP($A105,Filtro_!$A$4:$AX$2299,19,FALSE),0) -> 0 | V105: =IFERROR(VLOOKUP($A105,Filtro_!$A$4:$AX$2299,20,FALSE),0) -> 0
A106: 03500367 | B106: N° DE CRAFFT APLICADO | D106: =IFERROR(VLOOKUP($A106,Filtro_!$A$4:$AX$2299,2,FALSE),0) -> 7350 | E106: =IFERROR(VLOOKUP($A106,Filtro_!$A$4:$AX$2299,3,FALSE),0) -> 3437 | F106: =IFERROR(VLOOKUP($A106,Filtro_!$A$4:$AX$2299,4,FALSE),0) -> 3913 | G106: =IFERROR(VLOOKUP($A106,Filtro_!$A$4:$AX$2299,5,FALSE),0) -> 1480 | H106: =IFERROR(VLOOKUP($A106,Filtro_!$A$4:$AX$2299,6,FALSE),0) -> 1572 | I106: =IFERROR(VLOOKUP($A106,Filtro_!$A$4:$AX$2299,7,FALSE),0) -> 1957 | J106: =IFERROR(VLOOKUP($A106,Filtro_!$A$4:$AX$2299,8,FALSE),0) -> 2341 | K106: =IFERROR(VLOOKUP($A106,Filtro_!$A$4:$AX$2299,9,FALSE),0) -> 0 | L106: =IFERROR(VLOOKUP($A106,Filtro_!$A$4:$AX$2299,10,FALSE),0) -> 0 | M106: =IFERROR(VLOOKUP($A106,Filtro_!$A$4:$AX$2299,11,FALSE),0) -> 0 | N106: =IFERROR(VLOOKUP($A106,Filtro_!$A$4:$AX$2299,12,FALSE),0) -> 0 | O106: =IFERROR(VLOOKUP($A106,Filtro_!$A$4:$AX$2299,13,FALSE),0) -> 0 | P106: =IFERROR(VLOOKUP($A106,Filtro_!$A$4:$AX$2299,14,FALSE),0) -> 0 | Q106: =IFERROR(VLOOKUP($A106,Filtro_!$A$4:$AX$2299,15,FALSE),0) -> 0 | R106: =IFERROR(VLOOKUP($A106,Filtro_!$A$4:$AX$2299,16,FALSE),0) -> 0 | S106: =IFERROR(VLOOKUP($A106,Filtro_!$A$4:$AX$2299,17,FALSE),0) -> 0 | T106: =IFERROR(VLOOKUP($A106,Filtro_!$A$4:$AX$2299,18,FALSE),0) -> 0 | U106: =IFERROR(VLOOKUP($A106,Filtro_!$A$4:$AX$2299,19,FALSE),0) -> 0 | V106: =IFERROR(VLOOKUP($A106,Filtro_!$A$4:$AX$2299,20,FALSE),0) -> 0
A107: 03500349 | B107: RESULTADOS DE EVALUACIÓN | C107: BAJO RIESGO | D107: =IFERROR(VLOOKUP($A107,Filtro_!$A$4:$AX$2299,2,FALSE),0) -> 60096 | E107: =IFERROR(VLOOKUP($A107,Filtro_!$A$4:$AX$2299,3,FALSE),0) -> 20176 | F107: =IFERROR(VLOOKUP($A107,Filtro_!$A$4:$AX$2299,4,FALSE),0) -> 39920 | G107: =IFERROR(VLOOKUP($A107,Filtro_!$A$4:$AX$2299,5,FALSE),0) -> 2214 | H107: =IFERROR(VLOOKUP($A107,Filtro_!$A$4:$AX$2299,6,FALSE),0) -> 2400 | I107: =IFERROR(VLOOKUP($A107,Filtro_!$A$4:$AX$2299,7,FALSE),0) -> 1897 | J107: =IFERROR(VLOOKUP($A107,Filtro_!$A$4:$AX$2299,8,FALSE),0) -> 2670 | K107: =IFERROR(VLOOKUP($A107,Filtro_!$A$4:$AX$2299,9,FALSE),0) -> 1840 | L107: =IFERROR(VLOOKUP($A107,Filtro_!$A$4:$AX$2299,10,FALSE),0) -> 3506 | M107: =IFERROR(VLOOKUP($A107,Filtro_!$A$4:$AX$2299,11,FALSE),0) -> 4124 | N107: =IFERROR(VLOOKUP($A107,Filtro_!$A$4:$AX$2299,12,FALSE),0) -> 11838 | O107: =IFERROR(VLOOKUP($A107,Filtro_!$A$4:$AX$2299,13,FALSE),0) -> 4121 | P107: =IFERROR(VLOOKUP($A107,Filtro_!$A$4:$AX$2299,14,FALSE),0) -> 9796 | Q107: =IFERROR(VLOOKUP($A107,Filtro_!$A$4:$AX$2299,15,FALSE),0) -> 2076 | R107: =IFERROR(VLOOKUP($A107,Filtro_!$A$4:$AX$2299,16,FALSE),0) -> 3519 | S107: =IFERROR(VLOOKUP($A107,Filtro_!$A$4:$AX$2299,17,FALSE),0) -> 2604 | T107: =IFERROR(VLOOKUP($A107,Filtro_!$A$4:$AX$2299,18,FALSE),0) -> 4025 | U107: =IFERROR(VLOOKUP($A107,Filtro_!$A$4:$AX$2299,19,FALSE),0) -> 1300 | V107: =IFERROR(VLOOKUP($A107,Filtro_!$A$4:$AX$2299,20,FALSE),0) -> 2166
A108: 03500290 | C108: CONSUMO RIESGOSO / INTERMEDIO | D108: =IFERROR(VLOOKUP($A108,Filtro_!$A$4:$AX$2299,2,FALSE),0) -> 4861 | E108: =IFERROR(VLOOKUP($A108,Filtro_!$A$4:$AX$2299,3,FALSE),0) -> 2397 | F108: =IFERROR(VLOOKUP($A108,Filtro_!$A$4:$AX$2299,4,FALSE),0) -> 2464 | G108: =IFERROR(VLOOKUP($A108,Filtro_!$A$4:$AX$2299,5,FALSE),0) -> 41 | H108: =IFERROR(VLOOKUP($A108,Filtro_!$A$4:$AX$2299,6,FALSE),0) -> 45 | I108: =IFERROR(VLOOKUP($A108,Filtro_!$A$4:$AX$2299,7,FALSE),0) -> 381 | J108: =IFERROR(VLOOKUP($A108,Filtro_!$A$4:$AX$2299,8,FALSE),0) -> 332 | K108: =IFERROR(VLOOKUP($A108,Filtro_!$A$4:$AX$2299,9,FALSE),0) -> 452 | L108: =IFERROR(VLOOKUP($A108,Filtro_!$A$4:$AX$2299,10,FALSE),0) -> 383 | M108: =IFERROR(VLOOKUP($A108,Filtro_!$A$4:$AX$2299,11,FALSE),0) -> 781 | N108: =IFERROR(VLOOKUP($A108,Filtro_!$A$4:$AX$2299,12,FALSE),0) -> 944 | O108: =IFERROR(VLOOKUP($A108,Filtro_!$A$4:$AX$2299,13,FALSE),0) -> 560 | P108: =IFERROR(VLOOKUP($A108,Filtro_!$A$4:$AX$2299,14,FALSE),0) -> 620 | Q108: =IFERROR(VLOOKUP($A108,Filtro_!$A$4:$AX$2299,15,FALSE),0) -> 102 | R108: =IFERROR(VLOOKUP($A108,Filtro_!$A$4:$AX$2299,16,FALSE),0) -> 83 | S108: =IFERROR(VLOOKUP($A108,Filtro_!$A$4:$AX$2299,17,FALSE),0) -> 49 | T108: =IFERROR(VLOOKUP($A108,Filtro_!$A$4:$AX$2299,18,FALSE),0) -> 42 | U108: =IFERROR(VLOOKUP($A108,Filtro_!$A$4:$AX$2299,19,FALSE),0) -> 31 | V108: =IFERROR(VLOOKUP($A108,Filtro_!$A$4:$AX$2299,20,FALSE),0) -> 15
A109: 03500300 | C109: POSIBLE CONSUMO PERJUDICIAL O DEPENDENCIA | D109: =IFERROR(VLOOKUP($A109,Filtro_!$A$4:$AX$2299,2,FALSE),0) -> 830 | E109: =IFERROR(VLOOKUP($A109,Filtro_!$A$4:$AX$2299,3,FALSE),0) -> 452 | F109: =IFERROR(VLOOKUP($A109,Filtro_!$A$4:$AX$2299,4,FALSE),0) -> 378 | G109: =IFERROR(VLOOKUP($A109,Filtro_!$A$4:$AX$2299,5,FALSE),0) -> 19 | H109: =IFERROR(VLOOKUP($A109,Filtro_!$A$4:$AX$2299,6,FALSE),0) -> 17 | I109: =IFERROR(VLOOKUP($A109,Filtro_!$A$4:$AX$2299,7,FALSE),0) -> 132 | J109: =IFERROR(VLOOKUP($A109,Filtro_!$A$4:$AX$2299,8,FALSE),0) -> 96 | K109: =IFERROR(VLOOKUP($A109,Filtro_!$A$4:$AX$2299,9,FALSE),0) -> 62 | L109: =IFERROR(VLOOKUP($A109,Filtro_!$A$4:$AX$2299,10,FALSE),0) -> 38 | M109: =IFERROR(VLOOKUP($A109,Filtro_!$A$4:$AX$2299,11,FALSE),0) -> 124 | N109: =IFERROR(VLOOKUP($A109,Filtro_!$A$4:$AX$2299,12,FALSE),0) -> 100 | O109: =IFERROR(VLOOKUP($A109,Filtro_!$A$4:$AX$2299,13,FALSE),0) -> 104 | P109: =IFERROR(VLOOKUP($A109,Filtro_!$A$4:$AX$2299,14,FALSE),0) -> 112 | Q109: =IFERROR(VLOOKUP($A109,Filtro_!$A$4:$AX$2299,15,FALSE),0) -> 4 | R109: =IFERROR(VLOOKUP($A109,Filtro_!$A$4:$AX$2299,16,FALSE),0) -> 10 | S109: =IFERROR(VLOOKUP($A109,Filtro_!$A$4:$AX$2299,17,FALSE),0) -> 6 | T109: =IFERROR(VLOOKUP($A109,Filtro_!$A$4:$AX$2299,18,FALSE),0) -> 5 | U109: =IFERROR(VLOOKUP($A109,Filtro_!$A$4:$AX$2299,19,FALSE),0) -> 1 | V109: =IFERROR(VLOOKUP($A109,Filtro_!$A$4:$AX$2299,20,FALSE),0) -> 0
B110: SECCIÓN D.2: RESULTADOS DE LA APLICACIÓN DE INSTRUMENTO DE VALORACIÓN DE DESEMPEÑO EN COMUNIDAD (IVADEC-CIF)
B111: ACTIVIDAD | C111: RESULTADO | D111: TOTAL | G111: POR EDAD
G112: 6 -11 meses | I112: 12 - 23 meses | K112: 2 - 4 años | M112: 5 - 9 años | O112: 10 a 14 años | Q112: 15 a 19 años | S112: 20 a 24 años | U112: 25 a 64 años | W112: 65 a 69 años | Y112: 70 a 79 años | AA112: 80 y más años
D113: Ambos Sexos | E113: Hombres | F113: Mujeres | G113: Hombres | H113: Mujeres | I113: Hombres | J113: Mujeres | K113: Hombres | L113: Mujeres | M113: Hombres | N113: Mujeres | O113: Hombres | P113: Mujeres | Q113: Hombres | R113: Mujeres | S113: Hombres | T113: Mujeres | U113: Hombres | V113: Mujeres | W113: Hombres | X113: Mujeres | Y113: Hombres | Z113: Mujeres | AA113: Hombres | AB113: Mujeres
A114: 03051000A | B114: ORIGEN FÍSICO | C114: SIN DISCAPACIDAD | D114: =IFERROR(VLOOKUP($A114,Filtro_!$A$4:$AX$2299,2,FALSE),0) -> 5 | E114: =IFERROR(VLOOKUP($A114,Filtro_!$A$4:$AX$2299,3,FALSE),0) -> 4 | F114: =IFERROR(VLOOKUP($A114,Filtro_!$A$4:$AX$2299,4,FALSE),0) -> 1 | G114: =IFERROR(VLOOKUP($A114,Filtro_!$A$4:$AX$2299,5,FALSE),0) -> 0 | H114: =IFERROR(VLOOKUP($A114,Filtro_!$A$4:$AX$2299,6,FALSE),0) -> 0 | I114: =IFERROR(VLOOKUP($A114,Filtro_!$A$4:$AX$2299,7,FALSE),0) -> 0 | J114: =IFERROR(VLOOKUP($A114,Filtro_!$A$4:$AX$2299,8,FALSE),0) -> 0 | K114: =IFERROR(VLOOKUP($A114,Filtro_!$A$4:$AX$2299,9,FALSE),0) -> 1 | L114: =IFERROR(VLOOKUP($A114,Filtro_!$A$4:$AX$2299,10,FALSE),0) -> 0 | M114: =IFERROR(VLOOKUP($A114,Filtro_!$A$4:$AX$2299,11,FALSE),0) -> 0 | N114: =IFERROR(VLOOKUP($A114,Filtro_!$A$4:$AX$2299,12,FALSE),0) -> 0 | O114: =IFERROR(VLOOKUP($A114,Filtro_!$A$4:$AX$2299,13,FALSE),0) -> 0 | P114: =IFERROR(VLOOKUP($A114,Filtro_!$A$4:$AX$2299,14,FALSE),0) -> 0 | Q114: =IFERROR(VLOOKUP($A114,Filtro_!$A$4:$AX$2299,15,FALSE),0) -> 0 | R114: =IFERROR(VLOOKUP($A114,Filtro_!$A$4:$AX$2299,16,FALSE),0) -> 0 | S114: =IFERROR(VLOOKUP($A114,Filtro_!$A$4:$AX$2299,17,FALSE),0) -> 0 | T114: =IFERROR(VLOOKUP($A114,Filtro_!$A$4:$AX$2299,18,FALSE),0) -> 0 | U114: =IFERROR(VLOOKUP($A114,Filtro_!$A$4:$AX$2299,19,FALSE),0) -> 3 | V114: =IFERROR(VLOOKUP($A114,Filtro_!$A$4:$AX$2299,20,FALSE),0) -> 0 | W114: =IFERROR(VLOOKUP($A114,Filtro_!$A$4:$AX$2299,21,FALSE),0) -> 0 | X114: =IFERROR(VLOOKUP($A114,Filtro_!$A$4:$AX$2299,22,FALSE),0) -> 1 | Y114: =IFERROR(VLOOKUP($A114,Filtro_!$A$4:$AX$2299,23,FALSE),0) -> 0 | Z114: =IFERROR(VLOOKUP($A114,Filtro_!$A$4:$AX$2299,24,FALSE),0) -> 0 | AA114: =IFERROR(VLOOKUP($A114,Filtro_!$A$4:$AX$2299,25,FALSE),0) -> 0 | AB114: =IFERROR(VLOOKUP($A114,Filtro_!$A$4:$AX$2299,26,FALSE),0) -> 0
A115: 03051100 | C115: DISCAPACIDAD LEVE | D115: =IFERROR(VLOOKUP($A115,Filtro_!$A$4:$AX$2299,2,FALSE),0) -> 260 | E115: =IFERROR(VLOOKUP($A115,Filtro_!$A$4:$AX$2299,3,FALSE),0) -> 124 | F115: =IFERROR(VLOOKUP($A115,Filtro_!$A$4:$AX$2299,4,FALSE),0) -> 136 | G115: =IFERROR(VLOOKUP($A115,Filtro_!$A$4:$AX$2299,5,FALSE),0) -> 1 | H115: =IFERROR(VLOOKUP($A115,Filtro_!$A$4:$AX$2299,6,FALSE),0) -> 0 | I115: =IFERROR(VLOOKUP($A115,Filtro_!$A$4:$AX$2299,7,FALSE),0) -> 0 | J115: =IFERROR(VLOOKUP($A115,Filtro_!$A$4:$AX$2299,8,FALSE),0) -> 0 | K115: =IFERROR(VLOOKUP($A115,Filtro_!$A$4:$AX$2299,9,FALSE),0) -> 3 | L115: =IFERROR(VLOOKUP($A115,Filtro_!$A$4:$AX$2299,10,FALSE),0) -> 0 | M115: =IFERROR(VLOOKUP($A115,Filtro_!$A$4:$AX$2299,11,FALSE),0) -> 1 | N115: =IFERROR(VLOOKUP($A115,Filtro_!$A$4:$AX$2299,12,FALSE),0) -> 5 | O115: =IFERROR(VLOOKUP($A115,Filtro_!$A$4:$AX$2299,13,FALSE),0) -> 3 | P115: =IFERROR(VLOOKUP($A115,Filtro_!$A$4:$AX$2299,14,FALSE),0) -> 0 | Q115: =IFERROR(VLOOKUP($A115,Filtro_!$A$4:$AX$2299,15,FALSE),0) -> 2 | R115: =IFERROR(VLOOKUP($A115,Filtro_!$A$4:$AX$2299,16,FALSE),0) -> 3 | S115: =IFERROR(VLOOKUP($A115,Filtro_!$A$4:$AX$2299,17,FALSE),0) -> 2 | T115: =IFERROR(VLOOKUP($A115,Filtro_!$A$4:$AX$2299,18,FALSE),0) -> 2 | U115: =IFERROR(VLOOKUP($A115,Filtro_!$A$4:$AX$2299,19,FALSE),0) -> 81 | V115: =IFERROR(VLOOKUP($A115,Filtro_!$A$4:$AX$2299,20,FALSE),0) -> 97 | W115: =IFERROR(VLOOKUP($A115,Filtro_!$A$4:$AX$2299,21,FALSE),0) -> 20 | X115: =IFERROR(VLOOKUP($A115,Filtro_!$A$4:$AX$2299,22,FALSE),0) -> 16 | Y115: =IFERROR(VLOOKUP($A115,Filtro_!$A$4:$AX$2299,23,FALSE),0) -> 10 | Z115: =IFERROR(VLOOKUP($A115,Filtro_!$A$4:$AX$2299,24,FALSE),0) -> 10 | AA115: =IFERROR(VLOOKUP($A115,Filtro_!$A$4:$AX$2299,25,FALSE),0) -> 1 | AB115: =IFERROR(VLOOKUP($A115,Filtro_!$A$4:$AX$2299,26,FALSE),0) -> 3
A116: 03051200 | C116: DISCAPACIDAD MODERADA | D116: =IFERROR(VLOOKUP($A116,Filtro_!$A$4:$AX$2299,2,FALSE),0) -> 296 | E116: =IFERROR(VLOOKUP($A116,Filtro_!$A$4:$AX$2299,3,FALSE),0) -> 135 | F116: =IFERROR(VLOOKUP($A116,Filtro_!$A$4:$AX$2299,4,FALSE),0) -> 161 | G116: =IFERROR(VLOOKUP($A116,Filtro_!$A$4:$AX$2299,5,FALSE),0) -> 2 | H116: =IFERROR(VLOOKUP($A116,Filtro_!$A$4:$AX$2299,6,FALSE),0) -> 0 | I116: =IFERROR(VLOOKUP($A116,Filtro_!$A$4:$AX$2299,7,FALSE),0) -> 1 | J116: =IFERROR(VLOOKUP($A116,Filtro_!$A$4:$AX$2299,8,FALSE),0) -> 1 | K116: =IFERROR(VLOOKUP($A116,Filtro_!$A$4:$AX$2299,9,FALSE),0) -> 4 | L116: =IFERROR(VLOOKUP($A116,Filtro_!$A$4:$AX$2299,10,FALSE),0) -> 2 | M116: =IFERROR(VLOOKUP($A116,Filtro_!$A$4:$AX$2299,11,FALSE),0) -> 4 | N116: =IFERROR(VLOOKUP($A116,Filtro_!$A$4:$AX$2299,12,FALSE),0) -> 1 | O116: =IFERROR(VLOOKUP($A116,Filtro_!$A$4:$AX$2299,13,FALSE),0) -> 2 | P116: =IFERROR(VLOOKUP($A116,Filtro_!$A$4:$AX$2299,14,FALSE),0) -> 3 | Q116: =IFERROR(VLOOKUP($A116,Filtro_!$A$4:$AX$2299,15,FALSE),0) -> 0 | R116: =IFERROR(VLOOKUP($A116,Filtro_!$A$4:$AX$2299,16,FALSE),0) -> 1 | S116: =IFERROR(VLOOKUP($A116,Filtro_!$A$4:$AX$2299,17,FALSE),0) -> 3 | T116: =IFERROR(VLOOKUP($A116,Filtro_!$A$4:$AX$2299,18,FALSE),0) -> 1 | U116: =IFERROR(VLOOKUP($A116,Filtro_!$A$4:$AX$2299,19,FALSE),0) -> 78 | V116: =IFERROR(VLOOKUP($A116,Filtro_!$A$4:$AX$2299,20,FALSE),0) -> 98 | W116: =IFERROR(VLOOKUP($A116,Filtro_!$A$4:$AX$2299,21,FALSE),0) -> 19 | X116: =IFERROR(VLOOKUP($A116,Filtro_!$A$4:$AX$2299,22,FALSE),0) -> 28 | Y116: =IFERROR(VLOOKUP($A116,Filtro_!$A$4:$AX$2299,23,FALSE),0) -> 19 | Z116: =IFERROR(VLOOKUP($A116,Filtro_!$A$4:$AX$2299,24,FALSE),0) -> 18 | AA116: =IFERROR(VLOOKUP($A116,Filtro_!$A$4:$AX$2299,25,FALSE),0) -> 3 | AB116: =IFERROR(VLOOKUP($A116,Filtro_!$A$4:$AX$2299,26,FALSE),0) -> 8
A117: 03051300 | C117: DISCAPACIDAD SEVERA | D117: =IFERROR(VLOOKUP($A117,Filtro_!$A$4:$AX$2299,2,FALSE),0) -> 290 | E117: =IFERROR(VLOOKUP($A117,Filtro_!$A$4:$AX$2299,3,FALSE),0) -> 133 | F117: =IFERROR(VLOOKUP($A117,Filtro_!$A$4:$AX$2299,4,FALSE),0) -> 157 | G117: =IFERROR(VLOOKUP($A117,Filtro_!$A$4:$AX$2299,5,FALSE),0) -> 1 | H117: =IFERROR(VLOOKUP($A117,Filtro_!$A$4:$AX$2299,6,FALSE),0) -> 2 | I117: =IFERROR(VLOOKUP($A117,Filtro_!$A$4:$AX$2299,7,FALSE),0) -> 4 | J117: =IFERROR(VLOOKUP($A117,Filtro_!$A$4:$AX$2299,8,FALSE),0) -> 4 | K117: =IFERROR(VLOOKUP($A117,Filtro_!$A$4:$AX$2299,9,FALSE),0) -> 2 | L117: =IFERROR(VLOOKUP($A117,Filtro_!$A$4:$AX$2299,10,FALSE),0) -> 1 | M117: =IFERROR(VLOOKUP($A117,Filtro_!$A$4:$AX$2299,11,FALSE),0) -> 1 | N117: =IFERROR(VLOOKUP($A117,Filtro_!$A$4:$AX$2299,12,FALSE),0) -> 0 | O117: =IFERROR(VLOOKUP($A117,Filtro_!$A$4:$AX$2299,13,FALSE),0) -> 0 | P117: =IFERROR(VLOOKUP($A117,Filtro_!$A$4:$AX$2299,14,FALSE),0) -> 1 | Q117: =IFERROR(VLOOKUP($A117,Filtro_!$A$4:$AX$2299,15,FALSE),0) -> 1 | R117: =IFERROR(VLOOKUP($A117,Filtro_!$A$4:$AX$2299,16,FALSE),0) -> 2 | S117: =IFERROR(VLOOKUP($A117,Filtro_!$A$4:$AX$2299,17,FALSE),0) -> 1 | T117: =IFERROR(VLOOKUP($A117,Filtro_!$A$4:$AX$2299,18,FALSE),0) -> 1 | U117: =IFERROR(VLOOKUP($A117,Filtro_!$A$4:$AX$2299,19,FALSE),0) -> 68 | V117: =IFERROR(VLOOKUP($A117,Filtro_!$A$4:$AX$2299,20,FALSE),0) -> 61 | W117: =IFERROR(VLOOKUP($A117,Filtro_!$A$4:$AX$2299,21,FALSE),0) -> 14 | X117: =IFERROR(VLOOKUP($A117,Filtro_!$A$4:$AX$2299,22,FALSE),0) -> 27 | Y117: =IFERROR(VLOOKUP($A117,Filtro_!$A$4:$AX$2299,23,FALSE),0) -> 26 | Z117: =IFERROR(VLOOKUP($A117,Filtro_!$A$4:$AX$2299,24,FALSE),0) -> 21 | AA117: =IFERROR(VLOOKUP($A117,Filtro_!$A$4:$AX$2299,25,FALSE),0) -> 15 | AB117: =IFERROR(VLOOKUP($A117,Filtro_!$A$4:$AX$2299,26,FALSE),0) -> 37
A118: 03051400 | C118: DISCAPACIDAD PROFUNDA | D118: =IFERROR(VLOOKUP($A118,Filtro_!$A$4:$AX$2299,2,FALSE),0) -> 14 | E118: =IFERROR(VLOOKUP($A118,Filtro_!$A$4:$AX$2299,3,FALSE),0) -> 6 | F118: =IFERROR(VLOOKUP($A118,Filtro_!$A$4:$AX$2299,4,FALSE),0) -> 8 | G118: =IFERROR(VLOOKUP($A118,Filtro_!$A$4:$AX$2299,5,FALSE),0) -> 0 | H118: =IFERROR(VLOOKUP($A118,Filtro_!$A$4:$AX$2299,6,FALSE),0) -> 0 | I118: =IFERROR(VLOOKUP($A118,Filtro_!$A$4:$AX$2299,7,FALSE),0) -> 0 | J118: =IFERROR(VLOOKUP($A118,Filtro_!$A$4:$AX$2299,8,FALSE),0) -> 0 | K118: =IFERROR(VLOOKUP($A118,Filtro_!$A$4:$AX$2299,9,FALSE),0) -> 0 | L118: =IFERROR(VLOOKUP($A118,Filtro_!$A$4:$AX$2299,10,FALSE),0) -> 0 | M118: =IFERROR(VLOOKUP($A118,Filtro_!$A$4:$AX$2299,11,FALSE),0) -> 2 | N118: =IFERROR(VLOOKUP($A118,Filtro_!$A$4:$AX$2299,12,FALSE),0) -> 0 | O118: =IFERROR(VLOOKUP($A118,Filtro_!$A$4:$AX$2299,13,FALSE),0) -> 0 | P118: =IFERROR(VLOOKUP($A118,Filtro_!$A$4:$AX$2299,14,FALSE),0) -> 0 | Q118: =IFERROR(VLOOKUP($A118,Filtro_!$A$4:$AX$2299,15,FALSE),0) -> 0 | R118: =IFERROR(VLOOKUP($A118,Filtro_!$A$4:$AX$2299,16,FALSE),0) -> 0 | S118: =IFERROR(VLOOKUP($A118,Filtro_!$A$4:$AX$2299,17,FALSE),0) -> 0 | T118: =IFERROR(VLOOKUP($A118,Filtro_!$A$4:$AX$2299,18,FALSE),0) -> 0 | U118: =IFERROR(VLOOKUP($A118,Filtro_!$A$4:$AX$2299,19,FALSE),0) -> 1 | V118: =IFERROR(VLOOKUP($A118,Filtro_!$A$4:$AX$2299,20,FALSE),0) -> 4 | W118: =IFERROR(VLOOKUP($A118,Filtro_!$A$4:$AX$2299,21,FALSE),0) -> 1 | X118: =IFERROR(VLOOKUP($A118,Filtro_!$A$4:$AX$2299,22,FALSE),0) -> 0 | Y118: =IFERROR(VLOOKUP($A118,Filtro_!$A$4:$AX$2299,23,FALSE),0) -> 2 | Z118: =IFERROR(VLOOKUP($A118,Filtro_!$A$4:$AX$2299,24,FALSE),0) -> 1 | AA118: =IFERROR(VLOOKUP($A118,Filtro_!$A$4:$AX$2299,25,FALSE),0) -> 0 | AB118: =IFERROR(VLOOKUP($A118,Filtro_!$A$4:$AX$2299,26,FALSE),0) -> 3
A119: 03051500 | B119: ORIGEN SENSORIAL VISUAL | C119: SIN DISCAPACIDAD | D119: =IFERROR(VLOOKUP($A119,Filtro_!$A$4:$AX$2299,2,FALSE),0) -> 6 | E119: =IFERROR(VLOOKUP($A119,Filtro_!$A$4:$AX$2299,3,FALSE),0) -> 3 | F119: =IFERROR(VLOOKUP($A119,Filtro_!$A$4:$AX$2299,4,FALSE),0) -> 3 | G119: =IFERROR(VLOOKUP($A119,Filtro_!$A$4:$AX$2299,5,FALSE),0) -> 0 | H119: =IFERROR(VLOOKUP($A119,Filtro_!$A$4:$AX$2299,6,FALSE),0) -> 0 | I119: =IFERROR(VLOOKUP($A119,Filtro_!$A$4:$AX$2299,7,FALSE),0) -> 0 | J119: =IFERROR(VLOOKUP($A119,Filtro_!$A$4:$AX$2299,8,FALSE),0) -> 0 | K119: =IFERROR(VLOOKUP($A119,Filtro_!$A$4:$AX$2299,9,FALSE),0) -> 1 | L119: =IFERROR(VLOOKUP($A119,Filtro_!$A$4:$AX$2299,10,FALSE),0) -> 0 | M119: =IFERROR(VLOOKUP($A119,Filtro_!$A$4:$AX$2299,11,FALSE),0) -> 0 | N119: =IFERROR(VLOOKUP($A119,Filtro_!$A$4:$AX$2299,12,FALSE),0) -> 0 | O119: =IFERROR(VLOOKUP($A119,Filtro_!$A$4:$AX$2299,13,FALSE),0) -> 0 | P119: =IFERROR(VLOOKUP($A119,Filtro_!$A$4:$AX$2299,14,FALSE),0) -> 1 | Q119: =IFERROR(VLOOKUP($A119,Filtro_!$A$4:$AX$2299,15,FALSE),0) -> 0 | R119: =IFERROR(VLOOKUP($A119,Filtro_!$A$4:$AX$2299,16,FALSE),0) -> 0 | S119: =IFERROR(VLOOKUP($A119,Filtro_!$A$4:$AX$2299,17,FALSE),0) -> 0 | T119: =IFERROR(VLOOKUP($A119,Filtro_!$A$4:$AX$2299,18,FALSE),0) -> 0 | U119: =IFERROR(VLOOKUP($A119,Filtro_!$A$4:$AX$2299,19,FALSE),0) -> 2 | V119: =IFERROR(VLOOKUP($A119,Filtro_!$A$4:$AX$2299,20,FALSE),0) -> 2 | W119: =IFERROR(VLOOKUP($A119,Filtro_!$A$4:$AX$2299,21,FALSE),0) -> 0 | X119: =IFERROR(VLOOKUP($A119,Filtro_!$A$4:$AX$2299,22,FALSE),0) -> 0 | Y119: =IFERROR(VLOOKUP($A119,Filtro_!$A$4:$AX$2299,23,FALSE),0) -> 0 | Z119: =IFERROR(VLOOKUP($A119,Filtro_!$A$4:$AX$2299,24,FALSE),0) -> 0 | AA119: =IFERROR(VLOOKUP($A119,Filtro_!$A$4:$AX$2299,25,FALSE),0) -> 0 | AB119: =IFERROR(VLOOKUP($A119,Filtro_!$A$4:$AX$2299,26,FALSE),0) -> 0
A120: 03051600 | C120: DISCAPACIDAD LEVE | D120: =IFERROR(VLOOKUP($A120,Filtro_!$A$4:$AX$2299,2,FALSE),0) -> 22 | E120: =IFERROR(VLOOKUP($A120,Filtro_!$A$4:$AX$2299,3,FALSE),0) -> 13 | F120: =IFERROR(VLOOKUP($A120,Filtro_!$A$4:$AX$2299,4,FALSE),0) -> 9 | G120: =IFERROR(VLOOKUP($A120,Filtro_!$A$4:$AX$2299,5,FALSE),0) -> 1 | H120: =IFERROR(VLOOKUP($A120,Filtro_!$A$4:$AX$2299,6,FALSE),0) -> 0 | I120: =IFERROR(VLOOKUP($A120,Filtro_!$A$4:$AX$2299,7,FALSE),0) -> 0 | J120: =IFERROR(VLOOKUP($A120,Filtro_!$A$4:$AX$2299,8,FALSE),0) -> 0 | K120: =IFERROR(VLOOKUP($A120,Filtro_!$A$4:$AX$2299,9,FALSE),0) -> 0 | L120: =IFERROR(VLOOKUP($A120,Filtro_!$A$4:$AX$2299,10,FALSE),0) -> 0 | M120: =IFERROR(VLOOKUP($A120,Filtro_!$A$4:$AX$2299,11,FALSE),0) -> 0 | N120: =IFERROR(VLOOKUP($A120,Filtro_!$A$4:$AX$2299,12,FALSE),0) -> 0 | O120: =IFERROR(VLOOKUP($A120,Filtro_!$A$4:$AX$2299,13,FALSE),0) -> 2 | P120: =IFERROR(VLOOKUP($A120,Filtro_!$A$4:$AX$2299,14,FALSE),0) -> 0 | Q120: =IFERROR(VLOOKUP($A120,Filtro_!$A$4:$AX$2299,15,FALSE),0) -> 0 | R120: =IFERROR(VLOOKUP($A120,Filtro_!$A$4:$AX$2299,16,FALSE),0) -> 1 | S120: =IFERROR(VLOOKUP($A120,Filtro_!$A$4:$AX$2299,17,FALSE),0) -> 0 | T120: =IFERROR(VLOOKUP($A120,Filtro_!$A$4:$AX$2299,18,FALSE),0) -> 0 | U120: =IFERROR(VLOOKUP($A120,Filtro_!$A$4:$AX$2299,19,FALSE),0) -> 6 | V120: =IFERROR(VLOOKUP($A120,Filtro_!$A$4:$AX$2299,20,FALSE),0) -> 8 | W120: =IFERROR(VLOOKUP($A120,Filtro_!$A$4:$AX$2299,21,FALSE),0) -> 4 | X120: =IFERROR(VLOOKUP($A120,Filtro_!$A$4:$AX$2299,22,FALSE),0) -> 0 | Y120: =IFERROR(VLOOKUP($A120,Filtro_!$A$4:$AX$2299,23,FALSE),0) -> 0 | Z120: =IFERROR(VLOOKUP($A120,Filtro_!$A$4:$AX$2299,24,FALSE),0) -> 0 | AA120: =IFERROR(VLOOKUP($A120,Filtro_!$A$4:$AX$2299,25,FALSE),0) -> 0 | AB120: =IFERROR(VLOOKUP($A120,Filtro_!$A$4:$AX$2299,26,FALSE),0) -> 0
A121: 03051700 | C121: DISCAPACIDAD MODERADA | D121: =IFERROR(VLOOKUP($A121,Filtro_!$A$4:$AX$2299,2,FALSE),0) -> 39 | E121: =IFERROR(VLOOKUP($A121,Filtro_!$A$4:$AX$2299,3,FALSE),0) -> 21 | F121: =IFERROR(VLOOKUP($A121,Filtro_!$A$4:$AX$2299,4,FALSE),0) -> 18 | G121: =IFERROR(VLOOKUP($A121,Filtro_!$A$4:$AX$2299,5,FALSE),0) -> 0 | H121: =IFERROR(VLOOKUP($A121,Filtro_!$A$4:$AX$2299,6,FALSE),0) -> 0 | I121: =IFERROR(VLOOKUP($A121,Filtro_!$A$4:$AX$2299,7,FALSE),0) -> 0 | J121: =IFERROR(VLOOKUP($A121,Filtro_!$A$4:$AX$2299,8,FALSE),0) -> 0 | K121: =IFERROR(VLOOKUP($A121,Filtro_!$A$4:$AX$2299,9,FALSE),0) -> 0 | L121: =IFERROR(VLOOKUP($A121,Filtro_!$A$4:$AX$2299,10,FALSE),0) -> 0 | M121: =IFERROR(VLOOKUP($A121,Filtro_!$A$4:$AX$2299,11,FALSE),0) -> 1 | N121: =IFERROR(VLOOKUP($A121,Filtro_!$A$4:$AX$2299,12,FALSE),0) -> 1 | O121: =IFERROR(VLOOKUP($A121,Filtro_!$A$4:$AX$2299,13,FALSE),0) -> 4 | P121: =IFERROR(VLOOKUP($A121,Filtro_!$A$4:$AX$2299,14,FALSE),0) -> 0 | Q121: =IFERROR(VLOOKUP($A121,Filtro_!$A$4:$AX$2299,15,FALSE),0) -> 1 | R121: =IFERROR(VLOOKUP($A121,Filtro_!$A$4:$AX$2299,16,FALSE),0) -> 0 | S121: =IFERROR(VLOOKUP($A121,Filtro_!$A$4:$AX$2299,17,FALSE),0) -> 0 | T121: =IFERROR(VLOOKUP($A121,Filtro_!$A$4:$AX$2299,18,FALSE),0) -> 3 | U121: =IFERROR(VLOOKUP($A121,Filtro_!$A$4:$AX$2299,19,FALSE),0) -> 11 | V121: =IFERROR(VLOOKUP($A121,Filtro_!$A$4:$AX$2299,20,FALSE),0) -> 13 | W121: =IFERROR(VLOOKUP($A121,Filtro_!$A$4:$AX$2299,21,FALSE),0) -> 4 | X121: =IFERROR(VLOOKUP($A121,Filtro_!$A$4:$AX$2299,22,FALSE),0) -> 1 | Y121: =IFERROR(VLOOKUP($A121,Filtro_!$A$4:$AX$2299,23,FALSE),0) -> 0 | Z121: =IFERROR(VLOOKUP($A121,Filtro_!$A$4:$AX$2299,24,FALSE),0) -> 0 | AA121: =IFERROR(VLOOKUP($A121,Filtro_!$A$4:$AX$2299,25,FALSE),0) -> 0 | AB121: =IFERROR(VLOOKUP($A121,Filtro_!$A$4:$AX$2299,26,FALSE),0) -> 0
A122: 03051800 | C122: DISCAPACIDAD SEVERA | D122: =IFERROR(VLOOKUP($A122,Filtro_!$A$4:$AX$2299,2,FALSE),0) -> 44 | E122: =IFERROR(VLOOKUP($A122,Filtro_!$A$4:$AX$2299,3,FALSE),0) -> 28 | F122: =IFERROR(VLOOKUP($A122,Filtro_!$A$4:$AX$2299,4,FALSE),0) -> 16 | G122: =IFERROR(VLOOKUP($A122,Filtro_!$A$4:$AX$2299,5,FALSE),0) -> 0 | H122: =IFERROR(VLOOKUP($A122,Filtro_!$A$4:$AX$2299,6,FALSE),0) -> 0 | I122: =IFERROR(VLOOKUP($A122,Filtro_!$A$4:$AX$2299,7,FALSE),0) -> 0 | J122: =IFERROR(VLOOKUP($A122,Filtro_!$A$4:$AX$2299,8,FALSE),0) -> 0 | K122: =IFERROR(VLOOKUP($A122,Filtro_!$A$4:$AX$2299,9,FALSE),0) -> 0 | L122: =IFERROR(VLOOKUP($A122,Filtro_!$A$4:$AX$2299,10,FALSE),0) -> 1 | M122: =IFERROR(VLOOKUP($A122,Filtro_!$A$4:$AX$2299,11,FALSE),0) -> 0 | N122: =IFERROR(VLOOKUP($A122,Filtro_!$A$4:$AX$2299,12,FALSE),0) -> 0 | O122: =IFERROR(VLOOKUP($A122,Filtro_!$A$4:$AX$2299,13,FALSE),0) -> 1 | P122: =IFERROR(VLOOKUP($A122,Filtro_!$A$4:$AX$2299,14,FALSE),0) -> 0 | Q122: =IFERROR(VLOOKUP($A122,Filtro_!$A$4:$AX$2299,15,FALSE),0) -> 0 | R122: =IFERROR(VLOOKUP($A122,Filtro_!$A$4:$AX$2299,16,FALSE),0) -> 0 | S122: =IFERROR(VLOOKUP($A122,Filtro_!$A$4:$AX$2299,17,FALSE),0) -> 2 | T122: =IFERROR(VLOOKUP($A122,Filtro_!$A$4:$AX$2299,18,FALSE),0) -> 1 | U122: =IFERROR(VLOOKUP($A122,Filtro_!$A$4:$AX$2299,19,FALSE),0) -> 14 | V122: =IFERROR(VLOOKUP($A122,Filtro_!$A$4:$AX$2299,20,FALSE),0) -> 6 | W122: =IFERROR(VLOOKUP($A122,Filtro_!$A$4:$AX$2299,21,FALSE),0) -> 2 | X122: =IFERROR(VLOOKUP($A122,Filtro_!$A$4:$AX$2299,22,FALSE),0) -> 5 | Y122: =IFERROR(VLOOKUP($A122,Filtro_!$A$4:$AX$2299,23,FALSE),0) -> 8 | Z122: =IFERROR(VLOOKUP($A122,Filtro_!$A$4:$AX$2299,24,FALSE),0) -> 2 | AA122: =IFERROR(VLOOKUP($A122,Filtro_!$A$4:$AX$2299,25,FALSE),0) -> 1 | AB122: =IFERROR(VLOOKUP($A122,Filtro_!$A$4:$AX$2299,26,FALSE),0) -> 1
A123: 03051900 | C123: DISCAPACIDAD PROFUNDA | D123: =IFERROR(VLOOKUP($A123,Filtro_!$A$4:$AX$2299,2,FALSE),0) -> 3 | E123: =IFERROR(VLOOKUP($A123,Filtro_!$A$4:$AX$2299,3,FALSE),0) -> 2 | F123: =IFERROR(VLOOKUP($A123,Filtro_!$A$4:$AX$2299,4,FALSE),0) -> 1 | G123: =IFERROR(VLOOKUP($A123,Filtro_!$A$4:$AX$2299,5,FALSE),0) -> 0 | H123: =IFERROR(VLOOKUP($A123,Filtro_!$A$4:$AX$2299,6,FALSE),0) -> 0 | I123: =IFERROR(VLOOKUP($A123,Filtro_!$A$4:$AX$2299,7,FALSE),0) -> 0 | J123: =IFERROR(VLOOKUP($A123,Filtro_!$A$4:$AX$2299,8,FALSE),0) -> 0 | K123: =IFERROR(VLOOKUP($A123,Filtro_!$A$4:$AX$2299,9,FALSE),0) -> 0 | L123: =IFERROR(VLOOKUP($A123,Filtro_!$A$4:$AX$2299,10,FALSE),0) -> 0 | M123: =IFERROR(VLOOKUP($A123,Filtro_!$A$4:$AX$2299,11,FALSE),0) -> 1 | N123: =IFERROR(VLOOKUP($A123,Filtro_!$A$4:$AX$2299,12,FALSE),0) -> 0 | O123: =IFERROR(VLOOKUP($A123,Filtro_!$A$4:$AX$2299,13,FALSE),0) -> 0 | P123: =IFERROR(VLOOKUP($A123,Filtro_!$A$4:$AX$2299,14,FALSE),0) -> 0 | Q123: =IFERROR(VLOOKUP($A123,Filtro_!$A$4:$AX$2299,15,FALSE),0) -> 0 | R123: =IFERROR(VLOOKUP($A123,Filtro_!$A$4:$AX$2299,16,FALSE),0) -> 0 | S123: =IFERROR(VLOOKUP($A123,Filtro_!$A$4:$AX$2299,17,FALSE),0) -> 0 | T123: =IFERROR(VLOOKUP($A123,Filtro_!$A$4:$AX$2299,18,FALSE),0) -> 0 | U123: =IFERROR(VLOOKUP($A123,Filtro_!$A$4:$AX$2299,19,FALSE),0) -> 0 | V123: =IFERROR(VLOOKUP($A123,Filtro_!$A$4:$AX$2299,20,FALSE),0) -> 1 | W123: =IFERROR(VLOOKUP($A123,Filtro_!$A$4:$AX$2299,21,FALSE),0) -> 0 | X123: =IFERROR(VLOOKUP($A123,Filtro_!$A$4:$AX$2299,22,FALSE),0) -> 0 | Y123: =IFERROR(VLOOKUP($A123,Filtro_!$A$4:$AX$2299,23,FALSE),0) -> 1 | Z123: =IFERROR(VLOOKUP($A123,Filtro_!$A$4:$AX$2299,24,FALSE),0) -> 0 | AA123: =IFERROR(VLOOKUP($A123,Filtro_!$A$4:$AX$2299,25,FALSE),0) -> 0 | AB123: =IFERROR(VLOOKUP($A123,Filtro_!$A$4:$AX$2299,26,FALSE),0) -> 0
A124: 03052000 | B124: ORIGEN SENSORIAL AUDITIVO | C124: SIN DISCAPACIDAD | D124: =IFERROR(VLOOKUP($A124,Filtro_!$A$4:$AX$2299,2,FALSE),0) -> 5 | E124: =IFERROR(VLOOKUP($A124,Filtro_!$A$4:$AX$2299,3,FALSE),0) -> 3 | F124: =IFERROR(VLOOKUP($A124,Filtro_!$A$4:$AX$2299,4,FALSE),0) -> 2 | G124: =IFERROR(VLOOKUP($A124,Filtro_!$A$4:$AX$2299,5,FALSE),0) -> 0 | H124: =IFERROR(VLOOKUP($A124,Filtro_!$A$4:$AX$2299,6,FALSE),0) -> 0 | I124: =IFERROR(VLOOKUP($A124,Filtro_!$A$4:$AX$2299,7,FALSE),0) -> 0 | J124: =IFERROR(VLOOKUP($A124,Filtro_!$A$4:$AX$2299,8,FALSE),0) -> 0 | K124: =IFERROR(VLOOKUP($A124,Filtro_!$A$4:$AX$2299,9,FALSE),0) -> 1 | L124: =IFERROR(VLOOKUP($A124,Filtro_!$A$4:$AX$2299,10,FALSE),0) -> 0 | M124: =IFERROR(VLOOKUP($A124,Filtro_!$A$4:$AX$2299,11,FALSE),0) -> 0 | N124: =IFERROR(VLOOKUP($A124,Filtro_!$A$4:$AX$2299,12,FALSE),0) -> 0 | O124: =IFERROR(VLOOKUP($A124,Filtro_!$A$4:$AX$2299,13,FALSE),0) -> 0 | P124: =IFERROR(VLOOKUP($A124,Filtro_!$A$4:$AX$2299,14,FALSE),0) -> 0 | Q124: =IFERROR(VLOOKUP($A124,Filtro_!$A$4:$AX$2299,15,FALSE),0) -> 0 | R124: =IFERROR(VLOOKUP($A124,Filtro_!$A$4:$AX$2299,16,FALSE),0) -> 0 | S124: =IFERROR(VLOOKUP($A124,Filtro_!$A$4:$AX$2299,17,FALSE),0) -> 0 | T124: =IFERROR(VLOOKUP($A124,Filtro_!$A$4:$AX$2299,18,FALSE),0) -> 0 | U124: =IFERROR(VLOOKUP($A124,Filtro_!$A$4:$AX$2299,19,FALSE),0) -> 2 | V124: =IFERROR(VLOOKUP($A124,Filtro_!$A$4:$AX$2299,20,FALSE),0) -> 2 | W124: =IFERROR(VLOOKUP($A124,Filtro_!$A$4:$AX$2299,21,FALSE),0) -> 0 | X124: =IFERROR(VLOOKUP($A124,Filtro_!$A$4:$AX$2299,22,FALSE),0) -> 0 | Y124: =IFERROR(VLOOKUP($A124,Filtro_!$A$4:$AX$2299,23,FALSE),0) -> 0 | Z124: =IFERROR(VLOOKUP($A124,Filtro_!$A$4:$AX$2299,24,FALSE),0) -> 0 | AA124: =IFERROR(VLOOKUP($A124,Filtro_!$A$4:$AX$2299,25,FALSE),0) -> 0 | AB124: =IFERROR(VLOOKUP($A124,Filtro_!$A$4:$AX$2299,26,FALSE),0) -> 0
A125: 03052100 | C125: DISCAPACIDAD LEVE | D125: =IFERROR(VLOOKUP($A125,Filtro_!$A$4:$AX$2299,2,FALSE),0) -> 27 | E125: =IFERROR(VLOOKUP($A125,Filtro_!$A$4:$AX$2299,3,FALSE),0) -> 11 | F125: =IFERROR(VLOOKUP($A125,Filtro_!$A$4:$AX$2299,4,FALSE),0) -> 16 | G125: =IFERROR(VLOOKUP($A125,Filtro_!$A$4:$AX$2299,5,FALSE),0) -> 0 | H125: =IFERROR(VLOOKUP($A125,Filtro_!$A$4:$AX$2299,6,FALSE),0) -> 0 | I125: =IFERROR(VLOOKUP($A125,Filtro_!$A$4:$AX$2299,7,FALSE),0) -> 0 | J125: =IFERROR(VLOOKUP($A125,Filtro_!$A$4:$AX$2299,8,FALSE),0) -> 0 | K125: =IFERROR(VLOOKUP($A125,Filtro_!$A$4:$AX$2299,9,FALSE),0) -> 1 | L125: =IFERROR(VLOOKUP($A125,Filtro_!$A$4:$AX$2299,10,FALSE),0) -> 0 | M125: =IFERROR(VLOOKUP($A125,Filtro_!$A$4:$AX$2299,11,FALSE),0) -> 2 | N125: =IFERROR(VLOOKUP($A125,Filtro_!$A$4:$AX$2299,12,FALSE),0) -> 0 | O125: =IFERROR(VLOOKUP($A125,Filtro_!$A$4:$AX$2299,13,FALSE),0) -> 1 | P125: =IFERROR(VLOOKUP($A125,Filtro_!$A$4:$AX$2299,14,FALSE),0) -> 1 | Q125: =IFERROR(VLOOKUP($A125,Filtro_!$A$4:$AX$2299,15,FALSE),0) -> 1 | R125: =IFERROR(VLOOKUP($A125,Filtro_!$A$4:$AX$2299,16,FALSE),0) -> 2 | S125: =IFERROR(VLOOKUP($A125,Filtro_!$A$4:$AX$2299,17,FALSE),0) -> 1 | T125: =IFERROR(VLOOKUP($A125,Filtro_!$A$4:$AX$2299,18,FALSE),0) -> 0 | U125: =IFERROR(VLOOKUP($A125,Filtro_!$A$4:$AX$2299,19,FALSE),0) -> 4 | V125: =IFERROR(VLOOKUP($A125,Filtro_!$A$4:$AX$2299,20,FALSE),0) -> 9 | W125: =IFERROR(VLOOKUP($A125,Filtro_!$A$4:$AX$2299,21,FALSE),0) -> 0 | X125: =IFERROR(VLOOKUP($A125,Filtro_!$A$4:$AX$2299,22,FALSE),0) -> 3 | Y125: =IFERROR(VLOOKUP($A125,Filtro_!$A$4:$AX$2299,23,FALSE),0) -> 1 | Z125: =IFERROR(VLOOKUP($A125,Filtro_!$A$4:$AX$2299,24,FALSE),0) -> 1 | AA125: =IFERROR(VLOOKUP($A125,Filtro_!$A$4:$AX$2299,25,FALSE),0) -> 0 | AB125: =IFERROR(VLOOKUP($A125,Filtro_!$A$4:$AX$2299,26,FALSE),0) -> 0
A126: 03052200 | C126: DISCAPACIDAD MODERADA | D126: =IFERROR(VLOOKUP($A126,Filtro_!$A$4:$AX$2299,2,FALSE),0) -> 20 | E126: =IFERROR(VLOOKUP($A126,Filtro_!$A$4:$AX$2299,3,FALSE),0) -> 9 | F126: =IFERROR(VLOOKUP($A126,Filtro_!$A$4:$AX$2299,4,FALSE),0) -> 11 | G126: =IFERROR(VLOOKUP($A126,Filtro_!$A$4:$AX$2299,5,FALSE),0) -> 0 | H126: =IFERROR(VLOOKUP($A126,Filtro_!$A$4:$AX$2299,6,FALSE),0) -> 0 | I126: =IFERROR(VLOOKUP($A126,Filtro_!$A$4:$AX$2299,7,FALSE),0) -> 0 | J126: =IFERROR(VLOOKUP($A126,Filtro_!$A$4:$AX$2299,8,FALSE),0) -> 0 | K126: =IFERROR(VLOOKUP($A126,Filtro_!$A$4:$AX$2299,9,FALSE),0) -> 0 | L126: =IFERROR(VLOOKUP($A126,Filtro_!$A$4:$AX$2299,10,FALSE),0) -> 1 | M126: =IFERROR(VLOOKUP($A126,Filtro_!$A$4:$AX$2299,11,FALSE),0) -> 1 | N126: =IFERROR(VLOOKUP($A126,Filtro_!$A$4:$AX$2299,12,FALSE),0) -> 0 | O126: =IFERROR(VLOOKUP($A126,Filtro_!$A$4:$AX$2299,13,FALSE),0) -> 0 | P126: =IFERROR(VLOOKUP($A126,Filtro_!$A$4:$AX$2299,14,FALSE),0) -> 1 | Q126: =IFERROR(VLOOKUP($A126,Filtro_!$A$4:$AX$2299,15,FALSE),0) -> 0 | R126: =IFERROR(VLOOKUP($A126,Filtro_!$A$4:$AX$2299,16,FALSE),0) -> 0 | S126: =IFERROR(VLOOKUP($A126,Filtro_!$A$4:$AX$2299,17,FALSE),0) -> 0 | T126: =IFERROR(VLOOKUP($A126,Filtro_!$A$4:$AX$2299,18,FALSE),0) -> 0 | U126: =IFERROR(VLOOKUP($A126,Filtro_!$A$4:$AX$2299,19,FALSE),0) -> 4 | V126: =IFERROR(VLOOKUP($A126,Filtro_!$A$4:$AX$2299,20,FALSE),0) -> 8 | W126: =IFERROR(VLOOKUP($A126,Filtro_!$A$4:$AX$2299,21,FALSE),0) -> 2 | X126: =IFERROR(VLOOKUP($A126,Filtro_!$A$4:$AX$2299,22,FALSE),0) -> 1 | Y126: =IFERROR(VLOOKUP($A126,Filtro_!$A$4:$AX$2299,23,FALSE),0) -> 1 | Z126: =IFERROR(VLOOKUP($A126,Filtro_!$A$4:$AX$2299,24,FALSE),0) -> 0 | AA126: =IFERROR(VLOOKUP($A126,Filtro_!$A$4:$AX$2299,25,FALSE),0) -> 1 | AB126: =IFERROR(VLOOKUP($A126,Filtro_!$A$4:$AX$2299,26,FALSE),0) -> 0
A127: 03052300 | C127: DISCAPACIDAD SEVERA | D127: =IFERROR(VLOOKUP($A127,Filtro_!$A$4:$AX$2299,2,FALSE),0) -> 22 | E127: =IFERROR(VLOOKUP($A127,Filtro_!$A$4:$AX$2299,3,FALSE),0) -> 11 | F127: =IFERROR(VLOOKUP($A127,Filtro_!$A$4:$AX$2299,4,FALSE),0) -> 11 | G127: =IFERROR(VLOOKUP($A127,Filtro_!$A$4:$AX$2299,5,FALSE),0) -> 0 | H127: =IFERROR(VLOOKUP($A127,Filtro_!$A$4:$AX$2299,6,FALSE),0) -> 0 | I127: =IFERROR(VLOOKUP($A127,Filtro_!$A$4:$AX$2299,7,FALSE),0) -> 0 | J127: =IFERROR(VLOOKUP($A127,Filtro_!$A$4:$AX$2299,8,FALSE),0) -> 0 | K127: =IFERROR(VLOOKUP($A127,Filtro_!$A$4:$AX$2299,9,FALSE),0) -> 0 | L127: =IFERROR(VLOOKUP($A127,Filtro_!$A$4:$AX$2299,10,FALSE),0) -> 0 | M127: =IFERROR(VLOOKUP($A127,Filtro_!$A$4:$AX$2299,11,FALSE),0) -> 0 | N127: =IFERROR(VLOOKUP($A127,Filtro_!$A$4:$AX$2299,12,FALSE),0) -> 0 | O127: =IFERROR(VLOOKUP($A127,Filtro_!$A$4:$AX$2299,13,FALSE),0) -> 0 | P127: =IFERROR(VLOOKUP($A127,Filtro_!$A$4:$AX$2299,14,FALSE),0) -> 0 | Q127: =IFERROR(VLOOKUP($A127,Filtro_!$A$4:$AX$2299,15,FALSE),0) -> 2 | R127: =IFERROR(VLOOKUP($A127,Filtro_!$A$4:$AX$2299,16,FALSE),0) -> 0 | S127: =IFERROR(VLOOKUP($A127,Filtro_!$A$4:$AX$2299,17,FALSE),0) -> 0 | T127: =IFERROR(VLOOKUP($A127,Filtro_!$A$4:$AX$2299,18,FALSE),0) -> 0 | U127: =IFERROR(VLOOKUP($A127,Filtro_!$A$4:$AX$2299,19,FALSE),0) -> 6 | V127: =IFERROR(VLOOKUP($A127,Filtro_!$A$4:$AX$2299,20,FALSE),0) -> 11 | W127: =IFERROR(VLOOKUP($A127,Filtro_!$A$4:$AX$2299,21,FALSE),0) -> 0 | X127: =IFERROR(VLOOKUP($A127,Filtro_!$A$4:$AX$2299,22,FALSE),0) -> 0 | Y127: =IFERROR(VLOOKUP($A127,Filtro_!$A$4:$AX$2299,23,FALSE),0) -> 0 | Z127: =IFERROR(VLOOKUP($A127,Filtro_!$A$4:$AX$2299,24,FALSE),0) -> 0 | AA127: =IFERROR(VLOOKUP($A127,Filtro_!$A$4:$AX$2299,25,FALSE),0) -> 3 | AB127: =IFERROR(VLOOKUP($A127,Filtro_!$A$4:$AX$2299,26,FALSE),0) -> 0
A128: 03052400 | C128: DISCAPACIDAD PROFUNDA | D128: =IFERROR(VLOOKUP($A128,Filtro_!$A$4:$AX$2299,2,FALSE),0) -> 0 | E128: =IFERROR(VLOOKUP($A128,Filtro_!$A$4:$AX$2299,3,FALSE),0) -> 0 | F128: =IFERROR(VLOOKUP($A128,Filtro_!$A$4:$AX$2299,4,FALSE),0) -> 0 | G128: =IFERROR(VLOOKUP($A128,Filtro_!$A$4:$AX$2299,5,FALSE),0) -> 0 | H128: =IFERROR(VLOOKUP($A128,Filtro_!$A$4:$AX$2299,6,FALSE),0) -> 0 | I128: =IFERROR(VLOOKUP($A128,Filtro_!$A$4:$AX$2299,7,FALSE),0) -> 0 | J128: =IFERROR(VLOOKUP($A128,Filtro_!$A$4:$AX$2299,8,FALSE),0) -> 0 | K128: =IFERROR(VLOOKUP($A128,Filtro_!$A$4:$AX$2299,9,FALSE),0) -> 0 | L128: =IFERROR(VLOOKUP($A128,Filtro_!$A$4:$AX$2299,10,FALSE),0) -> 0 | M128: =IFERROR(VLOOKUP($A128,Filtro_!$A$4:$AX$2299,11,FALSE),0) -> 0 | N128: =IFERROR(VLOOKUP($A128,Filtro_!$A$4:$AX$2299,12,FALSE),0) -> 0 | O128: =IFERROR(VLOOKUP($A128,Filtro_!$A$4:$AX$2299,13,FALSE),0) -> 0 | P128: =IFERROR(VLOOKUP($A128,Filtro_!$A$4:$AX$2299,14,FALSE),0) -> 0 | Q128: =IFERROR(VLOOKUP($A128,Filtro_!$A$4:$AX$2299,15,FALSE),0) -> 0 | R128: =IFERROR(VLOOKUP($A128,Filtro_!$A$4:$AX$2299,16,FALSE),0) -> 0 | S128: =IFERROR(VLOOKUP($A128,Filtro_!$A$4:$AX$2299,17,FALSE),0) -> 0 | T128: =IFERROR(VLOOKUP($A128,Filtro_!$A$4:$AX$2299,18,FALSE),0) -> 0 | U128: =IFERROR(VLOOKUP($A128,Filtro_!$A$4:$AX$2299,19,FALSE),0) -> 0 | V128: =IFERROR(VLOOKUP($A128,Filtro_!$A$4:$AX$2299,20,FALSE),0) -> 0 | W128: =IFERROR(VLOOKUP($A128,Filtro_!$A$4:$AX$2299,21,FALSE),0) -> 0 | X128: =IFERROR(VLOOKUP($A128,Filtro_!$A$4:$AX$2299,22,FALSE),0) -> 0 | Y128: =IFERROR(VLOOKUP($A128,Filtro_!$A$4:$AX$2299,23,FALSE),0) -> 0 | Z128: =IFERROR(VLOOKUP($A128,Filtro_!$A$4:$AX$2299,24,FALSE),0) -> 0 | AA128: =IFERROR(VLOOKUP($A128,Filtro_!$A$4:$AX$2299,25,FALSE),0) -> 0 | AB128: =IFERROR(VLOOKUP($A128,Filtro_!$A$4:$AX$2299,26,FALSE),0) -> 0
A129: 03052500 | B129: ORIGEN MENTAL PSÍQUICO | C129: SIN DISCAPACIDAD | D129: =IFERROR(VLOOKUP($A129,Filtro_!$A$4:$AX$2299,2,FALSE),0) -> 5 | E129: =IFERROR(VLOOKUP($A129,Filtro_!$A$4:$AX$2299,3,FALSE),0) -> 3 | F129: =IFERROR(VLOOKUP($A129,Filtro_!$A$4:$AX$2299,4,FALSE),0) -> 2 | G129: =IFERROR(VLOOKUP($A129,Filtro_!$A$4:$AX$2299,5,FALSE),0) -> 0 | H129: =IFERROR(VLOOKUP($A129,Filtro_!$A$4:$AX$2299,6,FALSE),0) -> 0 | I129: =IFERROR(VLOOKUP($A129,Filtro_!$A$4:$AX$2299,7,FALSE),0) -> 0 | J129: =IFERROR(VLOOKUP($A129,Filtro_!$A$4:$AX$2299,8,FALSE),0) -> 0 | K129: =IFERROR(VLOOKUP($A129,Filtro_!$A$4:$AX$2299,9,FALSE),0) -> 1 | L129: =IFERROR(VLOOKUP($A129,Filtro_!$A$4:$AX$2299,10,FALSE),0) -> 0 | M129: =IFERROR(VLOOKUP($A129,Filtro_!$A$4:$AX$2299,11,FALSE),0) -> 0 | N129: =IFERROR(VLOOKUP($A129,Filtro_!$A$4:$AX$2299,12,FALSE),0) -> 0 | O129: =IFERROR(VLOOKUP($A129,Filtro_!$A$4:$AX$2299,13,FALSE),0) -> 0 | P129: =IFERROR(VLOOKUP($A129,Filtro_!$A$4:$AX$2299,14,FALSE),0) -> 0 | Q129: =IFERROR(VLOOKUP($A129,Filtro_!$A$4:$AX$2299,15,FALSE),0) -> 0 | R129: =IFERROR(VLOOKUP($A129,Filtro_!$A$4:$AX$2299,16,FALSE),0) -> 0 | S129: =IFERROR(VLOOKUP($A129,Filtro_!$A$4:$AX$2299,17,FALSE),0) -> 0 | T129: =IFERROR(VLOOKUP($A129,Filtro_!$A$4:$AX$2299,18,FALSE),0) -> 0 | U129: =IFERROR(VLOOKUP($A129,Filtro_!$A$4:$AX$2299,19,FALSE),0) -> 2 | V129: =IFERROR(VLOOKUP($A129,Filtro_!$A$4:$AX$2299,20,FALSE),0) -> 2 | W129: =IFERROR(VLOOKUP($A129,Filtro_!$A$4:$AX$2299,21,FALSE),0) -> 0 | X129: =IFERROR(VLOOKUP($A129,Filtro_!$A$4:$AX$2299,22,FALSE),0) -> 0 | Y129: =IFERROR(VLOOKUP($A129,Filtro_!$A$4:$AX$2299,23,FALSE),0) -> 0 | Z129: =IFERROR(VLOOKUP($A129,Filtro_!$A$4:$AX$2299,24,FALSE),0) -> 0 | AA129: =IFERROR(VLOOKUP($A129,Filtro_!$A$4:$AX$2299,25,FALSE),0) -> 0 | AB129: =IFERROR(VLOOKUP($A129,Filtro_!$A$4:$AX$2299,26,FALSE),0) -> 0
A130: 03052600 | C130: DISCAPACIDAD LEVE | D130: =IFERROR(VLOOKUP($A130,Filtro_!$A$4:$AX$2299,2,FALSE),0) -> 56 | E130: =IFERROR(VLOOKUP($A130,Filtro_!$A$4:$AX$2299,3,FALSE),0) -> 39 | F130: =IFERROR(VLOOKUP($A130,Filtro_!$A$4:$AX$2299,4,FALSE),0) -> 17 | G130: =IFERROR(VLOOKUP($A130,Filtro_!$A$4:$AX$2299,5,FALSE),0) -> 0 | H130: =IFERROR(VLOOKUP($A130,Filtro_!$A$4:$AX$2299,6,FALSE),0) -> 0 | I130: =IFERROR(VLOOKUP($A130,Filtro_!$A$4:$AX$2299,7,FALSE),0) -> 0 | J130: =IFERROR(VLOOKUP($A130,Filtro_!$A$4:$AX$2299,8,FALSE),0) -> 0 | K130: =IFERROR(VLOOKUP($A130,Filtro_!$A$4:$AX$2299,9,FALSE),0) -> 8 | L130: =IFERROR(VLOOKUP($A130,Filtro_!$A$4:$AX$2299,10,FALSE),0) -> 0 | M130: =IFERROR(VLOOKUP($A130,Filtro_!$A$4:$AX$2299,11,FALSE),0) -> 8 | N130: =IFERROR(VLOOKUP($A130,Filtro_!$A$4:$AX$2299,12,FALSE),0) -> 0 | O130: =IFERROR(VLOOKUP($A130,Filtro_!$A$4:$AX$2299,13,FALSE),0) -> 7 | P130: =IFERROR(VLOOKUP($A130,Filtro_!$A$4:$AX$2299,14,FALSE),0) -> 2 | Q130: =IFERROR(VLOOKUP($A130,Filtro_!$A$4:$AX$2299,15,FALSE),0) -> 5 | R130: =IFERROR(VLOOKUP($A130,Filtro_!$A$4:$AX$2299,16,FALSE),0) -> 2 | S130: =IFERROR(VLOOKUP($A130,Filtro_!$A$4:$AX$2299,17,FALSE),0) -> 1 | T130: =IFERROR(VLOOKUP($A130,Filtro_!$A$4:$AX$2299,18,FALSE),0) -> 0 | U130: =IFERROR(VLOOKUP($A130,Filtro_!$A$4:$AX$2299,19,FALSE),0) -> 8 | V130: =IFERROR(VLOOKUP($A130,Filtro_!$A$4:$AX$2299,20,FALSE),0) -> 10 | W130: =IFERROR(VLOOKUP($A130,Filtro_!$A$4:$AX$2299,21,FALSE),0) -> 1 | X130: =IFERROR(VLOOKUP($A130,Filtro_!$A$4:$AX$2299,22,FALSE),0) -> 0 | Y130: =IFERROR(VLOOKUP($A130,Filtro_!$A$4:$AX$2299,23,FALSE),0) -> 1 | Z130: =IFERROR(VLOOKUP($A130,Filtro_!$A$4:$AX$2299,24,FALSE),0) -> 1 | AA130: =IFERROR(VLOOKUP($A130,Filtro_!$A$4:$AX$2299,25,FALSE),0) -> 0 | AB130: =IFERROR(VLOOKUP($A130,Filtro_!$A$4:$AX$2299,26,FALSE),0) -> 2
A131: 03052700 | C131: DISCAPACIDAD MODERADA | D131: =IFERROR(VLOOKUP($A131,Filtro_!$A$4:$AX$2299,2,FALSE),0) -> 151 | E131: =IFERROR(VLOOKUP($A131,Filtro_!$A$4:$AX$2299,3,FALSE),0) -> 100 | F131: =IFERROR(VLOOKUP($A131,Filtro_!$A$4:$AX$2299,4,FALSE),0) -> 51 | G131: =IFERROR(VLOOKUP($A131,Filtro_!$A$4:$AX$2299,5,FALSE),0) -> 2 | H131: =IFERROR(VLOOKUP($A131,Filtro_!$A$4:$AX$2299,6,FALSE),0) -> 1 | I131: =IFERROR(VLOOKUP($A131,Filtro_!$A$4:$AX$2299,7,FALSE),0) -> 0 | J131: =IFERROR(VLOOKUP($A131,Filtro_!$A$4:$AX$2299,8,FALSE),0) -> 0 | K131: =IFERROR(VLOOKUP($A131,Filtro_!$A$4:$AX$2299,9,FALSE),0) -> 25 | L131: =IFERROR(VLOOKUP($A131,Filtro_!$A$4:$AX$2299,10,FALSE),0) -> 8 | M131: =IFERROR(VLOOKUP($A131,Filtro_!$A$4:$AX$2299,11,FALSE),0) -> 28 | N131: =IFERROR(VLOOKUP($A131,Filtro_!$A$4:$AX$2299,12,FALSE),0) -> 8 | O131: =IFERROR(VLOOKUP($A131,Filtro_!$A$4:$AX$2299,13,FALSE),0) -> 16 | P131: =IFERROR(VLOOKUP($A131,Filtro_!$A$4:$AX$2299,14,FALSE),0) -> 5 | Q131: =IFERROR(VLOOKUP($A131,Filtro_!$A$4:$AX$2299,15,FALSE),0) -> 4 | R131: =IFERROR(VLOOKUP($A131,Filtro_!$A$4:$AX$2299,16,FALSE),0) -> 5 | S131: =IFERROR(VLOOKUP($A131,Filtro_!$A$4:$AX$2299,17,FALSE),0) -> 4 | T131: =IFERROR(VLOOKUP($A131,Filtro_!$A$4:$AX$2299,18,FALSE),0) -> 1 | U131: =IFERROR(VLOOKUP($A131,Filtro_!$A$4:$AX$2299,19,FALSE),0) -> 17 | V131: =IFERROR(VLOOKUP($A131,Filtro_!$A$4:$AX$2299,20,FALSE),0) -> 14 | W131: =IFERROR(VLOOKUP($A131,Filtro_!$A$4:$AX$2299,21,FALSE),0) -> 1 | X131: =IFERROR(VLOOKUP($A131,Filtro_!$A$4:$AX$2299,22,FALSE),0) -> 1 | Y131: =IFERROR(VLOOKUP($A131,Filtro_!$A$4:$AX$2299,23,FALSE),0) -> 1 | Z131: =IFERROR(VLOOKUP($A131,Filtro_!$A$4:$AX$2299,24,FALSE),0) -> 4 | AA131: =IFERROR(VLOOKUP($A131,Filtro_!$A$4:$AX$2299,25,FALSE),0) -> 2 | AB131: =IFERROR(VLOOKUP($A131,Filtro_!$A$4:$AX$2299,26,FALSE),0) -> 4
A132: 03052800 | C132: DISCAPACIDAD SEVERA | D132: =IFERROR(VLOOKUP($A132,Filtro_!$A$4:$AX$2299,2,FALSE),0) -> 261 | E132: =IFERROR(VLOOKUP($A132,Filtro_!$A$4:$AX$2299,3,FALSE),0) -> 158 | F132: =IFERROR(VLOOKUP($A132,Filtro_!$A$4:$AX$2299,4,FALSE),0) -> 103 | G132: =IFERROR(VLOOKUP($A132,Filtro_!$A$4:$AX$2299,5,FALSE),0) -> 1 | H132: =IFERROR(VLOOKUP($A132,Filtro_!$A$4:$AX$2299,6,FALSE),0) -> 1 | I132: =IFERROR(VLOOKUP($A132,Filtro_!$A$4:$AX$2299,7,FALSE),0) -> 3 | J132: =IFERROR(VLOOKUP($A132,Filtro_!$A$4:$AX$2299,8,FALSE),0) -> 2 | K132: =IFERROR(VLOOKUP($A132,Filtro_!$A$4:$AX$2299,9,FALSE),0) -> 36 | L132: =IFERROR(VLOOKUP($A132,Filtro_!$A$4:$AX$2299,10,FALSE),0) -> 7 | M132: =IFERROR(VLOOKUP($A132,Filtro_!$A$4:$AX$2299,11,FALSE),0) -> 48 | N132: =IFERROR(VLOOKUP($A132,Filtro_!$A$4:$AX$2299,12,FALSE),0) -> 13 | O132: =IFERROR(VLOOKUP($A132,Filtro_!$A$4:$AX$2299,13,FALSE),0) -> 14 | P132: =IFERROR(VLOOKUP($A132,Filtro_!$A$4:$AX$2299,14,FALSE),0) -> 2 | Q132: =IFERROR(VLOOKUP($A132,Filtro_!$A$4:$AX$2299,15,FALSE),0) -> 4 | R132: =IFERROR(VLOOKUP($A132,Filtro_!$A$4:$AX$2299,16,FALSE),0) -> 3 | S132: =IFERROR(VLOOKUP($A132,Filtro_!$A$4:$AX$2299,17,FALSE),0) -> 5 | T132: =IFERROR(VLOOKUP($A132,Filtro_!$A$4:$AX$2299,18,FALSE),0) -> 2 | U132: =IFERROR(VLOOKUP($A132,Filtro_!$A$4:$AX$2299,19,FALSE),0) -> 14 | V132: =IFERROR(VLOOKUP($A132,Filtro_!$A$4:$AX$2299,20,FALSE),0) -> 22 | W132: =IFERROR(VLOOKUP($A132,Filtro_!$A$4:$AX$2299,21,FALSE),0) -> 3 | X132: =IFERROR(VLOOKUP($A132,Filtro_!$A$4:$AX$2299,22,FALSE),0) -> 3 | Y132: =IFERROR(VLOOKUP($A132,Filtro_!$A$4:$AX$2299,23,FALSE),0) -> 9 | Z132: =IFERROR(VLOOKUP($A132,Filtro_!$A$4:$AX$2299,24,FALSE),0) -> 15 | AA132: =IFERROR(VLOOKUP($A132,Filtro_!$A$4:$AX$2299,25,FALSE),0) -> 21 | AB132: =IFERROR(VLOOKUP($A132,Filtro_!$A$4:$AX$2299,26,FALSE),0) -> 33
A133: 03052900 | C133: DISCAPACIDAD PROFUNDA | D133: =IFERROR(VLOOKUP($A133,Filtro_!$A$4:$AX$2299,2,FALSE),0) -> 12 | E133: =IFERROR(VLOOKUP($A133,Filtro_!$A$4:$AX$2299,3,FALSE),0) -> 5 | F133: =IFERROR(VLOOKUP($A133,Filtro_!$A$4:$AX$2299,4,FALSE),0) -> 7 | G133: =IFERROR(VLOOKUP($A133,Filtro_!$A$4:$AX$2299,5,FALSE),0) -> 0 | H133: =IFERROR(VLOOKUP($A133,Filtro_!$A$4:$AX$2299,6,FALSE),0) -> 0 | I133: =IFERROR(VLOOKUP($A133,Filtro_!$A$4:$AX$2299,7,FALSE),0) -> 0 | J133: =IFERROR(VLOOKUP($A133,Filtro_!$A$4:$AX$2299,8,FALSE),0) -> 0 | K133: =IFERROR(VLOOKUP($A133,Filtro_!$A$4:$AX$2299,9,FALSE),0) -> 1 | L133: =IFERROR(VLOOKUP($A133,Filtro_!$A$4:$AX$2299,10,FALSE),0) -> 0 | M133: =IFERROR(VLOOKUP($A133,Filtro_!$A$4:$AX$2299,11,FALSE),0) -> 3 | N133: =IFERROR(VLOOKUP($A133,Filtro_!$A$4:$AX$2299,12,FALSE),0) -> 0 | O133: =IFERROR(VLOOKUP($A133,Filtro_!$A$4:$AX$2299,13,FALSE),0) -> 0 | P133: =IFERROR(VLOOKUP($A133,Filtro_!$A$4:$AX$2299,14,FALSE),0) -> 0 | Q133: =IFERROR(VLOOKUP($A133,Filtro_!$A$4:$AX$2299,15,FALSE),0) -> 0 | R133: =IFERROR(VLOOKUP($A133,Filtro_!$A$4:$AX$2299,16,FALSE),0) -> 0 | S133: =IFERROR(VLOOKUP($A133,Filtro_!$A$4:$AX$2299,17,FALSE),0) -> 0 | T133: =IFERROR(VLOOKUP($A133,Filtro_!$A$4:$AX$2299,18,FALSE),0) -> 0 | U133: =IFERROR(VLOOKUP($A133,Filtro_!$A$4:$AX$2299,19,FALSE),0) -> 1 | V133: =IFERROR(VLOOKUP($A133,Filtro_!$A$4:$AX$2299,20,FALSE),0) -> 0 | W133: =IFERROR(VLOOKUP($A133,Filtro_!$A$4:$AX$2299,21,FALSE),0) -> 0 | X133: =IFERROR(VLOOKUP($A133,Filtro_!$A$4:$AX$2299,22,FALSE),0) -> 0 | Y133: =IFERROR(VLOOKUP($A133,Filtro_!$A$4:$AX$2299,23,FALSE),0) -> 0 | Z133: =IFERROR(VLOOKUP($A133,Filtro_!$A$4:$AX$2299,24,FALSE),0) -> 1 | AA133: =IFERROR(VLOOKUP($A133,Filtro_!$A$4:$AX$2299,25,FALSE),0) -> 0 | AB133: =IFERROR(VLOOKUP($A133,Filtro_!$A$4:$AX$2299,26,FALSE),0) -> 6
A134: 03053000 | B134: ORIGEN MENTAL INTELECTUAL | C134: SIN DISCAPACIDAD | D134: =IFERROR(VLOOKUP($A134,Filtro_!$A$4:$AX$2299,2,FALSE),0) -> 4 | E134: =IFERROR(VLOOKUP($A134,Filtro_!$A$4:$AX$2299,3,FALSE),0) -> 2 | F134: =IFERROR(VLOOKUP($A134,Filtro_!$A$4:$AX$2299,4,FALSE),0) -> 2 | G134: =IFERROR(VLOOKUP($A134,Filtro_!$A$4:$AX$2299,5,FALSE),0) -> 0 | H134: =IFERROR(VLOOKUP($A134,Filtro_!$A$4:$AX$2299,6,FALSE),0) -> 0 | I134: =IFERROR(VLOOKUP($A134,Filtro_!$A$4:$AX$2299,7,FALSE),0) -> 0 | J134: =IFERROR(VLOOKUP($A134,Filtro_!$A$4:$AX$2299,8,FALSE),0) -> 0 | K134: =IFERROR(VLOOKUP($A134,Filtro_!$A$4:$AX$2299,9,FALSE),0) -> 0 | L134: =IFERROR(VLOOKUP($A134,Filtro_!$A$4:$AX$2299,10,FALSE),0) -> 0 | M134: =IFERROR(VLOOKUP($A134,Filtro_!$A$4:$AX$2299,11,FALSE),0) -> 0 | N134: =IFERROR(VLOOKUP($A134,Filtro_!$A$4:$AX$2299,12,FALSE),0) -> 0 | O134: =IFERROR(VLOOKUP($A134,Filtro_!$A$4:$AX$2299,13,FALSE),0) -> 0 | P134: =IFERROR(VLOOKUP($A134,Filtro_!$A$4:$AX$2299,14,FALSE),0) -> 0 | Q134: =IFERROR(VLOOKUP($A134,Filtro_!$A$4:$AX$2299,15,FALSE),0) -> 0 | R134: =IFERROR(VLOOKUP($A134,Filtro_!$A$4:$AX$2299,16,FALSE),0) -> 0 | S134: =IFERROR(VLOOKUP($A134,Filtro_!$A$4:$AX$2299,17,FALSE),0) -> 0 | T134: =IFERROR(VLOOKUP($A134,Filtro_!$A$4:$AX$2299,18,FALSE),0) -> 0 | U134: =IFERROR(VLOOKUP($A134,Filtro_!$A$4:$AX$2299,19,FALSE),0) -> 2 | V134: =IFERROR(VLOOKUP($A134,Filtro_!$A$4:$AX$2299,20,FALSE),0) -> 2 | W134: =IFERROR(VLOOKUP($A134,Filtro_!$A$4:$AX$2299,21,FALSE),0) -> 0 | X134: =IFERROR(VLOOKUP($A134,Filtro_!$A$4:$AX$2299,22,FALSE),0) -> 0 | Y134: =IFERROR(VLOOKUP($A134,Filtro_!$A$4:$AX$2299,23,FALSE),0) -> 0 | Z134: =IFERROR(VLOOKUP($A134,Filtro_!$A$4:$AX$2299,24,FALSE),0) -> 0 | AA134: =IFERROR(VLOOKUP($A134,Filtro_!$A$4:$AX$2299,25,FALSE),0) -> 0 | AB134: =IFERROR(VLOOKUP($A134,Filtro_!$A$4:$AX$2299,26,FALSE),0) -> 0
A135: 03053100 | C135: DISCAPACIDAD LEVE | D135: =IFERROR(VLOOKUP($A135,Filtro_!$A$4:$AX$2299,2,FALSE),0) -> 21 | E135: =IFERROR(VLOOKUP($A135,Filtro_!$A$4:$AX$2299,3,FALSE),0) -> 10 | F135: =IFERROR(VLOOKUP($A135,Filtro_!$A$4:$AX$2299,4,FALSE),0) -> 11 | G135: =IFERROR(VLOOKUP($A135,Filtro_!$A$4:$AX$2299,5,FALSE),0) -> 0 | H135: =IFERROR(VLOOKUP($A135,Filtro_!$A$4:$AX$2299,6,FALSE),0) -> 1 | I135: =IFERROR(VLOOKUP($A135,Filtro_!$A$4:$AX$2299,7,FALSE),0) -> 0 | J135: =IFERROR(VLOOKUP($A135,Filtro_!$A$4:$AX$2299,8,FALSE),0) -> 0 | K135: =IFERROR(VLOOKUP($A135,Filtro_!$A$4:$AX$2299,9,FALSE),0) -> 4 | L135: =IFERROR(VLOOKUP($A135,Filtro_!$A$4:$AX$2299,10,FALSE),0) -> 0 | M135: =IFERROR(VLOOKUP($A135,Filtro_!$A$4:$AX$2299,11,FALSE),0) -> 0 | N135: =IFERROR(VLOOKUP($A135,Filtro_!$A$4:$AX$2299,12,FALSE),0) -> 0 | O135: =IFERROR(VLOOKUP($A135,Filtro_!$A$4:$AX$2299,13,FALSE),0) -> 0 | P135: =IFERROR(VLOOKUP($A135,Filtro_!$A$4:$AX$2299,14,FALSE),0) -> 3 | Q135: =IFERROR(VLOOKUP($A135,Filtro_!$A$4:$AX$2299,15,FALSE),0) -> 1 | R135: =IFERROR(VLOOKUP($A135,Filtro_!$A$4:$AX$2299,16,FALSE),0) -> 3 | S135: =IFERROR(VLOOKUP($A135,Filtro_!$A$4:$AX$2299,17,FALSE),0) -> 2 | T135: =IFERROR(VLOOKUP($A135,Filtro_!$A$4:$AX$2299,18,FALSE),0) -> 2 | U135: =IFERROR(VLOOKUP($A135,Filtro_!$A$4:$AX$2299,19,FALSE),0) -> 3 | V135: =IFERROR(VLOOKUP($A135,Filtro_!$A$4:$AX$2299,20,FALSE),0) -> 2 | W135: =IFERROR(VLOOKUP($A135,Filtro_!$A$4:$AX$2299,21,FALSE),0) -> 0 | X135: =IFERROR(VLOOKUP($A135,Filtro_!$A$4:$AX$2299,22,FALSE),0) -> 0 | Y135: =IFERROR(VLOOKUP($A135,Filtro_!$A$4:$AX$2299,23,FALSE),0) -> 0 | Z135: =IFERROR(VLOOKUP($A135,Filtro_!$A$4:$AX$2299,24,FALSE),0) -> 0 | AA135: =IFERROR(VLOOKUP($A135,Filtro_!$A$4:$AX$2299,25,FALSE),0) -> 0 | AB135: =IFERROR(VLOOKUP($A135,Filtro_!$A$4:$AX$2299,26,FALSE),0) -> 0
A136: 03053200 | C136: DISCAPACIDAD MODERADA | D136: =IFERROR(VLOOKUP($A136,Filtro_!$A$4:$AX$2299,2,FALSE),0) -> 32 | E136: =IFERROR(VLOOKUP($A136,Filtro_!$A$4:$AX$2299,3,FALSE),0) -> 23 | F136: =IFERROR(VLOOKUP($A136,Filtro_!$A$4:$AX$2299,4,FALSE),0) -> 9 | G136: =IFERROR(VLOOKUP($A136,Filtro_!$A$4:$AX$2299,5,FALSE),0) -> 0 | H136: =IFERROR(VLOOKUP($A136,Filtro_!$A$4:$AX$2299,6,FALSE),0) -> 0 | I136: =IFERROR(VLOOKUP($A136,Filtro_!$A$4:$AX$2299,7,FALSE),0) -> 1 | J136: =IFERROR(VLOOKUP($A136,Filtro_!$A$4:$AX$2299,8,FALSE),0) -> 0 | K136: =IFERROR(VLOOKUP($A136,Filtro_!$A$4:$AX$2299,9,FALSE),0) -> 1 | L136: =IFERROR(VLOOKUP($A136,Filtro_!$A$4:$AX$2299,10,FALSE),0) -> 0 | M136: =IFERROR(VLOOKUP($A136,Filtro_!$A$4:$AX$2299,11,FALSE),0) -> 6 | N136: =IFERROR(VLOOKUP($A136,Filtro_!$A$4:$AX$2299,12,FALSE),0) -> 1 | O136: =IFERROR(VLOOKUP($A136,Filtro_!$A$4:$AX$2299,13,FALSE),0) -> 2 | P136: =IFERROR(VLOOKUP($A136,Filtro_!$A$4:$AX$2299,14,FALSE),0) -> 1 | Q136: =IFERROR(VLOOKUP($A136,Filtro_!$A$4:$AX$2299,15,FALSE),0) -> 5 | R136: =IFERROR(VLOOKUP($A136,Filtro_!$A$4:$AX$2299,16,FALSE),0) -> 0 | S136: =IFERROR(VLOOKUP($A136,Filtro_!$A$4:$AX$2299,17,FALSE),0) -> 2 | T136: =IFERROR(VLOOKUP($A136,Filtro_!$A$4:$AX$2299,18,FALSE),0) -> 0 | U136: =IFERROR(VLOOKUP($A136,Filtro_!$A$4:$AX$2299,19,FALSE),0) -> 5 | V136: =IFERROR(VLOOKUP($A136,Filtro_!$A$4:$AX$2299,20,FALSE),0) -> 6 | W136: =IFERROR(VLOOKUP($A136,Filtro_!$A$4:$AX$2299,21,FALSE),0) -> 1 | X136: =IFERROR(VLOOKUP($A136,Filtro_!$A$4:$AX$2299,22,FALSE),0) -> 0 | Y136: =IFERROR(VLOOKUP($A136,Filtro_!$A$4:$AX$2299,23,FALSE),0) -> 0 | Z136: =IFERROR(VLOOKUP($A136,Filtro_!$A$4:$AX$2299,24,FALSE),0) -> 1 | AA136: =IFERROR(VLOOKUP($A136,Filtro_!$A$4:$AX$2299,25,FALSE),0) -> 0 | AB136: =IFERROR(VLOOKUP($A136,Filtro_!$A$4:$AX$2299,26,FALSE),0) -> 0
A137: 03053300 | C137: DISCAPACIDAD SEVERA | D137: =IFERROR(VLOOKUP($A137,Filtro_!$A$4:$AX$2299,2,FALSE),0) -> 45 | E137: =IFERROR(VLOOKUP($A137,Filtro_!$A$4:$AX$2299,3,FALSE),0) -> 26 | F137: =IFERROR(VLOOKUP($A137,Filtro_!$A$4:$AX$2299,4,FALSE),0) -> 19 | G137: =IFERROR(VLOOKUP($A137,Filtro_!$A$4:$AX$2299,5,FALSE),0) -> 1 | H137: =IFERROR(VLOOKUP($A137,Filtro_!$A$4:$AX$2299,6,FALSE),0) -> 1 | I137: =IFERROR(VLOOKUP($A137,Filtro_!$A$4:$AX$2299,7,FALSE),0) -> 1 | J137: =IFERROR(VLOOKUP($A137,Filtro_!$A$4:$AX$2299,8,FALSE),0) -> 0 | K137: =IFERROR(VLOOKUP($A137,Filtro_!$A$4:$AX$2299,9,FALSE),0) -> 5 | L137: =IFERROR(VLOOKUP($A137,Filtro_!$A$4:$AX$2299,10,FALSE),0) -> 0 | M137: =IFERROR(VLOOKUP($A137,Filtro_!$A$4:$AX$2299,11,FALSE),0) -> 3 | N137: =IFERROR(VLOOKUP($A137,Filtro_!$A$4:$AX$2299,12,FALSE),0) -> 2 | O137: =IFERROR(VLOOKUP($A137,Filtro_!$A$4:$AX$2299,13,FALSE),0) -> 2 | P137: =IFERROR(VLOOKUP($A137,Filtro_!$A$4:$AX$2299,14,FALSE),0) -> 1 | Q137: =IFERROR(VLOOKUP($A137,Filtro_!$A$4:$AX$2299,15,FALSE),0) -> 5 | R137: =IFERROR(VLOOKUP($A137,Filtro_!$A$4:$AX$2299,16,FALSE),0) -> 5 | S137: =IFERROR(VLOOKUP($A137,Filtro_!$A$4:$AX$2299,17,FALSE),0) -> 1 | T137: =IFERROR(VLOOKUP($A137,Filtro_!$A$4:$AX$2299,18,FALSE),0) -> 1 | U137: =IFERROR(VLOOKUP($A137,Filtro_!$A$4:$AX$2299,19,FALSE),0) -> 7 | V137: =IFERROR(VLOOKUP($A137,Filtro_!$A$4:$AX$2299,20,FALSE),0) -> 8 | W137: =IFERROR(VLOOKUP($A137,Filtro_!$A$4:$AX$2299,21,FALSE),0) -> 0 | X137: =IFERROR(VLOOKUP($A137,Filtro_!$A$4:$AX$2299,22,FALSE),0) -> 0 | Y137: =IFERROR(VLOOKUP($A137,Filtro_!$A$4:$AX$2299,23,FALSE),0) -> 0 | Z137: =IFERROR(VLOOKUP($A137,Filtro_!$A$4:$AX$2299,24,FALSE),0) -> 0 | AA137: =IFERROR(VLOOKUP($A137,Filtro_!$A$4:$AX$2299,25,FALSE),0) -> 1 | AB137: =IFERROR(VLOOKUP($A137,Filtro_!$A$4:$AX$2299,26,FALSE),0) -> 1
A138: 03053400 | C138: DISCAPACIDAD PROFUNDA | D138: =IFERROR(VLOOKUP($A138,Filtro_!$A$4:$AX$2299,2,FALSE),0) -> 4 | E138: =IFERROR(VLOOKUP($A138,Filtro_!$A$4:$AX$2299,3,FALSE),0) -> 1 | F138: =IFERROR(VLOOKUP($A138,Filtro_!$A$4:$AX$2299,4,FALSE),0) -> 3 | G138: =IFERROR(VLOOKUP($A138,Filtro_!$A$4:$AX$2299,5,FALSE),0) -> 0 | H138: =IFERROR(VLOOKUP($A138,Filtro_!$A$4:$AX$2299,6,FALSE),0) -> 0 | I138: =IFERROR(VLOOKUP($A138,Filtro_!$A$4:$AX$2299,7,FALSE),0) -> 0 | J138: =IFERROR(VLOOKUP($A138,Filtro_!$A$4:$AX$2299,8,FALSE),0) -> 0 | K138: =IFERROR(VLOOKUP($A138,Filtro_!$A$4:$AX$2299,9,FALSE),0) -> 0 | L138: =IFERROR(VLOOKUP($A138,Filtro_!$A$4:$AX$2299,10,FALSE),0) -> 0 | M138: =IFERROR(VLOOKUP($A138,Filtro_!$A$4:$AX$2299,11,FALSE),0) -> 1 | N138: =IFERROR(VLOOKUP($A138,Filtro_!$A$4:$AX$2299,12,FALSE),0) -> 0 | O138: =IFERROR(VLOOKUP($A138,Filtro_!$A$4:$AX$2299,13,FALSE),0) -> 0 | P138: =IFERROR(VLOOKUP($A138,Filtro_!$A$4:$AX$2299,14,FALSE),0) -> 0 | Q138: =IFERROR(VLOOKUP($A138,Filtro_!$A$4:$AX$2299,15,FALSE),0) -> 0 | R138: =IFERROR(VLOOKUP($A138,Filtro_!$A$4:$AX$2299,16,FALSE),0) -> 0 | S138: =IFERROR(VLOOKUP($A138,Filtro_!$A$4:$AX$2299,17,FALSE),0) -> 0 | T138: =IFERROR(VLOOKUP($A138,Filtro_!$A$4:$AX$2299,18,FALSE),0) -> 0 | U138: =IFERROR(VLOOKUP($A138,Filtro_!$A$4:$AX$2299,19,FALSE),0) -> 0 | V138: =IFERROR(VLOOKUP($A138,Filtro_!$A$4:$AX$2299,20,FALSE),0) -> 1 | W138: =IFERROR(VLOOKUP($A138,Filtro_!$A$4:$AX$2299,21,FALSE),0) -> 0 | X138: =IFERROR(VLOOKUP($A138,Filtro_!$A$4:$AX$2299,22,FALSE),0) -> 2 | Y138: =IFERROR(VLOOKUP($A138,Filtro_!$A$4:$AX$2299,23,FALSE),0) -> 0 | Z138: =IFERROR(VLOOKUP($A138,Filtro_!$A$4:$AX$2299,24,FALSE),0) -> 0 | AA138: =IFERROR(VLOOKUP($A138,Filtro_!$A$4:$AX$2299,25,FALSE),0) -> 0 | AB138: =IFERROR(VLOOKUP($A138,Filtro_!$A$4:$AX$2299,26,FALSE),0) -> 0
A139: 03053500 | B139: ORIGEN MÚLTIPLE | C139: SIN DISCAPACIDAD | D139: =IFERROR(VLOOKUP($A139,Filtro_!$A$4:$AX$2299,2,FALSE),0) -> 5 | E139: =IFERROR(VLOOKUP($A139,Filtro_!$A$4:$AX$2299,3,FALSE),0) -> 2 | F139: =IFERROR(VLOOKUP($A139,Filtro_!$A$4:$AX$2299,4,FALSE),0) -> 3 | G139: =IFERROR(VLOOKUP($A139,Filtro_!$A$4:$AX$2299,5,FALSE),0) -> 0 | H139: =IFERROR(VLOOKUP($A139,Filtro_!$A$4:$AX$2299,6,FALSE),0) -> 0 | I139: =IFERROR(VLOOKUP($A139,Filtro_!$A$4:$AX$2299,7,FALSE),0) -> 0 | J139: =IFERROR(VLOOKUP($A139,Filtro_!$A$4:$AX$2299,8,FALSE),0) -> 0 | K139: =IFERROR(VLOOKUP($A139,Filtro_!$A$4:$AX$2299,9,FALSE),0) -> 0 | L139: =IFERROR(VLOOKUP($A139,Filtro_!$A$4:$AX$2299,10,FALSE),0) -> 0 | M139: =IFERROR(VLOOKUP($A139,Filtro_!$A$4:$AX$2299,11,FALSE),0) -> 0 | N139: =IFERROR(VLOOKUP($A139,Filtro_!$A$4:$AX$2299,12,FALSE),0) -> 0 | O139: =IFERROR(VLOOKUP($A139,Filtro_!$A$4:$AX$2299,13,FALSE),0) -> 0 | P139: =IFERROR(VLOOKUP($A139,Filtro_!$A$4:$AX$2299,14,FALSE),0) -> 0 | Q139: =IFERROR(VLOOKUP($A139,Filtro_!$A$4:$AX$2299,15,FALSE),0) -> 0 | R139: =IFERROR(VLOOKUP($A139,Filtro_!$A$4:$AX$2299,16,FALSE),0) -> 0 | S139: =IFERROR(VLOOKUP($A139,Filtro_!$A$4:$AX$2299,17,FALSE),0) -> 0 | T139: =IFERROR(VLOOKUP($A139,Filtro_!$A$4:$AX$2299,18,FALSE),0) -> 0 | U139: =IFERROR(VLOOKUP($A139,Filtro_!$A$4:$AX$2299,19,FALSE),0) -> 2 | V139: =IFERROR(VLOOKUP($A139,Filtro_!$A$4:$AX$2299,20,FALSE),0) -> 3 | W139: =IFERROR(VLOOKUP($A139,Filtro_!$A$4:$AX$2299,21,FALSE),0) -> 0 | X139: =IFERROR(VLOOKUP($A139,Filtro_!$A$4:$AX$2299,22,FALSE),0) -> 0 | Y139: =IFERROR(VLOOKUP($A139,Filtro_!$A$4:$AX$2299,23,FALSE),0) -> 0 | Z139: =IFERROR(VLOOKUP($A139,Filtro_!$A$4:$AX$2299,24,FALSE),0) -> 0 | AA139: =IFERROR(VLOOKUP($A139,Filtro_!$A$4:$AX$2299,25,FALSE),0) -> 0 | AB139: =IFERROR(VLOOKUP($A139,Filtro_!$A$4:$AX$2299,26,FALSE),0) -> 0
A140: 03053600 | C140: DISCAPACIDAD LEVE | D140: =IFERROR(VLOOKUP($A140,Filtro_!$A$4:$AX$2299,2,FALSE),0) -> 10 | E140: =IFERROR(VLOOKUP($A140,Filtro_!$A$4:$AX$2299,3,FALSE),0) -> 3 | F140: =IFERROR(VLOOKUP($A140,Filtro_!$A$4:$AX$2299,4,FALSE),0) -> 7 | G140: =IFERROR(VLOOKUP($A140,Filtro_!$A$4:$AX$2299,5,FALSE),0) -> 0 | H140: =IFERROR(VLOOKUP($A140,Filtro_!$A$4:$AX$2299,6,FALSE),0) -> 0 | I140: =IFERROR(VLOOKUP($A140,Filtro_!$A$4:$AX$2299,7,FALSE),0) -> 0 | J140: =IFERROR(VLOOKUP($A140,Filtro_!$A$4:$AX$2299,8,FALSE),0) -> 0 | K140: =IFERROR(VLOOKUP($A140,Filtro_!$A$4:$AX$2299,9,FALSE),0) -> 0 | L140: =IFERROR(VLOOKUP($A140,Filtro_!$A$4:$AX$2299,10,FALSE),0) -> 0 | M140: =IFERROR(VLOOKUP($A140,Filtro_!$A$4:$AX$2299,11,FALSE),0) -> 0 | N140: =IFERROR(VLOOKUP($A140,Filtro_!$A$4:$AX$2299,12,FALSE),0) -> 0 | O140: =IFERROR(VLOOKUP($A140,Filtro_!$A$4:$AX$2299,13,FALSE),0) -> 0 | P140: =IFERROR(VLOOKUP($A140,Filtro_!$A$4:$AX$2299,14,FALSE),0) -> 0 | Q140: =IFERROR(VLOOKUP($A140,Filtro_!$A$4:$AX$2299,15,FALSE),0) -> 1 | R140: =IFERROR(VLOOKUP($A140,Filtro_!$A$4:$AX$2299,16,FALSE),0) -> 0 | S140: =IFERROR(VLOOKUP($A140,Filtro_!$A$4:$AX$2299,17,FALSE),0) -> 1 | T140: =IFERROR(VLOOKUP($A140,Filtro_!$A$4:$AX$2299,18,FALSE),0) -> 0 | U140: =IFERROR(VLOOKUP($A140,Filtro_!$A$4:$AX$2299,19,FALSE),0) -> 0 | V140: =IFERROR(VLOOKUP($A140,Filtro_!$A$4:$AX$2299,20,FALSE),0) -> 6 | W140: =IFERROR(VLOOKUP($A140,Filtro_!$A$4:$AX$2299,21,FALSE),0) -> 1 | X140: =IFERROR(VLOOKUP($A140,Filtro_!$A$4:$AX$2299,22,FALSE),0) -> 1 | Y140: =IFERROR(VLOOKUP($A140,Filtro_!$A$4:$AX$2299,23,FALSE),0) -> 0 | Z140: =IFERROR(VLOOKUP($A140,Filtro_!$A$4:$AX$2299,24,FALSE),0) -> 0 | AA140: =IFERROR(VLOOKUP($A140,Filtro_!$A$4:$AX$2299,25,FALSE),0) -> 0 | AB140: =IFERROR(VLOOKUP($A140,Filtro_!$A$4:$AX$2299,26,FALSE),0) -> 0
A141: 03053700 | C141: DISCAPACIDAD MODERADA | D141: =IFERROR(VLOOKUP($A141,Filtro_!$A$4:$AX$2299,2,FALSE),0) -> 48 | E141: =IFERROR(VLOOKUP($A141,Filtro_!$A$4:$AX$2299,3,FALSE),0) -> 19 | F141: =IFERROR(VLOOKUP($A141,Filtro_!$A$4:$AX$2299,4,FALSE),0) -> 29 | G141: =IFERROR(VLOOKUP($A141,Filtro_!$A$4:$AX$2299,5,FALSE),0) -> 0 | H141: =IFERROR(VLOOKUP($A141,Filtro_!$A$4:$AX$2299,6,FALSE),0) -> 0 | I141: =IFERROR(VLOOKUP($A141,Filtro_!$A$4:$AX$2299,7,FALSE),0) -> 0 | J141: =IFERROR(VLOOKUP($A141,Filtro_!$A$4:$AX$2299,8,FALSE),0) -> 1 | K141: =IFERROR(VLOOKUP($A141,Filtro_!$A$4:$AX$2299,9,FALSE),0) -> 1 | L141: =IFERROR(VLOOKUP($A141,Filtro_!$A$4:$AX$2299,10,FALSE),0) -> 3 | M141: =IFERROR(VLOOKUP($A141,Filtro_!$A$4:$AX$2299,11,FALSE),0) -> 1 | N141: =IFERROR(VLOOKUP($A141,Filtro_!$A$4:$AX$2299,12,FALSE),0) -> 2 | O141: =IFERROR(VLOOKUP($A141,Filtro_!$A$4:$AX$2299,13,FALSE),0) -> 1 | P141: =IFERROR(VLOOKUP($A141,Filtro_!$A$4:$AX$2299,14,FALSE),0) -> 3 | Q141: =IFERROR(VLOOKUP($A141,Filtro_!$A$4:$AX$2299,15,FALSE),0) -> 1 | R141: =IFERROR(VLOOKUP($A141,Filtro_!$A$4:$AX$2299,16,FALSE),0) -> 2 | S141: =IFERROR(VLOOKUP($A141,Filtro_!$A$4:$AX$2299,17,FALSE),0) -> 0 | T141: =IFERROR(VLOOKUP($A141,Filtro_!$A$4:$AX$2299,18,FALSE),0) -> 0 | U141: =IFERROR(VLOOKUP($A141,Filtro_!$A$4:$AX$2299,19,FALSE),0) -> 10 | V141: =IFERROR(VLOOKUP($A141,Filtro_!$A$4:$AX$2299,20,FALSE),0) -> 14 | W141: =IFERROR(VLOOKUP($A141,Filtro_!$A$4:$AX$2299,21,FALSE),0) -> 5 | X141: =IFERROR(VLOOKUP($A141,Filtro_!$A$4:$AX$2299,22,FALSE),0) -> 2 | Y141: =IFERROR(VLOOKUP($A141,Filtro_!$A$4:$AX$2299,23,FALSE),0) -> 0 | Z141: =IFERROR(VLOOKUP($A141,Filtro_!$A$4:$AX$2299,24,FALSE),0) -> 2 | AA141: =IFERROR(VLOOKUP($A141,Filtro_!$A$4:$AX$2299,25,FALSE),0) -> 0 | AB141: =IFERROR(VLOOKUP($A141,Filtro_!$A$4:$AX$2299,26,FALSE),0) -> 0
A142: 03053800 | C142: DISCAPACIDAD SEVERA | D142: =IFERROR(VLOOKUP($A142,Filtro_!$A$4:$AX$2299,2,FALSE),0) -> 231 | E142: =IFERROR(VLOOKUP($A142,Filtro_!$A$4:$AX$2299,3,FALSE),0) -> 114 | F142: =IFERROR(VLOOKUP($A142,Filtro_!$A$4:$AX$2299,4,FALSE),0) -> 117 | G142: =IFERROR(VLOOKUP($A142,Filtro_!$A$4:$AX$2299,5,FALSE),0) -> 1 | H142: =IFERROR(VLOOKUP($A142,Filtro_!$A$4:$AX$2299,6,FALSE),0) -> 0 | I142: =IFERROR(VLOOKUP($A142,Filtro_!$A$4:$AX$2299,7,FALSE),0) -> 0 | J142: =IFERROR(VLOOKUP($A142,Filtro_!$A$4:$AX$2299,8,FALSE),0) -> 0 | K142: =IFERROR(VLOOKUP($A142,Filtro_!$A$4:$AX$2299,9,FALSE),0) -> 5 | L142: =IFERROR(VLOOKUP($A142,Filtro_!$A$4:$AX$2299,10,FALSE),0) -> 1 | M142: =IFERROR(VLOOKUP($A142,Filtro_!$A$4:$AX$2299,11,FALSE),0) -> 11 | N142: =IFERROR(VLOOKUP($A142,Filtro_!$A$4:$AX$2299,12,FALSE),0) -> 2 | O142: =IFERROR(VLOOKUP($A142,Filtro_!$A$4:$AX$2299,13,FALSE),0) -> 7 | P142: =IFERROR(VLOOKUP($A142,Filtro_!$A$4:$AX$2299,14,FALSE),0) -> 8 | Q142: =IFERROR(VLOOKUP($A142,Filtro_!$A$4:$AX$2299,15,FALSE),0) -> 4 | R142: =IFERROR(VLOOKUP($A142,Filtro_!$A$4:$AX$2299,16,FALSE),0) -> 6 | S142: =IFERROR(VLOOKUP($A142,Filtro_!$A$4:$AX$2299,17,FALSE),0) -> 0 | T142: =IFERROR(VLOOKUP($A142,Filtro_!$A$4:$AX$2299,18,FALSE),0) -> 4 | U142: =IFERROR(VLOOKUP($A142,Filtro_!$A$4:$AX$2299,19,FALSE),0) -> 48 | V142: =IFERROR(VLOOKUP($A142,Filtro_!$A$4:$AX$2299,20,FALSE),0) -> 65 | W142: =IFERROR(VLOOKUP($A142,Filtro_!$A$4:$AX$2299,21,FALSE),0) -> 8 | X142: =IFERROR(VLOOKUP($A142,Filtro_!$A$4:$AX$2299,22,FALSE),0) -> 10 | Y142: =IFERROR(VLOOKUP($A142,Filtro_!$A$4:$AX$2299,23,FALSE),0) -> 12 | Z142: =IFERROR(VLOOKUP($A142,Filtro_!$A$4:$AX$2299,24,FALSE),0) -> 10 | AA142: =IFERROR(VLOOKUP($A142,Filtro_!$A$4:$AX$2299,25,FALSE),0) -> 18 | AB142: =IFERROR(VLOOKUP($A142,Filtro_!$A$4:$AX$2299,26,FALSE),0) -> 11
A143: 03053900 | C143: DISCAPACIDAD PROFUNDA | D143: =IFERROR(VLOOKUP($A143,Filtro_!$A$4:$AX$2299,2,FALSE),0) -> 83 | E143: =IFERROR(VLOOKUP($A143,Filtro_!$A$4:$AX$2299,3,FALSE),0) -> 30 | F143: =IFERROR(VLOOKUP($A143,Filtro_!$A$4:$AX$2299,4,FALSE),0) -> 53 | G143: =IFERROR(VLOOKUP($A143,Filtro_!$A$4:$AX$2299,5,FALSE),0) -> 2 | H143: =IFERROR(VLOOKUP($A143,Filtro_!$A$4:$AX$2299,6,FALSE),0) -> 0 | I143: =IFERROR(VLOOKUP($A143,Filtro_!$A$4:$AX$2299,7,FALSE),0) -> 0 | J143: =IFERROR(VLOOKUP($A143,Filtro_!$A$4:$AX$2299,8,FALSE),0) -> 1 | K143: =IFERROR(VLOOKUP($A143,Filtro_!$A$4:$AX$2299,9,FALSE),0) -> 1 | L143: =IFERROR(VLOOKUP($A143,Filtro_!$A$4:$AX$2299,10,FALSE),0) -> 2 | M143: =IFERROR(VLOOKUP($A143,Filtro_!$A$4:$AX$2299,11,FALSE),0) -> 3 | N143: =IFERROR(VLOOKUP($A143,Filtro_!$A$4:$AX$2299,12,FALSE),0) -> 6 | O143: =IFERROR(VLOOKUP($A143,Filtro_!$A$4:$AX$2299,13,FALSE),0) -> 4 | P143: =IFERROR(VLOOKUP($A143,Filtro_!$A$4:$AX$2299,14,FALSE),0) -> 0 | Q143: =IFERROR(VLOOKUP($A143,Filtro_!$A$4:$AX$2299,15,FALSE),0) -> 1 | R143: =IFERROR(VLOOKUP($A143,Filtro_!$A$4:$AX$2299,16,FALSE),0) -> 1 | S143: =IFERROR(VLOOKUP($A143,Filtro_!$A$4:$AX$2299,17,FALSE),0) -> 1 | T143: =IFERROR(VLOOKUP($A143,Filtro_!$A$4:$AX$2299,18,FALSE),0) -> 0 | U143: =IFERROR(VLOOKUP($A143,Filtro_!$A$4:$AX$2299,19,FALSE),0) -> 2 | V143: =IFERROR(VLOOKUP($A143,Filtro_!$A$4:$AX$2299,20,FALSE),0) -> 8 | W143: =IFERROR(VLOOKUP($A143,Filtro_!$A$4:$AX$2299,21,FALSE),0) -> 0 | X143: =IFERROR(VLOOKUP($A143,Filtro_!$A$4:$AX$2299,22,FALSE),0) -> 0 | Y143: =IFERROR(VLOOKUP($A143,Filtro_!$A$4:$AX$2299,23,FALSE),0) -> 3 | Z143: =IFERROR(VLOOKUP($A143,Filtro_!$A$4:$AX$2299,24,FALSE),0) -> 4 | AA143: =IFERROR(VLOOKUP($A143,Filtro_!$A$4:$AX$2299,25,FALSE),0) -> 13 | AB143: =IFERROR(VLOOKUP($A143,Filtro_!$A$4:$AX$2299,26,FALSE),0) -> 31
B144: TOTAL DE EVALUACIONES | D144: 0 | E144: 0 | F144: 0 | G144: 0 | H144: 0 | I144: 0 | J144: 0 | K144: 0 | L144: 0 | M144: 0 | N144: 0 | O144: 0 | P144: 0 | Q144: 0 | R144: 0 | S144: 0 | T144: 0 | U144: 0 | V144: 0 | W144: 0 | X144: 0 | Y144: 0 | Z144: 0 | AA144: 0 | AB144: 0
A145: 03500336 | B145: EVALUACIÓN INGRESO | C145: SIN DISCAPACIDAD | D145: =IFERROR(VLOOKUP($A145,Filtro_!$A$4:$AX$2299,2,FALSE),0) -> 122 | E145: =IFERROR(VLOOKUP($A145,Filtro_!$A$4:$AX$2299,3,FALSE),0) -> 63 | F145: =IFERROR(VLOOKUP($A145,Filtro_!$A$4:$AX$2299,4,FALSE),0) -> 59 | G145: =IFERROR(VLOOKUP($A145,Filtro_!$A$4:$AX$2299,5,FALSE),0) -> 0 | H145: =IFERROR(VLOOKUP($A145,Filtro_!$A$4:$AX$2299,6,FALSE),0) -> 0 | I145: =IFERROR(VLOOKUP($A145,Filtro_!$A$4:$AX$2299,7,FALSE),0) -> 0 | J145: =IFERROR(VLOOKUP($A145,Filtro_!$A$4:$AX$2299,8,FALSE),0) -> 1 | K145: =IFERROR(VLOOKUP($A145,Filtro_!$A$4:$AX$2299,9,FALSE),0) -> 3 | L145: =IFERROR(VLOOKUP($A145,Filtro_!$A$4:$AX$2299,10,FALSE),0) -> 1 | M145: =IFERROR(VLOOKUP($A145,Filtro_!$A$4:$AX$2299,11,FALSE),0) -> 11 | N145: =IFERROR(VLOOKUP($A145,Filtro_!$A$4:$AX$2299,12,FALSE),0) -> 2 | O145: =IFERROR(VLOOKUP($A145,Filtro_!$A$4:$AX$2299,13,FALSE),0) -> 3 | P145: =IFERROR(VLOOKUP($A145,Filtro_!$A$4:$AX$2299,14,FALSE),0) -> 1 | Q145: =IFERROR(VLOOKUP($A145,Filtro_!$A$4:$AX$2299,15,FALSE),0) -> 0 | R145: =IFERROR(VLOOKUP($A145,Filtro_!$A$4:$AX$2299,16,FALSE),0) -> 1 | S145: =IFERROR(VLOOKUP($A145,Filtro_!$A$4:$AX$2299,17,FALSE),0) -> 3 | T145: =IFERROR(VLOOKUP($A145,Filtro_!$A$4:$AX$2299,18,FALSE),0) -> 1 | U145: =IFERROR(VLOOKUP($A145,Filtro_!$A$4:$AX$2299,19,FALSE),0) -> 21 | V145: =IFERROR(VLOOKUP($A145,Filtro_!$A$4:$AX$2299,20,FALSE),0) -> 24 | W145: =IFERROR(VLOOKUP($A145,Filtro_!$A$4:$AX$2299,21,FALSE),0) -> 6 | X145: =IFERROR(VLOOKUP($A145,Filtro_!$A$4:$AX$2299,22,FALSE),0) -> 5 | Y145: =IFERROR(VLOOKUP($A145,Filtro_!$A$4:$AX$2299,23,FALSE),0) -> 9 | Z145: =IFERROR(VLOOKUP($A145,Filtro_!$A$4:$AX$2299,24,FALSE),0) -> 9 | AA145: =IFERROR(VLOOKUP($A145,Filtro_!$A$4:$AX$2299,25,FALSE),0) -> 7 | AB145: =IFERROR(VLOOKUP($A145,Filtro_!$A$4:$AX$2299,26,FALSE),0) -> 14
A146: 03500337 | C146: DISCAPACIDAD LEVE | D146: =IFERROR(VLOOKUP($A146,Filtro_!$A$4:$AX$2299,2,FALSE),0) -> 165 | E146: =IFERROR(VLOOKUP($A146,Filtro_!$A$4:$AX$2299,3,FALSE),0) -> 91 | F146: =IFERROR(VLOOKUP($A146,Filtro_!$A$4:$AX$2299,4,FALSE),0) -> 74 | G146: =IFERROR(VLOOKUP($A146,Filtro_!$A$4:$AX$2299,5,FALSE),0) -> 0 | H146: =IFERROR(VLOOKUP($A146,Filtro_!$A$4:$AX$2299,6,FALSE),0) -> 1 | I146: =IFERROR(VLOOKUP($A146,Filtro_!$A$4:$AX$2299,7,FALSE),0) -> 0 | J146: =IFERROR(VLOOKUP($A146,Filtro_!$A$4:$AX$2299,8,FALSE),0) -> 0 | K146: =IFERROR(VLOOKUP($A146,Filtro_!$A$4:$AX$2299,9,FALSE),0) -> 6 | L146: =IFERROR(VLOOKUP($A146,Filtro_!$A$4:$AX$2299,10,FALSE),0) -> 0 | M146: =IFERROR(VLOOKUP($A146,Filtro_!$A$4:$AX$2299,11,FALSE),0) -> 4 | N146: =IFERROR(VLOOKUP($A146,Filtro_!$A$4:$AX$2299,12,FALSE),0) -> 2 | O146: =IFERROR(VLOOKUP($A146,Filtro_!$A$4:$AX$2299,13,FALSE),0) -> 7 | P146: =IFERROR(VLOOKUP($A146,Filtro_!$A$4:$AX$2299,14,FALSE),0) -> 0 | Q146: =IFERROR(VLOOKUP($A146,Filtro_!$A$4:$AX$2299,15,FALSE),0) -> 3 | R146: =IFERROR(VLOOKUP($A146,Filtro_!$A$4:$AX$2299,16,FALSE),0) -> 5 | S146: =IFERROR(VLOOKUP($A146,Filtro_!$A$4:$AX$2299,17,FALSE),0) -> 4 | T146: =IFERROR(VLOOKUP($A146,Filtro_!$A$4:$AX$2299,18,FALSE),0) -> 0 | U146: =IFERROR(VLOOKUP($A146,Filtro_!$A$4:$AX$2299,19,FALSE),0) -> 48 | V146: =IFERROR(VLOOKUP($A146,Filtro_!$A$4:$AX$2299,20,FALSE),0) -> 48 | W146: =IFERROR(VLOOKUP($A146,Filtro_!$A$4:$AX$2299,21,FALSE),0) -> 13 | X146: =IFERROR(VLOOKUP($A146,Filtro_!$A$4:$AX$2299,22,FALSE),0) -> 14 | Y146: =IFERROR(VLOOKUP($A146,Filtro_!$A$4:$AX$2299,23,FALSE),0) -> 6 | Z146: =IFERROR(VLOOKUP($A146,Filtro_!$A$4:$AX$2299,24,FALSE),0) -> 4 | AA146: =IFERROR(VLOOKUP($A146,Filtro_!$A$4:$AX$2299,25,FALSE),0) -> 0 | AB146: =IFERROR(VLOOKUP($A146,Filtro_!$A$4:$AX$2299,26,FALSE),0) -> 0
